Workbook

Sheet Anleitung

Sheet Dat-Bl
B1: Kenn - ziffer | C1: Datenerfassung_Weiblich - Regelschulen | J1: Kenn - ziffer | K1: Datenerfassung_Männlich - Regelschulen
C3: Start-Nr. | D3: Schülerinnen | E3: Geb.Dat. | F3: Schule | G3: Bezirk/Bundesland | K3: Start-Nr. | L3: Schülerinnen | M3: Geb.Dat. | N3: Schule | O3: Bezirk/Bundesland
A4: Schule 1 | B4: 1 | D4: Wallner Paulina | F4: BG St.Martin | I4: Schule 1 | J4: 1 | L4: M1/01-Regel
B5: 2 | D5: Feichter Nelly | F5: =F4 -> BG St.Martin | J5: 2 | L5: M1/02-Regel | N5: =N4 -> 0
B6: 3 | D6: Heincz Gerit | F6: =F5 -> BG St.Martin | J6: 3 | L6: M1/03-Regel | N6: =N5 -> 0
B7: 4 | D7: Enzi Sarah | F7: BG St.Martin | J7: 4 | L7: M1/04-Regel | N7: 0
B8: 5 | D8: Koch Anna | F8: BG St.Martin | J8: 5 | L8: M1/05-Regel | N8: 0
B9: 6 | D9: Fugger Sophie | F9: BG St.Martin | J9: 6 | L9: M1/06-Regel | N9: =N8 -> 0
A10: Schule 2 | B10: 7 | D10: Maier Celina | F10: Borg Wolfsberg | I10: Schule 2 | J10: 7 | L10: M2/01-Regel
B11: 8 | D11: Maier Magdalena | F11: =F10 -> Borg Wolfsberg | J11: 8 | L11: M2/02-Regel | N11: =N10 -> 0
B12: 9 | D12: Frauwallner Hanna | F12: =F11 -> Borg Wolfsberg | J12: 9 | L12: M2/03-Regel | N12: =N11 -> 0
B13: 10 | D13: Spendl Jennifer | F13: =F12 -> Borg Wolfsberg | J13: 10 | L13: M2/04-Regel | N13: 0
B14: 11 | D14: Pum Julia | F14: Borg Wolfsberg | J14: 11 | L14: M2/05-Regel | N14: 0
B15: 12 | D15: Riegler Vanessa | F15: =F14 -> Borg Wolfsberg | J15: 12 | L15: M2/06-Regel | N15: =N14 -> 0
A16: Schule 3 | B16: 13 | D16: Hartlieb Michelle | F16: BRG Spittal | I16: Schule 3 | J16: 13 | L16: M3/01-Regel
B17: 14 | D17: Reiter Anna-Lena | F17: =F16 -> BRG Spittal | J17: 14 | L17: M3/02-Regel | N17: =N16 -> 0
B18: 15 | D18: Krammer Kristin | F18: =F17 -> BRG Spittal | J18: 15 | L18: M3/03-Regel | N18: =N17 -> 0
B19: 16 | D19: Kowatsch Anna | F19: =F18 -> BRG Spittal | J19: 16 | L19: M3/04-Regel | N19: 0
B20: 17 | D20: Possegger Christina | F20: BRG Spittal | J20: 17 | L20: M3/05-Regel | N20: 0
B21: 18 | D21: Thaler Laurentine | F21: =F20 -> BRG Spittal | J21: 18 | L21: M3/06-Regel | N21: =N20 -> 0
A22: Schule 4 | B22: 19 | D22: Kampusch Michelle | F22: BZ Bad Eisenkappel | I22: Schule 4 | J22: 19 | L22: M4/01-Regel
B23: 20 | D23: Kaschnig Lea | F23: =F22 -> BZ Bad Eisenkappel | J23: 20 | L23: M4/02-Regel | N23: =N22 -> 0
B24: 21 | D24: Ebner Anna-Lena | F24: =F23 -> BZ Bad Eisenkappel | J24: 21 | L24: M4/03-Regel | N24: =N23 -> 0
B25: 22 | D25: Millicevvic Renate | F25: BZ Bad Eisenkappel | J25: 22 | L25: M4/04-Regel | N25: 0
B26: 23 | D26: Pudgar Domenika | F26: BZ Bad Eisenkappel | J26: 23 | L26: M4/05-Regel | N26: 0
B27: 24 | F27: =F26 -> BZ Bad Eisenkappel | J27: 24 | L27: M4/06-Regel | N27: =N26 -> 0
A28: Schule 5 | B28: 25 | D28: Donner Rosa | F28: Ingeborg Bachmann Gymnasium | I28: Schule 5 | J28: 25 | L28: M5/01-Regel
B29: 26 | D29: Lippitsch Amelie | F29: =F28 -> Ingeborg Bachmann Gymnasium | J29: 26 | L29: M5/02-Regel | N29: =N28 -> 0
B30: 27 | D30: Doboczky Sophie | F30: =F29 -> Ingeborg Bachmann Gymnasium | J30: 27 | L30: M5/03-Regel | N30: =N29 -> 0
B31: 28 | D31: Schmaranz Sophie | F31: Ingeborg Bachmann Gymnasium | J31: 28 | L31: M5/04-Regel | N31: 0
B32: 29 | D32: Zenkl Hannah | F32: Ingeborg Bachmann Gymnasium | J32: 29 | L32: M5/05-Regel | N32: 0
B33: 30 | D33: Laßnig Katharina | F33: =F32 -> Ingeborg Bachmann Gymnasium | J33: 30 | L33: M5/06-Regel | N33: =N32 -> 0
A34: Schule 6 | B34: 31 | D34: Fercher Annabell | F34: Musik NMS Hermagor | I34: Schule 6 | J34: 31 | L34: M6/01-Regel
B35: 32 | D35: Ebenwaldner Carina | F35: =F34 -> Musik NMS Hermagor | J35: 32 | L35: M6/02-Regel | N35: =N34 -> 0
B36: 33 | D36: Wernitznig Nina | F36: =F35 -> Musik NMS Hermagor | J36: 33 | L36: M6/03-Regel | N36: =N35 -> 0
B37: 34 | D37: Pettauer Sara | F37: Musik NMS Hermagor | J37: 34 | L37: M6/04-Regel | N37: 0
B38: 35 | D38: Matthei Laura | F38: Musik NMS Hermagor | J38: 35 | L38: M6/05-Regel | N38: 0
B39: 36 | D39: Seebacher Mathilda | F39: =F38 -> Musik NMS Hermagor | J39: 36 | L39: M6/06-Regel | N39: =N38 -> 0
A40: Schule 7 | B40: 37 | D40: Pörtschacher Vanessa | F40: NMS Friesach | I40: Schule 7 | J40: 37 | L40: M7/01-Regel
B41: 38 | D41: Kronlechner Bettina | F41: =F40 -> NMS Friesach | J41: 38 | L41: M7/02-Regel | N41: =N40 -> 0
B42: 39 | D42: Delfser Anna-Magdalena | F42: =F41 -> NMS Friesach | J42: 39 | L42: M7/03-Regel | N42: =N41 -> 0
B43: 40 | D43: Schaller Victoria | F43: NMS Friesach | J43: 40 | L43: M7/04-Regel | N43: 0
B44: 41 | D44: Hölbling Laura | F44: NMS Friesach | J44: 41 | L44: M7/05-Regel | N44: 0
B45: 42 | D45: Pacher Selina | F45: =F44 -> NMS Friesach | J45: 42 | L45: M7/06-Regel | N45: =N44 -> 0
A46: Schule 8 | B46: 43 | D46: Mayer Elena | F46: NMS Gegendtal | I46: Schule 8 | J46: 43 | L46: M8/01-Regel
B47: 44 | D47: Steiner Patricia | F47: =F46 -> NMS Gegendtal | J47: 44 | L47: M8/02-Regel | N47: =N46 -> 0
B48: 45 | D48: Maier Jasmin | F48: =F47 -> NMS Gegendtal | J48: 45 | L48: M8/03-Regel | N48: =N47 -> 0
B49: 46 | D49: Schweiger Nadja | F49: NMS Gegendtal | J49: 46 | L49: M8/04-Regel | N49: 0
B50: 47 | D50: Gasser Valentina | F50: NMS Gegendtal | J50: 47 | L50: M8/05-Regel | N50: 0
B51: 48 | D51: Ostertschnig Lisa | F51: =F50 -> NMS Gegendtal | J51: 48 | L51: M8/06-Regel | N51: =N50 -> 0
A52: Schule 9 | B52: 49 | D52: Kassin Larissa | F52: NMS Landskron | I52: Schule 9 | J52: 49 | L52: M9/01-Regel
B53: 50 | D53: Wiener Sophie | F53: =F52 -> NMS Landskron | J53: 50 | L53: M9/02-Regel | N53: =N52 -> 0
B54: 51 | D54: Neumann Lisa | F54: =F53 -> NMS Landskron | J54: 51 | L54: M9/03-Regel | N54: =N53 -> 0
B55: 52 | D55: Pinzer Alina | F55: NMS Landskron | J55: 52 | L55: M9/04-Regel | N55: 0
B56: 53 | D56: Santner Fabienne | F56: NMS Landskron | J56: 53 | L56: M9/05-Regel | N56: 0
B57: 54 | D57: Petscher Maria | F57: =F56 -> NMS Landskron | J57: 54 | L57: M9/06-Regel | N57: =N56 -> 0
A58: Schule 10 | B58: 55 | D58: Edlmann Chiara | F58: NMS Viktring | I58: Schule 10 | J58: 55 | L58: M10/01-Regel
B59: 56 | D59: Toth Lili | F59: =F58 -> NMS Viktring | J59: 56 | L59: M10/02-Regel | N59: =N58 -> 0
B60: 57 | D60: Krnjic Sonja | F60: =F59 -> NMS Viktring | J60: 57 | L60: M10/03-Regel | N60: =N59 -> 0
B61: 58 | D61: Esel Michelle | F61: NMS Viktring | J61: 58 | L61: M10/04-Regel | N61: 0
B62: 59 | D62: Bierbaumer Selina | F62: NMS Viktring | J62: 59 | L62: M10/05-Regel | N62: 0
B63: 60 | D63: Herkner Anna | F63: =F62 -> NMS Viktring | J63: 60 | L63: M10/06-Regel | N63: =N62 -> 0
A64: Schule 11 | B64: 61 | D64: Ebner Elena | F64: RNMS Feldkirchen | I64: Schule 11 | J64: 61 | L64: M11/01-Regel
B65: 62 | D65: Reiter Katharina | F65: =F64 -> RNMS Feldkirchen | J65: 62 | L65: M11/02-Regel | N65: =N64 -> 0
B66: 63 | D66: Hinteregger Katrin | F66: =F65 -> RNMS Feldkirchen | J66: 63 | L66: M11/03-Regel | N66: =N65 -> 0
B67: 64 | D67: Kircher Florentina | F67: RNMS Feldkirchen | J67: 64 | L67: M11/04-Regel | N67: 0
B68: 65 | D68: Mühlbacher Nina | F68: RNMS Feldkirchen | J68: 65 | L68: M11/05-Regel | N68: 0
B69: 66 | D69: Petrascu Elisabeth | F69: =F68 -> RNMS Feldkirchen | J69: 66 | L69: M11/06-Regel | N69: =N68 -> 0
A70: Schule 12 | B70: 67 | D70: W12/01-Regel | I70: Schule 12 | J70: 67 | L70: M12/01-Regel
B71: 68 | D71: W12/02-Regel | F71: =F70 -> 0 | J71: 68 | L71: M12/02-Regel | N71: =N70 -> 0
B72: 69 | D72: W12/03-Regel | F72: =F71 -> 0 | J72: 69 | L72: M12/03-Regel | N72: =N71 -> 0
B73: 70 | D73: W12/04-Regel | F73: 0 | J73: 70 | L73: M12/04-Regel | N73: 0
B74: 71 | D74: W12/05-Regel | F74: 0 | J74: 71 | L74: M12/05-Regel | N74: 0
B75: 72 | D75: W12/06-Regel | F75: =F74 -> 0 | J75: 72 | L75: M12/06-Regel | N75: =N74 -> 0
A76: Schule 13 | B76: 73 | D76: W13/01-Regel | I76: Schule 13 | J76: 73 | L76: M13/01-Regel
B77: 74 | D77: W13/02-Regel | F77: =F76 -> 0 | J77: 74 | L77: M13/02-Regel | N77: =N76 -> 0
B78: 75 | D78: W13/03-Regel | F78: =F77 -> 0 | J78: 75 | L78: M13/03-Regel | N78: =N77 -> 0
B79: 76 | D79: W13/04-Regel | F79: 0 | J79: 76 | L79: M13/04-Regel | N79: 0
B80: 77 | D80: W13/05-Regel | F80: 0 | J80: 77 | L80: M13/05-Regel | N80: 0
B81: 78 | D81: W13/06-Regel | F81: =F80 -> 0 | J81: 78 | L81: M13/06-Regel | N81: =N80 -> 0
A82: Schule 14 | B82: 79 | D82: W14/01-Regel | I82: Schule 14 | J82: 79 | L82: M14/01-Regel
B83: 80 | D83: W14/02-Regel | F83: =F82 -> 0 | J83: 80 | L83: M14/02-Regel | N83: =N82 -> 0
B84: 81 | D84: W14/03-Regel | F84: =F83 -> 0 | J84: 81 | L84: M14/03-Regel | N84: =N83 -> 0
B85: 82 | D85: W14/04-Regel | F85: 0 | J85: 82 | L85: M14/04-Regel | N85: 0
B86: 83 | D86: W14/05-Regel | F86: 0 | J86: 83 | L86: M14/05-Regel | N86: 0
B87: 84 | D87: W14/06-Regel | F87: =F86 -> 0 | J87: 84 | L87: M14/06-Regel | N87: =N86 -> 0
A88: Schule 15 | B88: 85 | D88: W15/01-Regel | I88: Schule 15 | J88: 85 | L88: M15/01-Regel
B89: 86 | D89: W15/02-Regel | F89: =F88 -> 0 | J89: 86 | L89: M15/02-Regel | N89: =N88 -> 0
B90: 87 | D90: W15/03-Regel | F90: =F89 -> 0 | J90: 87 | L90: M15/03-Regel | N90: =N89 -> 0
B91: 88 | D91: W15/04-Regel | F91: 0 | J91: 88 | L91: M15/04-Regel | N91: 0
B92: 89 | D92: W15/05-Regel | F92: 0 | J92: 89 | L92: M15/05-Regel | N92: 0
B93: 90 | D93: W15/06-Regel | F93: =F92 -> 0 | J93: 90 | L93: M15/06-Regel | N93: =N92 -> 0
A94: Schule 16 | B94: 91 | D94: W16/01-Regel | I94: Schule 16 | J94: 91 | L94: M16/01-Regel
B95: 92 | D95: W16/02-Regel | F95: =F94 -> 0 | J95: 92 | L95: M16/02-Regel | N95: =N94 -> 0
B96: 93 | D96: W16/03-Regel | F96: =F95 -> 0 | J96: 93 | L96: M16/03-Regel | N96: =N95 -> 0
B97: 94 | D97: W16/04-Regel | F97: 0 | J97: 94 | L97: M16/04-Regel | N97: 0
B98: 95 | D98: W16/05-Regel | F98: 0 | J98: 95 | L98: M16/05-Regel | N98: 0
B99: 96 | D99: W16/06-Regel | F99: =F98 -> 0 | J99: 96 | L99: M16/06-Regel | N99: =N98 -> 0
A100: Schule 17 | B100: 97 | D100: W17/01-Regel | I100: Schule 17 | J100: 97 | L100: M17/01-Regel
B101: 98 | D101: W17/02-Regel | F101: =F100 -> 0 | J101: 98 | L101: M17/02-Regel | N101: =N100 -> 0
B102: 99 | D102: W17/03-Regel | F102: =F101 -> 0 | J102: 99 | L102: M17/03-Regel | N102: =N101 -> 0
B103: 100 | D103: W17/04-Regel | F103: 0 | J103: 100 | L103: M17/04-Regel | N103: 0
B104: 101 | D104: W17/05-Regel | F104: 0 | J104: 101 | L104: M17/05-Regel | N104: 0
B105: 102 | D105: W17/06-Regel | F105: =F104 -> 0 | J105: 102 | L105: M17/06-Regel | N105: =N104 -> 0
A106: Schule 18 | B106: 103 | D106: W18/01-Regel | I106: Schule 18 | J106: 103 | L106: M18/01-Regel
B107: 104 | D107: W18/02-Regel | F107: =F106 -> 0 | J107: 104 | L107: M18/02-Regel | N107: =N106 -> 0
B108: 105 | D108: W18/03-Regel | F108: =F107 -> 0 | J108: 105 | L108: M18/03-Regel | N108: =N107 -> 0
B109: 106 | D109: W18/04-Regel | F109: 0 | J109: 106 | L109: M18/04-Regel | N109: 0
B110: 107 | D110: W18/05-Regel | F110: 0 | J110: 107 | L110: M18/05-Regel | N110: 0
B111: 108 | D111: W18/06-Regel | F111: =F110 -> 0 | J111: 108 | L111: M18/06-Regel | N111: =N110 -> 0
A112: Schule 19 | B112: 109 | D112: W19/01-Regel | I112: Schule 19 | J112: 109 | L112: M19/01-Regel
B113: 110 | D113: W19/02-Regel | F113: =F112 -> 0 | J113: 110 | L113: M19/02-Regel | N113: =N112 -> 0
B114: 111 | D114: W19/03-Regel | F114: =F113 -> 0 | J114: 111 | L114: M19/03-Regel | N114: =N113 -> 0
B115: 112 | D115: W19/04-Regel | F115: 0 | J115: 112 | L115: M19/04-Regel | N115: 0
B116: 113 | D116: W19/05-Regel | F116: 0 | J116: 113 | L116: M19/05-Regel | N116: 0
B117: 114 | D117: W19/06-Regel | F117: =F116 -> 0 | J117: 114 | L117: M19/06-Regel | N117: =N116 -> 0
A118: Schule 20 | B118: 115 | D118: W20/01-Regel | I118: Schule 20 | J118: 115 | L118: M20/01-Regel
B119: 116 | D119: W20/02-Regel | F119: =F118 -> 0 | J119: 116 | L119: M20/02-Regel | N119: =N118 -> 0
B120: 117 | D120: W20/03-Regel | F120: =F119 -> 0 | J120: 117 | L120: M20/03-Regel | N120: =N119 -> 0
B121: 118 | D121: W20/04-Regel | F121: 0 | J121: 118 | L121: M20/04-Regel | N121: 0
B122: 119 | D122: W20/05-Regel | F122: 0 | J122: 119 | L122: M20/05-Regel | N122: 0
B123: 120 | D123: W20/06-Regel | F123: =F122 -> 0 | J123: 120 | L123: M20/06-Regel | N123: =N122 -> 0
B124: Kenn - ziffer | C124: Datenerfassung_Weiblich - Sportschwerpunkt | J124: Kenn - ziffer | K124: Datenerfassung_Männlich - Sportschwerpunkt
C126: Start-Nr. | D126: Schülerinnen | E126: Geb.Dat. | F126: Schule | G126: Bezirk/Bundesland | K126: Start-Nr. | L126: Schülerinnen | M126: Geb.Dat. | N126: Schule | O126: Bezirk/Bundesland
A127: Schule 1 | B127: 1 | D127: W1/01-Sport | I127: Schule 1 | J127: 1 | L127: M1/01-Sport
B128: 2 | D128: W1/02-Sport | F128: =F127 -> 0 | J128: 2 | L128: M1/02-Sport | N128: =N127 -> 0
B129: 3 | D129: W1/03-Sport | F129: =F128 -> 0 | J129: 3 | L129: M1/03-Sport | N129: =N128 -> 0
B130: 4 | D130: W1/04-Sport | F130: 0 | J130: 4 | L130: M1/04-Sport | N130: 0
B131: 5 | D131: W1/05-Sport | F131: 0 | J131: 5 | L131: M1/05-Sport | N131: 0
B132: 6 | D132: W1/06-Sport | F132: =F131 -> 0 | J132: 6 | L132: M1/06-Sport | N132: =N131 -> 0
A133: Schule 2 | B133: 7 | D133: W2/01-Sport | I133: Schule 2 | J133: 7 | L133: M2/01-Sport
B134: 8 | D134: W2/02-Sport | F134: =F133 -> 0 | J134: 8 | L134: M2/02-Sport | N134: =N133 -> 0
B135: 9 | D135: W2/03-Sport | F135: =F134 -> 0 | J135: 9 | L135: M2/03-Sport | N135: =N134 -> 0
B136: 10 | D136: W2/04-Sport | F136: 0 | J136: 10 | L136: M2/04-Sport | N136: 0
B137: 11 | D137: W2/05-Sport | F137: 0 | J137: 11 | L137: M2/05-Sport | N137: 0
B138: 12 | D138: W2/06-Sport | F138: =F137 -> 0 | J138: 12 | L138: M2/06-Sport | N138: =N137 -> 0
A139: Schule 3 | B139: 13 | D139: W3/01-Sport | I139: Schule 3 | J139: 13 | L139: M3/01-Sport
B140: 14 | D140: W3/02-Sport | F140: =F139 -> 0 | J140: 14 | L140: M3/02-Sport | N140: =N139 -> 0
B141: 15 | D141: W3/03-Sport | F141: =F140 -> 0 | J141: 15 | L141: M3/03-Sport | N141: =N140 -> 0
B142: 16 | D142: W3/04-Sport | F142: 0 | J142: 16 | L142: M3/04-Sport | N142: 0
B143: 17 | D143: W3/05-Sport | F143: 0 | J143: 17 | L143: M3/05-Sport | N143: 0
B144: 18 | D144: W3/06-Sport | F144: =F143 -> 0 | J144: 18 | L144: M3/06-Sport | N144: =N143 -> 0
A145: Schule 4 | B145: 19 | D145: W4/01-Sport | I145: Schule 4 | J145: 19 | L145: M4/01-Sport
B146: 20 | D146: W4/02-Sport | F146: =F145 -> 0 | J146: 20 | L146: M4/02-Sport | N146: =N145 -> 0
B147: 21 | D147: W4/03-Sport | F147: =F146 -> 0 | J147: 21 | L147: M4/03-Sport | N147: =N146 -> 0
B148: 22 | D148: W4/04-Sport | F148: 0 | J148: 22 | L148: M4/04-Sport | N148: 0
B149: 23 | D149: W4/05-Sport | F149: 0 | J149: 23 | L149: M4/05-Sport | N149: 0
B150: 24 | D150: W4/06-Sport | F150: =F149 -> 0 | J150: 24 | L150: M4/06-Sport | N150: =N149 -> 0
A151: Schule 5 | B151: 25 | D151: W5/01-Sport | I151: Schule 5 | J151: 25 | L151: M5/01-Sport
B152: 26 | D152: W5/02-Sport | F152: =F151 -> 0 | J152: 26 | L152: M5/02-Sport | N152: =N151 -> 0
B153: 27 | D153: W5/03-Sport | F153: =F152 -> 0 | J153: 27 | L153: M5/03-Sport | N153: =N152 -> 0
B154: 28 | D154: W5/04-Sport | F154: 0 | J154: 28 | L154: M5/04-Sport | N154: 0
B155: 29 | D155: W5/05-Sport | F155: 0 | J155: 29 | L155: M5/05-Sport | N155: 0
B156: 30 | D156: W5/06-Sport | F156: =F155 -> 0 | J156: 30 | L156: M5/06-Sport | N156: =N155 -> 0
A157: Schule 6 | B157: 31 | D157: W6/01-Sport | I157: Schule 6 | J157: 31 | L157: M6/01-Sport
B158: 32 | D158: W6/02-Sport | F158: =F157 -> 0 | J158: 32 | L158: M6/02-Sport | N158: =N157 -> 0
B159: 33 | D159: W6/03-Sport | F159: =F158 -> 0 | J159: 33 | L159: M6/03-Sport | N159: =N158 -> 0
B160: 34 | D160: W6/04-Sport | F160: 0 | J160: 34 | L160: M6/04-Sport | N160: 0
B161: 35 | D161: W6/05-Sport | F161: 0 | J161: 35 | L161: M6/05-Sport | N161: 0
B162: 36 | D162: W6/06-Sport | F162: =F161 -> 0 | J162: 36 | L162: M6/06-Sport | N162: =N161 -> 0
A163: Schule 7 | B163: 37 | D163: W7/01-Sport | I163: Schule 7 | J163: 37 | L163: M7/01-Sport
B164: 38 | D164: W7/02-Sport | F164: =F163 -> 0 | J164: 38 | L164: M7/02-Sport | N164: =N163 -> 0
B165: 39 | D165: W7/03-Sport | F165: =F164 -> 0 | J165: 39 | L165: M7/03-Sport | N165: =N164 -> 0
B166: 40 | D166: W7/04-Sport | F166: 0 | J166: 40 | L166: M7/04-Sport | N166: 0
B167: 41 | D167: W7/05-Sport | F167: 0 | J167: 41 | L167: M7/05-Sport | N167: 0
B168: 42 | D168: W7/06-Sport | F168: =F167 -> 0 | J168: 42 | L168: M7/06-Sport | N168: =N167 -> 0
A169: Schule 8 | B169: 43 | D169: W8/01-Sport | I169: Schule 8 | J169: 43 | L169: M8/01-Sport
B170: 44 | D170: W8/02-Sport | F170: =F169 -> 0 | J170: 44 | L170: M8/02-Sport | N170: =N169 -> 0
B171: 45 | D171: W8/03-Sport | F171: =F170 -> 0 | J171: 45 | L171: M8/03-Sport | N171: =N170 -> 0
B172: 46 | D172: W8/04-Sport | F172: 0 | J172: 46 | L172: M8/04-Sport | N172: 0
B173: 47 | D173: W8/05-Sport | F173: 0 | J173: 47 | L173: M8/05-Sport | N173: 0
B174: 48 | D174: W8/06-Sport | F174: =F173 -> 0 | J174: 48 | L174: M8/06-Sport | N174: =N173 -> 0
A175: Schule 9 | B175: 49 | D175: W9/01-Sport | I175: Schule 9 | J175: 49 | L175: M9/01-Sport
B176: 50 | D176: W9/02-Sport | F176: =F175 -> 0 | J176: 50 | L176: M9/02-Sport | N176: =N175 -> 0
B177: 51 | D177: W9/03-Sport | F177: =F176 -> 0 | J177: 51 | L177: M9/03-Sport | N177: =N176 -> 0
B178: 52 | D178: W9/04-Sport | F178: 0 | J178: 52 | L178: M9/04-Sport | N178: 0
B179: 53 | D179: W9/05-Sport | F179: 0 | J179: 53 | L179: M9/05-Sport | N179: 0
B180: 54 | D180: W9/06-Sport | F180: =F179 -> 0 | J180: 54 | L180: M9/06-Sport | N180: =N179 -> 0
A181: Schule 10 | B181: 55 | D181: W10/01-Sport | I181: Schule 10 | J181: 55 | L181: M10/01-Sport
B182: 56 | D182: W10/02-Sport | F182: =F181 -> 0 | J182: 56 | L182: M10/02-Sport | N182: =N181 -> 0
B183: 57 | D183: W10/03-Sport | F183: =F182 -> 0 | J183: 57 | L183: M10/03-Sport | N183: =N182 -> 0
B184: 58 | D184: W10/04-Sport | F184: 0 | J184: 58 | L184: M10/04-Sport | N184: 0
B185: 59 | D185: W10/05-Sport | F185: 0 | J185: 59 | L185: M10/05-Sport | N185: 0
B186: 60 | D186: W10/06-Sport | F186: =F185 -> 0 | J186: 60 | L186: M10/06-Sport | N186: =N185 -> 0
A187: Schule 11 | B187: 61 | D187: W11/01-Sport | I187: Schule 11 | J187: 61 | L187: M11/01-Sport
B188: 62 | D188: W11/02-Sport | F188: =F187 -> 0 | J188: 62 | L188: M11/02-Sport | N188: =N187 -> 0
B189: 63 | D189: W11/03-Sport | F189: =F188 -> 0 | J189: 63 | L189: M11/03-Sport | N189: =N188 -> 0
B190: 64 | D190: W11/04-Sport | F190: 0 | J190: 64 | L190: M11/04-Sport | N190: 0
B191: 65 | D191: W11/05-Sport | F191: 0 | J191: 65 | L191: M11/05-Sport | N191: 0
B192: 66 | D192: W11/06-Sport | F192: =F191 -> 0 | J192: 66 | L192: M11/06-Sport | N192: =N191 -> 0
A193: Schule 12 | B193: 67 | D193: W12/01-Sport | I193: Schule 12 | J193: 67 | L193: M12/01-Sport
B194: 68 | D194: W12/02-Sport | F194: =F193 -> 0 | J194: 68 | L194: M12/02-Sport | N194: =N193 -> 0
B195: 69 | D195: W12/03-Sport | F195: =F194 -> 0 | J195: 69 | L195: M12/03-Sport | N195: =N194 -> 0
B196: 70 | D196: W12/04-Sport | F196: 0 | J196: 70 | L196: M12/04-Sport | N196: 0
B197: 71 | D197: W12/05-Sport | F197: 0 | J197: 71 | L197: M12/05-Sport | N197: 0
B198: 72 | D198: W12/06-Sport | F198: =F197 -> 0 | J198: 72 | L198: M12/06-Sport | N198: =N197 -> 0
A199: Schule 13 | B199: 73 | D199: W13/01-Sport | I199: Schule 13 | J199: 73 | L199: M13/01-Sport
B200: 74 | D200: W13/02-Sport | F200: =F199 -> 0 | J200: 74 | L200: M13/02-Sport | N200: =N199 -> 0
B201: 75 | D201: W13/03-Sport | F201: =F200 -> 0 | J201: 75 | L201: M13/03-Sport | N201: =N200 -> 0
B202: 76 | D202: W13/04-Sport | F202: 0 | J202: 76 | L202: M13/04-Sport | N202: 0
... 44 more rows

Sheet w-E_R
A1: Wettkampfdaten-Art | C1: D-C/Regel-Schulen | D1: Ortsangabe | E1: Ortsangabe,Datum
A2: Start-Nr. | B2: Schülerinnen | C2: Geb.Dat. | D2: Schule 1 | E2: Bezirk/Bundesland | F2: 60m | G2: PUNKTE | H2: Schlagball | I2: PUNKTE | J2: Kugel | K2: PUNKTE | L2: Weit | M2: PUNKTE | N2: 5x80M | O2: PUNKTE | P2: SUMME
A3: ='Dat-Bl'!C4 -> 0 | B3: ='Dat-Bl'!D4 -> Wallner Paulina | C3: ='Dat-Bl'!E4 -> 00:00:00 | D3: ='Dat-Bl'!F4 -> BG St.Martin | E3: ='Dat-Bl'!G4 -> 0 | F3: 8.64 | G3: =IF(F3=0,0,INT(19.742424*EXP(2.1*LN((1417-F3*100)/100)))) -> 716 | H3: 31.5 | I3: =IF(H3=0,0,INT(22*EXP(0.9*LN((H3*100-500)/100)))) -> 420 | K3: =IF(J3=0,0,INT(83.435373*EXP(0.9*LN((J3*100-130)/100)))) -> 0 | L3: 4.4 | M3: =IF(L3=0,0,INT(220.628792*EXP(1*LN((L3*100-180)/100)))) -> 573 | N3: 56.97 | O3: =IF(N3=0,0,INT(0.405548*EXP(2.1*LN((8720-N3*100)/100)))) -> 521 | P3: =SUM(G3,I3,K3,M3) -> 1709
A4: ='Dat-Bl'!C5 -> 0 | B4: ='Dat-Bl'!D5 -> Feichter Nelly | C4: ='Dat-Bl'!E5 -> 00:00:00 | D4: =D3 -> BG St.Martin | F4: 9.25 | G4: 560 | H4: 39.4 | I4: 531 | K4: 0 | L4: 4.4 | M4: 573 | P4: 1664
A5: ='Dat-Bl'!C6 -> 0 | B5: ='Dat-Bl'!D6 -> Heincz Gerit | C5: ='Dat-Bl'!E6 -> 00:00:00 | D5: =D4 -> BG St.Martin | F5: 9.59 | G5: 482 | H5: 39.1 | I5: 527 | K5: 0 | L5: 4.24 | M5: 538 | P5: 1547
A6: ='Dat-Bl'!C7 -> 0 | B6: ='Dat-Bl'!D7 -> Enzi Sarah | C6: ='Dat-Bl'!E7 -> 00:00:00 | D6: BG St.Martin | F6: 8.9 | G6: 647 | H6: 33.2 | I6: 444 | K6: 0 | L6: 4.7 | M6: 639 | P6: 1730
A7: ='Dat-Bl'!C8 -> 0 | B7: ='Dat-Bl'!D8 -> Koch Anna | C7: ='Dat-Bl'!E8 -> 00:00:00 | D7: BG St.Martin | F7: 8.57 | G7: 735 | H7: 27.8 | I7: 366 | K7: 0 | L7: 4.65 | M7: 628 | P7: 1729 | Q7: Gesamtergebnis
A8: ='Dat-Bl'!C9 -> 0 | B8: ='Dat-Bl'!D9 -> Fugger Sophie | C8: ='Dat-Bl'!E9 -> 00:00:00 | D8: BG St.Martin | F8: 8.78 | G8: 678 | H8: 32.8 | I8: 438 | K8: 0 | L8: 4.45 | M8: 584 | P8: 1700 | Q8: =SUM(P3:P8)-MIN(P3:P8)+O3 -> 9053
A9: Start-Nr. | B9: Schülerinnen | C9: Geb.Dat. | D9: Schule 2 | E9: Bezirk/Bundesland | F9: 60m | G9: PUNKTE | H9: Schlagball | I9: PUNKTE | J9: Kugel | K9: PUNKTE | L9: Weit | M9: PUNKTE | N9: 5x80M | O9: PUNKTE | P9: SUMME
A10: ='Dat-Bl'!C10 -> 0 | B10: ='Dat-Bl'!D10 -> Maier Celina | C10: ='Dat-Bl'!E10 -> 00:00:00 | D10: ='Dat-Bl'!F10 -> Borg Wolfsberg | E10: ='Dat-Bl'!G10 -> 0 | F10: 11.48 | G10: =IF(F10=0,0,INT(19.742424*EXP(2.1*LN((1417-F10*100)/100)))) -> 157 | H10: 19 | I10: =IF(H10=0,0,INT(22*EXP(0.9*LN((H10*100-500)/100)))) -> 236 | K10: =IF(J10=0,0,INT(83.435373*EXP(0.9*LN((J10*100-130)/100)))) -> 0 | L10: 2.69 | M10: =IF(L10=0,0,INT(220.628792*EXP(1*LN((L10*100-180)/100)))) -> 196 | N10: 59.98 | O10: =IF(N10=0,0,INT(0.405548*EXP(2.1*LN((8720-N10*100)/100)))) -> 418 | P10: =SUM(G10,I10,K10,M10) -> 589
A11: ='Dat-Bl'!C11 -> 0 | B11: ='Dat-Bl'!D11 -> Maier Magdalena | C11: ='Dat-Bl'!E11 -> 00:00:00 | D11: =D10 -> Borg Wolfsberg | F11: 9.38 | G11: 529 | H11: 23.4 | I11: 302 | K11: 0 | L11: 4.34 | M11: 560 | P11: 1391
A12: ='Dat-Bl'!C12 -> 0 | B12: ='Dat-Bl'!D12 -> Frauwallner Hanna | C12: ='Dat-Bl'!E12 -> 00:00:00 | D12: =D11 -> Borg Wolfsberg | F12: 10.15 | G12: 366 | H12: 21.9 | I12: 280 | K12: 0 | L12: 3.87 | M12: 456 | P12: 1102
A13: ='Dat-Bl'!C13 -> 0 | B13: ='Dat-Bl'!D13 -> Spendl Jennifer | C13: ='Dat-Bl'!E13 -> 00:00:00 | D13: Borg Wolfsberg | F13: 9.54 | G13: 493 | H13: 35.8 | I13: 480 | K13: 0 | L13: 3.99 | M13: 483 | P13: 1456
A14: ='Dat-Bl'!C14 -> 0 | B14: ='Dat-Bl'!D14 -> Pum Julia | C14: ='Dat-Bl'!E14 -> 00:00:00 | D14: Borg Wolfsberg | F14: 8.6 | G14: 727 | H14: 37 | I14: 497 | K14: 0 | L14: 5 | M14: 706 | P14: 1930 | Q14: Gesamtergebnis
A15: ='Dat-Bl'!C15 -> 0 | B15: ='Dat-Bl'!D15 -> Riegler Vanessa | C15: ='Dat-Bl'!E15 -> 00:00:00 | D15: Borg Wolfsberg | F15: 8.36 | G15: 794 | H15: 43.9 | I15: 593 | K15: 0 | L15: 5.25 | M15: 761 | P15: 2148 | Q15: =SUM(P10:P15)-MIN(P10:P15)+O10 -> 8445
A16: Start-Nr. | B16: Schülerinnen | C16: Geb.Dat. | D16: Schule 3 | E16: Bezirk/Bundesland | F16: 60m | G16: PUNKTE | H16: Schlagball | I16: PUNKTE | J16: Kugel | K16: PUNKTE | L16: Weit | M16: PUNKTE | N16: 5x80M | O16: PUNKTE | P16: SUMME
A17: ='Dat-Bl'!C16 -> 0 | B17: ='Dat-Bl'!D16 -> Hartlieb Michelle | C17: ='Dat-Bl'!E16 -> 00:00:00 | D17: ='Dat-Bl'!F16 -> BRG Spittal | E17: ='Dat-Bl'!G16 -> 0 | F17: 9.09 | G17: =IF(F17=0,0,INT(19.742424*EXP(2.1*LN((1417-F17*100)/100)))) -> 599 | H17: 36.8 | I17: =IF(H17=0,0,INT(22*EXP(0.9*LN((H17*100-500)/100)))) -> 495 | K17: =IF(J17=0,0,INT(83.435373*EXP(0.9*LN((J17*100-130)/100)))) -> 0 | L17: 4.11 | M17: =IF(L17=0,0,INT(220.628792*EXP(1*LN((L17*100-180)/100)))) -> 509 | N17: 56.19 | O17: =IF(N17=0,0,INT(0.405548*EXP(2.1*LN((8720-N17*100)/100)))) -> 549 | P17: =SUM(G17,I17,K17,M17) -> 1603
A18: ='Dat-Bl'!C17 -> 0 | B18: ='Dat-Bl'!D17 -> Reiter Anna-Lena | C18: ='Dat-Bl'!E17 -> 00:00:00 | D18: =D17 -> BRG Spittal | F18: 9.11 | G18: 594 | H18: 31.4 | I18: 418 | K18: 0 | L18: 4.55 | M18: 606 | P18: 1618
A19: ='Dat-Bl'!C18 -> 0 | B19: ='Dat-Bl'!D18 -> Krammer Kristin | C19: ='Dat-Bl'!E18 -> 00:00:00 | D19: =D18 -> BRG Spittal | F19: 9.24 | G19: 562 | H19: 32.8 | I19: 438 | K19: 0 | L19: 4.5 | M19: 595 | P19: 1595
A20: ='Dat-Bl'!C19 -> 0 | B20: ='Dat-Bl'!D19 -> Kowatsch Anna | C20: ='Dat-Bl'!E19 -> 00:00:00 | D20: BRG Spittal | F20: 9.43 | G20: 518 | H20: 36.6 | I20: 492 | K20: 0 | L20: 4.65 | M20: 628 | P20: 1638
A21: ='Dat-Bl'!C20 -> 0 | B21: ='Dat-Bl'!D20 -> Possegger Christina | C21: ='Dat-Bl'!E20 -> 00:00:00 | D21: BRG Spittal | F21: 8.98 | G21: 626 | H21: 32.6 | I21: 435 | K21: 0 | L21: 4.89 | M21: 681 | P21: 1742 | Q21: Gesamtergebnis
A22: ='Dat-Bl'!C21 -> 0 | B22: ='Dat-Bl'!D21 -> Thaler Laurentine | C22: ='Dat-Bl'!E21 -> 00:00:00 | D22: BRG Spittal | F22: 8.34 | G22: 800 | H22: 40.5 | I22: 546 | K22: 0 | L22: 5.19 | M22: 747 | P22: 2093 | Q22: =SUM(P17:P22)-MIN(P17:P22)+O17 -> 9243
A23: Start-Nr. | B23: Schülerinnen | C23: Geb.Dat. | D23: Schule 4 | E23: Bezirk/Bundesland | F23: 60m | G23: PUNKTE | H23: Schlagball | I23: PUNKTE | J23: Kugel | K23: PUNKTE | L23: Weit | M23: PUNKTE | N23: 5x80M | O23: PUNKTE | P23: SUMME
A24: ='Dat-Bl'!C22 -> 0 | B24: ='Dat-Bl'!D22 -> Kampusch Michelle | C24: ='Dat-Bl'!E22 -> 00:00:00 | D24: ='Dat-Bl'!F22 -> BZ Bad Eisenkappel | E24: ='Dat-Bl'!G22 -> 0 | F24: 9.55 | G24: =IF(F24=0,0,INT(19.742424*EXP(2.1*LN((1417-F24*100)/100)))) -> 491 | H24: 37.7 | I24: =IF(H24=0,0,INT(22*EXP(0.9*LN((H24*100-500)/100)))) -> 507 | K24: =IF(J24=0,0,INT(83.435373*EXP(0.9*LN((J24*100-130)/100)))) -> 0 | L24: 3.98 | M24: =IF(L24=0,0,INT(220.628792*EXP(1*LN((L24*100-180)/100)))) -> 480 | N24: 59 | O24: =IF(N24=0,0,INT(0.405548*EXP(2.1*LN((8720-N24*100)/100)))) -> 450 | P24: =SUM(G24,I24,K24,M24) -> 1478
A25: ='Dat-Bl'!C23 -> 0 | B25: ='Dat-Bl'!D23 -> Kaschnig Lea | C25: ='Dat-Bl'!E23 -> 00:00:00 | D25: =D24 -> BZ Bad Eisenkappel | F25: 8.86 | G25: 657 | H25: 36.6 | I25: 492 | K25: 0 | L25: 4.21 | M25: 531 | P25: 1680
A26: ='Dat-Bl'!C24 -> 0 | B26: ='Dat-Bl'!D24 -> Ebner Anna-Lena | C26: ='Dat-Bl'!E24 -> 00:00:00 | D26: =D25 -> BZ Bad Eisenkappel | F26: 8.55 | G26: 741 | H26: 31.4 | I26: 418 | K26: 0 | L26: 4.12 | M26: 511 | P26: 1670
A27: ='Dat-Bl'!C25 -> 0 | B27: ='Dat-Bl'!D25 -> Millicevvic Renate | C27: ='Dat-Bl'!E25 -> 00:00:00 | D27: BZ Bad Eisenkappel | F27: 9.76 | G27: 445 | H27: 35.3 | I27: 473 | K27: 0 | L27: 4.1 | M27: 507 | P27: 1425
A28: ='Dat-Bl'!C26 -> 0 | B28: ='Dat-Bl'!D26 -> Pudgar Domenika | C28: ='Dat-Bl'!E26 -> 00:00:00 | D28: BZ Bad Eisenkappel | F28: 9.78 | G28: 441 | H28: 27.5 | I28: 362 | K28: 0 | L28: 3.92 | M28: 467 | P28: 1270 | Q28: Gesamtergebnis
A29: ='Dat-Bl'!C27 -> 0 | B29: ='Dat-Bl'!D27 -> 0 | C29: ='Dat-Bl'!E27 -> 00:00:00 | D29: BZ Bad Eisenkappel | G29: 0 | I29: 0 | K29: 0 | M29: 0 | P29: 0 | Q29: =SUM(P24:P29)-MIN(P24:P29)+O24 -> 7973
A30: Start-Nr. | B30: Schülerinnen | C30: Geb.Dat. | D30: Schule 5 | E30: Bezirk/Bundesland | F30: 60m | G30: PUNKTE | H30: Schlagball | I30: PUNKTE | J30: Kugel | K30: PUNKTE | L30: Weit | M30: PUNKTE | N30: 5x80M | O30: PUNKTE | P30: SUMME
A31: ='Dat-Bl'!C28 -> 0 | B31: ='Dat-Bl'!D28 -> Donner Rosa | C31: ='Dat-Bl'!E28 -> 00:00:00 | D31: ='Dat-Bl'!F28 -> Ingeborg Bachmann Gymnasium | E31: ='Dat-Bl'!G28 -> 0 | F31: 9.57 | G31: =IF(F31=0,0,INT(19.742424*EXP(2.1*LN((1417-F31*100)/100)))) -> 486 | H31: 26.8 | I31: =IF(H31=0,0,INT(22*EXP(0.9*LN((H31*100-500)/100)))) -> 352 | K31: =IF(J31=0,0,INT(83.435373*EXP(0.9*LN((J31*100-130)/100)))) -> 0 | L31: 4.13 | M31: =IF(L31=0,0,INT(220.628792*EXP(1*LN((L31*100-180)/100)))) -> 514 | N31: 58.23 | O31: =IF(N31=0,0,INT(0.405548*EXP(2.1*LN((8720-N31*100)/100)))) -> 476 | P31: =SUM(G31,I31,K31,M31) -> 1352
A32: ='Dat-Bl'!C29 -> 0 | B32: ='Dat-Bl'!D29 -> Lippitsch Amelie | C32: ='Dat-Bl'!E29 -> 00:00:00 | D32: =D31 -> Ingeborg Bachmann Gymnasium | F32: 9.66 | G32: 466 | H32: 38.1 | I32: 513 | K32: 0 | L32: 3.67 | M32: 412 | P32: 1391
A33: ='Dat-Bl'!C30 -> 0 | B33: ='Dat-Bl'!D30 -> Doboczky Sophie | C33: ='Dat-Bl'!E30 -> 00:00:00 | D33: =D32 -> Ingeborg Bachmann Gymnasium | F33: 9.02 | G33: 616 | H33: 28.1 | I33: 371 | K33: 0 | L33: 4.18 | M33: 525 | P33: 1512
A34: ='Dat-Bl'!C31 -> 0 | B34: ='Dat-Bl'!D31 -> Schmaranz Sophie | C34: ='Dat-Bl'!E31 -> 00:00:00 | D34: Ingeborg Bachmann Gymnasium | F34: 8.51 | G34: 752 | H34: 23.1 | I34: 298 | K34: 0 | L34: 5.07 | M34: 721 | P34: 1771
A35: ='Dat-Bl'!C32 -> 0 | B35: ='Dat-Bl'!D32 -> Zenkl Hannah | C35: ='Dat-Bl'!E32 -> 00:00:00 | D35: Ingeborg Bachmann Gymnasium | F35: 9.31 | G35: 546 | H35: 35.5 | I35: 476 | K35: 0 | L35: 4.36 | M35: 564 | P35: 1586 | Q35: Gesamtergebnis
A36: ='Dat-Bl'!C33 -> 0 | B36: ='Dat-Bl'!D33 -> Laßnig Katharina | C36: ='Dat-Bl'!E33 -> 00:00:00 | D36: Ingeborg Bachmann Gymnasium | F36: 9.53 | G36: 495 | H36: 34.7 | I36: 465 | K36: 0 | L36: 4.3 | M36: 551 | P36: 1511 | Q36: =SUM(P31:P36)-MIN(P31:P36)+O31 -> 8247
A37: Start-Nr. | B37: Schülerinnen | C37: Geb.Dat. | D37: Schule 6 | E37: Bezirk/Bundesland | F37: 60m | G37: PUNKTE | H37: Schlagball | I37: PUNKTE | J37: Kugel | K37: PUNKTE | L37: Weit | M37: PUNKTE | N37: 5x80M | O37: PUNKTE | P37: SUMME
A38: ='Dat-Bl'!C34 -> 0 | B38: ='Dat-Bl'!D34 -> Fercher Annabell | C38: ='Dat-Bl'!E34 -> 00:00:00 | D38: ='Dat-Bl'!F34 -> Musik NMS Hermagor | E38: ='Dat-Bl'!G34 -> 0 | F38: 8.55 | G38: =IF(F38=0,0,INT(19.742424*EXP(2.1*LN((1417-F38*100)/100)))) -> 741 | H38: 41.9 | I38: =IF(H38=0,0,INT(22*EXP(0.9*LN((H38*100-500)/100)))) -> 565 | K38: =IF(J38=0,0,INT(83.435373*EXP(0.9*LN((J38*100-130)/100)))) -> 0 | L38: 4.8 | M38: =IF(L38=0,0,INT(220.628792*EXP(1*LN((L38*100-180)/100)))) -> 661 | N38: 56.92 | O38: =IF(N38=0,0,INT(0.405548*EXP(2.1*LN((8720-N38*100)/100)))) -> 522 | P38: =SUM(G38,I38,K38,M38) -> 1967
A39: ='Dat-Bl'!C35 -> 0 | B39: ='Dat-Bl'!D35 -> Ebenwaldner Carina | C39: ='Dat-Bl'!E35 -> 00:00:00 | D39: =D38 -> Musik NMS Hermagor | F39: 9.01 | G39: 619 | H39: 30.9 | I39: 411 | K39: 0 | L39: 4.63 | M39: 624 | P39: 1654
A40: ='Dat-Bl'!C36 -> 0 | B40: ='Dat-Bl'!D36 -> Wernitznig Nina | C40: ='Dat-Bl'!E36 -> 00:00:00 | D40: =D39 -> Musik NMS Hermagor | F40: 9.22 | G40: 567 | H40: 38.9 | I40: 524 | K40: 0 | L40: 4.62 | M40: 622 | P40: 1713
A41: ='Dat-Bl'!C37 -> 0 | B41: ='Dat-Bl'!D37 -> Pettauer Sara | C41: ='Dat-Bl'!E37 -> 00:00:00 | D41: Musik NMS Hermagor | F41: 8.93 | G41: 639 | H41: 26.9 | I41: 353 | K41: 0 | L41: 4.32 | M41: 555 | P41: 1547
A42: ='Dat-Bl'!C38 -> 0 | B42: ='Dat-Bl'!D38 -> Matthei Laura | C42: ='Dat-Bl'!E38 -> 00:00:00 | D42: Musik NMS Hermagor | F42: 9.3 | G42: 548 | H42: 28 | I42: 369 | K42: 0 | L42: 4.35 | M42: 562 | P42: 1479 | Q42: Gesamtergebnis
A43: ='Dat-Bl'!C39 -> 0 | B43: ='Dat-Bl'!D39 -> Seebacher Mathilda | C43: ='Dat-Bl'!E39 -> 00:00:00 | D43: Musik NMS Hermagor | F43: 9.37 | G43: 532 | H43: 35.6 | I43: 478 | K43: 0 | L43: 4.26 | M43: 542 | P43: 1552 | Q43: =SUM(P38:P43)-MIN(P38:P43)+O38 -> 8955
A44: Start-Nr. | B44: Schülerinnen | C44: Geb.Dat. | D44: Schule 7 | E44: Bezirk/Bundesland | F44: 60m | G44: PUNKTE | H44: Schlagball | I44: PUNKTE | J44: Kugel | K44: PUNKTE | L44: Weit | M44: PUNKTE | N44: 5x80M | O44: PUNKTE | P44: SUMME
A45: ='Dat-Bl'!C40 -> 0 | B45: ='Dat-Bl'!D40 -> Pörtschacher Vanessa | C45: ='Dat-Bl'!E40 -> 00:00:00 | D45: ='Dat-Bl'!F40 -> NMS Friesach | E45: ='Dat-Bl'!G40 -> 0 | F45: 9.39 | G45: =IF(F45=0,0,INT(19.742424*EXP(2.1*LN((1417-F45*100)/100)))) -> 527 | H45: 29.2 | I45: =IF(H45=0,0,INT(22*EXP(0.9*LN((H45*100-500)/100)))) -> 387 | K45: =IF(J45=0,0,INT(83.435373*EXP(0.9*LN((J45*100-130)/100)))) -> 0 | L45: 4.1 | M45: =IF(L45=0,0,INT(220.628792*EXP(1*LN((L45*100-180)/100)))) -> 507 | N45: 58.88 | O45: =IF(N45=0,0,INT(0.405548*EXP(2.1*LN((8720-N45*100)/100)))) -> 454 | P45: =SUM(G45,I45,K45,M45) -> 1421
A46: ='Dat-Bl'!C41 -> 0 | B46: ='Dat-Bl'!D41 -> Kronlechner Bettina | C46: ='Dat-Bl'!E41 -> 00:00:00 | D46: =D45 -> NMS Friesach | F46: 9.35 | G46: 536 | H46: 31.3 | I46: 417 | K46: 0 | L46: 4.3 | M46: 551 | P46: 1504
A47: ='Dat-Bl'!C42 -> 0 | B47: ='Dat-Bl'!D42 -> Delfser Anna-Magdalena | C47: ='Dat-Bl'!E42 -> 00:00:00 | D47: =D46 -> NMS Friesach | F47: 9.26 | G47: 558 | H47: 28.2 | I47: 372 | K47: 0 | L47: 4.16 | M47: 520 | P47: 1450
A48: ='Dat-Bl'!C43 -> 0 | B48: ='Dat-Bl'!D43 -> Schaller Victoria | C48: ='Dat-Bl'!E43 -> 00:00:00 | D48: NMS Friesach | F48: 9.32 | G48: 543 | H48: 35.9 | I48: 482 | K48: 0 | L48: 4.35 | M48: 562 | P48: 1587
A49: ='Dat-Bl'!C44 -> 0 | B49: ='Dat-Bl'!D44 -> Hölbling Laura | C49: ='Dat-Bl'!E44 -> 00:00:00 | D49: NMS Friesach | F49: 9.43 | G49: 518 | H49: 35.2 | I49: 472 | K49: 0 | L49: 4.3 | M49: 551 | P49: 1541 | Q49: Gesamtergebnis
A50: ='Dat-Bl'!C45 -> 0 | B50: ='Dat-Bl'!D45 -> Pacher Selina | C50: ='Dat-Bl'!E45 -> 00:00:00 | D50: NMS Friesach | F50: 9.45 | G50: 513 | H50: 29.2 | I50: 387 | K50: 0 | L50: 4.14 | M50: 516 | P50: 1416 | Q50: =SUM(P45:P50)-MIN(P45:P50)+O45 -> 7957
A51: Start-Nr. | B51: Schülerinnen | C51: Geb.Dat. | D51: Schule 8 | E51: Bezirk/Bundesland | F51: 60m | G51: PUNKTE | H51: Schlagball | I51: PUNKTE | J51: Kugel | K51: PUNKTE | L51: Weit | M51: PUNKTE | N51: 5x80M | O51: PUNKTE | P51: SUMME
A52: ='Dat-Bl'!C46 -> 0 | B52: ='Dat-Bl'!D46 -> Mayer Elena | C52: ='Dat-Bl'!E46 -> 00:00:00 | D52: ='Dat-Bl'!F46 -> NMS Gegendtal | E52: ='Dat-Bl'!G46 -> 0 | F52: 9.53 | G52: =IF(F52=0,0,INT(19.742424*EXP(2.1*LN((1417-F52*100)/100)))) -> 495 | H52: 33.7 | I52: =IF(H52=0,0,INT(22*EXP(0.9*LN((H52*100-500)/100)))) -> 451 | K52: =IF(J52=0,0,INT(83.435373*EXP(0.9*LN((J52*100-130)/100)))) -> 0 | L52: 4.33 | M52: =IF(L52=0,0,INT(220.628792*EXP(1*LN((L52*100-180)/100)))) -> 558 | N52: 61.39 | O52: =IF(N52=0,0,INT(0.405548*EXP(2.1*LN((8720-N52*100)/100)))) -> 373 | P52: =SUM(G52,I52,K52,M52) -> 1504
A53: ='Dat-Bl'!C47 -> 0 | B53: ='Dat-Bl'!D47 -> Steiner Patricia | C53: ='Dat-Bl'!E47 -> 00:00:00 | D53: =D52 -> NMS Gegendtal | F53: 9.53 | G53: 495 | I53: 0 | J53: 7.29 | K53: 417 | L53: 4.18 | M53: 525 | P53: 1437
A54: ='Dat-Bl'!C48 -> 0 | B54: ='Dat-Bl'!D48 -> Maier Jasmin | C54: ='Dat-Bl'!E48 -> 00:00:00 | D54: =D53 -> NMS Gegendtal | F54: 10.02 | G54: 392 | H54: 30.8 | I54: 410 | K54: 0 | L54: 3.79 | M54: 439 | P54: 1241
A55: ='Dat-Bl'!C49 -> 0 | B55: ='Dat-Bl'!D49 -> Schweiger Nadja | C55: ='Dat-Bl'!E49 -> 00:00:00 | D55: NMS Gegendtal | F55: 9.71 | G55: 456 | I55: 0 | J55: 6.93 | K55: 395 | L55: 3.9 | M55: 463 | P55: 1314
A56: ='Dat-Bl'!C50 -> 0 | B56: ='Dat-Bl'!D50 -> Gasser Valentina | C56: ='Dat-Bl'!E50 -> 00:00:00 | D56: NMS Gegendtal | F56: 9.79 | G56: 439 | H56: 27.5 | I56: 362 | K56: 0 | L56: 3.83 | M56: 447 | P56: 1248 | Q56: Gesamtergebnis
A57: ='Dat-Bl'!C51 -> 0 | B57: ='Dat-Bl'!D51 -> Ostertschnig Lisa | C57: ='Dat-Bl'!E51 -> 00:00:00 | D57: NMS Gegendtal | F57: 9.74 | G57: 449 | H57: 27.6 | I57: 364 | K57: 0 | L57: 3.83 | M57: 447 | P57: 1260 | Q57: =SUM(P52:P57)-MIN(P52:P57)+O52 -> 7136
A58: Start-Nr. | B58: Schülerinnen | C58: Geb.Dat. | D58: Schule 9 | E58: Bezirk/Bundesland | F58: 60m | G58: PUNKTE | H58: Schlagball | I58: PUNKTE | J58: Kugel | K58: PUNKTE | L58: Weit | M58: PUNKTE | N58: 5x80M | O58: PUNKTE | P58: SUMME
A59: ='Dat-Bl'!C52 -> 0 | B59: ='Dat-Bl'!D52 -> Kassin Larissa | C59: ='Dat-Bl'!E52 -> 00:00:00 | D59: ='Dat-Bl'!F52 -> NMS Landskron | E59: ='Dat-Bl'!G52 -> 0 | F59: 8.73 | G59: =IF(F59=0,0,INT(19.742424*EXP(2.1*LN((1417-F59*100)/100)))) -> 692 | H59: 35.9 | I59: =IF(H59=0,0,INT(22*EXP(0.9*LN((H59*100-500)/100)))) -> 482 | K59: =IF(J59=0,0,INT(83.435373*EXP(0.9*LN((J59*100-130)/100)))) -> 0 | L59: 4.41 | M59: =IF(L59=0,0,INT(220.628792*EXP(1*LN((L59*100-180)/100)))) -> 575 | N59: 57.69 | O59: =IF(N59=0,0,INT(0.405548*EXP(2.1*LN((8720-N59*100)/100)))) -> 495 | P59: =SUM(G59,I59,K59,M59) -> 1749
A60: ='Dat-Bl'!C53 -> 0 | B60: ='Dat-Bl'!D53 -> Wiener Sophie | C60: ='Dat-Bl'!E53 -> 00:00:00 | D60: =D59 -> NMS Landskron | F60: 9.45 | G60: 513 | H60: 38 | I60: 511 | K60: 0 | L60: 4.35 | M60: 562 | P60: 1586
A61: ='Dat-Bl'!C54 -> 0 | B61: ='Dat-Bl'!D54 -> Neumann Lisa | C61: ='Dat-Bl'!E54 -> 00:00:00 | D61: =D60 -> NMS Landskron | F61: 9.1 | G61: 596 | H61: 25.1 | I61: 327 | K61: 0 | L61: 4.13 | M61: 514 | P61: 1437
A62: ='Dat-Bl'!C55 -> 0 | B62: ='Dat-Bl'!D55 -> Pinzer Alina | C62: ='Dat-Bl'!E55 -> 00:00:00 | D62: NMS Landskron | F62: 9.65 | G62: 469 | H62: 25.2 | I62: 329 | K62: 0 | L62: 3.92 | M62: 467 | P62: 1265
A63: ='Dat-Bl'!C56 -> 0 | B63: ='Dat-Bl'!D56 -> Santner Fabienne | C63: ='Dat-Bl'!E56 -> 00:00:00 | D63: NMS Landskron | F63: 9.48 | G63: 506 | H63: 31.9 | I63: 425 | K63: 0 | L63: 4.04 | M63: 494 | P63: 1425 | Q63: Gesamtergebnis
A64: ='Dat-Bl'!C57 -> 0 | B64: ='Dat-Bl'!D57 -> Petscher Maria | C64: ='Dat-Bl'!E57 -> 00:00:00 | D64: NMS Landskron | F64: 9.23 | G64: 565 | H64: 20.2 | I64: 254 | K64: 0 | L64: 4.1 | M64: 507 | P64: 1326 | Q64: =SUM(P59:P64)-MIN(P59:P64)+O59 -> 8018
A65: Start-Nr. | B65: Schülerinnen | C65: Geb.Dat. | D65: Schule 10 | E65: Bezirk/Bundesland | F65: 60m | G65: PUNKTE | H65: Schlagball | I65: PUNKTE | J65: Kugel | K65: PUNKTE | L65: Weit | M65: PUNKTE | N65: 5x80M | O65: PUNKTE | P65: SUMME
A66: ='Dat-Bl'!C58 -> 0 | B66: ='Dat-Bl'!D58 -> Edlmann Chiara | C66: ='Dat-Bl'!E58 -> 00:00:00 | D66: ='Dat-Bl'!F58 -> NMS Viktring | E66: ='Dat-Bl'!G58 -> 0 | F66: 9.04 | G66: =IF(F66=0,0,INT(19.742424*EXP(2.1*LN((1417-F66*100)/100)))) -> 611 | H66: 29.5 | I66: =IF(H66=0,0,INT(22*EXP(0.9*LN((H66*100-500)/100)))) -> 391 | K66: =IF(J66=0,0,INT(83.435373*EXP(0.9*LN((J66*100-130)/100)))) -> 0 | L66: 4.25 | M66: =IF(L66=0,0,INT(220.628792*EXP(1*LN((L66*100-180)/100)))) -> 540 | N66: 61.09 | O66: =IF(N66=0,0,INT(0.405548*EXP(2.1*LN((8720-N66*100)/100)))) -> 383 | P66: =SUM(G66,I66,K66,M66) -> 1542
A67: ='Dat-Bl'!C59 -> 0 | B67: ='Dat-Bl'!D59 -> Toth Lili | C67: ='Dat-Bl'!E59 -> 00:00:00 | D67: =D66 -> NMS Viktring | F67: 10 | G67: 395 | H67: 31.8 | I67: 424 | K67: 0 | L67: 4.25 | M67: 540 | P67: 1359
A68: ='Dat-Bl'!C60 -> 0 | B68: ='Dat-Bl'!D60 -> Krnjic Sonja | C68: ='Dat-Bl'!E60 -> 00:00:00 | D68: =D67 -> NMS Viktring | F68: 9.22 | G68: 567 | H68: 41 | I68: 553 | K68: 0 | L68: 4.1 | M68: 507 | P68: 1627
A69: ='Dat-Bl'!C61 -> 0 | B69: ='Dat-Bl'!D61 -> Esel Michelle | C69: ='Dat-Bl'!E61 -> 00:00:00 | D69: NMS Viktring | F69: 9.94 | G69: 408 | H69: 24.8 | I69: 323 | K69: 0 | L69: 4 | M69: 485 | P69: 1216
A70: ='Dat-Bl'!C62 -> 0 | B70: ='Dat-Bl'!D62 -> Bierbaumer Selina | C70: ='Dat-Bl'!E62 -> 00:00:00 | D70: NMS Viktring | F70: 10.59 | G70: 287 | H70: 31.3 | I70: 417 | K70: 0 | L70: 3.48 | M70: 370 | P70: 1074 | Q70: Gesamtergebnis
A71: ='Dat-Bl'!C63 -> 0 | B71: ='Dat-Bl'!D63 -> Herkner Anna | C71: ='Dat-Bl'!E63 -> 00:00:00 | D71: NMS Viktring | F71: 9.55 | G71: 491 | H71: 28.7 | I71: 379 | K71: 0 | L71: 4.2 | M71: 529 | P71: 1399 | Q71: =SUM(P66:P71)-MIN(P66:P71)+O66 -> 7526
A72: Start-Nr. | B72: Schülerinnen | C72: Geb.Dat. | D72: Schule 11 | E72: Bezirk/Bundesland | F72: 60m | G72: PUNKTE | H72: Schlagball | I72: PUNKTE | J72: Kugel | K72: PUNKTE | L72: Weit | M72: PUNKTE | N72: 5x80M | O72: PUNKTE | P72: SUMME
A73: ='Dat-Bl'!C64 -> 0 | B73: ='Dat-Bl'!D64 -> Ebner Elena | C73: ='Dat-Bl'!E64 -> 00:00:00 | D73: ='Dat-Bl'!F64 -> RNMS Feldkirchen | E73: ='Dat-Bl'!G64 -> 0 | F73: 8.92 | G73: =IF(F73=0,0,INT(19.742424*EXP(2.1*LN((1417-F73*100)/100)))) -> 642 | H73: 35.2 | I73: =IF(H73=0,0,INT(22*EXP(0.9*LN((H73*100-500)/100)))) -> 472 | K73: =IF(J73=0,0,INT(83.435373*EXP(0.9*LN((J73*100-130)/100)))) -> 0 | L73: 4.66 | M73: =IF(L73=0,0,INT(220.628792*EXP(1*LN((L73*100-180)/100)))) -> 630 | N73: 56.95 | O73: =IF(N73=0,0,INT(0.405548*EXP(2.1*LN((8720-N73*100)/100)))) -> 521 | P73: =SUM(G73,I73,K73,M73) -> 1744
A74: ='Dat-Bl'!C65 -> 0 | B74: ='Dat-Bl'!D65 -> Reiter Katharina | C74: ='Dat-Bl'!E65 -> 00:00:00 | D74: =D73 -> RNMS Feldkirchen | F74: 9.29 | G74: 550 | H74: 40.7 | I74: 549 | K74: 0 | L74: 4.45 | M74: 584 | P74: 1683
A75: ='Dat-Bl'!C66 -> 0 | B75: ='Dat-Bl'!D66 -> Hinteregger Katrin | C75: ='Dat-Bl'!E66 -> 00:00:00 | D75: =D74 -> RNMS Feldkirchen | F75: 8.9 | G75: 647 | H75: 29.8 | I75: 395 | K75: 0 | L75: 4.56 | M75: 608 | P75: 1650
A76: ='Dat-Bl'!C67 -> 0 | B76: ='Dat-Bl'!D67 -> Kircher Florentina | C76: ='Dat-Bl'!E67 -> 00:00:00 | D76: RNMS Feldkirchen | F76: 9.54 | G76: 493 | I76: 0 | J76: 7.6 | K76: 437 | L76: 4.15 | M76: 518 | P76: 1448
A77: ='Dat-Bl'!C68 -> 0 | B77: ='Dat-Bl'!D68 -> Mühlbacher Nina | C77: ='Dat-Bl'!E68 -> 00:00:00 | D77: RNMS Feldkirchen | F77: 9.86 | G77: 424 | I77: 0 | J77: 6.97 | K77: 397 | L77: 4.06 | M77: 498 | P77: 1319 | Q77: Gesamtergebnis
A78: ='Dat-Bl'!C69 -> 0 | B78: ='Dat-Bl'!D69 -> Petrascu Elisabeth | C78: ='Dat-Bl'!E69 -> 00:00:00 | D78: RNMS Feldkirchen | F78: 9.25 | G78: 560 | H78: 23.4 | I78: 302 | K78: 0 | L78: 4.53 | M78: 602 | P78: 1464 | Q78: =SUM(P73:P78)-MIN(P73:P78)+O73 -> 8510
A79: Start-Nr. | B79: Schülerinnen | C79: Geb.Dat. | D79: Schule 12 | E79: Bezirk/Bundesland | F79: 60m | G79: PUNKTE | H79: Schlagball | I79: PUNKTE | J79: Kugel | K79: PUNKTE | L79: Weit | M79: PUNKTE | N79: 5x80M | O79: PUNKTE | P79: SUMME
A80: ='Dat-Bl'!C70 -> 0 | B80: ='Dat-Bl'!D70 -> W12/01-Regel | C80: ='Dat-Bl'!E70 -> 00:00:00 | D80: ='Dat-Bl'!F70 -> 0 | E80: ='Dat-Bl'!G70 -> 0 | G80: =IF(F80=0,0,INT(19.742424*EXP(2.1*LN((1417-F80*100)/100)))) -> 0 | I80: =IF(H80=0,0,INT(22*EXP(0.9*LN((H80*100-500)/100)))) -> 0 | K80: =IF(J80=0,0,INT(83.435373*EXP(0.9*LN((J80*100-130)/100)))) -> 0 | M80: =IF(L80=0,0,INT(220.628792*EXP(1*LN((L80*100-180)/100)))) -> 0 | O80: =IF(N80=0,0,INT(0.405548*EXP(2.1*LN((8720-N80*100)/100)))) -> 0 | P80: =SUM(G80,I80,K80,M80) -> 0
A81: ='Dat-Bl'!C71 -> 0 | B81: ='Dat-Bl'!D71 -> W12/02-Regel | C81: ='Dat-Bl'!E71 -> 00:00:00 | D81: =D80 -> 0 | G81: 0 | I81: 0 | K81: 0 | M81: 0 | P81: 0
A82: ='Dat-Bl'!C72 -> 0 | B82: ='Dat-Bl'!D72 -> W12/03-Regel | C82: ='Dat-Bl'!E72 -> 00:00:00 | D82: =D81 -> 0 | G82: 0 | I82: 0 | K82: 0 | M82: 0 | P82: 0
A83: ='Dat-Bl'!C73 -> 0 | B83: ='Dat-Bl'!D73 -> W12/04-Regel | C83: ='Dat-Bl'!E73 -> 00:00:00 | D83: 0 | G83: 0 | I83: 0 | K83: 0 | M83: 0 | P83: 0
A84: ='Dat-Bl'!C74 -> 0 | B84: ='Dat-Bl'!D74 -> W12/05-Regel | C84: ='Dat-Bl'!E74 -> 00:00:00 | D84: 0 | G84: 0 | I84: 0 | K84: 0 | M84: 0 | P84: 0 | Q84: Gesamtergebnis
A85: ='Dat-Bl'!C75 -> 0 | B85: ='Dat-Bl'!D75 -> W12/06-Regel | C85: ='Dat-Bl'!E75 -> 00:00:00 | D85: 0 | G85: 0 | I85: 0 | K85: 0 | M85: 0 | P85: 0 | Q85: =SUM(P80:P85)-MIN(P80:P85)+O80 -> 0
A86: Start-Nr. | B86: Schülerinnen | C86: Geb.Dat. | D86: Schule 13 | E86: Bezirk/Bundesland | F86: 60m | G86: PUNKTE | H86: Schlagball | I86: PUNKTE | J86: Kugel | K86: PUNKTE | L86: Weit | M86: PUNKTE | N86: 5x80M | O86: PUNKTE | P86: SUMME
A87: ='Dat-Bl'!C76 -> 0 | B87: ='Dat-Bl'!D76 -> W13/01-Regel | C87: ='Dat-Bl'!E76 -> 00:00:00 | D87: ='Dat-Bl'!F76 -> 0 | E87: ='Dat-Bl'!G76 -> 0 | G87: =IF(F87=0,0,INT(19.742424*EXP(2.1*LN((1417-F87*100)/100)))) -> 0 | I87: =IF(H87=0,0,INT(22*EXP(0.9*LN((H87*100-500)/100)))) -> 0 | K87: =IF(J87=0,0,INT(83.435373*EXP(0.9*LN((J87*100-130)/100)))) -> 0 | M87: =IF(L87=0,0,INT(220.628792*EXP(1*LN((L87*100-180)/100)))) -> 0 | O87: =IF(N87=0,0,INT(0.405548*EXP(2.1*LN((8720-N87*100)/100)))) -> 0 | P87: =SUM(G87,I87,K87,M87) -> 0
A88: ='Dat-Bl'!C77 -> 0 | B88: ='Dat-Bl'!D77 -> W13/02-Regel | C88: ='Dat-Bl'!E77 -> 00:00:00 | D88: =D87 -> 0 | G88: 0 | I88: 0 | K88: 0 | M88: 0 | P88: 0
A89: ='Dat-Bl'!C78 -> 0 | B89: ='Dat-Bl'!D78 -> W13/03-Regel | C89: ='Dat-Bl'!E78 -> 00:00:00 | D89: =D88 -> 0 | G89: 0 | I89: 0 | K89: 0 | M89: 0 | P89: 0
A90: ='Dat-Bl'!C79 -> 0 | B90: ='Dat-Bl'!D79 -> W13/04-Regel | C90: ='Dat-Bl'!E79 -> 00:00:00 | D90: 0 | G90: 0 | I90: 0 | K90: 0 | M90: 0 | P90: 0
A91: ='Dat-Bl'!C80 -> 0 | B91: ='Dat-Bl'!D80 -> W13/05-Regel | C91: ='Dat-Bl'!E80 -> 00:00:00 | D91: 0 | G91: 0 | I91: 0 | K91: 0 | M91: 0 | P91: 0 | Q91: Gesamtergebnis
A92: ='Dat-Bl'!C81 -> 0 | B92: ='Dat-Bl'!D81 -> W13/06-Regel | C92: ='Dat-Bl'!E81 -> 00:00:00 | D92: 0 | G92: 0 | I92: 0 | K92: 0 | M92: 0 | P92: 0 | Q92: =SUM(P87:P92)-MIN(P87:P92)+O87 -> 0
A93: Start-Nr. | B93: Schülerinnen | C93: Geb.Dat. | D93: Schule 14 | E93: Bezirk/Bundesland | F93: 60m | G93: PUNKTE | H93: Schlagball | I93: PUNKTE | J93: Kugel | K93: PUNKTE | L93: Weit | M93: PUNKTE | N93: 5x80M | O93: PUNKTE | P93: SUMME
A94: ='Dat-Bl'!C82 -> 0 | B94: ='Dat-Bl'!D82 -> W14/01-Regel | C94: ='Dat-Bl'!E82 -> 00:00:00 | D94: ='Dat-Bl'!F82 -> 0 | E94: ='Dat-Bl'!G82 -> 0 | G94: =IF(F94=0,0,INT(19.742424*EXP(2.1*LN((1417-F94*100)/100)))) -> 0 | I94: =IF(H94=0,0,INT(22*EXP(0.9*LN((H94*100-500)/100)))) -> 0 | K94: =IF(J94=0,0,INT(83.435373*EXP(0.9*LN((J94*100-130)/100)))) -> 0 | M94: =IF(L94=0,0,INT(220.628792*EXP(1*LN((L94*100-180)/100)))) -> 0 | O94: =IF(N94=0,0,INT(0.405548*EXP(2.1*LN((8720-N94*100)/100)))) -> 0 | P94: =SUM(G94,I94,K94,M94) -> 0
A95: ='Dat-Bl'!C83 -> 0 | B95: ='Dat-Bl'!D83 -> W14/02-Regel | C95: ='Dat-Bl'!E83 -> 00:00:00 | D95: =D94 -> 0 | G95: 0 | I95: 0 | K95: 0 | M95: 0 | P95: 0
A96: ='Dat-Bl'!C84 -> 0 | B96: ='Dat-Bl'!D84 -> W14/03-Regel | C96: ='Dat-Bl'!E84 -> 00:00:00 | D96: =D95 -> 0 | G96: 0 | I96: 0 | K96: 0 | M96: 0 | P96: 0
A97: ='Dat-Bl'!C85 -> 0 | B97: ='Dat-Bl'!D85 -> W14/04-Regel | C97: ='Dat-Bl'!E85 -> 00:00:00 | D97: 0 | G97: 0 | I97: 0 | K97: 0 | M97: 0 | P97: 0
A98: ='Dat-Bl'!C86 -> 0 | B98: ='Dat-Bl'!D86 -> W14/05-Regel | C98: ='Dat-Bl'!E86 -> 00:00:00 | D98: 0 | G98: 0 | I98: 0 | K98: 0 | M98: 0 | P98: 0 | Q98: Gesamtergebnis
A99: ='Dat-Bl'!C87 -> 0 | B99: ='Dat-Bl'!D87 -> W14/06-Regel | C99: ='Dat-Bl'!E87 -> 00:00:00 | D99: 0 | G99: 0 | I99: 0 | K99: 0 | M99: 0 | P99: 0 | Q99: =SUM(P94:P99)-MIN(P94:P99)+O94 -> 0
A100: Start-Nr. | B100: Schülerinnen | C100: Geb.Dat. | D100: Schule 15 | E100: Bezirk/Bundesland | F100: 60m | G100: PUNKTE | H100: Schlagball | I100: PUNKTE | J100: Kugel | K100: PUNKTE | L100: Weit | M100: PUNKTE | N100: 5x80M | O100: PUNKTE | P100: SUMME
A101: ='Dat-Bl'!C88 -> 0 | B101: ='Dat-Bl'!D88 -> W15/01-Regel | C101: ='Dat-Bl'!E88 -> 00:00:00 | D101: ='Dat-Bl'!F88 -> 0 | E101: ='Dat-Bl'!G88 -> 0 | G101: =IF(F101=0,0,INT(19.742424*EXP(2.1*LN((1417-F101*100)/100)))) -> 0 | I101: =IF(H101=0,0,INT(22*EXP(0.9*LN((H101*100-500)/100)))) -> 0 | K101: =IF(J101=0,0,INT(83.435373*EXP(0.9*LN((J101*100-130)/100)))) -> 0 | M101: =IF(L101=0,0,INT(220.628792*EXP(1*LN((L101*100-180)/100)))) -> 0 | O101: =IF(N101=0,0,INT(0.405548*EXP(2.1*LN((8720-N101*100)/100)))) -> 0 | P101: =SUM(G101,I101,K101,M101) -> 0
A102: ='Dat-Bl'!C89 -> 0 | B102: ='Dat-Bl'!D89 -> W15/02-Regel | C102: ='Dat-Bl'!E89 -> 00:00:00 | D102: =D101 -> 0 | G102: 0 | I102: 0 | K102: 0 | M102: 0 | P102: 0
A103: ='Dat-Bl'!C90 -> 0 | B103: ='Dat-Bl'!D90 -> W15/03-Regel | C103: ='Dat-Bl'!E90 -> 00:00:00 | D103: =D102 -> 0 | G103: 0 | I103: 0 | K103: 0 | M103: 0 | P103: 0
A104: ='Dat-Bl'!C91 -> 0 | B104: ='Dat-Bl'!D91 -> W15/04-Regel | C104: ='Dat-Bl'!E91 -> 00:00:00 | D104: 0 | G104: 0 | I104: 0 | K104: 0 | M104: 0 | P104: 0
A105: ='Dat-Bl'!C92 -> 0 | B105: ='Dat-Bl'!D92 -> W15/05-Regel | C105: ='Dat-Bl'!E92 -> 00:00:00 | D105: 0 | G105: 0 | I105: 0 | K105: 0 | M105: 0 | P105: 0 | Q105: Gesamtergebnis
A106: ='Dat-Bl'!C93 -> 0 | B106: ='Dat-Bl'!D93 -> W15/06-Regel | C106: ='Dat-Bl'!E93 -> 00:00:00 | D106: 0 | G106: 0 | I106: 0 | K106: 0 | M106: 0 | P106: 0 | Q106: =SUM(P101:P106)-MIN(P101:P106)+O101 -> 0
A107: Start-Nr. | B107: Schülerinnen | C107: Geb.Dat. | D107: Schule 16 | E107: Bezirk/Bundesland | F107: 60m | G107: PUNKTE | H107: Schlagball | I107: PUNKTE | J107: Kugel | K107: PUNKTE | L107: Weit | M107: PUNKTE | N107: 5x80M | O107: PUNKTE | P107: SUMME
A108: ='Dat-Bl'!C94 -> 0 | B108: ='Dat-Bl'!D94 -> W16/01-Regel | C108: ='Dat-Bl'!E94 -> 00:00:00 | D108: ='Dat-Bl'!F94 -> 0 | E108: ='Dat-Bl'!G94 -> 0 | G108: =IF(F108=0,0,INT(19.742424*EXP(2.1*LN((1417-F108*100)/100)))) -> 0 | I108: =IF(H108=0,0,INT(22*EXP(0.9*LN((H108*100-500)/100)))) -> 0 | K108: =IF(J108=0,0,INT(83.435373*EXP(0.9*LN((J108*100-130)/100)))) -> 0 | M108: =IF(L108=0,0,INT(220.628792*EXP(1*LN((L108*100-180)/100)))) -> 0 | O108: =IF(N108=0,0,INT(0.405548*EXP(2.1*LN((8720-N108*100)/100)))) -> 0 | P108: =SUM(G108,I108,K108,M108) -> 0
A109: ='Dat-Bl'!C95 -> 0 | B109: ='Dat-Bl'!D95 -> W16/02-Regel | C109: ='Dat-Bl'!E95 -> 00:00:00 | D109: =D108 -> 0 | G109: 0 | I109: 0 | K109: 0 | M109: 0 | P109: 0
A110: ='Dat-Bl'!C96 -> 0 | B110: ='Dat-Bl'!D96 -> W16/03-Regel | C110: ='Dat-Bl'!E96 -> 00:00:00 | D110: =D109 -> 0 | G110: 0 | I110: 0 | K110: 0 | M110: 0 | P110: 0
A111: ='Dat-Bl'!C97 -> 0 | B111: ='Dat-Bl'!D97 -> W16/04-Regel | C111: ='Dat-Bl'!E97 -> 00:00:00 | D111: 0 | G111: 0 | I111: 0 | K111: 0 | M111: 0 | P111: 0
A112: ='Dat-Bl'!C98 -> 0 | B112: ='Dat-Bl'!D98 -> W16/05-Regel | C112: ='Dat-Bl'!E98 -> 00:00:00 | D112: 0 | G112: 0 | I112: 0 | K112: 0 | M112: 0 | P112: 0 | Q112: Gesamtergebnis
A113: ='Dat-Bl'!C99 -> 0 | B113: ='Dat-Bl'!D99 -> W16/06-Regel | C113: ='Dat-Bl'!E99 -> 00:00:00 | D113: 0 | G113: 0 | I113: 0 | K113: 0 | M113: 0 | P113: 0 | Q113: =SUM(P108:P113)-MIN(P108:P113)+O108 -> 0
A114: Start-Nr. | B114: Schülerinnen | C114: Geb.Dat. | D114: Schule 17 | E114: Bezirk/Bundesland | F114: 60m | G114: PUNKTE | H114: Schlagball | I114: PUNKTE | J114: Kugel | K114: PUNKTE | L114: Weit | M114: PUNKTE | N114: 5x80M | O114: PUNKTE | P114: SUMME
A115: ='Dat-Bl'!C100 -> 0 | B115: ='Dat-Bl'!D100 -> W17/01-Regel | C115: ='Dat-Bl'!E100 -> 00:00:00 | D115: ='Dat-Bl'!F100 -> 0 | E115: ='Dat-Bl'!G100 -> 0 | G115: =IF(F115=0,0,INT(19.742424*EXP(2.1*LN((1417-F115*100)/100)))) -> 0 | I115: =IF(H115=0,0,INT(22*EXP(0.9*LN((H115*100-500)/100)))) -> 0 | K115: =IF(J115=0,0,INT(83.435373*EXP(0.9*LN((J115*100-130)/100)))) -> 0 | M115: =IF(L115=0,0,INT(220.628792*EXP(1*LN((L115*100-180)/100)))) -> 0 | O115: =IF(N115=0,0,INT(0.405548*EXP(2.1*LN((8720-N115*100)/100)))) -> 0 | P115: =SUM(G115,I115,K115,M115) -> 0
A116: ='Dat-Bl'!C101 -> 0 | B116: ='Dat-Bl'!D101 -> W17/02-Regel | C116: ='Dat-Bl'!E101 -> 00:00:00 | D116: =D115 -> 0 | G116: 0 | I116: 0 | K116: 0 | M116: 0 | P116: 0
A117: ='Dat-Bl'!C102 -> 0 | B117: ='Dat-Bl'!D102 -> W17/03-Regel | C117: ='Dat-Bl'!E102 -> 00:00:00 | D117: =D116 -> 0 | G117: 0 | I117: 0 | K117: 0 | M117: 0 | P117: 0
A118: ='Dat-Bl'!C103 -> 0 | B118: ='Dat-Bl'!D103 -> W17/04-Regel | C118: ='Dat-Bl'!E103 -> 00:00:00 | D118: 0 | G118: 0 | I118: 0 | K118: 0 | M118: 0 | P118: 0
A119: ='Dat-Bl'!C104 -> 0 | B119: ='Dat-Bl'!D104 -> W17/05-Regel | C119: ='Dat-Bl'!E104 -> 00:00:00 | D119: 0 | G119: 0 | I119: 0 | K119: 0 | M119: 0 | P119: 0 | Q119: Gesamtergebnis
A120: ='Dat-Bl'!C105 -> 0 | B120: ='Dat-Bl'!D105 -> W17/06-Regel | C120: ='Dat-Bl'!E105 -> 00:00:00 | D120: 0 | G120: 0 | I120: 0 | K120: 0 | M120: 0 | P120: 0 | Q120: =SUM(P115:P120)-MIN(P115:P120)+O115 -> 0
A121: Start-Nr. | B121: Schülerinnen | C121: Geb.Dat. | D121: Schule 18 | E121: Bezirk/Bundesland | F121: 60m | G121: PUNKTE | H121: Schlagball | I121: PUNKTE | J121: Kugel | K121: PUNKTE | L121: Weit | M121: PUNKTE | N121: 5x80M | O121: PUNKTE | P121: SUMME
A122: ='Dat-Bl'!C106 -> 0 | B122: ='Dat-Bl'!D106 -> W18/01-Regel | C122: ='Dat-Bl'!E106 -> 00:00:00 | D122: ='Dat-Bl'!F106 -> 0 | E122: ='Dat-Bl'!G106 -> 0 | G122: =IF(F122=0,0,INT(19.742424*EXP(2.1*LN((1417-F122*100)/100)))) -> 0 | I122: =IF(H122=0,0,INT(22*EXP(0.9*LN((H122*100-500)/100)))) -> 0 | K122: =IF(J122=0,0,INT(83.435373*EXP(0.9*LN((J122*100-130)/100)))) -> 0 | M122: =IF(L122=0,0,INT(220.628792*EXP(1*LN((L122*100-180)/100)))) -> 0 | O122: =IF(N122=0,0,INT(0.405548*EXP(2.1*LN((8720-N122*100)/100)))) -> 0 | P122: =SUM(G122,I122,K122,M122) -> 0
A123: ='Dat-Bl'!C107 -> 0 | B123: ='Dat-Bl'!D107 -> W18/02-Regel | C123: ='Dat-Bl'!E107 -> 00:00:00 | D123: =D122 -> 0 | G123: 0 | I123: 0 | K123: 0 | M123: 0 | P123: 0
A124: ='Dat-Bl'!C108 -> 0 | B124: ='Dat-Bl'!D108 -> W18/03-Regel | C124: ='Dat-Bl'!E108 -> 00:00:00 | D124: =D123 -> 0 | G124: 0 | I124: 0 | K124: 0 | M124: 0 | P124: 0
A125: ='Dat-Bl'!C109 -> 0 | B125: ='Dat-Bl'!D109 -> W18/04-Regel | C125: ='Dat-Bl'!E109 -> 00:00:00 | D125: 0 | G125: 0 | I125: 0 | K125: 0 | M125: 0 | P125: 0
A126: ='Dat-Bl'!C110 -> 0 | B126: ='Dat-Bl'!D110 -> W18/05-Regel | C126: ='Dat-Bl'!E110 -> 00:00:00 | D126: 0 | G126: 0 | I126: 0 | K126: 0 | M126: 0 | P126: 0 | Q126: Gesamtergebnis
A127: ='Dat-Bl'!C111 -> 0 | B127: ='Dat-Bl'!D111 -> W18/06-Regel | C127: ='Dat-Bl'!E111 -> 00:00:00 | D127: 0 | G127: 0 | I127: 0 | K127: 0 | M127: 0 | P127: 0 | Q127: =SUM(P122:P127)-MIN(P122:P127)+O122 -> 0
A128: Start-Nr. | B128: Schülerinnen | C128: Geb.Dat. | D128: Schule 19 | E128: Bezirk/Bundesland | F128: 60m | G128: PUNKTE | H128: Schlagball | I128: PUNKTE | J128: Kugel | K128: PUNKTE | L128: Weit | M128: PUNKTE | N128: 5x80M | O128: PUNKTE | P128: SUMME
A129: ='Dat-Bl'!C112 -> 0 | B129: ='Dat-Bl'!D112 -> W19/01-Regel | C129: ='Dat-Bl'!E112 -> 00:00:00 | D129: ='Dat-Bl'!F112 -> 0 | E129: ='Dat-Bl'!G112 -> 0 | G129: =IF(F129=0,0,INT(19.742424*EXP(2.1*LN((1417-F129*100)/100)))) -> 0 | I129: =IF(H129=0,0,INT(22*EXP(0.9*LN((H129*100-500)/100)))) -> 0 | K129: =IF(J129=0,0,INT(83.435373*EXP(0.9*LN((J129*100-130)/100)))) -> 0 | M129: =IF(L129=0,0,INT(220.628792*EXP(1*LN((L129*100-180)/100)))) -> 0 | O129: =IF(N129=0,0,INT(0.405548*EXP(2.1*LN((8720-N129*100)/100)))) -> 0 | P129: =SUM(G129,I129,K129,M129) -> 0
A130: ='Dat-Bl'!C113 -> 0 | B130: ='Dat-Bl'!D113 -> W19/02-Regel | C130: ='Dat-Bl'!E113 -> 00:00:00 | D130: =D129 -> 0 | G130: 0 | I130: 0 | K130: 0 | M130: 0 | P130: 0
A131: ='Dat-Bl'!C114 -> 0 | B131: ='Dat-Bl'!D114 -> W19/03-Regel | C131: ='Dat-Bl'!E114 -> 00:00:00 | D131: =D130 -> 0 | G131: 0 | I131: 0 | K131: 0 | M131: 0 | P131: 0
A132: ='Dat-Bl'!C115 -> 0 | B132: ='Dat-Bl'!D115 -> W19/04-Regel | C132: ='Dat-Bl'!E115 -> 00:00:00 | D132: 0 | G132: 0 | I132: 0 | K132: 0 | M132: 0 | P132: 0
A133: ='Dat-Bl'!C116 -> 0 | B133: ='Dat-Bl'!D116 -> W19/05-Regel | C133: ='Dat-Bl'!E116 -> 00:00:00 | D133: 0 | G133: 0 | I133: 0 | K133: 0 | M133: 0 | P133: 0 | Q133: Gesamtergebnis
A134: ='Dat-Bl'!C117 -> 0 | B134: ='Dat-Bl'!D117 -> W19/06-Regel | C134: ='Dat-Bl'!E117 -> 00:00:00 | D134: 0 | G134: 0 | I134: 0 | K134: 0 | M134: 0 | P134: 0 | Q134: =SUM(P129:P134)-MIN(P129:P134)+O129 -> 0
A135: Start-Nr. | B135: Schülerinnen | C135: Geb.Dat. | D135: Schule 20 | E135: Bezirk/Bundesland | F135: 60m | G135: PUNKTE | H135: Schlagball | I135: PUNKTE | J135: Kugel | K135: PUNKTE | L135: Weit | M135: PUNKTE | N135: 5x80M | O135: PUNKTE | P135: SUMME
A136: ='Dat-Bl'!C118 -> 0 | B136: ='Dat-Bl'!D118 -> W20/01-Regel | C136: ='Dat-Bl'!E118 -> 00:00:00 | D136: ='Dat-Bl'!F118 -> 0 | E136: ='Dat-Bl'!G118 -> 0 | G136: =IF(F136=0,0,INT(19.742424*EXP(2.1*LN((1417-F136*100)/100)))) -> 0 | I136: =IF(H136=0,0,INT(22*EXP(0.9*LN((H136*100-500)/100)))) -> 0 | K136: =IF(J136=0,0,INT(83.435373*EXP(0.9*LN((J136*100-130)/100)))) -> 0 | M136: =IF(L136=0,0,INT(220.628792*EXP(1*LN((L136*100-180)/100)))) -> 0 | O136: =IF(N136=0,0,INT(0.405548*EXP(2.1*LN((8720-N136*100)/100)))) -> 0 | P136: =SUM(G136,I136,K136,M136) -> 0
A137: ='Dat-Bl'!C119 -> 0 | B137: ='Dat-Bl'!D119 -> W20/02-Regel | C137: ='Dat-Bl'!E119 -> 00:00:00 | D137: =D136 -> 0 | G137: 0 | I137: 0 | K137: 0 | M137: 0 | P137: 0
A138: ='Dat-Bl'!C120 -> 0 | B138: ='Dat-Bl'!D120 -> W20/03-Regel | C138: ='Dat-Bl'!E120 -> 00:00:00 | D138: =D137 -> 0 | G138: 0 | I138: 0 | K138: 0 | M138: 0 | P138: 0
A139: ='Dat-Bl'!C121 -> 0 | B139: ='Dat-Bl'!D121 -> W20/04-Regel | C139: ='Dat-Bl'!E121 -> 00:00:00 | D139: 0 | G139: 0 | I139: 0 | K139: 0 | M139: 0 | P139: 0
A140: ='Dat-Bl'!C122 -> 0 | B140: ='Dat-Bl'!D122 -> W20/05-Regel | C140: ='Dat-Bl'!E122 -> 00:00:00 | D140: 0 | G140: 0 | I140: 0 | K140: 0 | M140: 0 | P140: 0 | Q140: Gesamtergebnis
A141: ='Dat-Bl'!C123 -> 0 | B141: ='Dat-Bl'!D123 -> W20/06-Regel | C141: ='Dat-Bl'!E123 -> 00:00:00 | D141: 0 | G141: 0 | I141: 0 | K141: 0 | M141: 0 | P141: 0 | Q141: =SUM(P136:P141)-MIN(P136:P141)+O136 -> 0

Sheet Sum-w_R
A1: ='w-E_R'!A1 -> Wettkampfdaten-Art | C1: ='w-E_R'!C1 -> D-C/Regel-Schulen | D1: ='w-E_R'!E1 -> Ortsangabe,Datum
A2: Rang | B2: Mannschaft-SCHÜLERINNEN | C2: Bundesland/Bezirk | D2: Punkte
A3: =RANK(D3,$D$3:$D$22,0) -> 1 | B3: ='w-E_R'!D17 -> BRG Spittal | C3: ='w-E_R'!E17 -> 0 | D3: ='w-E_R'!Q22 -> 9243 | E3: Pkt.
A4: =RANK(D4,$D$3:$D$22,0) -> 2 | B4: ='w-E_R'!D3 -> BG St.Martin | C4: ='w-E_R'!E3 -> 0 | D4: ='w-E_R'!Q8 -> 9053 | E4: Pkt.
A5: =RANK(D5,$D$3:$D$22,0) -> 3 | B5: ='w-E_R'!D38 -> Musik NMS Hermagor | C5: ='w-E_R'!E38 -> 0 | D5: ='w-E_R'!Q43 -> 8955 | E5: Pkt.
A6: =RANK(D6,$D$3:$D$22,0) -> 4 | B6: ='w-E_R'!D73 -> RNMS Feldkirchen | C6: ='w-E_R'!E73 -> 0 | D6: ='w-E_R'!Q78 -> 8510 | E6: Pkt.
A7: =RANK(D7,$D$3:$D$22,0) -> 5 | B7: ='w-E_R'!D10 -> Borg Wolfsberg | C7: ='w-E_R'!E10 -> 0 | D7: ='w-E_R'!Q15 -> 8445 | E7: Pkt.
A8: =RANK(D8,$D$3:$D$22,0) -> 6 | B8: ='w-E_R'!D31 -> Ingeborg Bachmann Gymnasium | C8: ='w-E_R'!E31 -> 0 | D8: ='w-E_R'!Q36 -> 8247 | E8: Pkt.
A9: =RANK(D9,$D$3:$D$22,0) -> 7 | B9: ='w-E_R'!D59 -> NMS Landskron | C9: ='w-E_R'!E59 -> 0 | D9: ='w-E_R'!Q64 -> 8018 | E9: Pkt.
A10: =RANK(D10,$D$3:$D$22,0) -> 8 | B10: ='w-E_R'!D24 -> BZ Bad Eisenkappel | C10: ='w-E_R'!E24 -> 0 | D10: ='w-E_R'!Q29 -> 7973 | E10: Pkt.
A11: =RANK(D11,$D$3:$D$22,0) -> 9 | B11: ='w-E_R'!D45 -> NMS Friesach | C11: ='w-E_R'!E45 -> 0 | D11: ='w-E_R'!Q50 -> 7957 | E11: Pkt.
A12: =RANK(D12,$D$3:$D$22,0) -> 10 | B12: ='w-E_R'!D66 -> NMS Viktring | C12: ='w-E_R'!E66 -> 0 | D12: ='w-E_R'!Q71 -> 7526 | E12: Pkt.
A13: =RANK(D13,$D$3:$D$22,0) -> 11 | B13: ='w-E_R'!D52 -> NMS Gegendtal | C13: ='w-E_R'!E52 -> 0 | D13: ='w-E_R'!Q57 -> 7136 | E13: Pkt.
A14: =RANK(D14,$D$3:$D$22,0) -> 12 | B14: ='w-E_R'!D115 -> 0 | C14: ='w-E_R'!E115 -> 0 | D14: ='w-E_R'!Q120 -> 0 | E14: Pkt.
A15: =RANK(D15,$D$3:$D$22,0) -> 12 | B15: ='w-E_R'!D87 -> 0 | C15: ='w-E_R'!E87 -> 0 | D15: ='w-E_R'!Q92 -> 0 | E15: Pkt.
A16: =RANK(D16,$D$3:$D$22,0) -> 12 | B16: ='w-E_R'!D129 -> 0 | C16: ='w-E_R'!E129 -> 0 | D16: ='w-E_R'!Q134 -> 0 | E16: Pkt.
A17: =RANK(D17,$D$3:$D$22,0) -> 12 | B17: ='w-E_R'!D94 -> 0 | C17: ='w-E_R'!E94 -> 0 | D17: ='w-E_R'!Q99 -> 0 | E17: Pkt.
A18: =RANK(D18,$D$3:$D$22,0) -> 12 | B18: ='w-E_R'!D136 -> 0 | C18: ='w-E_R'!E136 -> 0 | D18: ='w-E_R'!Q141 -> 0 | E18: Pkt.
A19: =RANK(D19,$D$3:$D$22,0) -> 12 | B19: ='w-E_R'!D80 -> 0 | C19: ='w-E_R'!E80 -> 0 | D19: ='w-E_R'!Q85 -> 0 | E19: Pkt.
A20: =RANK(D20,$D$3:$D$22,0) -> 12 | B20: ='w-E_R'!D122 -> 0 | C20: ='w-E_R'!E122 -> 0 | D20: ='w-E_R'!Q127 -> 0 | E20: Pkt.
A21: =RANK(D21,$D$3:$D$22,0) -> 12 | B21: ='w-E_R'!D101 -> 0 | C21: ='w-E_R'!E101 -> 0 | D21: ='w-E_R'!Q106 -> 0 | E21: Pkt.
A22: =RANK(D22,$D$3:$D$22,0) -> 12 | B22: ='w-E_R'!D108 -> 0 | C22: ='w-E_R'!E108 -> 0 | D22: ='w-E_R'!Q113 -> 0 | E22: Pkt.

Sheet Ez-w-R
A1: ='w-E_R'!A1 -> Wettkampfdaten-Art | C1: ='w-E_R'!C1 -> D-C/Regel-Schulen | D1: ='w-E_R'!E1 -> Ortsangabe,Datum
A2: Rang | B2: SCHÜLERINNEN | C2: Schule: | D2: Punkte
A3: =RANK(D3,$D$3:$D$122,0) -> 1 | B3: ='w-E_R'!B15 -> Riegler Vanessa | C3: ='w-E_R'!D15 -> Borg Wolfsberg | D3: ='w-E_R'!P15 -> 2148 | E3: Pkt.
A4: 2 | B4: ='w-E_R'!B22 -> Thaler Laurentine | C4: ='w-E_R'!D22 -> BRG Spittal | D4: ='w-E_R'!P22 -> 2093 | E4: Pkt.
A5: 3 | B5: ='w-E_R'!B38 -> Fercher Annabell | C5: ='w-E_R'!D38 -> Musik NMS Hermagor | D5: ='w-E_R'!P38 -> 1967 | E5: Pkt.
A6: 4 | B6: ='w-E_R'!B14 -> Pum Julia | C6: ='w-E_R'!D14 -> Borg Wolfsberg | D6: ='w-E_R'!P14 -> 1930 | E6: Pkt.
A7: 5 | B7: ='w-E_R'!B34 -> Schmaranz Sophie | C7: ='w-E_R'!D34 -> Ingeborg Bachmann Gymnasium | D7: ='w-E_R'!P34 -> 1771 | E7: Pkt.
A8: 6 | B8: ='w-E_R'!B59 -> Kassin Larissa | C8: ='w-E_R'!D59 -> NMS Landskron | D8: ='w-E_R'!P59 -> 1749 | E8: Pkt.
A9: 7 | B9: ='w-E_R'!B73 -> Ebner Elena | C9: ='w-E_R'!D73 -> RNMS Feldkirchen | D9: ='w-E_R'!P73 -> 1744 | E9: Pkt.
A10: 8 | B10: ='w-E_R'!B21 -> Possegger Christina | C10: ='w-E_R'!D21 -> BRG Spittal | D10: ='w-E_R'!P21 -> 1742 | E10: Pkt.
A11: 9 | B11: ='w-E_R'!B6 -> Enzi Sarah | C11: ='w-E_R'!D6 -> BG St.Martin | D11: ='w-E_R'!P6 -> 1730 | E11: Pkt.
A12: 10 | B12: ='w-E_R'!B7 -> Koch Anna | C12: ='w-E_R'!D7 -> BG St.Martin | D12: ='w-E_R'!P7 -> 1729 | E12: Pkt.
A13: 11 | B13: ='w-E_R'!B40 -> Wernitznig Nina | C13: ='w-E_R'!D40 -> Musik NMS Hermagor | D13: ='w-E_R'!P40 -> 1713 | E13: Pkt.
A14: 12 | B14: ='w-E_R'!B3 -> Wallner Paulina | C14: ='w-E_R'!D3 -> BG St.Martin | D14: ='w-E_R'!P3 -> 1709 | E14: Pkt.
A15: 13 | B15: ='w-E_R'!B8 -> Fugger Sophie | C15: ='w-E_R'!D8 -> BG St.Martin | D15: ='w-E_R'!P8 -> 1700 | E15: Pkt.
A16: 14 | B16: ='w-E_R'!B74 -> Reiter Katharina | C16: ='w-E_R'!D74 -> RNMS Feldkirchen | D16: ='w-E_R'!P74 -> 1683 | E16: Pkt.
A17: 15 | B17: ='w-E_R'!B25 -> Kaschnig Lea | C17: ='w-E_R'!D25 -> BZ Bad Eisenkappel | D17: ='w-E_R'!P25 -> 1680 | E17: Pkt.
A18: 16 | B18: ='w-E_R'!B26 -> Ebner Anna-Lena | C18: ='w-E_R'!D26 -> BZ Bad Eisenkappel | D18: ='w-E_R'!P26 -> 1670 | E18: Pkt.
A19: 17 | B19: ='w-E_R'!B4 -> Feichter Nelly | C19: ='w-E_R'!D4 -> BG St.Martin | D19: ='w-E_R'!P4 -> 1664 | E19: Pkt.
A20: 18 | B20: ='w-E_R'!B39 -> Ebenwaldner Carina | C20: ='w-E_R'!D39 -> Musik NMS Hermagor | D20: ='w-E_R'!P39 -> 1654 | E20: Pkt.
A21: 19 | B21: ='w-E_R'!B75 -> Hinteregger Katrin | C21: ='w-E_R'!D75 -> RNMS Feldkirchen | D21: ='w-E_R'!P75 -> 1650 | E21: Pkt.
A22: 20 | B22: ='w-E_R'!B20 -> Kowatsch Anna | C22: ='w-E_R'!D20 -> BRG Spittal | D22: ='w-E_R'!P20 -> 1638 | E22: Pkt.
A23: 21 | B23: ='w-E_R'!B68 -> Krnjic Sonja | C23: ='w-E_R'!D68 -> NMS Viktring | D23: ='w-E_R'!P68 -> 1627 | E23: Pkt.
A24: 22 | B24: ='w-E_R'!B18 -> Reiter Anna-Lena | C24: ='w-E_R'!D18 -> BRG Spittal | D24: ='w-E_R'!P18 -> 1618 | E24: Pkt.
A25: 23 | B25: ='w-E_R'!B17 -> Hartlieb Michelle | C25: ='w-E_R'!D17 -> BRG Spittal | D25: ='w-E_R'!P17 -> 1603 | E25: Pkt.
A26: 24 | B26: ='w-E_R'!B19 -> Krammer Kristin | C26: ='w-E_R'!D19 -> BRG Spittal | D26: ='w-E_R'!P19 -> 1595 | E26: Pkt.
A27: 25 | B27: ='w-E_R'!B48 -> Schaller Victoria | C27: ='w-E_R'!D48 -> NMS Friesach | D27: ='w-E_R'!P48 -> 1587 | E27: Pkt.
A28: 26 | B28: ='w-E_R'!B35 -> Zenkl Hannah | C28: ='w-E_R'!D35 -> Ingeborg Bachmann Gymnasium | D28: ='w-E_R'!P35 -> 1586 | E28: Pkt.
A29: 26 | B29: ='w-E_R'!B60 -> Wiener Sophie | C29: ='w-E_R'!D60 -> NMS Landskron | D29: ='w-E_R'!P60 -> 1586 | E29: Pkt.
A30: 28 | B30: ='w-E_R'!B43 -> Seebacher Mathilda | C30: ='w-E_R'!D43 -> Musik NMS Hermagor | D30: ='w-E_R'!P43 -> 1552 | E30: Pkt.
A31: 29 | B31: ='w-E_R'!B5 -> Heincz Gerit | C31: ='w-E_R'!D5 -> BG St.Martin | D31: ='w-E_R'!P5 -> 1547 | E31: Pkt.
A32: 29 | B32: ='w-E_R'!B41 -> Pettauer Sara | C32: ='w-E_R'!D41 -> Musik NMS Hermagor | D32: ='w-E_R'!P41 -> 1547 | E32: Pkt.
A33: 31 | B33: ='w-E_R'!B66 -> Edlmann Chiara | C33: ='w-E_R'!D66 -> NMS Viktring | D33: ='w-E_R'!P66 -> 1542 | E33: Pkt.
A34: 32 | B34: ='w-E_R'!B49 -> Hölbling Laura | C34: ='w-E_R'!D49 -> NMS Friesach | D34: ='w-E_R'!P49 -> 1541 | E34: Pkt.
A35: =RANK(D35,$D$3:$D$122,0) -> 33 | B35: ='w-E_R'!B33 -> Doboczky Sophie | C35: ='w-E_R'!D33 -> Ingeborg Bachmann Gymnasium | D35: ='w-E_R'!P33 -> 1512 | E35: Pkt.
A36: 34 | B36: ='w-E_R'!B36 -> Laßnig Katharina | C36: ='w-E_R'!D36 -> Ingeborg Bachmann Gymnasium | D36: ='w-E_R'!P36 -> 1511 | E36: Pkt.
A37: 35 | B37: ='w-E_R'!B46 -> Kronlechner Bettina | C37: ='w-E_R'!D46 -> NMS Friesach | D37: ='w-E_R'!P46 -> 1504 | E37: Pkt.
A38: 35 | B38: ='w-E_R'!B52 -> Mayer Elena | C38: ='w-E_R'!D52 -> NMS Gegendtal | D38: ='w-E_R'!P52 -> 1504 | E38: Pkt.
A39: 37 | B39: ='w-E_R'!B42 -> Matthei Laura | C39: ='w-E_R'!D42 -> Musik NMS Hermagor | D39: ='w-E_R'!P42 -> 1479 | E39: Pkt.
A40: 38 | B40: ='w-E_R'!B24 -> Kampusch Michelle | C40: ='w-E_R'!D24 -> BZ Bad Eisenkappel | D40: ='w-E_R'!P24 -> 1478 | E40: Pkt.
A41: 39 | B41: ='w-E_R'!B78 -> Petrascu Elisabeth | C41: ='w-E_R'!D78 -> RNMS Feldkirchen | D41: ='w-E_R'!P78 -> 1464 | E41: Pkt.
A42: 40 | B42: ='w-E_R'!B13 -> Spendl Jennifer | C42: ='w-E_R'!D13 -> Borg Wolfsberg | D42: ='w-E_R'!P13 -> 1456 | E42: Pkt.
A43: 41 | B43: ='w-E_R'!B47 -> Delfser Anna-Magdalena | C43: ='w-E_R'!D47 -> NMS Friesach | D43: ='w-E_R'!P47 -> 1450 | E43: Pkt.
A44: 42 | B44: ='w-E_R'!B76 -> Kircher Florentina | C44: ='w-E_R'!D76 -> RNMS Feldkirchen | D44: ='w-E_R'!P76 -> 1448 | E44: Pkt.
A45: 43 | B45: ='w-E_R'!B53 -> Steiner Patricia | C45: ='w-E_R'!D53 -> NMS Gegendtal | D45: ='w-E_R'!P53 -> 1437 | E45: Pkt.
A46: 43 | B46: ='w-E_R'!B61 -> Neumann Lisa | C46: ='w-E_R'!D61 -> NMS Landskron | D46: ='w-E_R'!P61 -> 1437 | E46: Pkt.
A47: 45 | B47: ='w-E_R'!B27 -> Millicevvic Renate | C47: ='w-E_R'!D27 -> BZ Bad Eisenkappel | D47: ='w-E_R'!P27 -> 1425 | E47: Pkt.
A48: 45 | B48: ='w-E_R'!B63 -> Santner Fabienne | C48: ='w-E_R'!D63 -> NMS Landskron | D48: ='w-E_R'!P63 -> 1425 | E48: Pkt.
A49: 47 | B49: ='w-E_R'!B45 -> Pörtschacher Vanessa | C49: ='w-E_R'!D45 -> NMS Friesach | D49: ='w-E_R'!P45 -> 1421 | E49: Pkt.
A50: 48 | B50: ='w-E_R'!B50 -> Pacher Selina | C50: ='w-E_R'!D50 -> NMS Friesach | D50: ='w-E_R'!P50 -> 1416 | E50: Pkt.
A51: 49 | B51: ='w-E_R'!B71 -> Herkner Anna | C51: ='w-E_R'!D71 -> NMS Viktring | D51: ='w-E_R'!P71 -> 1399 | E51: Pkt.
A52: 50 | B52: ='w-E_R'!B11 -> Maier Magdalena | C52: ='w-E_R'!D11 -> Borg Wolfsberg | D52: ='w-E_R'!P11 -> 1391 | E52: Pkt.
A53: 50 | B53: ='w-E_R'!B32 -> Lippitsch Amelie | C53: ='w-E_R'!D32 -> Ingeborg Bachmann Gymnasium | D53: ='w-E_R'!P32 -> 1391 | E53: Pkt.
A54: 52 | B54: ='w-E_R'!B67 -> Toth Lili | C54: ='w-E_R'!D67 -> NMS Viktring | D54: ='w-E_R'!P67 -> 1359 | E54: Pkt.
A55: 53 | B55: ='w-E_R'!B31 -> Donner Rosa | C55: ='w-E_R'!D31 -> Ingeborg Bachmann Gymnasium | D55: ='w-E_R'!P31 -> 1352 | E55: Pkt.
A56: 54 | B56: ='w-E_R'!B64 -> Petscher Maria | C56: ='w-E_R'!D64 -> NMS Landskron | D56: ='w-E_R'!P64 -> 1326 | E56: Pkt.
A57: 56 | B57: ='w-E_R'!B55 -> Schweiger Nadja | C57: ='w-E_R'!D55 -> NMS Gegendtal | D57: ='w-E_R'!P55 -> 1314 | E57: Pkt.
A58: 55 | B58: ='w-E_R'!B77 -> Mühlbacher Nina | C58: ='w-E_R'!D77 -> RNMS Feldkirchen | D58: ='w-E_R'!P77 -> 1319 | E58: Pkt.
A59: 57 | B59: ='w-E_R'!B28 -> Pudgar Domenika | C59: ='w-E_R'!D28 -> BZ Bad Eisenkappel | D59: ='w-E_R'!P28 -> 1270 | E59: Pkt.
A60: 58 | B60: ='w-E_R'!B62 -> Pinzer Alina | C60: ='w-E_R'!D62 -> NMS Landskron | D60: ='w-E_R'!P62 -> 1265 | E60: Pkt.
A61: 59 | B61: ='w-E_R'!B57 -> Ostertschnig Lisa | C61: ='w-E_R'!D57 -> NMS Gegendtal | D61: ='w-E_R'!P57 -> 1260 | E61: Pkt.
A62: 60 | B62: ='w-E_R'!B56 -> Gasser Valentina | C62: ='w-E_R'!D56 -> NMS Gegendtal | D62: ='w-E_R'!P56 -> 1248 | E62: Pkt.
A63: 61 | B63: ='w-E_R'!B54 -> Maier Jasmin | C63: ='w-E_R'!D54 -> NMS Gegendtal | D63: ='w-E_R'!P54 -> 1241 | E63: Pkt.
A64: 62 | B64: ='w-E_R'!B69 -> Esel Michelle | C64: ='w-E_R'!D69 -> NMS Viktring | D64: ='w-E_R'!P69 -> 1216 | E64: Pkt.
A65: 63 | B65: ='w-E_R'!B12 -> Frauwallner Hanna | C65: ='w-E_R'!D12 -> Borg Wolfsberg | D65: ='w-E_R'!P12 -> 1102 | E65: Pkt.
A66: 64 | B66: ='w-E_R'!B70 -> Bierbaumer Selina | C66: ='w-E_R'!D70 -> NMS Viktring | D66: ='w-E_R'!P70 -> 1074 | E66: Pkt.
A67: =RANK(D67,$D$3:$D$122,0) -> 65 | B67: ='w-E_R'!B10 -> Maier Celina | C67: ='w-E_R'!D10 -> Borg Wolfsberg | D67: ='w-E_R'!P10 -> 589 | E67: Pkt.
A68: 66 | B68: ='w-E_R'!B29 -> 0 | C68: ='w-E_R'!D29 -> BZ Bad Eisenkappel | D68: ='w-E_R'!P29 -> 0 | E68: Pkt.
A69: 66 | B69: ='w-E_R'!B80 -> W12/01-Regel | C69: ='w-E_R'!D80 -> 0 | D69: ='w-E_R'!P80 -> 0 | E69: Pkt.
A70: 66 | B70: ='w-E_R'!B81 -> W12/02-Regel | C70: ='w-E_R'!D81 -> 0 | D70: ='w-E_R'!P81 -> 0 | E70: Pkt.
A71: 66 | B71: ='w-E_R'!B82 -> W12/03-Regel | C71: ='w-E_R'!D82 -> 0 | D71: ='w-E_R'!P82 -> 0 | E71: Pkt.
A72: 66 | B72: ='w-E_R'!B83 -> W12/04-Regel | C72: ='w-E_R'!D83 -> 0 | D72: ='w-E_R'!P83 -> 0 | E72: Pkt.
A73: 66 | B73: ='w-E_R'!B84 -> W12/05-Regel | C73: ='w-E_R'!D84 -> 0 | D73: ='w-E_R'!P84 -> 0 | E73: Pkt.
A74: 66 | B74: ='w-E_R'!B85 -> W12/06-Regel | C74: ='w-E_R'!D85 -> 0 | D74: ='w-E_R'!P85 -> 0 | E74: Pkt.
A75: 66 | B75: ='w-E_R'!B87 -> W13/01-Regel | C75: ='w-E_R'!D87 -> 0 | D75: ='w-E_R'!P87 -> 0 | E75: Pkt.
A76: 66 | B76: ='w-E_R'!B88 -> W13/02-Regel | C76: ='w-E_R'!D88 -> 0 | D76: ='w-E_R'!P88 -> 0 | E76: Pkt.
A77: 66 | B77: ='w-E_R'!B89 -> W13/03-Regel | C77: ='w-E_R'!D89 -> 0 | D77: ='w-E_R'!P89 -> 0 | E77: Pkt.
A78: 66 | B78: ='w-E_R'!B90 -> W13/04-Regel | C78: ='w-E_R'!D90 -> 0 | D78: ='w-E_R'!P90 -> 0 | E78: Pkt.
A79: 66 | B79: ='w-E_R'!B91 -> W13/05-Regel | C79: ='w-E_R'!D91 -> 0 | D79: ='w-E_R'!P91 -> 0 | E79: Pkt.
A80: 66 | B80: ='w-E_R'!B92 -> W13/06-Regel | C80: ='w-E_R'!D92 -> 0 | D80: ='w-E_R'!P92 -> 0 | E80: Pkt.
A81: 66 | B81: ='w-E_R'!B94 -> W14/01-Regel | C81: ='w-E_R'!D94 -> 0 | D81: ='w-E_R'!P94 -> 0 | E81: Pkt.
A82: 66 | B82: ='w-E_R'!B95 -> W14/02-Regel | C82: ='w-E_R'!D95 -> 0 | D82: ='w-E_R'!P95 -> 0 | E82: Pkt.
A83: 66 | B83: ='w-E_R'!B96 -> W14/03-Regel | C83: ='w-E_R'!D96 -> 0 | D83: ='w-E_R'!P96 -> 0 | E83: Pkt.
A84: 66 | B84: ='w-E_R'!B97 -> W14/04-Regel | C84: ='w-E_R'!D97 -> 0 | D84: ='w-E_R'!P97 -> 0 | E84: Pkt.
A85: 66 | B85: ='w-E_R'!B98 -> W14/05-Regel | C85: ='w-E_R'!D98 -> 0 | D85: ='w-E_R'!P98 -> 0 | E85: Pkt.
A86: 66 | B86: ='w-E_R'!B99 -> W14/06-Regel | C86: ='w-E_R'!D99 -> 0 | D86: ='w-E_R'!P99 -> 0 | E86: Pkt.
A87: 66 | B87: ='w-E_R'!B101 -> W15/01-Regel | C87: ='w-E_R'!D101 -> 0 | D87: ='w-E_R'!P101 -> 0 | E87: Pkt.
A88: 66 | B88: ='w-E_R'!B102 -> W15/02-Regel | C88: ='w-E_R'!D102 -> 0 | D88: ='w-E_R'!P102 -> 0 | E88: Pkt.
A89: 66 | B89: ='w-E_R'!B103 -> W15/03-Regel | C89: ='w-E_R'!D103 -> 0 | D89: ='w-E_R'!P103 -> 0 | E89: Pkt.
A90: 66 | B90: ='w-E_R'!B104 -> W15/04-Regel | C90: ='w-E_R'!D104 -> 0 | D90: ='w-E_R'!P104 -> 0 | E90: Pkt.
A91: 66 | B91: ='w-E_R'!B105 -> W15/05-Regel | C91: ='w-E_R'!D105 -> 0 | D91: ='w-E_R'!P105 -> 0 | E91: Pkt.
A92: 66 | B92: ='w-E_R'!B106 -> W15/06-Regel | C92: ='w-E_R'!D106 -> 0 | D92: ='w-E_R'!P106 -> 0 | E92: Pkt.
A93: 66 | B93: ='w-E_R'!B108 -> W16/01-Regel | C93: ='w-E_R'!D108 -> 0 | D93: ='w-E_R'!P108 -> 0 | E93: Pkt.
A94: 66 | B94: ='w-E_R'!B109 -> W16/02-Regel | C94: ='w-E_R'!D109 -> 0 | D94: ='w-E_R'!P109 -> 0 | E94: Pkt.
A95: 66 | B95: ='w-E_R'!B110 -> W16/03-Regel | C95: ='w-E_R'!D110 -> 0 | D95: ='w-E_R'!P110 -> 0 | E95: Pkt.
A96: 66 | B96: ='w-E_R'!B111 -> W16/04-Regel | C96: ='w-E_R'!D111 -> 0 | D96: ='w-E_R'!P111 -> 0 | E96: Pkt.
A97: 66 | B97: ='w-E_R'!B112 -> W16/05-Regel | C97: ='w-E_R'!D112 -> 0 | D97: ='w-E_R'!P112 -> 0 | E97: Pkt.
A98: 66 | B98: ='w-E_R'!B113 -> W16/06-Regel | C98: ='w-E_R'!D113 -> 0 | D98: ='w-E_R'!P113 -> 0 | E98: Pkt.
A99: =RANK(D99,$D$3:$D$122,0) -> 66 | B99: ='w-E_R'!B115 -> W17/01-Regel | C99: ='w-E_R'!D115 -> 0 | D99: ='w-E_R'!P115 -> 0 | E99: Pkt.
A100: 66 | B100: ='w-E_R'!B116 -> W17/02-Regel | C100: ='w-E_R'!D116 -> 0 | D100: ='w-E_R'!P116 -> 0 | E100: Pkt.
A101: 66 | B101: ='w-E_R'!B117 -> W17/03-Regel | C101: ='w-E_R'!D117 -> 0 | D101: ='w-E_R'!P117 -> 0 | E101: Pkt.
A102: 66 | B102: ='w-E_R'!B118 -> W17/04-Regel | C102: ='w-E_R'!D118 -> 0 | D102: ='w-E_R'!P118 -> 0 | E102: Pkt.
A103: 66 | B103: ='w-E_R'!B119 -> W17/05-Regel | C103: ='w-E_R'!D119 -> 0 | D103: ='w-E_R'!P119 -> 0 | E103: Pkt.
A104: 66 | B104: ='w-E_R'!B120 -> W17/06-Regel | C104: ='w-E_R'!D120 -> 0 | D104: ='w-E_R'!P120 -> 0 | E104: Pkt.
A105: 66 | B105: ='w-E_R'!B122 -> W18/01-Regel | C105: ='w-E_R'!D122 -> 0 | D105: ='w-E_R'!P122 -> 0 | E105: Pkt.
A106: 66 | B106: ='w-E_R'!B123 -> W18/02-Regel | C106: ='w-E_R'!D123 -> 0 | D106: ='w-E_R'!P123 -> 0 | E106: Pkt.
A107: 66 | B107: ='w-E_R'!B124 -> W18/03-Regel | C107: ='w-E_R'!D124 -> 0 | D107: ='w-E_R'!P124 -> 0 | E107: Pkt.
A108: 66 | B108: ='w-E_R'!B125 -> W18/04-Regel | C108: ='w-E_R'!D125 -> 0 | D108: ='w-E_R'!P125 -> 0 | E108: Pkt.
A109: 66 | B109: ='w-E_R'!B126 -> W18/05-Regel | C109: ='w-E_R'!D126 -> 0 | D109: ='w-E_R'!P126 -> 0 | E109: Pkt.
A110: 66 | B110: ='w-E_R'!B127 -> W18/06-Regel | C110: ='w-E_R'!D127 -> 0 | D110: ='w-E_R'!P127 -> 0 | E110: Pkt.
A111: 66 | B111: ='w-E_R'!B129 -> W19/01-Regel | C111: ='w-E_R'!D129 -> 0 | D111: ='w-E_R'!P129 -> 0 | E111: Pkt.
A112: 66 | B112: ='w-E_R'!B130 -> W19/02-Regel | C112: ='w-E_R'!D130 -> 0 | D112: ='w-E_R'!P130 -> 0 | E112: Pkt.
A113: 66 | B113: ='w-E_R'!B131 -> W19/03-Regel | C113: ='w-E_R'!D131 -> 0 | D113: ='w-E_R'!P131 -> 0 | E113: Pkt.
A114: 66 | B114: ='w-E_R'!B132 -> W19/04-Regel | C114: ='w-E_R'!D132 -> 0 | D114: ='w-E_R'!P132 -> 0 | E114: Pkt.
A115: 66 | B115: ='w-E_R'!B133 -> W19/05-Regel | C115: ='w-E_R'!D133 -> 0 | D115: ='w-E_R'!P133 -> 0 | E115: Pkt.
A116: 66 | B116: ='w-E_R'!B134 -> W19/06-Regel | C116: ='w-E_R'!D134 -> 0 | D116: ='w-E_R'!P134 -> 0 | E116: Pkt.
A117: 66 | B117: ='w-E_R'!B136 -> W20/01-Regel | C117: ='w-E_R'!D136 -> 0 | D117: ='w-E_R'!P136 -> 0 | E117: Pkt.
A118: 66 | B118: ='w-E_R'!B137 -> W20/02-Regel | C118: ='w-E_R'!D137 -> 0 | D118: ='w-E_R'!P137 -> 0 | E118: Pkt.
A119: 66 | B119: ='w-E_R'!B138 -> W20/03-Regel | C119: ='w-E_R'!D138 -> 0 | D119: ='w-E_R'!P138 -> 0 | E119: Pkt.
A120: 66 | B120: ='w-E_R'!B139 -> W20/04-Regel | C120: ='w-E_R'!D139 -> 0 | D120: ='w-E_R'!P139 -> 0 | E120: Pkt.
A121: 66 | B121: ='w-E_R'!B140 -> W20/05-Regel | C121: ='w-E_R'!D140 -> 0 | D121: ='w-E_R'!P140 -> 0 | E121: Pkt.
A122: 66 | B122: ='w-E_R'!B141 -> W20/06-Regel | C122: ='w-E_R'!D141 -> 0 | D122: ='w-E_R'!P141 -> 0 | E122: Pkt.

Sheet P-60 m
A1: K-ziff | B1: Lauf | C1: Startnr.: | D1: Familienname Vorname | E1: Schule-60m-weiblich_C / D - Regel | F1: Zeit
A2: 1 | B2: Bahn 1 | C2: =IF(A2="","",VLOOKUP(A2,'Dat-Bl'!$B$4:$F$123,2)) -> 0 | D2: =IF(A2="","",VLOOKUP(A2,'Dat-Bl'!$B$4:$F$123,3)) -> Wallner Paulina | E2: =IF(A2="","",VLOOKUP(A2,'Dat-Bl'!$B$4:$F$123,5)) -> BG St.Martin
A3: 2 | B3: Bahn 2 | C3: =IF(A3="","",VLOOKUP(A3,'Dat-Bl'!$B$4:$F$123,2)) -> 0 | D3: =IF(A3="","",VLOOKUP(A3,'Dat-Bl'!$B$4:$F$123,3)) -> Feichter Nelly | E3: =IF(A3="","",VLOOKUP(A3,'Dat-Bl'!$B$4:$F$123,5)) -> BG St.Martin
A4: 3 | B4: Bahn 3 | C4: =IF(A4="","",VLOOKUP(A4,'Dat-Bl'!$B$4:$F$123,2)) -> 0 | D4: =IF(A4="","",VLOOKUP(A4,'Dat-Bl'!$B$4:$F$123,3)) -> Heincz Gerit | E4: =IF(A4="","",VLOOKUP(A4,'Dat-Bl'!$B$4:$F$123,5)) -> BG St.Martin
A5: 4 | B5: Bahn 4 | C5: =IF(A5="","",VLOOKUP(A5,'Dat-Bl'!$B$4:$F$123,2)) -> 0 | D5: =IF(A5="","",VLOOKUP(A5,'Dat-Bl'!$B$4:$F$123,3)) -> Enzi Sarah | E5: =IF(A5="","",VLOOKUP(A5,'Dat-Bl'!$B$4:$F$123,5)) -> BG St.Martin
A6: 5 | B6: Bahn 5 | C6: =IF(A6="","",VLOOKUP(A6,'Dat-Bl'!$B$4:$F$123,2)) -> 0 | D6: =IF(A6="","",VLOOKUP(A6,'Dat-Bl'!$B$4:$F$123,3)) -> Koch Anna | E6: =IF(A6="","",VLOOKUP(A6,'Dat-Bl'!$B$4:$F$123,5)) -> BG St.Martin
A7: 6 | B7: Bahn 6 | C7: =IF(A7="","",VLOOKUP(A7,'Dat-Bl'!$B$4:$F$123,2)) -> 0 | D7: =IF(A7="","",VLOOKUP(A7,'Dat-Bl'!$B$4:$F$123,3)) -> Fugger Sophie | E7: =IF(A7="","",VLOOKUP(A7,'Dat-Bl'!$B$4:$F$123,5)) -> BG St.Martin
B8: Bahn 7 | C8: =IF(A8="","",VLOOKUP(A8,'Dat-Bl'!$B$4:$F$123,2)) ->  | D8: =IF(A8="","",VLOOKUP(A8,'Dat-Bl'!$B$4:$F$123,3)) ->  | E8: =IF(A8="","",VLOOKUP(A8,'Dat-Bl'!$B$4:$F$123,5)) -> 
B9: Bahn 8 | C9: =IF(A9="","",VLOOKUP(A9,'Dat-Bl'!$B$4:$F$123,2)) ->  | D9: =IF(A9="","",VLOOKUP(A9,'Dat-Bl'!$B$4:$F$123,3)) ->  | E9: =IF(A9="","",VLOOKUP(A9,'Dat-Bl'!$B$4:$F$123,5)) -> 
A10: K-ziff | B10: Lauf | C10: Startnr.: | D10: Familienname Vorname | E10: =E1 -> Schule-60m-weiblich_C / D - Regel | F10: Zeit
A11: 7 | B11: Bahn 1 | C11: =IF(A11="","",VLOOKUP(A11,'Dat-Bl'!$B$4:$F$123,2)) -> 0 | D11: =IF(A11="","",VLOOKUP(A11,'Dat-Bl'!$B$4:$F$123,3)) -> Maier Celina | E11: =IF(A11="","",VLOOKUP(A11,'Dat-Bl'!$B$4:$F$123,5)) -> Borg Wolfsberg
A12: 8 | B12: Bahn 2 | C12: =IF(A12="","",VLOOKUP(A12,'Dat-Bl'!$B$4:$F$123,2)) -> 0 | D12: =IF(A12="","",VLOOKUP(A12,'Dat-Bl'!$B$4:$F$123,3)) -> Maier Magdalena | E12: =IF(A12="","",VLOOKUP(A12,'Dat-Bl'!$B$4:$F$123,5)) -> Borg Wolfsberg
A13: 9 | B13: Bahn 3 | C13: =IF(A13="","",VLOOKUP(A13,'Dat-Bl'!$B$4:$F$123,2)) -> 0 | D13: =IF(A13="","",VLOOKUP(A13,'Dat-Bl'!$B$4:$F$123,3)) -> Frauwallner Hanna | E13: =IF(A13="","",VLOOKUP(A13,'Dat-Bl'!$B$4:$F$123,5)) -> Borg Wolfsberg
A14: 10 | B14: Bahn 4 | C14: =IF(A14="","",VLOOKUP(A14,'Dat-Bl'!$B$4:$F$123,2)) -> 0 | D14: =IF(A14="","",VLOOKUP(A14,'Dat-Bl'!$B$4:$F$123,3)) -> Spendl Jennifer | E14: =IF(A14="","",VLOOKUP(A14,'Dat-Bl'!$B$4:$F$123,5)) -> Borg Wolfsberg
A15: 11 | B15: Bahn 5 | C15: =IF(A15="","",VLOOKUP(A15,'Dat-Bl'!$B$4:$F$123,2)) -> 0 | D15: =IF(A15="","",VLOOKUP(A15,'Dat-Bl'!$B$4:$F$123,3)) -> Pum Julia | E15: =IF(A15="","",VLOOKUP(A15,'Dat-Bl'!$B$4:$F$123,5)) -> Borg Wolfsberg
A16: 12 | B16: Bahn 6 | C16: =IF(A16="","",VLOOKUP(A16,'Dat-Bl'!$B$4:$F$123,2)) -> 0 | D16: =IF(A16="","",VLOOKUP(A16,'Dat-Bl'!$B$4:$F$123,3)) -> Riegler Vanessa | E16: =IF(A16="","",VLOOKUP(A16,'Dat-Bl'!$B$4:$F$123,5)) -> Borg Wolfsberg
B17: Bahn 7 | C17: =IF(A17="","",VLOOKUP(A17,'Dat-Bl'!$B$4:$F$123,2)) ->  | D17: =IF(A17="","",VLOOKUP(A17,'Dat-Bl'!$B$4:$F$123,3)) ->  | E17: =IF(A17="","",VLOOKUP(A17,'Dat-Bl'!$B$4:$F$123,5)) -> 
B18: Bahn 8 | C18: =IF(A18="","",VLOOKUP(A18,'Dat-Bl'!$B$4:$F$123,2)) ->  | D18: =IF(A18="","",VLOOKUP(A18,'Dat-Bl'!$B$4:$F$123,3)) ->  | E18: =IF(A18="","",VLOOKUP(A18,'Dat-Bl'!$B$4:$F$123,5)) -> 
A19: K-ziff | B19: Lauf | C19: Startnr.: | D19: Familienname Vorname | E19: =E1 -> Schule-60m-weiblich_C / D - Regel | F19: Zeit
A20: 13 | B20: Bahn 1 | C20: =IF(A20="","",VLOOKUP(A20,'Dat-Bl'!$B$4:$F$123,2)) -> 0 | D20: =IF(A20="","",VLOOKUP(A20,'Dat-Bl'!$B$4:$F$123,3)) -> Hartlieb Michelle | E20: =IF(A20="","",VLOOKUP(A20,'Dat-Bl'!$B$4:$F$123,5)) -> BRG Spittal
A21: 14 | B21: Bahn 2 | C21: =IF(A21="","",VLOOKUP(A21,'Dat-Bl'!$B$4:$F$123,2)) -> 0 | D21: =IF(A21="","",VLOOKUP(A21,'Dat-Bl'!$B$4:$F$123,3)) -> Reiter Anna-Lena | E21: =IF(A21="","",VLOOKUP(A21,'Dat-Bl'!$B$4:$F$123,5)) -> BRG Spittal
A22: 15 | B22: Bahn 3 | C22: =IF(A22="","",VLOOKUP(A22,'Dat-Bl'!$B$4:$F$123,2)) -> 0 | D22: =IF(A22="","",VLOOKUP(A22,'Dat-Bl'!$B$4:$F$123,3)) -> Krammer Kristin | E22: =IF(A22="","",VLOOKUP(A22,'Dat-Bl'!$B$4:$F$123,5)) -> BRG Spittal
A23: 16 | B23: Bahn 4 | C23: =IF(A23="","",VLOOKUP(A23,'Dat-Bl'!$B$4:$F$123,2)) -> 0 | D23: =IF(A23="","",VLOOKUP(A23,'Dat-Bl'!$B$4:$F$123,3)) -> Kowatsch Anna | E23: =IF(A23="","",VLOOKUP(A23,'Dat-Bl'!$B$4:$F$123,5)) -> BRG Spittal
A24: 17 | B24: Bahn 5 | C24: =IF(A24="","",VLOOKUP(A24,'Dat-Bl'!$B$4:$F$123,2)) -> 0 | D24: =IF(A24="","",VLOOKUP(A24,'Dat-Bl'!$B$4:$F$123,3)) -> Possegger Christina | E24: =IF(A24="","",VLOOKUP(A24,'Dat-Bl'!$B$4:$F$123,5)) -> BRG Spittal
A25: 18 | B25: Bahn 6 | C25: =IF(A25="","",VLOOKUP(A25,'Dat-Bl'!$B$4:$F$123,2)) -> 0 | D25: =IF(A25="","",VLOOKUP(A25,'Dat-Bl'!$B$4:$F$123,3)) -> Thaler Laurentine | E25: =IF(A25="","",VLOOKUP(A25,'Dat-Bl'!$B$4:$F$123,5)) -> BRG Spittal
B26: Bahn 7 | C26: =IF(A26="","",VLOOKUP(A26,'Dat-Bl'!$B$4:$F$123,2)) ->  | D26: =IF(A26="","",VLOOKUP(A26,'Dat-Bl'!$B$4:$F$123,3)) ->  | E26: =IF(A26="","",VLOOKUP(A26,'Dat-Bl'!$B$4:$F$123,5)) -> 
B27: Bahn 8 | C27: =IF(A27="","",VLOOKUP(A27,'Dat-Bl'!$B$4:$F$123,2)) ->  | D27: =IF(A27="","",VLOOKUP(A27,'Dat-Bl'!$B$4:$F$123,3)) ->  | E27: =IF(A27="","",VLOOKUP(A27,'Dat-Bl'!$B$4:$F$123,5)) -> 
A28: K-ziff | B28: Lauf | C28: Startnr.: | D28: Familienname Vorname | E28: =E1 -> Schule-60m-weiblich_C / D - Regel | F28: Zeit
A29: 19 | B29: Bahn 1 | C29: =IF(A29="","",VLOOKUP(A29,'Dat-Bl'!$B$4:$F$123,2)) -> 0 | D29: =IF(A29="","",VLOOKUP(A29,'Dat-Bl'!$B$4:$F$123,3)) -> Kampusch Michelle | E29: =IF(A29="","",VLOOKUP(A29,'Dat-Bl'!$B$4:$F$123,5)) -> BZ Bad Eisenkappel
A30: 20 | B30: Bahn 2 | C30: =IF(A30="","",VLOOKUP(A30,'Dat-Bl'!$B$4:$F$123,2)) -> 0 | D30: =IF(A30="","",VLOOKUP(A30,'Dat-Bl'!$B$4:$F$123,3)) -> Kaschnig Lea | E30: =IF(A30="","",VLOOKUP(A30,'Dat-Bl'!$B$4:$F$123,5)) -> BZ Bad Eisenkappel
A31: 21 | B31: Bahn 3 | C31: =IF(A31="","",VLOOKUP(A31,'Dat-Bl'!$B$4:$F$123,2)) -> 0 | D31: =IF(A31="","",VLOOKUP(A31,'Dat-Bl'!$B$4:$F$123,3)) -> Ebner Anna-Lena | E31: =IF(A31="","",VLOOKUP(A31,'Dat-Bl'!$B$4:$F$123,5)) -> BZ Bad Eisenkappel
A32: 22 | B32: Bahn 4 | C32: =IF(A32="","",VLOOKUP(A32,'Dat-Bl'!$B$4:$F$123,2)) -> 0 | D32: =IF(A32="","",VLOOKUP(A32,'Dat-Bl'!$B$4:$F$123,3)) -> Millicevvic Renate | E32: =IF(A32="","",VLOOKUP(A32,'Dat-Bl'!$B$4:$F$123,5)) -> BZ Bad Eisenkappel
A33: 23 | B33: Bahn 5 | C33: =IF(A33="","",VLOOKUP(A33,'Dat-Bl'!$B$4:$F$123,2)) -> 0 | D33: =IF(A33="","",VLOOKUP(A33,'Dat-Bl'!$B$4:$F$123,3)) -> Pudgar Domenika | E33: =IF(A33="","",VLOOKUP(A33,'Dat-Bl'!$B$4:$F$123,5)) -> BZ Bad Eisenkappel
A34: 24 | B34: Bahn 6 | C34: =IF(A34="","",VLOOKUP(A34,'Dat-Bl'!$B$4:$F$123,2)) -> 0 | D34: =IF(A34="","",VLOOKUP(A34,'Dat-Bl'!$B$4:$F$123,3)) -> 0 | E34: =IF(A34="","",VLOOKUP(A34,'Dat-Bl'!$B$4:$F$123,5)) -> BZ Bad Eisenkappel
B35: Bahn 7 | C35: =IF(A35="","",VLOOKUP(A35,'Dat-Bl'!$B$4:$F$123,2)) ->  | D35: =IF(A35="","",VLOOKUP(A35,'Dat-Bl'!$B$4:$F$123,3)) ->  | E35: =IF(A35="","",VLOOKUP(A35,'Dat-Bl'!$B$4:$F$123,5)) -> 
B36: Bahn 8 | C36: =IF(A36="","",VLOOKUP(A36,'Dat-Bl'!$B$4:$F$123,2)) ->  | D36: =IF(A36="","",VLOOKUP(A36,'Dat-Bl'!$B$4:$F$123,3)) ->  | E36: =IF(A36="","",VLOOKUP(A36,'Dat-Bl'!$B$4:$F$123,5)) -> 
A38: K-ziff | B38: Lauf | C38: Startnr.: | D38: Familienname Vorname | E38: Schule-60m-weiblich_C /D - Sport | F38: Zeit
B39: Bahn 1 | C39: =IF(A39="","",VLOOKUP(A39,'Dat-Bl'!$B$127:$F$246,2)) ->  | D39: =IF(A39="","",VLOOKUP(A39,'Dat-Bl'!$B$127:$F$246,3)) ->  | E39: =IF(A39="","",VLOOKUP(A39,'Dat-Bl'!$B$127:$F$246,5)) -> 
B40: Bahn 2 | C40: =IF(A40="","",VLOOKUP(A40,'Dat-Bl'!$B$127:$F$246,2)) ->  | D40: =IF(A40="","",VLOOKUP(A40,'Dat-Bl'!$B$127:$F$246,3)) ->  | E40: =IF(A40="","",VLOOKUP(A40,'Dat-Bl'!$B$127:$F$246,5)) -> 
B41: Bahn 3 | C41: =IF(A41="","",VLOOKUP(A41,'Dat-Bl'!$B$127:$F$246,2)) ->  | D41: =IF(A41="","",VLOOKUP(A41,'Dat-Bl'!$B$127:$F$246,3)) ->  | E41: =IF(A41="","",VLOOKUP(A41,'Dat-Bl'!$B$127:$F$246,5)) -> 
B42: Bahn 4 | C42: =IF(A42="","",VLOOKUP(A42,'Dat-Bl'!$B$127:$F$246,2)) ->  | D42: =IF(A42="","",VLOOKUP(A42,'Dat-Bl'!$B$127:$F$246,3)) ->  | E42: =IF(A42="","",VLOOKUP(A42,'Dat-Bl'!$B$127:$F$246,5)) -> 
B43: Bahn 5 | C43: =IF(A43="","",VLOOKUP(A43,'Dat-Bl'!$B$127:$F$246,2)) ->  | D43: =IF(A43="","",VLOOKUP(A43,'Dat-Bl'!$B$127:$F$246,3)) ->  | E43: =IF(A43="","",VLOOKUP(A43,'Dat-Bl'!$B$127:$F$246,5)) -> 
B44: Bahn 6 | C44: =IF(A44="","",VLOOKUP(A44,'Dat-Bl'!$B$127:$F$246,2)) ->  | D44: =IF(A44="","",VLOOKUP(A44,'Dat-Bl'!$B$127:$F$246,3)) ->  | E44: =IF(A44="","",VLOOKUP(A44,'Dat-Bl'!$B$127:$F$246,5)) -> 
B45: Bahn 7 | C45: =IF(A45="","",VLOOKUP(A45,'Dat-Bl'!$B$127:$F$246,2)) ->  | D45: =IF(A45="","",VLOOKUP(A45,'Dat-Bl'!$B$127:$F$246,3)) ->  | E45: =IF(A45="","",VLOOKUP(A45,'Dat-Bl'!$B$127:$F$246,5)) -> 
B46: Bahn 8 | C46: =IF(A46="","",VLOOKUP(A46,'Dat-Bl'!$B$127:$F$246,2)) ->  | D46: =IF(A46="","",VLOOKUP(A46,'Dat-Bl'!$B$127:$F$246,3)) ->  | E46: =IF(A46="","",VLOOKUP(A46,'Dat-Bl'!$B$127:$F$246,5)) -> 
A47: K-ziff | B47: Lauf | C47: Startnr.: | D47: Familienname Vorname | E47: =E38 -> Schule-60m-weiblich_C /D - Sport | F47: Zeit
B48: Bahn 1 | C48: =IF(A48="","",VLOOKUP(A48,'Dat-Bl'!$B$127:$F$246,2)) ->  | D48: =IF(A48="","",VLOOKUP(A48,'Dat-Bl'!$B$127:$F$246,3)) ->  | E48: =IF(A48="","",VLOOKUP(A48,'Dat-Bl'!$B$127:$F$246,5)) -> 
B49: Bahn 2 | C49: =IF(A49="","",VLOOKUP(A49,'Dat-Bl'!$B$127:$F$246,2)) ->  | D49: =IF(A49="","",VLOOKUP(A49,'Dat-Bl'!$B$127:$F$246,3)) ->  | E49: =IF(A49="","",VLOOKUP(A49,'Dat-Bl'!$B$127:$F$246,5)) -> 
B50: Bahn 3 | C50: =IF(A50="","",VLOOKUP(A50,'Dat-Bl'!$B$127:$F$246,2)) ->  | D50: =IF(A50="","",VLOOKUP(A50,'Dat-Bl'!$B$127:$F$246,3)) ->  | E50: =IF(A50="","",VLOOKUP(A50,'Dat-Bl'!$B$127:$F$246,5)) -> 
B51: Bahn 4 | C51: =IF(A51="","",VLOOKUP(A51,'Dat-Bl'!$B$127:$F$246,2)) ->  | D51: =IF(A51="","",VLOOKUP(A51,'Dat-Bl'!$B$127:$F$246,3)) ->  | E51: =IF(A51="","",VLOOKUP(A51,'Dat-Bl'!$B$127:$F$246,5)) -> 
B52: Bahn 5 | C52: =IF(A52="","",VLOOKUP(A52,'Dat-Bl'!$B$127:$F$246,2)) ->  | D52: =IF(A52="","",VLOOKUP(A52,'Dat-Bl'!$B$127:$F$246,3)) ->  | E52: =IF(A52="","",VLOOKUP(A52,'Dat-Bl'!$B$127:$F$246,5)) -> 
B53: Bahn 6 | C53: =IF(A53="","",VLOOKUP(A53,'Dat-Bl'!$B$127:$F$246,2)) ->  | D53: =IF(A53="","",VLOOKUP(A53,'Dat-Bl'!$B$127:$F$246,3)) ->  | E53: =IF(A53="","",VLOOKUP(A53,'Dat-Bl'!$B$127:$F$246,5)) -> 
B54: Bahn 7 | C54: =IF(A54="","",VLOOKUP(A54,'Dat-Bl'!$B$127:$F$246,2)) ->  | D54: =IF(A54="","",VLOOKUP(A54,'Dat-Bl'!$B$127:$F$246,3)) ->  | E54: =IF(A54="","",VLOOKUP(A54,'Dat-Bl'!$B$127:$F$246,5)) -> 
B55: Bahn 8 | C55: =IF(A55="","",VLOOKUP(A55,'Dat-Bl'!$B$127:$F$246,2)) ->  | D55: =IF(A55="","",VLOOKUP(A55,'Dat-Bl'!$B$127:$F$246,3)) ->  | E55: =IF(A55="","",VLOOKUP(A55,'Dat-Bl'!$B$127:$F$246,5)) -> 
A56: K-ziff | B56: Lauf | C56: Startnr.: | D56: Familienname Vorname | E56: =E38 -> Schule-60m-weiblich_C /D - Sport | F56: Zeit
B57: Bahn 1 | C57: =IF(A57="","",VLOOKUP(A57,'Dat-Bl'!$B$127:$F$246,2)) ->  | D57: =IF(A57="","",VLOOKUP(A57,'Dat-Bl'!$B$127:$F$246,3)) ->  | E57: =IF(A57="","",VLOOKUP(A57,'Dat-Bl'!$B$127:$F$246,5)) -> 
B58: Bahn 2 | C58: =IF(A58="","",VLOOKUP(A58,'Dat-Bl'!$B$127:$F$246,2)) ->  | D58: =IF(A58="","",VLOOKUP(A58,'Dat-Bl'!$B$127:$F$246,3)) ->  | E58: =IF(A58="","",VLOOKUP(A58,'Dat-Bl'!$B$127:$F$246,5)) -> 
B59: Bahn 3 | C59: =IF(A59="","",VLOOKUP(A59,'Dat-Bl'!$B$127:$F$246,2)) ->  | D59: =IF(A59="","",VLOOKUP(A59,'Dat-Bl'!$B$127:$F$246,3)) ->  | E59: =IF(A59="","",VLOOKUP(A59,'Dat-Bl'!$B$127:$F$246,5)) -> 
B60: Bahn 4 | C60: =IF(A60="","",VLOOKUP(A60,'Dat-Bl'!$B$127:$F$246,2)) ->  | D60: =IF(A60="","",VLOOKUP(A60,'Dat-Bl'!$B$127:$F$246,3)) ->  | E60: =IF(A60="","",VLOOKUP(A60,'Dat-Bl'!$B$127:$F$246,5)) -> 
B61: Bahn 5 | C61: =IF(A61="","",VLOOKUP(A61,'Dat-Bl'!$B$127:$F$246,2)) ->  | D61: =IF(A61="","",VLOOKUP(A61,'Dat-Bl'!$B$127:$F$246,3)) ->  | E61: =IF(A61="","",VLOOKUP(A61,'Dat-Bl'!$B$127:$F$246,5)) -> 
B62: Bahn 6 | C62: =IF(A62="","",VLOOKUP(A62,'Dat-Bl'!$B$127:$F$246,2)) ->  | D62: =IF(A62="","",VLOOKUP(A62,'Dat-Bl'!$B$127:$F$246,3)) ->  | E62: =IF(A62="","",VLOOKUP(A62,'Dat-Bl'!$B$127:$F$246,5)) -> 
B63: Bahn 7 | C63: =IF(A63="","",VLOOKUP(A63,'Dat-Bl'!$B$127:$F$246,2)) ->  | D63: =IF(A63="","",VLOOKUP(A63,'Dat-Bl'!$B$127:$F$246,3)) ->  | E63: =IF(A63="","",VLOOKUP(A63,'Dat-Bl'!$B$127:$F$246,5)) -> 
B64: Bahn 8 | C64: =IF(A64="","",VLOOKUP(A64,'Dat-Bl'!$B$127:$F$246,2)) ->  | D64: =IF(A64="","",VLOOKUP(A64,'Dat-Bl'!$B$127:$F$246,3)) ->  | E64: =IF(A64="","",VLOOKUP(A64,'Dat-Bl'!$B$127:$F$246,5)) -> 
A65: K-ziff | B65: Lauf | C65: Startnr.: | D65: Familienname Vorname | E65: =E38 -> Schule-60m-weiblich_C /D - Sport | F65: Zeit
B66: Bahn 1 | C66: =IF(A66="","",VLOOKUP(A66,'Dat-Bl'!$B$127:$F$246,2)) ->  | D66: =IF(A66="","",VLOOKUP(A66,'Dat-Bl'!$B$127:$F$246,3)) ->  | E66: =IF(A66="","",VLOOKUP(A66,'Dat-Bl'!$B$127:$F$246,5)) -> 
B67: Bahn 2 | C67: =IF(A67="","",VLOOKUP(A67,'Dat-Bl'!$B$127:$F$246,2)) ->  | D67: =IF(A67="","",VLOOKUP(A67,'Dat-Bl'!$B$127:$F$246,3)) ->  | E67: =IF(A67="","",VLOOKUP(A67,'Dat-Bl'!$B$127:$F$246,5)) -> 
B68: Bahn 3 | C68: =IF(A68="","",VLOOKUP(A68,'Dat-Bl'!$B$127:$F$246,2)) ->  | D68: =IF(A68="","",VLOOKUP(A68,'Dat-Bl'!$B$127:$F$246,3)) ->  | E68: =IF(A68="","",VLOOKUP(A68,'Dat-Bl'!$B$127:$F$246,5)) -> 
B69: Bahn 4 | C69: =IF(A69="","",VLOOKUP(A69,'Dat-Bl'!$B$127:$F$246,2)) ->  | D69: =IF(A69="","",VLOOKUP(A69,'Dat-Bl'!$B$127:$F$246,3)) ->  | E69: =IF(A69="","",VLOOKUP(A69,'Dat-Bl'!$B$127:$F$246,5)) -> 
B70: Bahn 5 | C70: =IF(A70="","",VLOOKUP(A70,'Dat-Bl'!$B$127:$F$246,2)) ->  | D70: =IF(A70="","",VLOOKUP(A70,'Dat-Bl'!$B$127:$F$246,3)) ->  | E70: =IF(A70="","",VLOOKUP(A70,'Dat-Bl'!$B$127:$F$246,5)) -> 
B71: Bahn 6 | C71: =IF(A71="","",VLOOKUP(A71,'Dat-Bl'!$B$127:$F$246,2)) ->  | D71: =IF(A71="","",VLOOKUP(A71,'Dat-Bl'!$B$127:$F$246,3)) ->  | E71: =IF(A71="","",VLOOKUP(A71,'Dat-Bl'!$B$127:$F$246,5)) -> 
B72: Bahn 7 | C72: =IF(A72="","",VLOOKUP(A72,'Dat-Bl'!$B$127:$F$246,2)) ->  | D72: =IF(A72="","",VLOOKUP(A72,'Dat-Bl'!$B$127:$F$246,3)) ->  | E72: =IF(A72="","",VLOOKUP(A72,'Dat-Bl'!$B$127:$F$246,5)) -> 
B73: Bahn 8 | C73: =IF(A73="","",VLOOKUP(A73,'Dat-Bl'!$B$127:$F$246,2)) ->  | D73: =IF(A73="","",VLOOKUP(A73,'Dat-Bl'!$B$127:$F$246,3)) ->  | E73: =IF(A73="","",VLOOKUP(A73,'Dat-Bl'!$B$127:$F$246,5)) -> 
A75: K-ziff | B75: Lauf | C75: Startnr.: | D75: Familienname Vorname | E75: Schule-60m-männlich_C / D - Regel | F75: Zeit
B76: Bahn 1 | C76: =IF(A76="","",VLOOKUP(A76,'Dat-Bl'!$J$4:$N$123,2)) ->  | D76: =IF(A76="","",VLOOKUP(A76,'Dat-Bl'!$J$4:$N$123,3)) ->  | E76: =IF(A76="","",VLOOKUP(A76,'Dat-Bl'!$J$4:$N$123,5)) -> 
B77: Bahn 2 | C77: =IF(A77="","",VLOOKUP(A77,'Dat-Bl'!$J$4:$N$123,2)) ->  | D77: =IF(A77="","",VLOOKUP(A77,'Dat-Bl'!$J$4:$N$123,3)) ->  | E77: =IF(A77="","",VLOOKUP(A77,'Dat-Bl'!$J$4:$N$123,5)) -> 
B78: Bahn 3 | C78: =IF(A78="","",VLOOKUP(A78,'Dat-Bl'!$J$4:$N$123,2)) ->  | D78: =IF(A78="","",VLOOKUP(A78,'Dat-Bl'!$J$4:$N$123,3)) ->  | E78: =IF(A78="","",VLOOKUP(A78,'Dat-Bl'!$J$4:$N$123,5)) -> 
B79: Bahn 4 | C79: =IF(A79="","",VLOOKUP(A79,'Dat-Bl'!$J$4:$N$123,2)) ->  | D79: =IF(A79="","",VLOOKUP(A79,'Dat-Bl'!$J$4:$N$123,3)) ->  | E79: =IF(A79="","",VLOOKUP(A79,'Dat-Bl'!$J$4:$N$123,5)) -> 
B80: Bahn 5 | C80: =IF(A80="","",VLOOKUP(A80,'Dat-Bl'!$J$4:$N$123,2)) ->  | D80: =IF(A80="","",VLOOKUP(A80,'Dat-Bl'!$J$4:$N$123,3)) ->  | E80: =IF(A80="","",VLOOKUP(A80,'Dat-Bl'!$J$4:$N$123,5)) -> 
B81: Bahn 6 | C81: =IF(A81="","",VLOOKUP(A81,'Dat-Bl'!$J$4:$N$123,2)) ->  | D81: =IF(A81="","",VLOOKUP(A81,'Dat-Bl'!$J$4:$N$123,3)) ->  | E81: =IF(A81="","",VLOOKUP(A81,'Dat-Bl'!$J$4:$N$123,5)) -> 
B82: Bahn 7 | C82: =IF(A82="","",VLOOKUP(A82,'Dat-Bl'!$J$4:$N$123,2)) ->  | D82: =IF(A82="","",VLOOKUP(A82,'Dat-Bl'!$J$4:$N$123,3)) ->  | E82: =IF(A82="","",VLOOKUP(A82,'Dat-Bl'!$J$4:$N$123,5)) -> 
B83: Bahn 8 | C83: =IF(A83="","",VLOOKUP(A83,'Dat-Bl'!$J$4:$N$123,2)) ->  | D83: =IF(A83="","",VLOOKUP(A83,'Dat-Bl'!$J$4:$N$123,3)) ->  | E83: =IF(A83="","",VLOOKUP(A83,'Dat-Bl'!$J$4:$N$123,5)) -> 
A84: K-ziff | B84: Lauf | C84: Startnr.: | D84: Familienname Vorname | E84: =E75 -> Schule-60m-männlich_C / D - Regel | F84: Zeit
B85: Bahn 1 | C85: =IF(A85="","",VLOOKUP(A85,'Dat-Bl'!$J$4:$N$123,2)) ->  | D85: =IF(A85="","",VLOOKUP(A85,'Dat-Bl'!$J$4:$N$123,3)) ->  | E85: =IF(A85="","",VLOOKUP(A85,'Dat-Bl'!$J$4:$N$123,5)) -> 
B86: Bahn 2 | C86: =IF(A86="","",VLOOKUP(A86,'Dat-Bl'!$J$4:$N$123,2)) ->  | D86: =IF(A86="","",VLOOKUP(A86,'Dat-Bl'!$J$4:$N$123,3)) ->  | E86: =IF(A86="","",VLOOKUP(A86,'Dat-Bl'!$J$4:$N$123,5)) -> 
B87: Bahn 3 | C87: =IF(A87="","",VLOOKUP(A87,'Dat-Bl'!$J$4:$N$123,2)) ->  | D87: =IF(A87="","",VLOOKUP(A87,'Dat-Bl'!$J$4:$N$123,3)) ->  | E87: =IF(A87="","",VLOOKUP(A87,'Dat-Bl'!$J$4:$N$123,5)) -> 
B88: Bahn 4 | C88: =IF(A88="","",VLOOKUP(A88,'Dat-Bl'!$J$4:$N$123,2)) ->  | D88: =IF(A88="","",VLOOKUP(A88,'Dat-Bl'!$J$4:$N$123,3)) ->  | E88: =IF(A88="","",VLOOKUP(A88,'Dat-Bl'!$J$4:$N$123,5)) -> 
B89: Bahn 5 | C89: =IF(A89="","",VLOOKUP(A89,'Dat-Bl'!$J$4:$N$123,2)) ->  | D89: =IF(A89="","",VLOOKUP(A89,'Dat-Bl'!$J$4:$N$123,3)) ->  | E89: =IF(A89="","",VLOOKUP(A89,'Dat-Bl'!$J$4:$N$123,5)) -> 
B90: Bahn 6 | C90: =IF(A90="","",VLOOKUP(A90,'Dat-Bl'!$J$4:$N$123,2)) ->  | D90: =IF(A90="","",VLOOKUP(A90,'Dat-Bl'!$J$4:$N$123,3)) ->  | E90: =IF(A90="","",VLOOKUP(A90,'Dat-Bl'!$J$4:$N$123,5)) -> 
B91: Bahn 7 | C91: =IF(A91="","",VLOOKUP(A91,'Dat-Bl'!$J$4:$N$123,2)) ->  | D91: =IF(A91="","",VLOOKUP(A91,'Dat-Bl'!$J$4:$N$123,3)) ->  | E91: =IF(A91="","",VLOOKUP(A91,'Dat-Bl'!$J$4:$N$123,5)) -> 
B92: Bahn 8 | C92: =IF(A92="","",VLOOKUP(A92,'Dat-Bl'!$J$4:$N$123,2)) ->  | D92: =IF(A92="","",VLOOKUP(A92,'Dat-Bl'!$J$4:$N$123,3)) ->  | E92: =IF(A92="","",VLOOKUP(A92,'Dat-Bl'!$J$4:$N$123,5)) -> 
A93: K-ziff | B93: Lauf | C93: Startnr.: | D93: Familienname Vorname | E93: =E75 -> Schule-60m-männlich_C / D - Regel | F93: Zeit
B94: Bahn 1 | C94: =IF(A94="","",VLOOKUP(A94,'Dat-Bl'!$J$4:$N$123,2)) ->  | D94: =IF(A94="","",VLOOKUP(A94,'Dat-Bl'!$J$4:$N$123,3)) ->  | E94: =IF(A94="","",VLOOKUP(A94,'Dat-Bl'!$J$4:$N$123,5)) -> 
B95: Bahn 2 | C95: =IF(A95="","",VLOOKUP(A95,'Dat-Bl'!$J$4:$N$123,2)) ->  | D95: =IF(A95="","",VLOOKUP(A95,'Dat-Bl'!$J$4:$N$123,3)) ->  | E95: =IF(A95="","",VLOOKUP(A95,'Dat-Bl'!$J$4:$N$123,5)) -> 
B96: Bahn 3 | C96: =IF(A96="","",VLOOKUP(A96,'Dat-Bl'!$J$4:$N$123,2)) ->  | D96: =IF(A96="","",VLOOKUP(A96,'Dat-Bl'!$J$4:$N$123,3)) ->  | E96: =IF(A96="","",VLOOKUP(A96,'Dat-Bl'!$J$4:$N$123,5)) -> 
B97: Bahn 4 | C97: =IF(A97="","",VLOOKUP(A97,'Dat-Bl'!$J$4:$N$123,2)) ->  | D97: =IF(A97="","",VLOOKUP(A97,'Dat-Bl'!$J$4:$N$123,3)) ->  | E97: =IF(A97="","",VLOOKUP(A97,'Dat-Bl'!$J$4:$N$123,5)) -> 
B98: Bahn 5 | C98: =IF(A98="","",VLOOKUP(A98,'Dat-Bl'!$J$4:$N$123,2)) ->  | D98: =IF(A98="","",VLOOKUP(A98,'Dat-Bl'!$J$4:$N$123,3)) ->  | E98: =IF(A98="","",VLOOKUP(A98,'Dat-Bl'!$J$4:$N$123,5)) -> 
B99: Bahn 6 | C99: =IF(A99="","",VLOOKUP(A99,'Dat-Bl'!$J$4:$N$123,2)) ->  | D99: =IF(A99="","",VLOOKUP(A99,'Dat-Bl'!$J$4:$N$123,3)) ->  | E99: =IF(A99="","",VLOOKUP(A99,'Dat-Bl'!$J$4:$N$123,5)) -> 
B100: Bahn 7 | C100: =IF(A100="","",VLOOKUP(A100,'Dat-Bl'!$J$4:$N$123,2)) ->  | D100: =IF(A100="","",VLOOKUP(A100,'Dat-Bl'!$J$4:$N$123,3)) ->  | E100: =IF(A100="","",VLOOKUP(A100,'Dat-Bl'!$J$4:$N$123,5)) -> 
B101: Bahn 8 | C101: =IF(A101="","",VLOOKUP(A101,'Dat-Bl'!$J$4:$N$123,2)) ->  | D101: =IF(A101="","",VLOOKUP(A101,'Dat-Bl'!$J$4:$N$123,3)) ->  | E101: =IF(A101="","",VLOOKUP(A101,'Dat-Bl'!$J$4:$N$123,5)) -> 
A102: K-ziff | B102: Lauf | C102: Startnr.: | D102: Familienname Vorname | E102: =E75 -> Schule-60m-männlich_C / D - Regel | F102: Zeit
B103: Bahn 1 | C103: =IF(A103="","",VLOOKUP(A103,'Dat-Bl'!$J$4:$N$123,2)) ->  | D103: =IF(A103="","",VLOOKUP(A103,'Dat-Bl'!$J$4:$N$123,3)) ->  | E103: =IF(A103="","",VLOOKUP(A103,'Dat-Bl'!$J$4:$N$123,5)) -> 
B104: Bahn 2 | C104: =IF(A104="","",VLOOKUP(A104,'Dat-Bl'!$J$4:$N$123,2)) ->  | D104: =IF(A104="","",VLOOKUP(A104,'Dat-Bl'!$J$4:$N$123,3)) ->  | E104: =IF(A104="","",VLOOKUP(A104,'Dat-Bl'!$J$4:$N$123,5)) -> 
B105: Bahn 3 | C105: =IF(A105="","",VLOOKUP(A105,'Dat-Bl'!$J$4:$N$123,2)) ->  | D105: =IF(A105="","",VLOOKUP(A105,'Dat-Bl'!$J$4:$N$123,3)) ->  | E105: =IF(A105="","",VLOOKUP(A105,'Dat-Bl'!$J$4:$N$123,5)) -> 
B106: Bahn 4 | C106: =IF(A106="","",VLOOKUP(A106,'Dat-Bl'!$J$4:$N$123,2)) ->  | D106: =IF(A106="","",VLOOKUP(A106,'Dat-Bl'!$J$4:$N$123,3)) ->  | E106: =IF(A106="","",VLOOKUP(A106,'Dat-Bl'!$J$4:$N$123,5)) -> 
B107: Bahn 5 | C107: =IF(A107="","",VLOOKUP(A107,'Dat-Bl'!$J$4:$N$123,2)) ->  | D107: =IF(A107="","",VLOOKUP(A107,'Dat-Bl'!$J$4:$N$123,3)) ->  | E107: =IF(A107="","",VLOOKUP(A107,'Dat-Bl'!$J$4:$N$123,5)) -> 
B108: Bahn 6 | C108: =IF(A108="","",VLOOKUP(A108,'Dat-Bl'!$J$4:$N$123,2)) ->  | D108: =IF(A108="","",VLOOKUP(A108,'Dat-Bl'!$J$4:$N$123,3)) ->  | E108: =IF(A108="","",VLOOKUP(A108,'Dat-Bl'!$J$4:$N$123,5)) -> 
B109: Bahn 7 | C109: =IF(A109="","",VLOOKUP(A109,'Dat-Bl'!$J$4:$N$123,2)) ->  | D109: =IF(A109="","",VLOOKUP(A109,'Dat-Bl'!$J$4:$N$123,3)) ->  | E109: =IF(A109="","",VLOOKUP(A109,'Dat-Bl'!$J$4:$N$123,5)) -> 
B110: Bahn 8 | C110: =IF(A110="","",VLOOKUP(A110,'Dat-Bl'!$J$4:$N$123,2)) ->  | D110: =IF(A110="","",VLOOKUP(A110,'Dat-Bl'!$J$4:$N$123,3)) ->  | E110: =IF(A110="","",VLOOKUP(A110,'Dat-Bl'!$J$4:$N$123,5)) -> 
A112: K-ziff | B112: Lauf | C112: Startnr.: | D112: Familienname Vorname | E112: Schule-60m-männlich_C /D - Sport | F112: Zeit
B113: Bahn 1 | C113: =IF(A113="","",VLOOKUP(A113,'Dat-Bl'!$J$127:$N$246,2)) ->  | D113: =IF(A113="","",VLOOKUP(A113,'Dat-Bl'!$J$127:$N$246,3)) ->  | E113: =IF(A113="","",VLOOKUP(A113,'Dat-Bl'!$J$127:$N$246,5)) -> 
B114: Bahn 2 | C114: =IF(A114="","",VLOOKUP(A114,'Dat-Bl'!$J$127:$N$246,2)) ->  | D114: =IF(A114="","",VLOOKUP(A114,'Dat-Bl'!$J$127:$N$246,3)) ->  | E114: =IF(A114="","",VLOOKUP(A114,'Dat-Bl'!$J$127:$N$246,5)) -> 
B115: Bahn 3 | C115: =IF(A115="","",VLOOKUP(A115,'Dat-Bl'!$J$127:$N$246,2)) ->  | D115: =IF(A115="","",VLOOKUP(A115,'Dat-Bl'!$J$127:$N$246,3)) ->  | E115: =IF(A115="","",VLOOKUP(A115,'Dat-Bl'!$J$127:$N$246,5)) -> 
B116: Bahn 4 | C116: =IF(A116="","",VLOOKUP(A116,'Dat-Bl'!$J$127:$N$246,2)) ->  | D116: =IF(A116="","",VLOOKUP(A116,'Dat-Bl'!$J$127:$N$246,3)) ->  | E116: =IF(A116="","",VLOOKUP(A116,'Dat-Bl'!$J$127:$N$246,5)) -> 
B117: Bahn 5 | C117: =IF(A117="","",VLOOKUP(A117,'Dat-Bl'!$J$127:$N$246,2)) ->  | D117: =IF(A117="","",VLOOKUP(A117,'Dat-Bl'!$J$127:$N$246,3)) ->  | E117: =IF(A117="","",VLOOKUP(A117,'Dat-Bl'!$J$127:$N$246,5)) -> 
B118: Bahn 6 | C118: =IF(A118="","",VLOOKUP(A118,'Dat-Bl'!$J$127:$N$246,2)) ->  | D118: =IF(A118="","",VLOOKUP(A118,'Dat-Bl'!$J$127:$N$246,3)) ->  | E118: =IF(A118="","",VLOOKUP(A118,'Dat-Bl'!$J$127:$N$246,5)) -> 
B119: Bahn 7 | C119: =IF(A119="","",VLOOKUP(A119,'Dat-Bl'!$J$127:$N$246,2)) ->  | D119: =IF(A119="","",VLOOKUP(A119,'Dat-Bl'!$J$127:$N$246,3)) ->  | E119: =IF(A119="","",VLOOKUP(A119,'Dat-Bl'!$J$127:$N$246,5)) -> 
B120: Bahn 8 | C120: =IF(A120="","",VLOOKUP(A120,'Dat-Bl'!$J$127:$N$246,2)) ->  | D120: =IF(A120="","",VLOOKUP(A120,'Dat-Bl'!$J$127:$N$246,3)) ->  | E120: =IF(A120="","",VLOOKUP(A120,'Dat-Bl'!$J$127:$N$246,5)) -> 
A121: K-ziff | B121: Lauf | C121: Startnr.: | D121: Familienname Vorname | E121: =E112 -> Schule-60m-männlich_C /D - Sport | F121: Zeit
B122: Bahn 1 | C122: =IF(A122="","",VLOOKUP(A122,'Dat-Bl'!$J$127:$N$246,2)) ->  | D122: =IF(A122="","",VLOOKUP(A122,'Dat-Bl'!$J$127:$N$246,3)) ->  | E122: =IF(A122="","",VLOOKUP(A122,'Dat-Bl'!$J$127:$N$246,5)) -> 
B123: Bahn 2 | C123: =IF(A123="","",VLOOKUP(A123,'Dat-Bl'!$J$127:$N$246,2)) ->  | D123: =IF(A123="","",VLOOKUP(A123,'Dat-Bl'!$J$127:$N$246,3)) ->  | E123: =IF(A123="","",VLOOKUP(A123,'Dat-Bl'!$J$127:$N$246,5)) -> 
B124: Bahn 3 | C124: =IF(A124="","",VLOOKUP(A124,'Dat-Bl'!$J$127:$N$246,2)) ->  | D124: =IF(A124="","",VLOOKUP(A124,'Dat-Bl'!$J$127:$N$246,3)) ->  | E124: =IF(A124="","",VLOOKUP(A124,'Dat-Bl'!$J$127:$N$246,5)) -> 
B125: Bahn 4 | C125: =IF(A125="","",VLOOKUP(A125,'Dat-Bl'!$J$127:$N$246,2)) ->  | D125: =IF(A125="","",VLOOKUP(A125,'Dat-Bl'!$J$127:$N$246,3)) ->  | E125: =IF(A125="","",VLOOKUP(A125,'Dat-Bl'!$J$127:$N$246,5)) -> 
B126: Bahn 5 | C126: =IF(A126="","",VLOOKUP(A126,'Dat-Bl'!$J$127:$N$246,2)) ->  | D126: =IF(A126="","",VLOOKUP(A126,'Dat-Bl'!$J$127:$N$246,3)) ->  | E126: =IF(A126="","",VLOOKUP(A126,'Dat-Bl'!$J$127:$N$246,5)) -> 
B127: Bahn 6 | C127: =IF(A127="","",VLOOKUP(A127,'Dat-Bl'!$J$127:$N$246,2)) ->  | D127: =IF(A127="","",VLOOKUP(A127,'Dat-Bl'!$J$127:$N$246,3)) ->  | E127: =IF(A127="","",VLOOKUP(A127,'Dat-Bl'!$J$127:$N$246,5)) -> 
B128: Bahn 7 | C128: =IF(A128="","",VLOOKUP(A128,'Dat-Bl'!$J$127:$N$246,2)) ->  | D128: =IF(A128="","",VLOOKUP(A128,'Dat-Bl'!$J$127:$N$246,3)) ->  | E128: =IF(A128="","",VLOOKUP(A128,'Dat-Bl'!$J$127:$N$246,5)) -> 
B129: Bahn 8 | C129: =IF(A129="","",VLOOKUP(A129,'Dat-Bl'!$J$127:$N$246,2)) ->  | D129: =IF(A129="","",VLOOKUP(A129,'Dat-Bl'!$J$127:$N$246,3)) ->  | E129: =IF(A129="","",VLOOKUP(A129,'Dat-Bl'!$J$127:$N$246,5)) -> 
A130: K-ziff | B130: Lauf | C130: Startnr.: | D130: Familienname Vorname | E130: =E112 -> Schule-60m-männlich_C /D - Sport | F130: Zeit
B131: Bahn 1 | C131: =IF(A131="","",VLOOKUP(A131,'Dat-Bl'!$J$127:$N$246,2)) ->  | D131: =IF(A131="","",VLOOKUP(A131,'Dat-Bl'!$J$127:$N$246,3)) ->  | E131: =IF(A131="","",VLOOKUP(A131,'Dat-Bl'!$J$127:$N$246,5)) -> 
B132: Bahn 2 | C132: =IF(A132="","",VLOOKUP(A132,'Dat-Bl'!$J$127:$N$246,2)) ->  | D132: =IF(A132="","",VLOOKUP(A132,'Dat-Bl'!$J$127:$N$246,3)) ->  | E132: =IF(A132="","",VLOOKUP(A132,'Dat-Bl'!$J$127:$N$246,5)) -> 
B133: Bahn 3 | C133: =IF(A133="","",VLOOKUP(A133,'Dat-Bl'!$J$127:$N$246,2)) ->  | D133: =IF(A133="","",VLOOKUP(A133,'Dat-Bl'!$J$127:$N$246,3)) ->  | E133: =IF(A133="","",VLOOKUP(A133,'Dat-Bl'!$J$127:$N$246,5)) -> 
B134: Bahn 4 | C134: =IF(A134="","",VLOOKUP(A134,'Dat-Bl'!$J$127:$N$246,2)) ->  | D134: =IF(A134="","",VLOOKUP(A134,'Dat-Bl'!$J$127:$N$246,3)) ->  | E134: =IF(A134="","",VLOOKUP(A134,'Dat-Bl'!$J$127:$N$246,5)) -> 
B135: Bahn 5 | C135: =IF(A135="","",VLOOKUP(A135,'Dat-Bl'!$J$127:$N$246,2)) ->  | D135: =IF(A135="","",VLOOKUP(A135,'Dat-Bl'!$J$127:$N$246,3)) ->  | E135: =IF(A135="","",VLOOKUP(A135,'Dat-Bl'!$J$127:$N$246,5)) -> 
B136: Bahn 6 | C136: =IF(A136="","",VLOOKUP(A136,'Dat-Bl'!$J$127:$N$246,2)) ->  | D136: =IF(A136="","",VLOOKUP(A136,'Dat-Bl'!$J$127:$N$246,3)) ->  | E136: =IF(A136="","",VLOOKUP(A136,'Dat-Bl'!$J$127:$N$246,5)) -> 
B137: Bahn 7 | C137: =IF(A137="","",VLOOKUP(A137,'Dat-Bl'!$J$127:$N$246,2)) ->  | D137: =IF(A137="","",VLOOKUP(A137,'Dat-Bl'!$J$127:$N$246,3)) ->  | E137: =IF(A137="","",VLOOKUP(A137,'Dat-Bl'!$J$127:$N$246,5)) -> 
B138: Bahn 8 | C138: =IF(A138="","",VLOOKUP(A138,'Dat-Bl'!$J$127:$N$246,2)) ->  | D138: =IF(A138="","",VLOOKUP(A138,'Dat-Bl'!$J$127:$N$246,3)) ->  | E138: =IF(A138="","",VLOOKUP(A138,'Dat-Bl'!$J$127:$N$246,5)) -> 
A139: K-ziff | B139: Lauf | C139: Startnr.: | D139: Familienname Vorname | E139: =E112 -> Schule-60m-männlich_C /D - Sport | F139: Zeit
B140: Bahn 1 | C140: =IF(A140="","",VLOOKUP(A140,'Dat-Bl'!$J$127:$N$246,2)) ->  | D140: =IF(A140="","",VLOOKUP(A140,'Dat-Bl'!$J$127:$N$246,3)) ->  | E140: =IF(A140="","",VLOOKUP(A140,'Dat-Bl'!$J$127:$N$246,5)) -> 
B141: Bahn 2 | C141: =IF(A141="","",VLOOKUP(A141,'Dat-Bl'!$J$127:$N$246,2)) ->  | D141: =IF(A141="","",VLOOKUP(A141,'Dat-Bl'!$J$127:$N$246,3)) ->  | E141: =IF(A141="","",VLOOKUP(A141,'Dat-Bl'!$J$127:$N$246,5)) -> 
B142: Bahn 3 | C142: =IF(A142="","",VLOOKUP(A142,'Dat-Bl'!$J$127:$N$246,2)) ->  | D142: =IF(A142="","",VLOOKUP(A142,'Dat-Bl'!$J$127:$N$246,3)) ->  | E142: =IF(A142="","",VLOOKUP(A142,'Dat-Bl'!$J$127:$N$246,5)) -> 
B143: Bahn 4 | C143: =IF(A143="","",VLOOKUP(A143,'Dat-Bl'!$J$127:$N$246,2)) ->  | D143: =IF(A143="","",VLOOKUP(A143,'Dat-Bl'!$J$127:$N$246,3)) ->  | E143: =IF(A143="","",VLOOKUP(A143,'Dat-Bl'!$J$127:$N$246,5)) -> 
B144: Bahn 5 | C144: =IF(A144="","",VLOOKUP(A144,'Dat-Bl'!$J$127:$N$246,2)) ->  | D144: =IF(A144="","",VLOOKUP(A144,'Dat-Bl'!$J$127:$N$246,3)) ->  | E144: =IF(A144="","",VLOOKUP(A144,'Dat-Bl'!$J$127:$N$246,5)) -> 
B145: Bahn 6 | C145: =IF(A145="","",VLOOKUP(A145,'Dat-Bl'!$J$127:$N$246,2)) ->  | D145: =IF(A145="","",VLOOKUP(A145,'Dat-Bl'!$J$127:$N$246,3)) ->  | E145: =IF(A145="","",VLOOKUP(A145,'Dat-Bl'!$J$127:$N$246,5)) -> 
B146: Bahn 7 | C146: =IF(A146="","",VLOOKUP(A146,'Dat-Bl'!$J$127:$N$246,2)) ->  | D146: =IF(A146="","",VLOOKUP(A146,'Dat-Bl'!$J$127:$N$246,3)) ->  | E146: =IF(A146="","",VLOOKUP(A146,'Dat-Bl'!$J$127:$N$246,5)) -> 
B147: Bahn 8 | C147: =IF(A147="","",VLOOKUP(A147,'Dat-Bl'!$J$127:$N$246,2)) ->  | D147: =IF(A147="","",VLOOKUP(A147,'Dat-Bl'!$J$127:$N$246,3)) ->  | E147: =IF(A147="","",VLOOKUP(A147,'Dat-Bl'!$J$127:$N$246,5)) -> 

Sheet P-60 m (2)
A1: K-ziff | B1: Lauf | C1: Startnr.: | D1: Familienname Vorname | E1: Schule-60m-weiblich_C / D - Regel | F1: Zeit
A2: 25 | B2: Bahn 1 | C2: =IF(A2="","",VLOOKUP(A2,'Dat-Bl'!$B$4:$F$123,2)) -> 0 | D2: =IF(A2="","",VLOOKUP(A2,'Dat-Bl'!$B$4:$F$123,3)) -> Donner Rosa | E2: =IF(A2="","",VLOOKUP(A2,'Dat-Bl'!$B$4:$F$123,5)) -> Ingeborg Bachmann Gymnasium
A3: 26 | B3: Bahn 2 | C3: =IF(A3="","",VLOOKUP(A3,'Dat-Bl'!$B$4:$F$123,2)) -> 0 | D3: =IF(A3="","",VLOOKUP(A3,'Dat-Bl'!$B$4:$F$123,3)) -> Lippitsch Amelie | E3: =IF(A3="","",VLOOKUP(A3,'Dat-Bl'!$B$4:$F$123,5)) -> Ingeborg Bachmann Gymnasium
A4: 27 | B4: Bahn 3 | C4: =IF(A4="","",VLOOKUP(A4,'Dat-Bl'!$B$4:$F$123,2)) -> 0 | D4: =IF(A4="","",VLOOKUP(A4,'Dat-Bl'!$B$4:$F$123,3)) -> Doboczky Sophie | E4: =IF(A4="","",VLOOKUP(A4,'Dat-Bl'!$B$4:$F$123,5)) -> Ingeborg Bachmann Gymnasium
A5: 28 | B5: Bahn 4 | C5: =IF(A5="","",VLOOKUP(A5,'Dat-Bl'!$B$4:$F$123,2)) -> 0 | D5: =IF(A5="","",VLOOKUP(A5,'Dat-Bl'!$B$4:$F$123,3)) -> Schmaranz Sophie | E5: =IF(A5="","",VLOOKUP(A5,'Dat-Bl'!$B$4:$F$123,5)) -> Ingeborg Bachmann Gymnasium
A6: 29 | B6: Bahn 5 | C6: =IF(A6="","",VLOOKUP(A6,'Dat-Bl'!$B$4:$F$123,2)) -> 0 | D6: =IF(A6="","",VLOOKUP(A6,'Dat-Bl'!$B$4:$F$123,3)) -> Zenkl Hannah | E6: =IF(A6="","",VLOOKUP(A6,'Dat-Bl'!$B$4:$F$123,5)) -> Ingeborg Bachmann Gymnasium
A7: 30 | B7: Bahn 6 | C7: =IF(A7="","",VLOOKUP(A7,'Dat-Bl'!$B$4:$F$123,2)) -> 0 | D7: =IF(A7="","",VLOOKUP(A7,'Dat-Bl'!$B$4:$F$123,3)) -> Laßnig Katharina | E7: =IF(A7="","",VLOOKUP(A7,'Dat-Bl'!$B$4:$F$123,5)) -> Ingeborg Bachmann Gymnasium
B8: Bahn 7 | C8: =IF(A8="","",VLOOKUP(A8,'Dat-Bl'!$B$4:$F$123,2)) ->  | D8: =IF(A8="","",VLOOKUP(A8,'Dat-Bl'!$B$4:$F$123,3)) ->  | E8: =IF(A8="","",VLOOKUP(A8,'Dat-Bl'!$B$4:$F$123,5)) -> 
B9: Bahn 8 | C9: =IF(A9="","",VLOOKUP(A9,'Dat-Bl'!$B$4:$F$123,2)) ->  | D9: =IF(A9="","",VLOOKUP(A9,'Dat-Bl'!$B$4:$F$123,3)) ->  | E9: =IF(A9="","",VLOOKUP(A9,'Dat-Bl'!$B$4:$F$123,5)) -> 
A10: K-ziff | B10: Lauf | C10: Startnr.: | D10: Familienname Vorname | E10: =E1 -> Schule-60m-weiblich_C / D - Regel | F10: Zeit
A11: 31 | B11: Bahn 1 | C11: =IF(A11="","",VLOOKUP(A11,'Dat-Bl'!$B$4:$F$123,2)) -> 0 | D11: =IF(A11="","",VLOOKUP(A11,'Dat-Bl'!$B$4:$F$123,3)) -> Fercher Annabell | E11: =IF(A11="","",VLOOKUP(A11,'Dat-Bl'!$B$4:$F$123,5)) -> Musik NMS Hermagor
A12: 32 | B12: Bahn 2 | C12: =IF(A12="","",VLOOKUP(A12,'Dat-Bl'!$B$4:$F$123,2)) -> 0 | D12: =IF(A12="","",VLOOKUP(A12,'Dat-Bl'!$B$4:$F$123,3)) -> Ebenwaldner Carina | E12: =IF(A12="","",VLOOKUP(A12,'Dat-Bl'!$B$4:$F$123,5)) -> Musik NMS Hermagor
A13: 33 | B13: Bahn 3 | C13: =IF(A13="","",VLOOKUP(A13,'Dat-Bl'!$B$4:$F$123,2)) -> 0 | D13: =IF(A13="","",VLOOKUP(A13,'Dat-Bl'!$B$4:$F$123,3)) -> Wernitznig Nina | E13: =IF(A13="","",VLOOKUP(A13,'Dat-Bl'!$B$4:$F$123,5)) -> Musik NMS Hermagor
A14: 34 | B14: Bahn 4 | C14: =IF(A14="","",VLOOKUP(A14,'Dat-Bl'!$B$4:$F$123,2)) -> 0 | D14: =IF(A14="","",VLOOKUP(A14,'Dat-Bl'!$B$4:$F$123,3)) -> Pettauer Sara | E14: =IF(A14="","",VLOOKUP(A14,'Dat-Bl'!$B$4:$F$123,5)) -> Musik NMS Hermagor
A15: 35 | B15: Bahn 5 | C15: =IF(A15="","",VLOOKUP(A15,'Dat-Bl'!$B$4:$F$123,2)) -> 0 | D15: =IF(A15="","",VLOOKUP(A15,'Dat-Bl'!$B$4:$F$123,3)) -> Matthei Laura | E15: =IF(A15="","",VLOOKUP(A15,'Dat-Bl'!$B$4:$F$123,5)) -> Musik NMS Hermagor
A16: 36 | B16: Bahn 6 | C16: =IF(A16="","",VLOOKUP(A16,'Dat-Bl'!$B$4:$F$123,2)) -> 0 | D16: =IF(A16="","",VLOOKUP(A16,'Dat-Bl'!$B$4:$F$123,3)) -> Seebacher Mathilda | E16: =IF(A16="","",VLOOKUP(A16,'Dat-Bl'!$B$4:$F$123,5)) -> Musik NMS Hermagor
B17: Bahn 7 | C17: =IF(A17="","",VLOOKUP(A17,'Dat-Bl'!$B$4:$F$123,2)) ->  | D17: =IF(A17="","",VLOOKUP(A17,'Dat-Bl'!$B$4:$F$123,3)) ->  | E17: =IF(A17="","",VLOOKUP(A17,'Dat-Bl'!$B$4:$F$123,5)) -> 
B18: Bahn 8 | C18: =IF(A18="","",VLOOKUP(A18,'Dat-Bl'!$B$4:$F$123,2)) ->  | D18: =IF(A18="","",VLOOKUP(A18,'Dat-Bl'!$B$4:$F$123,3)) ->  | E18: =IF(A18="","",VLOOKUP(A18,'Dat-Bl'!$B$4:$F$123,5)) -> 
A19: K-ziff | B19: Lauf | C19: Startnr.: | D19: Familienname Vorname | E19: =E1 -> Schule-60m-weiblich_C / D - Regel | F19: Zeit
A20: 37 | B20: Bahn 1 | C20: =IF(A20="","",VLOOKUP(A20,'Dat-Bl'!$B$4:$F$123,2)) -> 0 | D20: =IF(A20="","",VLOOKUP(A20,'Dat-Bl'!$B$4:$F$123,3)) -> Pörtschacher Vanessa | E20: =IF(A20="","",VLOOKUP(A20,'Dat-Bl'!$B$4:$F$123,5)) -> NMS Friesach
A21: 38 | B21: Bahn 2 | C21: =IF(A21="","",VLOOKUP(A21,'Dat-Bl'!$B$4:$F$123,2)) -> 0 | D21: =IF(A21="","",VLOOKUP(A21,'Dat-Bl'!$B$4:$F$123,3)) -> Kronlechner Bettina | E21: =IF(A21="","",VLOOKUP(A21,'Dat-Bl'!$B$4:$F$123,5)) -> NMS Friesach
A22: 39 | B22: Bahn 3 | C22: =IF(A22="","",VLOOKUP(A22,'Dat-Bl'!$B$4:$F$123,2)) -> 0 | D22: =IF(A22="","",VLOOKUP(A22,'Dat-Bl'!$B$4:$F$123,3)) -> Delfser Anna-Magdalena | E22: =IF(A22="","",VLOOKUP(A22,'Dat-Bl'!$B$4:$F$123,5)) -> NMS Friesach
A23: 40 | B23: Bahn 4 | C23: =IF(A23="","",VLOOKUP(A23,'Dat-Bl'!$B$4:$F$123,2)) -> 0 | D23: =IF(A23="","",VLOOKUP(A23,'Dat-Bl'!$B$4:$F$123,3)) -> Schaller Victoria | E23: =IF(A23="","",VLOOKUP(A23,'Dat-Bl'!$B$4:$F$123,5)) -> NMS Friesach
A24: 41 | B24: Bahn 5 | C24: =IF(A24="","",VLOOKUP(A24,'Dat-Bl'!$B$4:$F$123,2)) -> 0 | D24: =IF(A24="","",VLOOKUP(A24,'Dat-Bl'!$B$4:$F$123,3)) -> Hölbling Laura | E24: =IF(A24="","",VLOOKUP(A24,'Dat-Bl'!$B$4:$F$123,5)) -> NMS Friesach
A25: 42 | B25: Bahn 6 | C25: =IF(A25="","",VLOOKUP(A25,'Dat-Bl'!$B$4:$F$123,2)) -> 0 | D25: =IF(A25="","",VLOOKUP(A25,'Dat-Bl'!$B$4:$F$123,3)) -> Pacher Selina | E25: =IF(A25="","",VLOOKUP(A25,'Dat-Bl'!$B$4:$F$123,5)) -> NMS Friesach
B26: Bahn 7 | C26: =IF(A26="","",VLOOKUP(A26,'Dat-Bl'!$B$4:$F$123,2)) ->  | D26: =IF(A26="","",VLOOKUP(A26,'Dat-Bl'!$B$4:$F$123,3)) ->  | E26: =IF(A26="","",VLOOKUP(A26,'Dat-Bl'!$B$4:$F$123,5)) -> 
B27: Bahn 8 | C27: =IF(A27="","",VLOOKUP(A27,'Dat-Bl'!$B$4:$F$123,2)) ->  | D27: =IF(A27="","",VLOOKUP(A27,'Dat-Bl'!$B$4:$F$123,3)) ->  | E27: =IF(A27="","",VLOOKUP(A27,'Dat-Bl'!$B$4:$F$123,5)) -> 
A28: K-ziff | B28: Lauf | C28: Startnr.: | D28: Familienname Vorname | E28: =E1 -> Schule-60m-weiblich_C / D - Regel | F28: Zeit
A29: 43 | B29: Bahn 1 | C29: =IF(A29="","",VLOOKUP(A29,'Dat-Bl'!$B$4:$F$123,2)) -> 0 | D29: =IF(A29="","",VLOOKUP(A29,'Dat-Bl'!$B$4:$F$123,3)) -> Mayer Elena | E29: =IF(A29="","",VLOOKUP(A29,'Dat-Bl'!$B$4:$F$123,5)) -> NMS Gegendtal
A30: 44 | B30: Bahn 2 | C30: =IF(A30="","",VLOOKUP(A30,'Dat-Bl'!$B$4:$F$123,2)) -> 0 | D30: =IF(A30="","",VLOOKUP(A30,'Dat-Bl'!$B$4:$F$123,3)) -> Steiner Patricia | E30: =IF(A30="","",VLOOKUP(A30,'Dat-Bl'!$B$4:$F$123,5)) -> NMS Gegendtal
A31: 45 | B31: Bahn 3 | C31: =IF(A31="","",VLOOKUP(A31,'Dat-Bl'!$B$4:$F$123,2)) -> 0 | D31: =IF(A31="","",VLOOKUP(A31,'Dat-Bl'!$B$4:$F$123,3)) -> Maier Jasmin | E31: =IF(A31="","",VLOOKUP(A31,'Dat-Bl'!$B$4:$F$123,5)) -> NMS Gegendtal
A32: 46 | B32: Bahn 4 | C32: =IF(A32="","",VLOOKUP(A32,'Dat-Bl'!$B$4:$F$123,2)) -> 0 | D32: =IF(A32="","",VLOOKUP(A32,'Dat-Bl'!$B$4:$F$123,3)) -> Schweiger Nadja | E32: =IF(A32="","",VLOOKUP(A32,'Dat-Bl'!$B$4:$F$123,5)) -> NMS Gegendtal
A33: 47 | B33: Bahn 5 | C33: =IF(A33="","",VLOOKUP(A33,'Dat-Bl'!$B$4:$F$123,2)) -> 0 | D33: =IF(A33="","",VLOOKUP(A33,'Dat-Bl'!$B$4:$F$123,3)) -> Gasser Valentina | E33: =IF(A33="","",VLOOKUP(A33,'Dat-Bl'!$B$4:$F$123,5)) -> NMS Gegendtal
A34: 48 | B34: Bahn 6 | C34: =IF(A34="","",VLOOKUP(A34,'Dat-Bl'!$B$4:$F$123,2)) -> 0 | D34: =IF(A34="","",VLOOKUP(A34,'Dat-Bl'!$B$4:$F$123,3)) -> Ostertschnig Lisa | E34: =IF(A34="","",VLOOKUP(A34,'Dat-Bl'!$B$4:$F$123,5)) -> NMS Gegendtal
B35: Bahn 7 | C35: =IF(A35="","",VLOOKUP(A35,'Dat-Bl'!$B$4:$F$123,2)) ->  | D35: =IF(A35="","",VLOOKUP(A35,'Dat-Bl'!$B$4:$F$123,3)) ->  | E35: =IF(A35="","",VLOOKUP(A35,'Dat-Bl'!$B$4:$F$123,5)) -> 
B36: Bahn 8 | C36: =IF(A36="","",VLOOKUP(A36,'Dat-Bl'!$B$4:$F$123,2)) ->  | D36: =IF(A36="","",VLOOKUP(A36,'Dat-Bl'!$B$4:$F$123,3)) ->  | E36: =IF(A36="","",VLOOKUP(A36,'Dat-Bl'!$B$4:$F$123,5)) -> 
A38: K-ziff | B38: Lauf | C38: Startnr.: | D38: Familienname Vorname | E38: Schule-60m-weiblich_C /D - Sport | F38: Zeit
B39: Bahn 1 | C39: =IF(A39="","",VLOOKUP(A39,'Dat-Bl'!$B$127:$F$246,2)) ->  | D39: =IF(A39="","",VLOOKUP(A39,'Dat-Bl'!$B$127:$F$246,3)) ->  | E39: =IF(A39="","",VLOOKUP(A39,'Dat-Bl'!$B$127:$F$246,5)) -> 
B40: Bahn 2 | C40: =IF(A40="","",VLOOKUP(A40,'Dat-Bl'!$B$127:$F$246,2)) ->  | D40: =IF(A40="","",VLOOKUP(A40,'Dat-Bl'!$B$127:$F$246,3)) ->  | E40: =IF(A40="","",VLOOKUP(A40,'Dat-Bl'!$B$127:$F$246,5)) -> 
B41: Bahn 3 | C41: =IF(A41="","",VLOOKUP(A41,'Dat-Bl'!$B$127:$F$246,2)) ->  | D41: =IF(A41="","",VLOOKUP(A41,'Dat-Bl'!$B$127:$F$246,3)) ->  | E41: =IF(A41="","",VLOOKUP(A41,'Dat-Bl'!$B$127:$F$246,5)) -> 
B42: Bahn 4 | C42: =IF(A42="","",VLOOKUP(A42,'Dat-Bl'!$B$127:$F$246,2)) ->  | D42: =IF(A42="","",VLOOKUP(A42,'Dat-Bl'!$B$127:$F$246,3)) ->  | E42: =IF(A42="","",VLOOKUP(A42,'Dat-Bl'!$B$127:$F$246,5)) -> 
B43: Bahn 5 | C43: =IF(A43="","",VLOOKUP(A43,'Dat-Bl'!$B$127:$F$246,2)) ->  | D43: =IF(A43="","",VLOOKUP(A43,'Dat-Bl'!$B$127:$F$246,3)) ->  | E43: =IF(A43="","",VLOOKUP(A43,'Dat-Bl'!$B$127:$F$246,5)) -> 
B44: Bahn 6 | C44: =IF(A44="","",VLOOKUP(A44,'Dat-Bl'!$B$127:$F$246,2)) ->  | D44: =IF(A44="","",VLOOKUP(A44,'Dat-Bl'!$B$127:$F$246,3)) ->  | E44: =IF(A44="","",VLOOKUP(A44,'Dat-Bl'!$B$127:$F$246,5)) -> 
B45: Bahn 7 | C45: =IF(A45="","",VLOOKUP(A45,'Dat-Bl'!$B$127:$F$246,2)) ->  | D45: =IF(A45="","",VLOOKUP(A45,'Dat-Bl'!$B$127:$F$246,3)) ->  | E45: =IF(A45="","",VLOOKUP(A45,'Dat-Bl'!$B$127:$F$246,5)) -> 
B46: Bahn 8 | C46: =IF(A46="","",VLOOKUP(A46,'Dat-Bl'!$B$127:$F$246,2)) ->  | D46: =IF(A46="","",VLOOKUP(A46,'Dat-Bl'!$B$127:$F$246,3)) ->  | E46: =IF(A46="","",VLOOKUP(A46,'Dat-Bl'!$B$127:$F$246,5)) -> 
A47: K-ziff | B47: Lauf | C47: Startnr.: | D47: Familienname Vorname | E47: =E38 -> Schule-60m-weiblich_C /D - Sport | F47: Zeit
B48: Bahn 1 | C48: =IF(A48="","",VLOOKUP(A48,'Dat-Bl'!$B$127:$F$246,2)) ->  | D48: =IF(A48="","",VLOOKUP(A48,'Dat-Bl'!$B$127:$F$246,3)) ->  | E48: =IF(A48="","",VLOOKUP(A48,'Dat-Bl'!$B$127:$F$246,5)) -> 
B49: Bahn 2 | C49: =IF(A49="","",VLOOKUP(A49,'Dat-Bl'!$B$127:$F$246,2)) ->  | D49: =IF(A49="","",VLOOKUP(A49,'Dat-Bl'!$B$127:$F$246,3)) ->  | E49: =IF(A49="","",VLOOKUP(A49,'Dat-Bl'!$B$127:$F$246,5)) -> 
B50: Bahn 3 | C50: =IF(A50="","",VLOOKUP(A50,'Dat-Bl'!$B$127:$F$246,2)) ->  | D50: =IF(A50="","",VLOOKUP(A50,'Dat-Bl'!$B$127:$F$246,3)) ->  | E50: =IF(A50="","",VLOOKUP(A50,'Dat-Bl'!$B$127:$F$246,5)) -> 
B51: Bahn 4 | C51: =IF(A51="","",VLOOKUP(A51,'Dat-Bl'!$B$127:$F$246,2)) ->  | D51: =IF(A51="","",VLOOKUP(A51,'Dat-Bl'!$B$127:$F$246,3)) ->  | E51: =IF(A51="","",VLOOKUP(A51,'Dat-Bl'!$B$127:$F$246,5)) -> 
B52: Bahn 5 | C52: =IF(A52="","",VLOOKUP(A52,'Dat-Bl'!$B$127:$F$246,2)) ->  | D52: =IF(A52="","",VLOOKUP(A52,'Dat-Bl'!$B$127:$F$246,3)) ->  | E52: =IF(A52="","",VLOOKUP(A52,'Dat-Bl'!$B$127:$F$246,5)) -> 
B53: Bahn 6 | C53: =IF(A53="","",VLOOKUP(A53,'Dat-Bl'!$B$127:$F$246,2)) ->  | D53: =IF(A53="","",VLOOKUP(A53,'Dat-Bl'!$B$127:$F$246,3)) ->  | E53: =IF(A53="","",VLOOKUP(A53,'Dat-Bl'!$B$127:$F$246,5)) -> 
B54: Bahn 7 | C54: =IF(A54="","",VLOOKUP(A54,'Dat-Bl'!$B$127:$F$246,2)) ->  | D54: =IF(A54="","",VLOOKUP(A54,'Dat-Bl'!$B$127:$F$246,3)) ->  | E54: =IF(A54="","",VLOOKUP(A54,'Dat-Bl'!$B$127:$F$246,5)) -> 
B55: Bahn 8 | C55: =IF(A55="","",VLOOKUP(A55,'Dat-Bl'!$B$127:$F$246,2)) ->  | D55: =IF(A55="","",VLOOKUP(A55,'Dat-Bl'!$B$127:$F$246,3)) ->  | E55: =IF(A55="","",VLOOKUP(A55,'Dat-Bl'!$B$127:$F$246,5)) -> 
A56: K-ziff | B56: Lauf | C56: Startnr.: | D56: Familienname Vorname | E56: =E38 -> Schule-60m-weiblich_C /D - Sport | F56: Zeit
B57: Bahn 1 | C57: =IF(A57="","",VLOOKUP(A57,'Dat-Bl'!$B$127:$F$246,2)) ->  | D57: =IF(A57="","",VLOOKUP(A57,'Dat-Bl'!$B$127:$F$246,3)) ->  | E57: =IF(A57="","",VLOOKUP(A57,'Dat-Bl'!$B$127:$F$246,5)) -> 
B58: Bahn 2 | C58: =IF(A58="","",VLOOKUP(A58,'Dat-Bl'!$B$127:$F$246,2)) ->  | D58: =IF(A58="","",VLOOKUP(A58,'Dat-Bl'!$B$127:$F$246,3)) ->  | E58: =IF(A58="","",VLOOKUP(A58,'Dat-Bl'!$B$127:$F$246,5)) -> 
B59: Bahn 3 | C59: =IF(A59="","",VLOOKUP(A59,'Dat-Bl'!$B$127:$F$246,2)) ->  | D59: =IF(A59="","",VLOOKUP(A59,'Dat-Bl'!$B$127:$F$246,3)) ->  | E59: =IF(A59="","",VLOOKUP(A59,'Dat-Bl'!$B$127:$F$246,5)) -> 
B60: Bahn 4 | C60: =IF(A60="","",VLOOKUP(A60,'Dat-Bl'!$B$127:$F$246,2)) ->  | D60: =IF(A60="","",VLOOKUP(A60,'Dat-Bl'!$B$127:$F$246,3)) ->  | E60: =IF(A60="","",VLOOKUP(A60,'Dat-Bl'!$B$127:$F$246,5)) -> 
B61: Bahn 5 | C61: =IF(A61="","",VLOOKUP(A61,'Dat-Bl'!$B$127:$F$246,2)) ->  | D61: =IF(A61="","",VLOOKUP(A61,'Dat-Bl'!$B$127:$F$246,3)) ->  | E61: =IF(A61="","",VLOOKUP(A61,'Dat-Bl'!$B$127:$F$246,5)) -> 
B62: Bahn 6 | C62: =IF(A62="","",VLOOKUP(A62,'Dat-Bl'!$B$127:$F$246,2)) ->  | D62: =IF(A62="","",VLOOKUP(A62,'Dat-Bl'!$B$127:$F$246,3)) ->  | E62: =IF(A62="","",VLOOKUP(A62,'Dat-Bl'!$B$127:$F$246,5)) -> 
B63: Bahn 7 | C63: =IF(A63="","",VLOOKUP(A63,'Dat-Bl'!$B$127:$F$246,2)) ->  | D63: =IF(A63="","",VLOOKUP(A63,'Dat-Bl'!$B$127:$F$246,3)) ->  | E63: =IF(A63="","",VLOOKUP(A63,'Dat-Bl'!$B$127:$F$246,5)) -> 
B64: Bahn 8 | C64: =IF(A64="","",VLOOKUP(A64,'Dat-Bl'!$B$127:$F$246,2)) ->  | D64: =IF(A64="","",VLOOKUP(A64,'Dat-Bl'!$B$127:$F$246,3)) ->  | E64: =IF(A64="","",VLOOKUP(A64,'Dat-Bl'!$B$127:$F$246,5)) -> 
A65: K-ziff | B65: Lauf | C65: Startnr.: | D65: Familienname Vorname | E65: =E38 -> Schule-60m-weiblich_C /D - Sport | F65: Zeit
B66: Bahn 1 | C66: =IF(A66="","",VLOOKUP(A66,'Dat-Bl'!$B$127:$F$246,2)) ->  | D66: =IF(A66="","",VLOOKUP(A66,'Dat-Bl'!$B$127:$F$246,3)) ->  | E66: =IF(A66="","",VLOOKUP(A66,'Dat-Bl'!$B$127:$F$246,5)) -> 
B67: Bahn 2 | C67: =IF(A67="","",VLOOKUP(A67,'Dat-Bl'!$B$127:$F$246,2)) ->  | D67: =IF(A67="","",VLOOKUP(A67,'Dat-Bl'!$B$127:$F$246,3)) ->  | E67: =IF(A67="","",VLOOKUP(A67,'Dat-Bl'!$B$127:$F$246,5)) -> 
B68: Bahn 3 | C68: =IF(A68="","",VLOOKUP(A68,'Dat-Bl'!$B$127:$F$246,2)) ->  | D68: =IF(A68="","",VLOOKUP(A68,'Dat-Bl'!$B$127:$F$246,3)) ->  | E68: =IF(A68="","",VLOOKUP(A68,'Dat-Bl'!$B$127:$F$246,5)) -> 
B69: Bahn 4 | C69: =IF(A69="","",VLOOKUP(A69,'Dat-Bl'!$B$127:$F$246,2)) ->  | D69: =IF(A69="","",VLOOKUP(A69,'Dat-Bl'!$B$127:$F$246,3)) ->  | E69: =IF(A69="","",VLOOKUP(A69,'Dat-Bl'!$B$127:$F$246,5)) -> 
B70: Bahn 5 | C70: =IF(A70="","",VLOOKUP(A70,'Dat-Bl'!$B$127:$F$246,2)) ->  | D70: =IF(A70="","",VLOOKUP(A70,'Dat-Bl'!$B$127:$F$246,3)) ->  | E70: =IF(A70="","",VLOOKUP(A70,'Dat-Bl'!$B$127:$F$246,5)) -> 
B71: Bahn 6 | C71: =IF(A71="","",VLOOKUP(A71,'Dat-Bl'!$B$127:$F$246,2)) ->  | D71: =IF(A71="","",VLOOKUP(A71,'Dat-Bl'!$B$127:$F$246,3)) ->  | E71: =IF(A71="","",VLOOKUP(A71,'Dat-Bl'!$B$127:$F$246,5)) -> 
B72: Bahn 7 | C72: =IF(A72="","",VLOOKUP(A72,'Dat-Bl'!$B$127:$F$246,2)) ->  | D72: =IF(A72="","",VLOOKUP(A72,'Dat-Bl'!$B$127:$F$246,3)) ->  | E72: =IF(A72="","",VLOOKUP(A72,'Dat-Bl'!$B$127:$F$246,5)) -> 
B73: Bahn 8 | C73: =IF(A73="","",VLOOKUP(A73,'Dat-Bl'!$B$127:$F$246,2)) ->  | D73: =IF(A73="","",VLOOKUP(A73,'Dat-Bl'!$B$127:$F$246,3)) ->  | E73: =IF(A73="","",VLOOKUP(A73,'Dat-Bl'!$B$127:$F$246,5)) -> 
A75: K-ziff | B75: Lauf | C75: Startnr.: | D75: Familienname Vorname | E75: Schule-60m-männlich_C / D - Regel | F75: Zeit
B76: Bahn 1 | C76: =IF(A76="","",VLOOKUP(A76,'Dat-Bl'!$J$4:$N$123,2)) ->  | D76: =IF(A76="","",VLOOKUP(A76,'Dat-Bl'!$J$4:$N$123,3)) ->  | E76: =IF(A76="","",VLOOKUP(A76,'Dat-Bl'!$J$4:$N$123,5)) -> 
B77: Bahn 2 | C77: =IF(A77="","",VLOOKUP(A77,'Dat-Bl'!$J$4:$N$123,2)) ->  | D77: =IF(A77="","",VLOOKUP(A77,'Dat-Bl'!$J$4:$N$123,3)) ->  | E77: =IF(A77="","",VLOOKUP(A77,'Dat-Bl'!$J$4:$N$123,5)) -> 
B78: Bahn 3 | C78: =IF(A78="","",VLOOKUP(A78,'Dat-Bl'!$J$4:$N$123,2)) ->  | D78: =IF(A78="","",VLOOKUP(A78,'Dat-Bl'!$J$4:$N$123,3)) ->  | E78: =IF(A78="","",VLOOKUP(A78,'Dat-Bl'!$J$4:$N$123,5)) -> 
B79: Bahn 4 | C79: =IF(A79="","",VLOOKUP(A79,'Dat-Bl'!$J$4:$N$123,2)) ->  | D79: =IF(A79="","",VLOOKUP(A79,'Dat-Bl'!$J$4:$N$123,3)) ->  | E79: =IF(A79="","",VLOOKUP(A79,'Dat-Bl'!$J$4:$N$123,5)) -> 
B80: Bahn 5 | C80: =IF(A80="","",VLOOKUP(A80,'Dat-Bl'!$J$4:$N$123,2)) ->  | D80: =IF(A80="","",VLOOKUP(A80,'Dat-Bl'!$J$4:$N$123,3)) ->  | E80: =IF(A80="","",VLOOKUP(A80,'Dat-Bl'!$J$4:$N$123,5)) -> 
B81: Bahn 6 | C81: =IF(A81="","",VLOOKUP(A81,'Dat-Bl'!$J$4:$N$123,2)) ->  | D81: =IF(A81="","",VLOOKUP(A81,'Dat-Bl'!$J$4:$N$123,3)) ->  | E81: =IF(A81="","",VLOOKUP(A81,'Dat-Bl'!$J$4:$N$123,5)) -> 
B82: Bahn 7 | C82: =IF(A82="","",VLOOKUP(A82,'Dat-Bl'!$J$4:$N$123,2)) ->  | D82: =IF(A82="","",VLOOKUP(A82,'Dat-Bl'!$J$4:$N$123,3)) ->  | E82: =IF(A82="","",VLOOKUP(A82,'Dat-Bl'!$J$4:$N$123,5)) -> 
B83: Bahn 8 | C83: =IF(A83="","",VLOOKUP(A83,'Dat-Bl'!$J$4:$N$123,2)) ->  | D83: =IF(A83="","",VLOOKUP(A83,'Dat-Bl'!$J$4:$N$123,3)) ->  | E83: =IF(A83="","",VLOOKUP(A83,'Dat-Bl'!$J$4:$N$123,5)) -> 
A84: K-ziff | B84: Lauf | C84: Startnr.: | D84: Familienname Vorname | E84: =E75 -> Schule-60m-männlich_C / D - Regel | F84: Zeit
B85: Bahn 1 | C85: =IF(A85="","",VLOOKUP(A85,'Dat-Bl'!$J$4:$N$123,2)) ->  | D85: =IF(A85="","",VLOOKUP(A85,'Dat-Bl'!$J$4:$N$123,3)) ->  | E85: =IF(A85="","",VLOOKUP(A85,'Dat-Bl'!$J$4:$N$123,5)) -> 
B86: Bahn 2 | C86: =IF(A86="","",VLOOKUP(A86,'Dat-Bl'!$J$4:$N$123,2)) ->  | D86: =IF(A86="","",VLOOKUP(A86,'Dat-Bl'!$J$4:$N$123,3)) ->  | E86: =IF(A86="","",VLOOKUP(A86,'Dat-Bl'!$J$4:$N$123,5)) -> 
B87: Bahn 3 | C87: =IF(A87="","",VLOOKUP(A87,'Dat-Bl'!$J$4:$N$123,2)) ->  | D87: =IF(A87="","",VLOOKUP(A87,'Dat-Bl'!$J$4:$N$123,3)) ->  | E87: =IF(A87="","",VLOOKUP(A87,'Dat-Bl'!$J$4:$N$123,5)) -> 
B88: Bahn 4 | C88: =IF(A88="","",VLOOKUP(A88,'Dat-Bl'!$J$4:$N$123,2)) ->  | D88: =IF(A88="","",VLOOKUP(A88,'Dat-Bl'!$J$4:$N$123,3)) ->  | E88: =IF(A88="","",VLOOKUP(A88,'Dat-Bl'!$J$4:$N$123,5)) -> 
B89: Bahn 5 | C89: =IF(A89="","",VLOOKUP(A89,'Dat-Bl'!$J$4:$N$123,2)) ->  | D89: =IF(A89="","",VLOOKUP(A89,'Dat-Bl'!$J$4:$N$123,3)) ->  | E89: =IF(A89="","",VLOOKUP(A89,'Dat-Bl'!$J$4:$N$123,5)) -> 
B90: Bahn 6 | C90: =IF(A90="","",VLOOKUP(A90,'Dat-Bl'!$J$4:$N$123,2)) ->  | D90: =IF(A90="","",VLOOKUP(A90,'Dat-Bl'!$J$4:$N$123,3)) ->  | E90: =IF(A90="","",VLOOKUP(A90,'Dat-Bl'!$J$4:$N$123,5)) -> 
B91: Bahn 7 | C91: =IF(A91="","",VLOOKUP(A91,'Dat-Bl'!$J$4:$N$123,2)) ->  | D91: =IF(A91="","",VLOOKUP(A91,'Dat-Bl'!$J$4:$N$123,3)) ->  | E91: =IF(A91="","",VLOOKUP(A91,'Dat-Bl'!$J$4:$N$123,5)) -> 
B92: Bahn 8 | C92: =IF(A92="","",VLOOKUP(A92,'Dat-Bl'!$J$4:$N$123,2)) ->  | D92: =IF(A92="","",VLOOKUP(A92,'Dat-Bl'!$J$4:$N$123,3)) ->  | E92: =IF(A92="","",VLOOKUP(A92,'Dat-Bl'!$J$4:$N$123,5)) -> 
A93: K-ziff | B93: Lauf | C93: Startnr.: | D93: Familienname Vorname | E93: =E75 -> Schule-60m-männlich_C / D - Regel | F93: Zeit
B94: Bahn 1 | C94: =IF(A94="","",VLOOKUP(A94,'Dat-Bl'!$J$4:$N$123,2)) ->  | D94: =IF(A94="","",VLOOKUP(A94,'Dat-Bl'!$J$4:$N$123,3)) ->  | E94: =IF(A94="","",VLOOKUP(A94,'Dat-Bl'!$J$4:$N$123,5)) -> 
B95: Bahn 2 | C95: =IF(A95="","",VLOOKUP(A95,'Dat-Bl'!$J$4:$N$123,2)) ->  | D95: =IF(A95="","",VLOOKUP(A95,'Dat-Bl'!$J$4:$N$123,3)) ->  | E95: =IF(A95="","",VLOOKUP(A95,'Dat-Bl'!$J$4:$N$123,5)) -> 
B96: Bahn 3 | C96: =IF(A96="","",VLOOKUP(A96,'Dat-Bl'!$J$4:$N$123,2)) ->  | D96: =IF(A96="","",VLOOKUP(A96,'Dat-Bl'!$J$4:$N$123,3)) ->  | E96: =IF(A96="","",VLOOKUP(A96,'Dat-Bl'!$J$4:$N$123,5)) -> 
B97: Bahn 4 | C97: =IF(A97="","",VLOOKUP(A97,'Dat-Bl'!$J$4:$N$123,2)) ->  | D97: =IF(A97="","",VLOOKUP(A97,'Dat-Bl'!$J$4:$N$123,3)) ->  | E97: =IF(A97="","",VLOOKUP(A97,'Dat-Bl'!$J$4:$N$123,5)) -> 
B98: Bahn 5 | C98: =IF(A98="","",VLOOKUP(A98,'Dat-Bl'!$J$4:$N$123,2)) ->  | D98: =IF(A98="","",VLOOKUP(A98,'Dat-Bl'!$J$4:$N$123,3)) ->  | E98: =IF(A98="","",VLOOKUP(A98,'Dat-Bl'!$J$4:$N$123,5)) -> 
B99: Bahn 6 | C99: =IF(A99="","",VLOOKUP(A99,'Dat-Bl'!$J$4:$N$123,2)) ->  | D99: =IF(A99="","",VLOOKUP(A99,'Dat-Bl'!$J$4:$N$123,3)) ->  | E99: =IF(A99="","",VLOOKUP(A99,'Dat-Bl'!$J$4:$N$123,5)) -> 
B100: Bahn 7 | C100: =IF(A100="","",VLOOKUP(A100,'Dat-Bl'!$J$4:$N$123,2)) ->  | D100: =IF(A100="","",VLOOKUP(A100,'Dat-Bl'!$J$4:$N$123,3)) ->  | E100: =IF(A100="","",VLOOKUP(A100,'Dat-Bl'!$J$4:$N$123,5)) -> 
B101: Bahn 8 | C101: =IF(A101="","",VLOOKUP(A101,'Dat-Bl'!$J$4:$N$123,2)) ->  | D101: =IF(A101="","",VLOOKUP(A101,'Dat-Bl'!$J$4:$N$123,3)) ->  | E101: =IF(A101="","",VLOOKUP(A101,'Dat-Bl'!$J$4:$N$123,5)) -> 
A102: K-ziff | B102: Lauf | C102: Startnr.: | D102: Familienname Vorname | E102: =E75 -> Schule-60m-männlich_C / D - Regel | F102: Zeit
B103: Bahn 1 | C103: =IF(A103="","",VLOOKUP(A103,'Dat-Bl'!$J$4:$N$123,2)) ->  | D103: =IF(A103="","",VLOOKUP(A103,'Dat-Bl'!$J$4:$N$123,3)) ->  | E103: =IF(A103="","",VLOOKUP(A103,'Dat-Bl'!$J$4:$N$123,5)) -> 
B104: Bahn 2 | C104: =IF(A104="","",VLOOKUP(A104,'Dat-Bl'!$J$4:$N$123,2)) ->  | D104: =IF(A104="","",VLOOKUP(A104,'Dat-Bl'!$J$4:$N$123,3)) ->  | E104: =IF(A104="","",VLOOKUP(A104,'Dat-Bl'!$J$4:$N$123,5)) -> 
B105: Bahn 3 | C105: =IF(A105="","",VLOOKUP(A105,'Dat-Bl'!$J$4:$N$123,2)) ->  | D105: =IF(A105="","",VLOOKUP(A105,'Dat-Bl'!$J$4:$N$123,3)) ->  | E105: =IF(A105="","",VLOOKUP(A105,'Dat-Bl'!$J$4:$N$123,5)) -> 
B106: Bahn 4 | C106: =IF(A106="","",VLOOKUP(A106,'Dat-Bl'!$J$4:$N$123,2)) ->  | D106: =IF(A106="","",VLOOKUP(A106,'Dat-Bl'!$J$4:$N$123,3)) ->  | E106: =IF(A106="","",VLOOKUP(A106,'Dat-Bl'!$J$4:$N$123,5)) -> 
B107: Bahn 5 | C107: =IF(A107="","",VLOOKUP(A107,'Dat-Bl'!$J$4:$N$123,2)) ->  | D107: =IF(A107="","",VLOOKUP(A107,'Dat-Bl'!$J$4:$N$123,3)) ->  | E107: =IF(A107="","",VLOOKUP(A107,'Dat-Bl'!$J$4:$N$123,5)) -> 
B108: Bahn 6 | C108: =IF(A108="","",VLOOKUP(A108,'Dat-Bl'!$J$4:$N$123,2)) ->  | D108: =IF(A108="","",VLOOKUP(A108,'Dat-Bl'!$J$4:$N$123,3)) ->  | E108: =IF(A108="","",VLOOKUP(A108,'Dat-Bl'!$J$4:$N$123,5)) -> 
B109: Bahn 7 | C109: =IF(A109="","",VLOOKUP(A109,'Dat-Bl'!$J$4:$N$123,2)) ->  | D109: =IF(A109="","",VLOOKUP(A109,'Dat-Bl'!$J$4:$N$123,3)) ->  | E109: =IF(A109="","",VLOOKUP(A109,'Dat-Bl'!$J$4:$N$123,5)) -> 
B110: Bahn 8 | C110: =IF(A110="","",VLOOKUP(A110,'Dat-Bl'!$J$4:$N$123,2)) ->  | D110: =IF(A110="","",VLOOKUP(A110,'Dat-Bl'!$J$4:$N$123,3)) ->  | E110: =IF(A110="","",VLOOKUP(A110,'Dat-Bl'!$J$4:$N$123,5)) -> 
A112: K-ziff | B112: Lauf | C112: Startnr.: | D112: Familienname Vorname | E112: Schule-60m-männlich_C /D - Sport | F112: Zeit
B113: Bahn 1 | C113: =IF(A113="","",VLOOKUP(A113,'Dat-Bl'!$J$127:$N$246,2)) ->  | D113: =IF(A113="","",VLOOKUP(A113,'Dat-Bl'!$J$127:$N$246,3)) ->  | E113: =IF(A113="","",VLOOKUP(A113,'Dat-Bl'!$J$127:$N$246,5)) -> 
B114: Bahn 2 | C114: =IF(A114="","",VLOOKUP(A114,'Dat-Bl'!$J$127:$N$246,2)) ->  | D114: =IF(A114="","",VLOOKUP(A114,'Dat-Bl'!$J$127:$N$246,3)) ->  | E114: =IF(A114="","",VLOOKUP(A114,'Dat-Bl'!$J$127:$N$246,5)) -> 
B115: Bahn 3 | C115: =IF(A115="","",VLOOKUP(A115,'Dat-Bl'!$J$127:$N$246,2)) ->  | D115: =IF(A115="","",VLOOKUP(A115,'Dat-Bl'!$J$127:$N$246,3)) ->  | E115: =IF(A115="","",VLOOKUP(A115,'Dat-Bl'!$J$127:$N$246,5)) -> 
B116: Bahn 4 | C116: =IF(A116="","",VLOOKUP(A116,'Dat-Bl'!$J$127:$N$246,2)) ->  | D116: =IF(A116="","",VLOOKUP(A116,'Dat-Bl'!$J$127:$N$246,3)) ->  | E116: =IF(A116="","",VLOOKUP(A116,'Dat-Bl'!$J$127:$N$246,5)) -> 
B117: Bahn 5 | C117: =IF(A117="","",VLOOKUP(A117,'Dat-Bl'!$J$127:$N$246,2)) ->  | D117: =IF(A117="","",VLOOKUP(A117,'Dat-Bl'!$J$127:$N$246,3)) ->  | E117: =IF(A117="","",VLOOKUP(A117,'Dat-Bl'!$J$127:$N$246,5)) -> 
B118: Bahn 6 | C118: =IF(A118="","",VLOOKUP(A118,'Dat-Bl'!$J$127:$N$246,2)) ->  | D118: =IF(A118="","",VLOOKUP(A118,'Dat-Bl'!$J$127:$N$246,3)) ->  | E118: =IF(A118="","",VLOOKUP(A118,'Dat-Bl'!$J$127:$N$246,5)) -> 
B119: Bahn 7 | C119: =IF(A119="","",VLOOKUP(A119,'Dat-Bl'!$J$127:$N$246,2)) ->  | D119: =IF(A119="","",VLOOKUP(A119,'Dat-Bl'!$J$127:$N$246,3)) ->  | E119: =IF(A119="","",VLOOKUP(A119,'Dat-Bl'!$J$127:$N$246,5)) -> 
B120: Bahn 8 | C120: =IF(A120="","",VLOOKUP(A120,'Dat-Bl'!$J$127:$N$246,2)) ->  | D120: =IF(A120="","",VLOOKUP(A120,'Dat-Bl'!$J$127:$N$246,3)) ->  | E120: =IF(A120="","",VLOOKUP(A120,'Dat-Bl'!$J$127:$N$246,5)) -> 
A121: K-ziff | B121: Lauf | C121: Startnr.: | D121: Familienname Vorname | E121: =E112 -> Schule-60m-männlich_C /D - Sport | F121: Zeit
B122: Bahn 1 | C122: =IF(A122="","",VLOOKUP(A122,'Dat-Bl'!$J$127:$N$246,2)) ->  | D122: =IF(A122="","",VLOOKUP(A122,'Dat-Bl'!$J$127:$N$246,3)) ->  | E122: =IF(A122="","",VLOOKUP(A122,'Dat-Bl'!$J$127:$N$246,5)) -> 
B123: Bahn 2 | C123: =IF(A123="","",VLOOKUP(A123,'Dat-Bl'!$J$127:$N$246,2)) ->  | D123: =IF(A123="","",VLOOKUP(A123,'Dat-Bl'!$J$127:$N$246,3)) ->  | E123: =IF(A123="","",VLOOKUP(A123,'Dat-Bl'!$J$127:$N$246,5)) -> 
B124: Bahn 3 | C124: =IF(A124="","",VLOOKUP(A124,'Dat-Bl'!$J$127:$N$246,2)) ->  | D124: =IF(A124="","",VLOOKUP(A124,'Dat-Bl'!$J$127:$N$246,3)) ->  | E124: =IF(A124="","",VLOOKUP(A124,'Dat-Bl'!$J$127:$N$246,5)) -> 
B125: Bahn 4 | C125: =IF(A125="","",VLOOKUP(A125,'Dat-Bl'!$J$127:$N$246,2)) ->  | D125: =IF(A125="","",VLOOKUP(A125,'Dat-Bl'!$J$127:$N$246,3)) ->  | E125: =IF(A125="","",VLOOKUP(A125,'Dat-Bl'!$J$127:$N$246,5)) -> 
B126: Bahn 5 | C126: =IF(A126="","",VLOOKUP(A126,'Dat-Bl'!$J$127:$N$246,2)) ->  | D126: =IF(A126="","",VLOOKUP(A126,'Dat-Bl'!$J$127:$N$246,3)) ->  | E126: =IF(A126="","",VLOOKUP(A126,'Dat-Bl'!$J$127:$N$246,5)) -> 
B127: Bahn 6 | C127: =IF(A127="","",VLOOKUP(A127,'Dat-Bl'!$J$127:$N$246,2)) ->  | D127: =IF(A127="","",VLOOKUP(A127,'Dat-Bl'!$J$127:$N$246,3)) ->  | E127: =IF(A127="","",VLOOKUP(A127,'Dat-Bl'!$J$127:$N$246,5)) -> 
B128: Bahn 7 | C128: =IF(A128="","",VLOOKUP(A128,'Dat-Bl'!$J$127:$N$246,2)) ->  | D128: =IF(A128="","",VLOOKUP(A128,'Dat-Bl'!$J$127:$N$246,3)) ->  | E128: =IF(A128="","",VLOOKUP(A128,'Dat-Bl'!$J$127:$N$246,5)) -> 
B129: Bahn 8 | C129: =IF(A129="","",VLOOKUP(A129,'Dat-Bl'!$J$127:$N$246,2)) ->  | D129: =IF(A129="","",VLOOKUP(A129,'Dat-Bl'!$J$127:$N$246,3)) ->  | E129: =IF(A129="","",VLOOKUP(A129,'Dat-Bl'!$J$127:$N$246,5)) -> 
A130: K-ziff | B130: Lauf | C130: Startnr.: | D130: Familienname Vorname | E130: =E112 -> Schule-60m-männlich_C /D - Sport | F130: Zeit
B131: Bahn 1 | C131: =IF(A131="","",VLOOKUP(A131,'Dat-Bl'!$J$127:$N$246,2)) ->  | D131: =IF(A131="","",VLOOKUP(A131,'Dat-Bl'!$J$127:$N$246,3)) ->  | E131: =IF(A131="","",VLOOKUP(A131,'Dat-Bl'!$J$127:$N$246,5)) -> 
B132: Bahn 2 | C132: =IF(A132="","",VLOOKUP(A132,'Dat-Bl'!$J$127:$N$246,2)) ->  | D132: =IF(A132="","",VLOOKUP(A132,'Dat-Bl'!$J$127:$N$246,3)) ->  | E132: =IF(A132="","",VLOOKUP(A132,'Dat-Bl'!$J$127:$N$246,5)) -> 
B133: Bahn 3 | C133: =IF(A133="","",VLOOKUP(A133,'Dat-Bl'!$J$127:$N$246,2)) ->  | D133: =IF(A133="","",VLOOKUP(A133,'Dat-Bl'!$J$127:$N$246,3)) ->  | E133: =IF(A133="","",VLOOKUP(A133,'Dat-Bl'!$J$127:$N$246,5)) -> 
B134: Bahn 4 | C134: =IF(A134="","",VLOOKUP(A134,'Dat-Bl'!$J$127:$N$246,2)) ->  | D134: =IF(A134="","",VLOOKUP(A134,'Dat-Bl'!$J$127:$N$246,3)) ->  | E134: =IF(A134="","",VLOOKUP(A134,'Dat-Bl'!$J$127:$N$246,5)) -> 
B135: Bahn 5 | C135: =IF(A135="","",VLOOKUP(A135,'Dat-Bl'!$J$127:$N$246,2)) ->  | D135: =IF(A135="","",VLOOKUP(A135,'Dat-Bl'!$J$127:$N$246,3)) ->  | E135: =IF(A135="","",VLOOKUP(A135,'Dat-Bl'!$J$127:$N$246,5)) -> 
B136: Bahn 6 | C136: =IF(A136="","",VLOOKUP(A136,'Dat-Bl'!$J$127:$N$246,2)) ->  | D136: =IF(A136="","",VLOOKUP(A136,'Dat-Bl'!$J$127:$N$246,3)) ->  | E136: =IF(A136="","",VLOOKUP(A136,'Dat-Bl'!$J$127:$N$246,5)) -> 
B137: Bahn 7 | C137: =IF(A137="","",VLOOKUP(A137,'Dat-Bl'!$J$127:$N$246,2)) ->  | D137: =IF(A137="","",VLOOKUP(A137,'Dat-Bl'!$J$127:$N$246,3)) ->  | E137: =IF(A137="","",VLOOKUP(A137,'Dat-Bl'!$J$127:$N$246,5)) -> 
B138: Bahn 8 | C138: =IF(A138="","",VLOOKUP(A138,'Dat-Bl'!$J$127:$N$246,2)) ->  | D138: =IF(A138="","",VLOOKUP(A138,'Dat-Bl'!$J$127:$N$246,3)) ->  | E138: =IF(A138="","",VLOOKUP(A138,'Dat-Bl'!$J$127:$N$246,5)) -> 
A139: K-ziff | B139: Lauf | C139: Startnr.: | D139: Familienname Vorname | E139: =E112 -> Schule-60m-männlich_C /D - Sport | F139: Zeit
B140: Bahn 1 | C140: =IF(A140="","",VLOOKUP(A140,'Dat-Bl'!$J$127:$N$246,2)) ->  | D140: =IF(A140="","",VLOOKUP(A140,'Dat-Bl'!$J$127:$N$246,3)) ->  | E140: =IF(A140="","",VLOOKUP(A140,'Dat-Bl'!$J$127:$N$246,5)) -> 
B141: Bahn 2 | C141: =IF(A141="","",VLOOKUP(A141,'Dat-Bl'!$J$127:$N$246,2)) ->  | D141: =IF(A141="","",VLOOKUP(A141,'Dat-Bl'!$J$127:$N$246,3)) ->  | E141: =IF(A141="","",VLOOKUP(A141,'Dat-Bl'!$J$127:$N$246,5)) -> 
B142: Bahn 3 | C142: =IF(A142="","",VLOOKUP(A142,'Dat-Bl'!$J$127:$N$246,2)) ->  | D142: =IF(A142="","",VLOOKUP(A142,'Dat-Bl'!$J$127:$N$246,3)) ->  | E142: =IF(A142="","",VLOOKUP(A142,'Dat-Bl'!$J$127:$N$246,5)) -> 
B143: Bahn 4 | C143: =IF(A143="","",VLOOKUP(A143,'Dat-Bl'!$J$127:$N$246,2)) ->  | D143: =IF(A143="","",VLOOKUP(A143,'Dat-Bl'!$J$127:$N$246,3)) ->  | E143: =IF(A143="","",VLOOKUP(A143,'Dat-Bl'!$J$127:$N$246,5)) -> 
B144: Bahn 5 | C144: =IF(A144="","",VLOOKUP(A144,'Dat-Bl'!$J$127:$N$246,2)) ->  | D144: =IF(A144="","",VLOOKUP(A144,'Dat-Bl'!$J$127:$N$246,3)) ->  | E144: =IF(A144="","",VLOOKUP(A144,'Dat-Bl'!$J$127:$N$246,5)) -> 
B145: Bahn 6 | C145: =IF(A145="","",VLOOKUP(A145,'Dat-Bl'!$J$127:$N$246,2)) ->  | D145: =IF(A145="","",VLOOKUP(A145,'Dat-Bl'!$J$127:$N$246,3)) ->  | E145: =IF(A145="","",VLOOKUP(A145,'Dat-Bl'!$J$127:$N$246,5)) -> 
B146: Bahn 7 | C146: =IF(A146="","",VLOOKUP(A146,'Dat-Bl'!$J$127:$N$246,2)) ->  | D146: =IF(A146="","",VLOOKUP(A146,'Dat-Bl'!$J$127:$N$246,3)) ->  | E146: =IF(A146="","",VLOOKUP(A146,'Dat-Bl'!$J$127:$N$246,5)) -> 
B147: Bahn 8 | C147: =IF(A147="","",VLOOKUP(A147,'Dat-Bl'!$J$127:$N$246,2)) ->  | D147: =IF(A147="","",VLOOKUP(A147,'Dat-Bl'!$J$127:$N$246,3)) ->  | E147: =IF(A147="","",VLOOKUP(A147,'Dat-Bl'!$J$127:$N$246,5)) -> 

Sheet P-60 m (3)
A1: K-ziff | B1: Lauf | C1: Startnr.: | D1: Familienname Vorname | E1: Schule-60m-weiblich_C / D - Regel | F1: Zeit
A2: 49 | B2: Bahn 1 | C2: =IF(A2="","",VLOOKUP(A2,'Dat-Bl'!$B$4:$F$123,2)) -> 0 | D2: =IF(A2="","",VLOOKUP(A2,'Dat-Bl'!$B$4:$F$123,3)) -> Kassin Larissa | E2: =IF(A2="","",VLOOKUP(A2,'Dat-Bl'!$B$4:$F$123,5)) -> NMS Landskron
A3: 50 | B3: Bahn 2 | C3: =IF(A3="","",VLOOKUP(A3,'Dat-Bl'!$B$4:$F$123,2)) -> 0 | D3: =IF(A3="","",VLOOKUP(A3,'Dat-Bl'!$B$4:$F$123,3)) -> Wiener Sophie | E3: =IF(A3="","",VLOOKUP(A3,'Dat-Bl'!$B$4:$F$123,5)) -> NMS Landskron
A4: 51 | B4: Bahn 3 | C4: =IF(A4="","",VLOOKUP(A4,'Dat-Bl'!$B$4:$F$123,2)) -> 0 | D4: =IF(A4="","",VLOOKUP(A4,'Dat-Bl'!$B$4:$F$123,3)) -> Neumann Lisa | E4: =IF(A4="","",VLOOKUP(A4,'Dat-Bl'!$B$4:$F$123,5)) -> NMS Landskron
A5: 52 | B5: Bahn 4 | C5: =IF(A5="","",VLOOKUP(A5,'Dat-Bl'!$B$4:$F$123,2)) -> 0 | D5: =IF(A5="","",VLOOKUP(A5,'Dat-Bl'!$B$4:$F$123,3)) -> Pinzer Alina | E5: =IF(A5="","",VLOOKUP(A5,'Dat-Bl'!$B$4:$F$123,5)) -> NMS Landskron
A6: 53 | B6: Bahn 5 | C6: =IF(A6="","",VLOOKUP(A6,'Dat-Bl'!$B$4:$F$123,2)) -> 0 | D6: =IF(A6="","",VLOOKUP(A6,'Dat-Bl'!$B$4:$F$123,3)) -> Santner Fabienne | E6: =IF(A6="","",VLOOKUP(A6,'Dat-Bl'!$B$4:$F$123,5)) -> NMS Landskron
A7: 54 | B7: Bahn 6 | C7: =IF(A7="","",VLOOKUP(A7,'Dat-Bl'!$B$4:$F$123,2)) -> 0 | D7: =IF(A7="","",VLOOKUP(A7,'Dat-Bl'!$B$4:$F$123,3)) -> Petscher Maria | E7: =IF(A7="","",VLOOKUP(A7,'Dat-Bl'!$B$4:$F$123,5)) -> NMS Landskron
B8: Bahn 7 | C8: =IF(A8="","",VLOOKUP(A8,'Dat-Bl'!$B$4:$F$123,2)) ->  | D8: =IF(A8="","",VLOOKUP(A8,'Dat-Bl'!$B$4:$F$123,3)) ->  | E8: =IF(A8="","",VLOOKUP(A8,'Dat-Bl'!$B$4:$F$123,5)) -> 
B9: Bahn 8 | C9: =IF(A9="","",VLOOKUP(A9,'Dat-Bl'!$B$4:$F$123,2)) ->  | D9: =IF(A9="","",VLOOKUP(A9,'Dat-Bl'!$B$4:$F$123,3)) ->  | E9: =IF(A9="","",VLOOKUP(A9,'Dat-Bl'!$B$4:$F$123,5)) -> 
A10: K-ziff | B10: Lauf | C10: Startnr.: | D10: Familienname Vorname | E10: =E1 -> Schule-60m-weiblich_C / D - Regel | F10: Zeit
A11: 55 | B11: Bahn 1 | C11: =IF(A11="","",VLOOKUP(A11,'Dat-Bl'!$B$4:$F$123,2)) -> 0 | D11: =IF(A11="","",VLOOKUP(A11,'Dat-Bl'!$B$4:$F$123,3)) -> Edlmann Chiara | E11: =IF(A11="","",VLOOKUP(A11,'Dat-Bl'!$B$4:$F$123,5)) -> NMS Viktring
A12: 56 | B12: Bahn 2 | C12: =IF(A12="","",VLOOKUP(A12,'Dat-Bl'!$B$4:$F$123,2)) -> 0 | D12: =IF(A12="","",VLOOKUP(A12,'Dat-Bl'!$B$4:$F$123,3)) -> Toth Lili | E12: =IF(A12="","",VLOOKUP(A12,'Dat-Bl'!$B$4:$F$123,5)) -> NMS Viktring
A13: 57 | B13: Bahn 3 | C13: =IF(A13="","",VLOOKUP(A13,'Dat-Bl'!$B$4:$F$123,2)) -> 0 | D13: =IF(A13="","",VLOOKUP(A13,'Dat-Bl'!$B$4:$F$123,3)) -> Krnjic Sonja | E13: =IF(A13="","",VLOOKUP(A13,'Dat-Bl'!$B$4:$F$123,5)) -> NMS Viktring
A14: 58 | B14: Bahn 4 | C14: =IF(A14="","",VLOOKUP(A14,'Dat-Bl'!$B$4:$F$123,2)) -> 0 | D14: =IF(A14="","",VLOOKUP(A14,'Dat-Bl'!$B$4:$F$123,3)) -> Esel Michelle | E14: =IF(A14="","",VLOOKUP(A14,'Dat-Bl'!$B$4:$F$123,5)) -> NMS Viktring
A15: 59 | B15: Bahn 5 | C15: =IF(A15="","",VLOOKUP(A15,'Dat-Bl'!$B$4:$F$123,2)) -> 0 | D15: =IF(A15="","",VLOOKUP(A15,'Dat-Bl'!$B$4:$F$123,3)) -> Bierbaumer Selina | E15: =IF(A15="","",VLOOKUP(A15,'Dat-Bl'!$B$4:$F$123,5)) -> NMS Viktring
A16: 60 | B16: Bahn 6 | C16: =IF(A16="","",VLOOKUP(A16,'Dat-Bl'!$B$4:$F$123,2)) -> 0 | D16: =IF(A16="","",VLOOKUP(A16,'Dat-Bl'!$B$4:$F$123,3)) -> Herkner Anna | E16: =IF(A16="","",VLOOKUP(A16,'Dat-Bl'!$B$4:$F$123,5)) -> NMS Viktring
B17: Bahn 7 | C17: =IF(A17="","",VLOOKUP(A17,'Dat-Bl'!$B$4:$F$123,2)) ->  | D17: =IF(A17="","",VLOOKUP(A17,'Dat-Bl'!$B$4:$F$123,3)) ->  | E17: =IF(A17="","",VLOOKUP(A17,'Dat-Bl'!$B$4:$F$123,5)) -> 
B18: Bahn 8 | C18: =IF(A18="","",VLOOKUP(A18,'Dat-Bl'!$B$4:$F$123,2)) ->  | D18: =IF(A18="","",VLOOKUP(A18,'Dat-Bl'!$B$4:$F$123,3)) ->  | E18: =IF(A18="","",VLOOKUP(A18,'Dat-Bl'!$B$4:$F$123,5)) -> 
A19: K-ziff | B19: Lauf | C19: Startnr.: | D19: Familienname Vorname | E19: =E1 -> Schule-60m-weiblich_C / D - Regel | F19: Zeit
A20: 61 | B20: Bahn 1 | C20: =IF(A20="","",VLOOKUP(A20,'Dat-Bl'!$B$4:$F$123,2)) -> 0 | D20: =IF(A20="","",VLOOKUP(A20,'Dat-Bl'!$B$4:$F$123,3)) -> Ebner Elena | E20: =IF(A20="","",VLOOKUP(A20,'Dat-Bl'!$B$4:$F$123,5)) -> RNMS Feldkirchen
A21: 62 | B21: Bahn 2 | C21: =IF(A21="","",VLOOKUP(A21,'Dat-Bl'!$B$4:$F$123,2)) -> 0 | D21: =IF(A21="","",VLOOKUP(A21,'Dat-Bl'!$B$4:$F$123,3)) -> Reiter Katharina | E21: =IF(A21="","",VLOOKUP(A21,'Dat-Bl'!$B$4:$F$123,5)) -> RNMS Feldkirchen
A22: 63 | B22: Bahn 3 | C22: =IF(A22="","",VLOOKUP(A22,'Dat-Bl'!$B$4:$F$123,2)) -> 0 | D22: =IF(A22="","",VLOOKUP(A22,'Dat-Bl'!$B$4:$F$123,3)) -> Hinteregger Katrin | E22: =IF(A22="","",VLOOKUP(A22,'Dat-Bl'!$B$4:$F$123,5)) -> RNMS Feldkirchen
A23: 64 | B23: Bahn 4 | C23: =IF(A23="","",VLOOKUP(A23,'Dat-Bl'!$B$4:$F$123,2)) -> 0 | D23: =IF(A23="","",VLOOKUP(A23,'Dat-Bl'!$B$4:$F$123,3)) -> Kircher Florentina | E23: =IF(A23="","",VLOOKUP(A23,'Dat-Bl'!$B$4:$F$123,5)) -> RNMS Feldkirchen
A24: 65 | B24: Bahn 5 | C24: =IF(A24="","",VLOOKUP(A24,'Dat-Bl'!$B$4:$F$123,2)) -> 0 | D24: =IF(A24="","",VLOOKUP(A24,'Dat-Bl'!$B$4:$F$123,3)) -> Mühlbacher Nina | E24: =IF(A24="","",VLOOKUP(A24,'Dat-Bl'!$B$4:$F$123,5)) -> RNMS Feldkirchen
A25: 66 | B25: Bahn 6 | C25: =IF(A25="","",VLOOKUP(A25,'Dat-Bl'!$B$4:$F$123,2)) -> 0 | D25: =IF(A25="","",VLOOKUP(A25,'Dat-Bl'!$B$4:$F$123,3)) -> Petrascu Elisabeth | E25: =IF(A25="","",VLOOKUP(A25,'Dat-Bl'!$B$4:$F$123,5)) -> RNMS Feldkirchen
B26: Bahn 7 | C26: =IF(A26="","",VLOOKUP(A26,'Dat-Bl'!$B$4:$F$123,2)) ->  | D26: =IF(A26="","",VLOOKUP(A26,'Dat-Bl'!$B$4:$F$123,3)) ->  | E26: =IF(A26="","",VLOOKUP(A26,'Dat-Bl'!$B$4:$F$123,5)) -> 
B27: Bahn 8 | C27: =IF(A27="","",VLOOKUP(A27,'Dat-Bl'!$B$4:$F$123,2)) ->  | D27: =IF(A27="","",VLOOKUP(A27,'Dat-Bl'!$B$4:$F$123,3)) ->  | E27: =IF(A27="","",VLOOKUP(A27,'Dat-Bl'!$B$4:$F$123,5)) -> 
A28: K-ziff | B28: Lauf | C28: Startnr.: | D28: Familienname Vorname | E28: =E1 -> Schule-60m-weiblich_C / D - Regel | F28: Zeit
B29: Bahn 1 | C29: =IF(A29="","",VLOOKUP(A29,'Dat-Bl'!$B$4:$F$123,2)) ->  | D29: =IF(A29="","",VLOOKUP(A29,'Dat-Bl'!$B$4:$F$123,3)) ->  | E29: =IF(A29="","",VLOOKUP(A29,'Dat-Bl'!$B$4:$F$123,5)) -> 
B30: Bahn 2 | C30: =IF(A30="","",VLOOKUP(A30,'Dat-Bl'!$B$4:$F$123,2)) ->  | D30: =IF(A30="","",VLOOKUP(A30,'Dat-Bl'!$B$4:$F$123,3)) ->  | E30: =IF(A30="","",VLOOKUP(A30,'Dat-Bl'!$B$4:$F$123,5)) -> 
B31: Bahn 3 | C31: =IF(A31="","",VLOOKUP(A31,'Dat-Bl'!$B$4:$F$123,2)) ->  | D31: =IF(A31="","",VLOOKUP(A31,'Dat-Bl'!$B$4:$F$123,3)) ->  | E31: =IF(A31="","",VLOOKUP(A31,'Dat-Bl'!$B$4:$F$123,5)) -> 
B32: Bahn 4 | C32: =IF(A32="","",VLOOKUP(A32,'Dat-Bl'!$B$4:$F$123,2)) ->  | D32: =IF(A32="","",VLOOKUP(A32,'Dat-Bl'!$B$4:$F$123,3)) ->  | E32: =IF(A32="","",VLOOKUP(A32,'Dat-Bl'!$B$4:$F$123,5)) -> 
B33: Bahn 5 | C33: =IF(A33="","",VLOOKUP(A33,'Dat-Bl'!$B$4:$F$123,2)) ->  | D33: =IF(A33="","",VLOOKUP(A33,'Dat-Bl'!$B$4:$F$123,3)) ->  | E33: =IF(A33="","",VLOOKUP(A33,'Dat-Bl'!$B$4:$F$123,5)) -> 
B34: Bahn 6 | C34: =IF(A34="","",VLOOKUP(A34,'Dat-Bl'!$B$4:$F$123,2)) ->  | D34: =IF(A34="","",VLOOKUP(A34,'Dat-Bl'!$B$4:$F$123,3)) ->  | E34: =IF(A34="","",VLOOKUP(A34,'Dat-Bl'!$B$4:$F$123,5)) -> 
B35: Bahn 7 | C35: =IF(A35="","",VLOOKUP(A35,'Dat-Bl'!$B$4:$F$123,2)) ->  | D35: =IF(A35="","",VLOOKUP(A35,'Dat-Bl'!$B$4:$F$123,3)) ->  | E35: =IF(A35="","",VLOOKUP(A35,'Dat-Bl'!$B$4:$F$123,5)) -> 
B36: Bahn 8 | C36: =IF(A36="","",VLOOKUP(A36,'Dat-Bl'!$B$4:$F$123,2)) ->  | D36: =IF(A36="","",VLOOKUP(A36,'Dat-Bl'!$B$4:$F$123,3)) ->  | E36: =IF(A36="","",VLOOKUP(A36,'Dat-Bl'!$B$4:$F$123,5)) -> 
A38: K-ziff | B38: Lauf | C38: Startnr.: | D38: Familienname Vorname | E38: Schule-60m-weiblich_C /D - Sport | F38: Zeit
B39: Bahn 1 | C39: =IF(A39="","",VLOOKUP(A39,'Dat-Bl'!$B$127:$F$246,2)) ->  | D39: =IF(A39="","",VLOOKUP(A39,'Dat-Bl'!$B$127:$F$246,3)) ->  | E39: =IF(A39="","",VLOOKUP(A39,'Dat-Bl'!$B$127:$F$246,5)) -> 
B40: Bahn 2 | C40: =IF(A40="","",VLOOKUP(A40,'Dat-Bl'!$B$127:$F$246,2)) ->  | D40: =IF(A40="","",VLOOKUP(A40,'Dat-Bl'!$B$127:$F$246,3)) ->  | E40: =IF(A40="","",VLOOKUP(A40,'Dat-Bl'!$B$127:$F$246,5)) -> 
B41: Bahn 3 | C41: =IF(A41="","",VLOOKUP(A41,'Dat-Bl'!$B$127:$F$246,2)) ->  | D41: =IF(A41="","",VLOOKUP(A41,'Dat-Bl'!$B$127:$F$246,3)) ->  | E41: =IF(A41="","",VLOOKUP(A41,'Dat-Bl'!$B$127:$F$246,5)) -> 
B42: Bahn 4 | C42: =IF(A42="","",VLOOKUP(A42,'Dat-Bl'!$B$127:$F$246,2)) ->  | D42: =IF(A42="","",VLOOKUP(A42,'Dat-Bl'!$B$127:$F$246,3)) ->  | E42: =IF(A42="","",VLOOKUP(A42,'Dat-Bl'!$B$127:$F$246,5)) -> 
B43: Bahn 5 | C43: =IF(A43="","",VLOOKUP(A43,'Dat-Bl'!$B$127:$F$246,2)) ->  | D43: =IF(A43="","",VLOOKUP(A43,'Dat-Bl'!$B$127:$F$246,3)) ->  | E43: =IF(A43="","",VLOOKUP(A43,'Dat-Bl'!$B$127:$F$246,5)) -> 
B44: Bahn 6 | C44: =IF(A44="","",VLOOKUP(A44,'Dat-Bl'!$B$127:$F$246,2)) ->  | D44: =IF(A44="","",VLOOKUP(A44,'Dat-Bl'!$B$127:$F$246,3)) ->  | E44: =IF(A44="","",VLOOKUP(A44,'Dat-Bl'!$B$127:$F$246,5)) -> 
B45: Bahn 7 | C45: =IF(A45="","",VLOOKUP(A45,'Dat-Bl'!$B$127:$F$246,2)) ->  | D45: =IF(A45="","",VLOOKUP(A45,'Dat-Bl'!$B$127:$F$246,3)) ->  | E45: =IF(A45="","",VLOOKUP(A45,'Dat-Bl'!$B$127:$F$246,5)) -> 
B46: Bahn 8 | C46: =IF(A46="","",VLOOKUP(A46,'Dat-Bl'!$B$127:$F$246,2)) ->  | D46: =IF(A46="","",VLOOKUP(A46,'Dat-Bl'!$B$127:$F$246,3)) ->  | E46: =IF(A46="","",VLOOKUP(A46,'Dat-Bl'!$B$127:$F$246,5)) -> 
A47: K-ziff | B47: Lauf | C47: Startnr.: | D47: Familienname Vorname | E47: =E38 -> Schule-60m-weiblich_C /D - Sport | F47: Zeit
B48: Bahn 1 | C48: =IF(A48="","",VLOOKUP(A48,'Dat-Bl'!$B$127:$F$246,2)) ->  | D48: =IF(A48="","",VLOOKUP(A48,'Dat-Bl'!$B$127:$F$246,3)) ->  | E48: =IF(A48="","",VLOOKUP(A48,'Dat-Bl'!$B$127:$F$246,5)) -> 
B49: Bahn 2 | C49: =IF(A49="","",VLOOKUP(A49,'Dat-Bl'!$B$127:$F$246,2)) ->  | D49: =IF(A49="","",VLOOKUP(A49,'Dat-Bl'!$B$127:$F$246,3)) ->  | E49: =IF(A49="","",VLOOKUP(A49,'Dat-Bl'!$B$127:$F$246,5)) -> 
B50: Bahn 3 | C50: =IF(A50="","",VLOOKUP(A50,'Dat-Bl'!$B$127:$F$246,2)) ->  | D50: =IF(A50="","",VLOOKUP(A50,'Dat-Bl'!$B$127:$F$246,3)) ->  | E50: =IF(A50="","",VLOOKUP(A50,'Dat-Bl'!$B$127:$F$246,5)) -> 
B51: Bahn 4 | C51: =IF(A51="","",VLOOKUP(A51,'Dat-Bl'!$B$127:$F$246,2)) ->  | D51: =IF(A51="","",VLOOKUP(A51,'Dat-Bl'!$B$127:$F$246,3)) ->  | E51: =IF(A51="","",VLOOKUP(A51,'Dat-Bl'!$B$127:$F$246,5)) -> 
B52: Bahn 5 | C52: =IF(A52="","",VLOOKUP(A52,'Dat-Bl'!$B$127:$F$246,2)) ->  | D52: =IF(A52="","",VLOOKUP(A52,'Dat-Bl'!$B$127:$F$246,3)) ->  | E52: =IF(A52="","",VLOOKUP(A52,'Dat-Bl'!$B$127:$F$246,5)) -> 
B53: Bahn 6 | C53: =IF(A53="","",VLOOKUP(A53,'Dat-Bl'!$B$127:$F$246,2)) ->  | D53: =IF(A53="","",VLOOKUP(A53,'Dat-Bl'!$B$127:$F$246,3)) ->  | E53: =IF(A53="","",VLOOKUP(A53,'Dat-Bl'!$B$127:$F$246,5)) -> 
B54: Bahn 7 | C54: =IF(A54="","",VLOOKUP(A54,'Dat-Bl'!$B$127:$F$246,2)) ->  | D54: =IF(A54="","",VLOOKUP(A54,'Dat-Bl'!$B$127:$F$246,3)) ->  | E54: =IF(A54="","",VLOOKUP(A54,'Dat-Bl'!$B$127:$F$246,5)) -> 
B55: Bahn 8 | C55: =IF(A55="","",VLOOKUP(A55,'Dat-Bl'!$B$127:$F$246,2)) ->  | D55: =IF(A55="","",VLOOKUP(A55,'Dat-Bl'!$B$127:$F$246,3)) ->  | E55: =IF(A55="","",VLOOKUP(A55,'Dat-Bl'!$B$127:$F$246,5)) -> 
A56: K-ziff | B56: Lauf | C56: Startnr.: | D56: Familienname Vorname | E56: =E38 -> Schule-60m-weiblich_C /D - Sport | F56: Zeit
B57: Bahn 1 | C57: =IF(A57="","",VLOOKUP(A57,'Dat-Bl'!$B$127:$F$246,2)) ->  | D57: =IF(A57="","",VLOOKUP(A57,'Dat-Bl'!$B$127:$F$246,3)) ->  | E57: =IF(A57="","",VLOOKUP(A57,'Dat-Bl'!$B$127:$F$246,5)) -> 
B58: Bahn 2 | C58: =IF(A58="","",VLOOKUP(A58,'Dat-Bl'!$B$127:$F$246,2)) ->  | D58: =IF(A58="","",VLOOKUP(A58,'Dat-Bl'!$B$127:$F$246,3)) ->  | E58: =IF(A58="","",VLOOKUP(A58,'Dat-Bl'!$B$127:$F$246,5)) -> 
B59: Bahn 3 | C59: =IF(A59="","",VLOOKUP(A59,'Dat-Bl'!$B$127:$F$246,2)) ->  | D59: =IF(A59="","",VLOOKUP(A59,'Dat-Bl'!$B$127:$F$246,3)) ->  | E59: =IF(A59="","",VLOOKUP(A59,'Dat-Bl'!$B$127:$F$246,5)) -> 
B60: Bahn 4 | C60: =IF(A60="","",VLOOKUP(A60,'Dat-Bl'!$B$127:$F$246,2)) ->  | D60: =IF(A60="","",VLOOKUP(A60,'Dat-Bl'!$B$127:$F$246,3)) ->  | E60: =IF(A60="","",VLOOKUP(A60,'Dat-Bl'!$B$127:$F$246,5)) -> 
B61: Bahn 5 | C61: =IF(A61="","",VLOOKUP(A61,'Dat-Bl'!$B$127:$F$246,2)) ->  | D61: =IF(A61="","",VLOOKUP(A61,'Dat-Bl'!$B$127:$F$246,3)) ->  | E61: =IF(A61="","",VLOOKUP(A61,'Dat-Bl'!$B$127:$F$246,5)) -> 
B62: Bahn 6 | C62: =IF(A62="","",VLOOKUP(A62,'Dat-Bl'!$B$127:$F$246,2)) ->  | D62: =IF(A62="","",VLOOKUP(A62,'Dat-Bl'!$B$127:$F$246,3)) ->  | E62: =IF(A62="","",VLOOKUP(A62,'Dat-Bl'!$B$127:$F$246,5)) -> 
B63: Bahn 7 | C63: =IF(A63="","",VLOOKUP(A63,'Dat-Bl'!$B$127:$F$246,2)) ->  | D63: =IF(A63="","",VLOOKUP(A63,'Dat-Bl'!$B$127:$F$246,3)) ->  | E63: =IF(A63="","",VLOOKUP(A63,'Dat-Bl'!$B$127:$F$246,5)) -> 
B64: Bahn 8 | C64: =IF(A64="","",VLOOKUP(A64,'Dat-Bl'!$B$127:$F$246,2)) ->  | D64: =IF(A64="","",VLOOKUP(A64,'Dat-Bl'!$B$127:$F$246,3)) ->  | E64: =IF(A64="","",VLOOKUP(A64,'Dat-Bl'!$B$127:$F$246,5)) -> 
A65: K-ziff | B65: Lauf | C65: Startnr.: | D65: Familienname Vorname | E65: =E38 -> Schule-60m-weiblich_C /D - Sport | F65: Zeit
B66: Bahn 1 | C66: =IF(A66="","",VLOOKUP(A66,'Dat-Bl'!$B$127:$F$246,2)) ->  | D66: =IF(A66="","",VLOOKUP(A66,'Dat-Bl'!$B$127:$F$246,3)) ->  | E66: =IF(A66="","",VLOOKUP(A66,'Dat-Bl'!$B$127:$F$246,5)) -> 
B67: Bahn 2 | C67: =IF(A67="","",VLOOKUP(A67,'Dat-Bl'!$B$127:$F$246,2)) ->  | D67: =IF(A67="","",VLOOKUP(A67,'Dat-Bl'!$B$127:$F$246,3)) ->  | E67: =IF(A67="","",VLOOKUP(A67,'Dat-Bl'!$B$127:$F$246,5)) -> 
B68: Bahn 3 | C68: =IF(A68="","",VLOOKUP(A68,'Dat-Bl'!$B$127:$F$246,2)) ->  | D68: =IF(A68="","",VLOOKUP(A68,'Dat-Bl'!$B$127:$F$246,3)) ->  | E68: =IF(A68="","",VLOOKUP(A68,'Dat-Bl'!$B$127:$F$246,5)) -> 
B69: Bahn 4 | C69: =IF(A69="","",VLOOKUP(A69,'Dat-Bl'!$B$127:$F$246,2)) ->  | D69: =IF(A69="","",VLOOKUP(A69,'Dat-Bl'!$B$127:$F$246,3)) ->  | E69: =IF(A69="","",VLOOKUP(A69,'Dat-Bl'!$B$127:$F$246,5)) -> 
B70: Bahn 5 | C70: =IF(A70="","",VLOOKUP(A70,'Dat-Bl'!$B$127:$F$246,2)) ->  | D70: =IF(A70="","",VLOOKUP(A70,'Dat-Bl'!$B$127:$F$246,3)) ->  | E70: =IF(A70="","",VLOOKUP(A70,'Dat-Bl'!$B$127:$F$246,5)) -> 
B71: Bahn 6 | C71: =IF(A71="","",VLOOKUP(A71,'Dat-Bl'!$B$127:$F$246,2)) ->  | D71: =IF(A71="","",VLOOKUP(A71,'Dat-Bl'!$B$127:$F$246,3)) ->  | E71: =IF(A71="","",VLOOKUP(A71,'Dat-Bl'!$B$127:$F$246,5)) -> 
B72: Bahn 7 | C72: =IF(A72="","",VLOOKUP(A72,'Dat-Bl'!$B$127:$F$246,2)) ->  | D72: =IF(A72="","",VLOOKUP(A72,'Dat-Bl'!$B$127:$F$246,3)) ->  | E72: =IF(A72="","",VLOOKUP(A72,'Dat-Bl'!$B$127:$F$246,5)) -> 
B73: Bahn 8 | C73: =IF(A73="","",VLOOKUP(A73,'Dat-Bl'!$B$127:$F$246,2)) ->  | D73: =IF(A73="","",VLOOKUP(A73,'Dat-Bl'!$B$127:$F$246,3)) ->  | E73: =IF(A73="","",VLOOKUP(A73,'Dat-Bl'!$B$127:$F$246,5)) -> 
A75: K-ziff | B75: Lauf | C75: Startnr.: | D75: Familienname Vorname | E75: Schule-60m-männlich_C / D - Regel | F75: Zeit
B76: Bahn 1 | C76: =IF(A76="","",VLOOKUP(A76,'Dat-Bl'!$J$4:$N$123,2)) ->  | D76: =IF(A76="","",VLOOKUP(A76,'Dat-Bl'!$J$4:$N$123,3)) ->  | E76: =IF(A76="","",VLOOKUP(A76,'Dat-Bl'!$J$4:$N$123,5)) -> 
B77: Bahn 2 | C77: =IF(A77="","",VLOOKUP(A77,'Dat-Bl'!$J$4:$N$123,2)) ->  | D77: =IF(A77="","",VLOOKUP(A77,'Dat-Bl'!$J$4:$N$123,3)) ->  | E77: =IF(A77="","",VLOOKUP(A77,'Dat-Bl'!$J$4:$N$123,5)) -> 
B78: Bahn 3 | C78: =IF(A78="","",VLOOKUP(A78,'Dat-Bl'!$J$4:$N$123,2)) ->  | D78: =IF(A78="","",VLOOKUP(A78,'Dat-Bl'!$J$4:$N$123,3)) ->  | E78: =IF(A78="","",VLOOKUP(A78,'Dat-Bl'!$J$4:$N$123,5)) -> 
B79: Bahn 4 | C79: =IF(A79="","",VLOOKUP(A79,'Dat-Bl'!$J$4:$N$123,2)) ->  | D79: =IF(A79="","",VLOOKUP(A79,'Dat-Bl'!$J$4:$N$123,3)) ->  | E79: =IF(A79="","",VLOOKUP(A79,'Dat-Bl'!$J$4:$N$123,5)) -> 
B80: Bahn 5 | C80: =IF(A80="","",VLOOKUP(A80,'Dat-Bl'!$J$4:$N$123,2)) ->  | D80: =IF(A80="","",VLOOKUP(A80,'Dat-Bl'!$J$4:$N$123,3)) ->  | E80: =IF(A80="","",VLOOKUP(A80,'Dat-Bl'!$J$4:$N$123,5)) -> 
B81: Bahn 6 | C81: =IF(A81="","",VLOOKUP(A81,'Dat-Bl'!$J$4:$N$123,2)) ->  | D81: =IF(A81="","",VLOOKUP(A81,'Dat-Bl'!$J$4:$N$123,3)) ->  | E81: =IF(A81="","",VLOOKUP(A81,'Dat-Bl'!$J$4:$N$123,5)) -> 
B82: Bahn 7 | C82: =IF(A82="","",VLOOKUP(A82,'Dat-Bl'!$J$4:$N$123,2)) ->  | D82: =IF(A82="","",VLOOKUP(A82,'Dat-Bl'!$J$4:$N$123,3)) ->  | E82: =IF(A82="","",VLOOKUP(A82,'Dat-Bl'!$J$4:$N$123,5)) -> 
B83: Bahn 8 | C83: =IF(A83="","",VLOOKUP(A83,'Dat-Bl'!$J$4:$N$123,2)) ->  | D83: =IF(A83="","",VLOOKUP(A83,'Dat-Bl'!$J$4:$N$123,3)) ->  | E83: =IF(A83="","",VLOOKUP(A83,'Dat-Bl'!$J$4:$N$123,5)) -> 
A84: K-ziff | B84: Lauf | C84: Startnr.: | D84: Familienname Vorname | E84: =E75 -> Schule-60m-männlich_C / D - Regel | F84: Zeit
B85: Bahn 1 | C85: =IF(A85="","",VLOOKUP(A85,'Dat-Bl'!$J$4:$N$123,2)) ->  | D85: =IF(A85="","",VLOOKUP(A85,'Dat-Bl'!$J$4:$N$123,3)) ->  | E85: =IF(A85="","",VLOOKUP(A85,'Dat-Bl'!$J$4:$N$123,5)) -> 
B86: Bahn 2 | C86: =IF(A86="","",VLOOKUP(A86,'Dat-Bl'!$J$4:$N$123,2)) ->  | D86: =IF(A86="","",VLOOKUP(A86,'Dat-Bl'!$J$4:$N$123,3)) ->  | E86: =IF(A86="","",VLOOKUP(A86,'Dat-Bl'!$J$4:$N$123,5)) -> 
B87: Bahn 3 | C87: =IF(A87="","",VLOOKUP(A87,'Dat-Bl'!$J$4:$N$123,2)) ->  | D87: =IF(A87="","",VLOOKUP(A87,'Dat-Bl'!$J$4:$N$123,3)) ->  | E87: =IF(A87="","",VLOOKUP(A87,'Dat-Bl'!$J$4:$N$123,5)) -> 
B88: Bahn 4 | C88: =IF(A88="","",VLOOKUP(A88,'Dat-Bl'!$J$4:$N$123,2)) ->  | D88: =IF(A88="","",VLOOKUP(A88,'Dat-Bl'!$J$4:$N$123,3)) ->  | E88: =IF(A88="","",VLOOKUP(A88,'Dat-Bl'!$J$4:$N$123,5)) -> 
B89: Bahn 5 | C89: =IF(A89="","",VLOOKUP(A89,'Dat-Bl'!$J$4:$N$123,2)) ->  | D89: =IF(A89="","",VLOOKUP(A89,'Dat-Bl'!$J$4:$N$123,3)) ->  | E89: =IF(A89="","",VLOOKUP(A89,'Dat-Bl'!$J$4:$N$123,5)) -> 
B90: Bahn 6 | C90: =IF(A90="","",VLOOKUP(A90,'Dat-Bl'!$J$4:$N$123,2)) ->  | D90: =IF(A90="","",VLOOKUP(A90,'Dat-Bl'!$J$4:$N$123,3)) ->  | E90: =IF(A90="","",VLOOKUP(A90,'Dat-Bl'!$J$4:$N$123,5)) -> 
B91: Bahn 7 | C91: =IF(A91="","",VLOOKUP(A91,'Dat-Bl'!$J$4:$N$123,2)) ->  | D91: =IF(A91="","",VLOOKUP(A91,'Dat-Bl'!$J$4:$N$123,3)) ->  | E91: =IF(A91="","",VLOOKUP(A91,'Dat-Bl'!$J$4:$N$123,5)) -> 
B92: Bahn 8 | C92: =IF(A92="","",VLOOKUP(A92,'Dat-Bl'!$J$4:$N$123,2)) ->  | D92: =IF(A92="","",VLOOKUP(A92,'Dat-Bl'!$J$4:$N$123,3)) ->  | E92: =IF(A92="","",VLOOKUP(A92,'Dat-Bl'!$J$4:$N$123,5)) -> 
A93: K-ziff | B93: Lauf | C93: Startnr.: | D93: Familienname Vorname | E93: =E75 -> Schule-60m-männlich_C / D - Regel | F93: Zeit
B94: Bahn 1 | C94: =IF(A94="","",VLOOKUP(A94,'Dat-Bl'!$J$4:$N$123,2)) ->  | D94: =IF(A94="","",VLOOKUP(A94,'Dat-Bl'!$J$4:$N$123,3)) ->  | E94: =IF(A94="","",VLOOKUP(A94,'Dat-Bl'!$J$4:$N$123,5)) -> 
B95: Bahn 2 | C95: =IF(A95="","",VLOOKUP(A95,'Dat-Bl'!$J$4:$N$123,2)) ->  | D95: =IF(A95="","",VLOOKUP(A95,'Dat-Bl'!$J$4:$N$123,3)) ->  | E95: =IF(A95="","",VLOOKUP(A95,'Dat-Bl'!$J$4:$N$123,5)) -> 
B96: Bahn 3 | C96: =IF(A96="","",VLOOKUP(A96,'Dat-Bl'!$J$4:$N$123,2)) ->  | D96: =IF(A96="","",VLOOKUP(A96,'Dat-Bl'!$J$4:$N$123,3)) ->  | E96: =IF(A96="","",VLOOKUP(A96,'Dat-Bl'!$J$4:$N$123,5)) -> 
B97: Bahn 4 | C97: =IF(A97="","",VLOOKUP(A97,'Dat-Bl'!$J$4:$N$123,2)) ->  | D97: =IF(A97="","",VLOOKUP(A97,'Dat-Bl'!$J$4:$N$123,3)) ->  | E97: =IF(A97="","",VLOOKUP(A97,'Dat-Bl'!$J$4:$N$123,5)) -> 
B98: Bahn 5 | C98: =IF(A98="","",VLOOKUP(A98,'Dat-Bl'!$J$4:$N$123,2)) ->  | D98: =IF(A98="","",VLOOKUP(A98,'Dat-Bl'!$J$4:$N$123,3)) ->  | E98: =IF(A98="","",VLOOKUP(A98,'Dat-Bl'!$J$4:$N$123,5)) -> 
B99: Bahn 6 | C99: =IF(A99="","",VLOOKUP(A99,'Dat-Bl'!$J$4:$N$123,2)) ->  | D99: =IF(A99="","",VLOOKUP(A99,'Dat-Bl'!$J$4:$N$123,3)) ->  | E99: =IF(A99="","",VLOOKUP(A99,'Dat-Bl'!$J$4:$N$123,5)) -> 
B100: Bahn 7 | C100: =IF(A100="","",VLOOKUP(A100,'Dat-Bl'!$J$4:$N$123,2)) ->  | D100: =IF(A100="","",VLOOKUP(A100,'Dat-Bl'!$J$4:$N$123,3)) ->  | E100: =IF(A100="","",VLOOKUP(A100,'Dat-Bl'!$J$4:$N$123,5)) -> 
B101: Bahn 8 | C101: =IF(A101="","",VLOOKUP(A101,'Dat-Bl'!$J$4:$N$123,2)) ->  | D101: =IF(A101="","",VLOOKUP(A101,'Dat-Bl'!$J$4:$N$123,3)) ->  | E101: =IF(A101="","",VLOOKUP(A101,'Dat-Bl'!$J$4:$N$123,5)) -> 
A102: K-ziff | B102: Lauf | C102: Startnr.: | D102: Familienname Vorname | E102: =E75 -> Schule-60m-männlich_C / D - Regel | F102: Zeit
B103: Bahn 1 | C103: =IF(A103="","",VLOOKUP(A103,'Dat-Bl'!$J$4:$N$123,2)) ->  | D103: =IF(A103="","",VLOOKUP(A103,'Dat-Bl'!$J$4:$N$123,3)) ->  | E103: =IF(A103="","",VLOOKUP(A103,'Dat-Bl'!$J$4:$N$123,5)) -> 
B104: Bahn 2 | C104: =IF(A104="","",VLOOKUP(A104,'Dat-Bl'!$J$4:$N$123,2)) ->  | D104: =IF(A104="","",VLOOKUP(A104,'Dat-Bl'!$J$4:$N$123,3)) ->  | E104: =IF(A104="","",VLOOKUP(A104,'Dat-Bl'!$J$4:$N$123,5)) -> 
B105: Bahn 3 | C105: =IF(A105="","",VLOOKUP(A105,'Dat-Bl'!$J$4:$N$123,2)) ->  | D105: =IF(A105="","",VLOOKUP(A105,'Dat-Bl'!$J$4:$N$123,3)) ->  | E105: =IF(A105="","",VLOOKUP(A105,'Dat-Bl'!$J$4:$N$123,5)) -> 
B106: Bahn 4 | C106: =IF(A106="","",VLOOKUP(A106,'Dat-Bl'!$J$4:$N$123,2)) ->  | D106: =IF(A106="","",VLOOKUP(A106,'Dat-Bl'!$J$4:$N$123,3)) ->  | E106: =IF(A106="","",VLOOKUP(A106,'Dat-Bl'!$J$4:$N$123,5)) -> 
B107: Bahn 5 | C107: =IF(A107="","",VLOOKUP(A107,'Dat-Bl'!$J$4:$N$123,2)) ->  | D107: =IF(A107="","",VLOOKUP(A107,'Dat-Bl'!$J$4:$N$123,3)) ->  | E107: =IF(A107="","",VLOOKUP(A107,'Dat-Bl'!$J$4:$N$123,5)) -> 
B108: Bahn 6 | C108: =IF(A108="","",VLOOKUP(A108,'Dat-Bl'!$J$4:$N$123,2)) ->  | D108: =IF(A108="","",VLOOKUP(A108,'Dat-Bl'!$J$4:$N$123,3)) ->  | E108: =IF(A108="","",VLOOKUP(A108,'Dat-Bl'!$J$4:$N$123,5)) -> 
B109: Bahn 7 | C109: =IF(A109="","",VLOOKUP(A109,'Dat-Bl'!$J$4:$N$123,2)) ->  | D109: =IF(A109="","",VLOOKUP(A109,'Dat-Bl'!$J$4:$N$123,3)) ->  | E109: =IF(A109="","",VLOOKUP(A109,'Dat-Bl'!$J$4:$N$123,5)) -> 
B110: Bahn 8 | C110: =IF(A110="","",VLOOKUP(A110,'Dat-Bl'!$J$4:$N$123,2)) ->  | D110: =IF(A110="","",VLOOKUP(A110,'Dat-Bl'!$J$4:$N$123,3)) ->  | E110: =IF(A110="","",VLOOKUP(A110,'Dat-Bl'!$J$4:$N$123,5)) -> 
A112: K-ziff | B112: Lauf | C112: Startnr.: | D112: Familienname Vorname | E112: Schule-60m-männlich_C /D - Sport | F112: Zeit
B113: Bahn 1 | C113: =IF(A113="","",VLOOKUP(A113,'Dat-Bl'!$J$127:$N$246,2)) ->  | D113: =IF(A113="","",VLOOKUP(A113,'Dat-Bl'!$J$127:$N$246,3)) ->  | E113: =IF(A113="","",VLOOKUP(A113,'Dat-Bl'!$J$127:$N$246,5)) -> 
B114: Bahn 2 | C114: =IF(A114="","",VLOOKUP(A114,'Dat-Bl'!$J$127:$N$246,2)) ->  | D114: =IF(A114="","",VLOOKUP(A114,'Dat-Bl'!$J$127:$N$246,3)) ->  | E114: =IF(A114="","",VLOOKUP(A114,'Dat-Bl'!$J$127:$N$246,5)) -> 
B115: Bahn 3 | C115: =IF(A115="","",VLOOKUP(A115,'Dat-Bl'!$J$127:$N$246,2)) ->  | D115: =IF(A115="","",VLOOKUP(A115,'Dat-Bl'!$J$127:$N$246,3)) ->  | E115: =IF(A115="","",VLOOKUP(A115,'Dat-Bl'!$J$127:$N$246,5)) -> 
B116: Bahn 4 | C116: =IF(A116="","",VLOOKUP(A116,'Dat-Bl'!$J$127:$N$246,2)) ->  | D116: =IF(A116="","",VLOOKUP(A116,'Dat-Bl'!$J$127:$N$246,3)) ->  | E116: =IF(A116="","",VLOOKUP(A116,'Dat-Bl'!$J$127:$N$246,5)) -> 
B117: Bahn 5 | C117: =IF(A117="","",VLOOKUP(A117,'Dat-Bl'!$J$127:$N$246,2)) ->  | D117: =IF(A117="","",VLOOKUP(A117,'Dat-Bl'!$J$127:$N$246,3)) ->  | E117: =IF(A117="","",VLOOKUP(A117,'Dat-Bl'!$J$127:$N$246,5)) -> 
B118: Bahn 6 | C118: =IF(A118="","",VLOOKUP(A118,'Dat-Bl'!$J$127:$N$246,2)) ->  | D118: =IF(A118="","",VLOOKUP(A118,'Dat-Bl'!$J$127:$N$246,3)) ->  | E118: =IF(A118="","",VLOOKUP(A118,'Dat-Bl'!$J$127:$N$246,5)) -> 
B119: Bahn 7 | C119: =IF(A119="","",VLOOKUP(A119,'Dat-Bl'!$J$127:$N$246,2)) ->  | D119: =IF(A119="","",VLOOKUP(A119,'Dat-Bl'!$J$127:$N$246,3)) ->  | E119: =IF(A119="","",VLOOKUP(A119,'Dat-Bl'!$J$127:$N$246,5)) -> 
B120: Bahn 8 | C120: =IF(A120="","",VLOOKUP(A120,'Dat-Bl'!$J$127:$N$246,2)) ->  | D120: =IF(A120="","",VLOOKUP(A120,'Dat-Bl'!$J$127:$N$246,3)) ->  | E120: =IF(A120="","",VLOOKUP(A120,'Dat-Bl'!$J$127:$N$246,5)) -> 
A121: K-ziff | B121: Lauf | C121: Startnr.: | D121: Familienname Vorname | E121: =E112 -> Schule-60m-männlich_C /D - Sport | F121: Zeit
B122: Bahn 1 | C122: =IF(A122="","",VLOOKUP(A122,'Dat-Bl'!$J$127:$N$246,2)) ->  | D122: =IF(A122="","",VLOOKUP(A122,'Dat-Bl'!$J$127:$N$246,3)) ->  | E122: =IF(A122="","",VLOOKUP(A122,'Dat-Bl'!$J$127:$N$246,5)) -> 
B123: Bahn 2 | C123: =IF(A123="","",VLOOKUP(A123,'Dat-Bl'!$J$127:$N$246,2)) ->  | D123: =IF(A123="","",VLOOKUP(A123,'Dat-Bl'!$J$127:$N$246,3)) ->  | E123: =IF(A123="","",VLOOKUP(A123,'Dat-Bl'!$J$127:$N$246,5)) -> 
B124: Bahn 3 | C124: =IF(A124="","",VLOOKUP(A124,'Dat-Bl'!$J$127:$N$246,2)) ->  | D124: =IF(A124="","",VLOOKUP(A124,'Dat-Bl'!$J$127:$N$246,3)) ->  | E124: =IF(A124="","",VLOOKUP(A124,'Dat-Bl'!$J$127:$N$246,5)) -> 
B125: Bahn 4 | C125: =IF(A125="","",VLOOKUP(A125,'Dat-Bl'!$J$127:$N$246,2)) ->  | D125: =IF(A125="","",VLOOKUP(A125,'Dat-Bl'!$J$127:$N$246,3)) ->  | E125: =IF(A125="","",VLOOKUP(A125,'Dat-Bl'!$J$127:$N$246,5)) -> 
B126: Bahn 5 | C126: =IF(A126="","",VLOOKUP(A126,'Dat-Bl'!$J$127:$N$246,2)) ->  | D126: =IF(A126="","",VLOOKUP(A126,'Dat-Bl'!$J$127:$N$246,3)) ->  | E126: =IF(A126="","",VLOOKUP(A126,'Dat-Bl'!$J$127:$N$246,5)) -> 
B127: Bahn 6 | C127: =IF(A127="","",VLOOKUP(A127,'Dat-Bl'!$J$127:$N$246,2)) ->  | D127: =IF(A127="","",VLOOKUP(A127,'Dat-Bl'!$J$127:$N$246,3)) ->  | E127: =IF(A127="","",VLOOKUP(A127,'Dat-Bl'!$J$127:$N$246,5)) -> 
B128: Bahn 7 | C128: =IF(A128="","",VLOOKUP(A128,'Dat-Bl'!$J$127:$N$246,2)) ->  | D128: =IF(A128="","",VLOOKUP(A128,'Dat-Bl'!$J$127:$N$246,3)) ->  | E128: =IF(A128="","",VLOOKUP(A128,'Dat-Bl'!$J$127:$N$246,5)) -> 
B129: Bahn 8 | C129: =IF(A129="","",VLOOKUP(A129,'Dat-Bl'!$J$127:$N$246,2)) ->  | D129: =IF(A129="","",VLOOKUP(A129,'Dat-Bl'!$J$127:$N$246,3)) ->  | E129: =IF(A129="","",VLOOKUP(A129,'Dat-Bl'!$J$127:$N$246,5)) -> 
A130: K-ziff | B130: Lauf | C130: Startnr.: | D130: Familienname Vorname | E130: =E112 -> Schule-60m-männlich_C /D - Sport | F130: Zeit
B131: Bahn 1 | C131: =IF(A131="","",VLOOKUP(A131,'Dat-Bl'!$J$127:$N$246,2)) ->  | D131: =IF(A131="","",VLOOKUP(A131,'Dat-Bl'!$J$127:$N$246,3)) ->  | E131: =IF(A131="","",VLOOKUP(A131,'Dat-Bl'!$J$127:$N$246,5)) -> 
B132: Bahn 2 | C132: =IF(A132="","",VLOOKUP(A132,'Dat-Bl'!$J$127:$N$246,2)) ->  | D132: =IF(A132="","",VLOOKUP(A132,'Dat-Bl'!$J$127:$N$246,3)) ->  | E132: =IF(A132="","",VLOOKUP(A132,'Dat-Bl'!$J$127:$N$246,5)) -> 
B133: Bahn 3 | C133: =IF(A133="","",VLOOKUP(A133,'Dat-Bl'!$J$127:$N$246,2)) ->  | D133: =IF(A133="","",VLOOKUP(A133,'Dat-Bl'!$J$127:$N$246,3)) ->  | E133: =IF(A133="","",VLOOKUP(A133,'Dat-Bl'!$J$127:$N$246,5)) -> 
B134: Bahn 4 | C134: =IF(A134="","",VLOOKUP(A134,'Dat-Bl'!$J$127:$N$246,2)) ->  | D134: =IF(A134="","",VLOOKUP(A134,'Dat-Bl'!$J$127:$N$246,3)) ->  | E134: =IF(A134="","",VLOOKUP(A134,'Dat-Bl'!$J$127:$N$246,5)) -> 
B135: Bahn 5 | C135: =IF(A135="","",VLOOKUP(A135,'Dat-Bl'!$J$127:$N$246,2)) ->  | D135: =IF(A135="","",VLOOKUP(A135,'Dat-Bl'!$J$127:$N$246,3)) ->  | E135: =IF(A135="","",VLOOKUP(A135,'Dat-Bl'!$J$127:$N$246,5)) -> 
B136: Bahn 6 | C136: =IF(A136="","",VLOOKUP(A136,'Dat-Bl'!$J$127:$N$246,2)) ->  | D136: =IF(A136="","",VLOOKUP(A136,'Dat-Bl'!$J$127:$N$246,3)) ->  | E136: =IF(A136="","",VLOOKUP(A136,'Dat-Bl'!$J$127:$N$246,5)) -> 
B137: Bahn 7 | C137: =IF(A137="","",VLOOKUP(A137,'Dat-Bl'!$J$127:$N$246,2)) ->  | D137: =IF(A137="","",VLOOKUP(A137,'Dat-Bl'!$J$127:$N$246,3)) ->  | E137: =IF(A137="","",VLOOKUP(A137,'Dat-Bl'!$J$127:$N$246,5)) -> 
B138: Bahn 8 | C138: =IF(A138="","",VLOOKUP(A138,'Dat-Bl'!$J$127:$N$246,2)) ->  | D138: =IF(A138="","",VLOOKUP(A138,'Dat-Bl'!$J$127:$N$246,3)) ->  | E138: =IF(A138="","",VLOOKUP(A138,'Dat-Bl'!$J$127:$N$246,5)) -> 
A139: K-ziff | B139: Lauf | C139: Startnr.: | D139: Familienname Vorname | E139: =E112 -> Schule-60m-männlich_C /D - Sport | F139: Zeit
B140: Bahn 1 | C140: =IF(A140="","",VLOOKUP(A140,'Dat-Bl'!$J$127:$N$246,2)) ->  | D140: =IF(A140="","",VLOOKUP(A140,'Dat-Bl'!$J$127:$N$246,3)) ->  | E140: =IF(A140="","",VLOOKUP(A140,'Dat-Bl'!$J$127:$N$246,5)) -> 
B141: Bahn 2 | C141: =IF(A141="","",VLOOKUP(A141,'Dat-Bl'!$J$127:$N$246,2)) ->  | D141: =IF(A141="","",VLOOKUP(A141,'Dat-Bl'!$J$127:$N$246,3)) ->  | E141: =IF(A141="","",VLOOKUP(A141,'Dat-Bl'!$J$127:$N$246,5)) -> 
B142: Bahn 3 | C142: =IF(A142="","",VLOOKUP(A142,'Dat-Bl'!$J$127:$N$246,2)) ->  | D142: =IF(A142="","",VLOOKUP(A142,'Dat-Bl'!$J$127:$N$246,3)) ->  | E142: =IF(A142="","",VLOOKUP(A142,'Dat-Bl'!$J$127:$N$246,5)) -> 
B143: Bahn 4 | C143: =IF(A143="","",VLOOKUP(A143,'Dat-Bl'!$J$127:$N$246,2)) ->  | D143: =IF(A143="","",VLOOKUP(A143,'Dat-Bl'!$J$127:$N$246,3)) ->  | E143: =IF(A143="","",VLOOKUP(A143,'Dat-Bl'!$J$127:$N$246,5)) -> 
B144: Bahn 5 | C144: =IF(A144="","",VLOOKUP(A144,'Dat-Bl'!$J$127:$N$246,2)) ->  | D144: =IF(A144="","",VLOOKUP(A144,'Dat-Bl'!$J$127:$N$246,3)) ->  | E144: =IF(A144="","",VLOOKUP(A144,'Dat-Bl'!$J$127:$N$246,5)) -> 
B145: Bahn 6 | C145: =IF(A145="","",VLOOKUP(A145,'Dat-Bl'!$J$127:$N$246,2)) ->  | D145: =IF(A145="","",VLOOKUP(A145,'Dat-Bl'!$J$127:$N$246,3)) ->  | E145: =IF(A145="","",VLOOKUP(A145,'Dat-Bl'!$J$127:$N$246,5)) -> 
B146: Bahn 7 | C146: =IF(A146="","",VLOOKUP(A146,'Dat-Bl'!$J$127:$N$246,2)) ->  | D146: =IF(A146="","",VLOOKUP(A146,'Dat-Bl'!$J$127:$N$246,3)) ->  | E146: =IF(A146="","",VLOOKUP(A146,'Dat-Bl'!$J$127:$N$246,5)) -> 
B147: Bahn 8 | C147: =IF(A147="","",VLOOKUP(A147,'Dat-Bl'!$J$127:$N$246,2)) ->  | D147: =IF(A147="","",VLOOKUP(A147,'Dat-Bl'!$J$127:$N$246,3)) ->  | E147: =IF(A147="","",VLOOKUP(A147,'Dat-Bl'!$J$127:$N$246,5)) -> 

Sheet P-Wurf
C1: Schlagball/Kugel | D1: Weiblich_D,C / Regel | F1: Anlage | H1: Uhr:
A2: K-ziff | B2: Startnr.: | C2: Name | D2: Schule | E2: 1. Versuch | F2: 2. Versuch | G2: 3. Versuch | H2: Bester V.
B3: =IF(A3="","",VLOOKUP(A3,'Dat-Bl'!$B$4:$F$123,2)) ->  | C3: =IF(A3="","",VLOOKUP(A3,'Dat-Bl'!$B$4:$F$123,3)) ->  | D3: =IF(A3="","",VLOOKUP(A3,'Dat-Bl'!$B$4:$F$123,5)) -> 
B4: =IF(A4="","",VLOOKUP(A4,'Dat-Bl'!$B$4:$F$123,2)) ->  | C4: =IF(A4="","",VLOOKUP(A4,'Dat-Bl'!$B$4:$F$123,3)) ->  | D4: =IF(A4="","",VLOOKUP(A4,'Dat-Bl'!$B$4:$F$123,5)) -> 
B5: =IF(A5="","",VLOOKUP(A5,'Dat-Bl'!$B$4:$F$123,2)) ->  | C5: =IF(A5="","",VLOOKUP(A5,'Dat-Bl'!$B$4:$F$123,3)) ->  | D5: =IF(A5="","",VLOOKUP(A5,'Dat-Bl'!$B$4:$F$123,5)) -> 
B6: =IF(A6="","",VLOOKUP(A6,'Dat-Bl'!$B$4:$F$123,2)) ->  | C6: =IF(A6="","",VLOOKUP(A6,'Dat-Bl'!$B$4:$F$123,3)) ->  | D6: =IF(A6="","",VLOOKUP(A6,'Dat-Bl'!$B$4:$F$123,5)) -> 
B7: =IF(A7="","",VLOOKUP(A7,'Dat-Bl'!$B$4:$F$123,2)) ->  | C7: =IF(A7="","",VLOOKUP(A7,'Dat-Bl'!$B$4:$F$123,3)) ->  | D7: =IF(A7="","",VLOOKUP(A7,'Dat-Bl'!$B$4:$F$123,5)) -> 
B8: =IF(A8="","",VLOOKUP(A8,'Dat-Bl'!$B$4:$F$123,2)) ->  | C8: =IF(A8="","",VLOOKUP(A8,'Dat-Bl'!$B$4:$F$123,3)) ->  | D8: =IF(A8="","",VLOOKUP(A8,'Dat-Bl'!$B$4:$F$123,5)) -> 
B9: =IF(A9="","",VLOOKUP(A9,'Dat-Bl'!$B$4:$F$123,2)) ->  | C9: =IF(A9="","",VLOOKUP(A9,'Dat-Bl'!$B$4:$F$123,3)) ->  | D9: =IF(A9="","",VLOOKUP(A9,'Dat-Bl'!$B$4:$F$123,5)) -> 
B10: =IF(A10="","",VLOOKUP(A10,'Dat-Bl'!$B$4:$F$123,2)) ->  | C10: =IF(A10="","",VLOOKUP(A10,'Dat-Bl'!$B$4:$F$123,3)) ->  | D10: =IF(A10="","",VLOOKUP(A10,'Dat-Bl'!$B$4:$F$123,5)) -> 
B11: =IF(A11="","",VLOOKUP(A11,'Dat-Bl'!$B$4:$F$123,2)) ->  | C11: =IF(A11="","",VLOOKUP(A11,'Dat-Bl'!$B$4:$F$123,3)) ->  | D11: =IF(A11="","",VLOOKUP(A11,'Dat-Bl'!$B$4:$F$123,5)) -> 
B12: =IF(A12="","",VLOOKUP(A12,'Dat-Bl'!$B$4:$F$123,2)) ->  | C12: =IF(A12="","",VLOOKUP(A12,'Dat-Bl'!$B$4:$F$123,3)) ->  | D12: =IF(A12="","",VLOOKUP(A12,'Dat-Bl'!$B$4:$F$123,5)) -> 
B13: =IF(A13="","",VLOOKUP(A13,'Dat-Bl'!$B$4:$F$123,2)) ->  | C13: =IF(A13="","",VLOOKUP(A13,'Dat-Bl'!$B$4:$F$123,3)) ->  | D13: =IF(A13="","",VLOOKUP(A13,'Dat-Bl'!$B$4:$F$123,5)) -> 
B14: =IF(A14="","",VLOOKUP(A14,'Dat-Bl'!$B$4:$F$123,2)) ->  | C14: =IF(A14="","",VLOOKUP(A14,'Dat-Bl'!$B$4:$F$123,3)) ->  | D14: =IF(A14="","",VLOOKUP(A14,'Dat-Bl'!$B$4:$F$123,5)) -> 
B15: =IF(A15="","",VLOOKUP(A15,'Dat-Bl'!$B$4:$F$123,2)) ->  | C15: =IF(A15="","",VLOOKUP(A15,'Dat-Bl'!$B$4:$F$123,3)) ->  | D15: =IF(A15="","",VLOOKUP(A15,'Dat-Bl'!$B$4:$F$123,5)) -> 
B16: =IF(A16="","",VLOOKUP(A16,'Dat-Bl'!$B$4:$F$123,2)) ->  | C16: =IF(A16="","",VLOOKUP(A16,'Dat-Bl'!$B$4:$F$123,3)) ->  | D16: =IF(A16="","",VLOOKUP(A16,'Dat-Bl'!$B$4:$F$123,5)) -> 
B17: =IF(A17="","",VLOOKUP(A17,'Dat-Bl'!$B$4:$F$123,2)) ->  | C17: =IF(A17="","",VLOOKUP(A17,'Dat-Bl'!$B$4:$F$123,3)) ->  | D17: =IF(A17="","",VLOOKUP(A17,'Dat-Bl'!$B$4:$F$123,5)) -> 
B18: =IF(A18="","",VLOOKUP(A18,'Dat-Bl'!$B$4:$F$123,2)) ->  | C18: =IF(A18="","",VLOOKUP(A18,'Dat-Bl'!$B$4:$F$123,3)) ->  | D18: =IF(A18="","",VLOOKUP(A18,'Dat-Bl'!$B$4:$F$123,5)) -> 
B19: =IF(A19="","",VLOOKUP(A19,'Dat-Bl'!$B$4:$F$123,2)) ->  | C19: =IF(A19="","",VLOOKUP(A19,'Dat-Bl'!$B$4:$F$123,3)) ->  | D19: =IF(A19="","",VLOOKUP(A19,'Dat-Bl'!$B$4:$F$123,5)) -> 
B20: =IF(A20="","",VLOOKUP(A20,'Dat-Bl'!$B$4:$F$123,2)) ->  | C20: =IF(A20="","",VLOOKUP(A20,'Dat-Bl'!$B$4:$F$123,3)) ->  | D20: =IF(A20="","",VLOOKUP(A20,'Dat-Bl'!$B$4:$F$123,5)) -> 
B21: =IF(A21="","",VLOOKUP(A21,'Dat-Bl'!$B$4:$F$123,2)) ->  | C21: =IF(A21="","",VLOOKUP(A21,'Dat-Bl'!$B$4:$F$123,3)) ->  | D21: =IF(A21="","",VLOOKUP(A21,'Dat-Bl'!$B$4:$F$123,5)) -> 
B22: =IF(A22="","",VLOOKUP(A22,'Dat-Bl'!$B$4:$F$123,2)) ->  | C22: =IF(A22="","",VLOOKUP(A22,'Dat-Bl'!$B$4:$F$123,3)) ->  | D22: =IF(A22="","",VLOOKUP(A22,'Dat-Bl'!$B$4:$F$123,5)) -> 
B23: =IF(A23="","",VLOOKUP(A23,'Dat-Bl'!$B$4:$F$123,2)) ->  | C23: =IF(A23="","",VLOOKUP(A23,'Dat-Bl'!$B$4:$F$123,3)) ->  | D23: =IF(A23="","",VLOOKUP(A23,'Dat-Bl'!$B$4:$F$123,5)) -> 
B24: =IF(A24="","",VLOOKUP(A24,'Dat-Bl'!$B$4:$F$123,2)) ->  | C24: =IF(A24="","",VLOOKUP(A24,'Dat-Bl'!$B$4:$F$123,3)) ->  | D24: =IF(A24="","",VLOOKUP(A24,'Dat-Bl'!$B$4:$F$123,5)) -> 
B25: =IF(A25="","",VLOOKUP(A25,'Dat-Bl'!$B$4:$F$123,2)) ->  | C25: =IF(A25="","",VLOOKUP(A25,'Dat-Bl'!$B$4:$F$123,3)) ->  | D25: =IF(A25="","",VLOOKUP(A25,'Dat-Bl'!$B$4:$F$123,5)) -> 
B26: =IF(A26="","",VLOOKUP(A26,'Dat-Bl'!$B$4:$F$123,2)) ->  | C26: =IF(A26="","",VLOOKUP(A26,'Dat-Bl'!$B$4:$F$123,3)) ->  | D26: =IF(A26="","",VLOOKUP(A26,'Dat-Bl'!$B$4:$F$123,5)) -> 
B27: =IF(A27="","",VLOOKUP(A27,'Dat-Bl'!$B$4:$F$123,2)) ->  | C27: =IF(A27="","",VLOOKUP(A27,'Dat-Bl'!$B$4:$F$123,3)) ->  | D27: =IF(A27="","",VLOOKUP(A27,'Dat-Bl'!$B$4:$F$123,5)) -> 
B28: =IF(A28="","",VLOOKUP(A28,'Dat-Bl'!$B$4:$F$123,2)) ->  | C28: =IF(A28="","",VLOOKUP(A28,'Dat-Bl'!$B$4:$F$123,3)) ->  | D28: =IF(A28="","",VLOOKUP(A28,'Dat-Bl'!$B$4:$F$123,5)) -> 
B29: =IF(A29="","",VLOOKUP(A29,'Dat-Bl'!$B$4:$F$123,2)) ->  | C29: =IF(A29="","",VLOOKUP(A29,'Dat-Bl'!$B$4:$F$123,3)) ->  | D29: =IF(A29="","",VLOOKUP(A29,'Dat-Bl'!$B$4:$F$123,5)) -> 
B30: =IF(A30="","",VLOOKUP(A30,'Dat-Bl'!$B$4:$F$123,2)) ->  | C30: =IF(A30="","",VLOOKUP(A30,'Dat-Bl'!$B$4:$F$123,3)) ->  | D30: =IF(A30="","",VLOOKUP(A30,'Dat-Bl'!$B$4:$F$123,5)) -> 
B31: =IF(A31="","",VLOOKUP(A31,'Dat-Bl'!$B$4:$F$123,2)) ->  | C31: =IF(A31="","",VLOOKUP(A31,'Dat-Bl'!$B$4:$F$123,3)) ->  | D31: =IF(A31="","",VLOOKUP(A31,'Dat-Bl'!$B$4:$F$123,5)) -> 
B32: =IF(A32="","",VLOOKUP(A32,'Dat-Bl'!$B$4:$F$123,2)) ->  | C32: =IF(A32="","",VLOOKUP(A32,'Dat-Bl'!$B$4:$F$123,3)) ->  | D32: =IF(A32="","",VLOOKUP(A32,'Dat-Bl'!$B$4:$F$123,5)) -> 
C34: Schlagball/Kugel | D34: Weiblich_D,C / Sport | F34: Anlage | H34: Uhr
A35: K-ziff | B35: Startnr.: | C35: Name | D35: Schule | E35: 1. Versuch | F35: 2. Versuch | G35: 3. Versuch | H35: Bester V.
B36: =IF(A36="","",VLOOKUP(A36,'Dat-Bl'!$B$127:$F$246,2)) ->  | C36: =IF(A36="","",VLOOKUP(A36,'Dat-Bl'!$B$127:$F$246,3)) ->  | D36: =IF(A36="","",VLOOKUP(A36,'Dat-Bl'!$B$127:$F$246,5)) -> 
B37: =IF(A37="","",VLOOKUP(A37,'Dat-Bl'!$B$127:$F$246,2)) ->  | C37: =IF(A37="","",VLOOKUP(A37,'Dat-Bl'!$B$127:$F$246,3)) ->  | D37: =IF(A37="","",VLOOKUP(A37,'Dat-Bl'!$B$127:$F$246,5)) -> 
B38: =IF(A38="","",VLOOKUP(A38,'Dat-Bl'!$B$127:$F$246,2)) ->  | C38: =IF(A38="","",VLOOKUP(A38,'Dat-Bl'!$B$127:$F$246,3)) ->  | D38: =IF(A38="","",VLOOKUP(A38,'Dat-Bl'!$B$127:$F$246,5)) -> 
B39: =IF(A39="","",VLOOKUP(A39,'Dat-Bl'!$B$127:$F$246,2)) ->  | C39: =IF(A39="","",VLOOKUP(A39,'Dat-Bl'!$B$127:$F$246,3)) ->  | D39: =IF(A39="","",VLOOKUP(A39,'Dat-Bl'!$B$127:$F$246,5)) -> 
B40: =IF(A40="","",VLOOKUP(A40,'Dat-Bl'!$B$127:$F$246,2)) ->  | C40: =IF(A40="","",VLOOKUP(A40,'Dat-Bl'!$B$127:$F$246,3)) ->  | D40: =IF(A40="","",VLOOKUP(A40,'Dat-Bl'!$B$127:$F$246,5)) -> 
B41: =IF(A41="","",VLOOKUP(A41,'Dat-Bl'!$B$127:$F$246,2)) ->  | C41: =IF(A41="","",VLOOKUP(A41,'Dat-Bl'!$B$127:$F$246,3)) ->  | D41: =IF(A41="","",VLOOKUP(A41,'Dat-Bl'!$B$127:$F$246,5)) -> 
B42: =IF(A42="","",VLOOKUP(A42,'Dat-Bl'!$B$127:$F$246,2)) ->  | C42: =IF(A42="","",VLOOKUP(A42,'Dat-Bl'!$B$127:$F$246,3)) ->  | D42: =IF(A42="","",VLOOKUP(A42,'Dat-Bl'!$B$127:$F$246,5)) -> 
B43: =IF(A43="","",VLOOKUP(A43,'Dat-Bl'!$B$127:$F$246,2)) ->  | C43: =IF(A43="","",VLOOKUP(A43,'Dat-Bl'!$B$127:$F$246,3)) ->  | D43: =IF(A43="","",VLOOKUP(A43,'Dat-Bl'!$B$127:$F$246,5)) -> 
B44: =IF(A44="","",VLOOKUP(A44,'Dat-Bl'!$B$127:$F$246,2)) ->  | C44: =IF(A44="","",VLOOKUP(A44,'Dat-Bl'!$B$127:$F$246,3)) ->  | D44: =IF(A44="","",VLOOKUP(A44,'Dat-Bl'!$B$127:$F$246,5)) -> 
B45: =IF(A45="","",VLOOKUP(A45,'Dat-Bl'!$B$127:$F$246,2)) ->  | C45: =IF(A45="","",VLOOKUP(A45,'Dat-Bl'!$B$127:$F$246,3)) ->  | D45: =IF(A45="","",VLOOKUP(A45,'Dat-Bl'!$B$127:$F$246,5)) -> 
B46: =IF(A46="","",VLOOKUP(A46,'Dat-Bl'!$B$127:$F$246,2)) ->  | C46: =IF(A46="","",VLOOKUP(A46,'Dat-Bl'!$B$127:$F$246,3)) ->  | D46: =IF(A46="","",VLOOKUP(A46,'Dat-Bl'!$B$127:$F$246,5)) -> 
B47: =IF(A47="","",VLOOKUP(A47,'Dat-Bl'!$B$127:$F$246,2)) ->  | C47: =IF(A47="","",VLOOKUP(A47,'Dat-Bl'!$B$127:$F$246,3)) ->  | D47: =IF(A47="","",VLOOKUP(A47,'Dat-Bl'!$B$127:$F$246,5)) -> 
B48: =IF(A48="","",VLOOKUP(A48,'Dat-Bl'!$B$127:$F$246,2)) ->  | C48: =IF(A48="","",VLOOKUP(A48,'Dat-Bl'!$B$127:$F$246,3)) ->  | D48: =IF(A48="","",VLOOKUP(A48,'Dat-Bl'!$B$127:$F$246,5)) -> 
B49: =IF(A49="","",VLOOKUP(A49,'Dat-Bl'!$B$127:$F$246,2)) ->  | C49: =IF(A49="","",VLOOKUP(A49,'Dat-Bl'!$B$127:$F$246,3)) ->  | D49: =IF(A49="","",VLOOKUP(A49,'Dat-Bl'!$B$127:$F$246,5)) -> 
B50: =IF(A50="","",VLOOKUP(A50,'Dat-Bl'!$B$127:$F$246,2)) ->  | C50: =IF(A50="","",VLOOKUP(A50,'Dat-Bl'!$B$127:$F$246,3)) ->  | D50: =IF(A50="","",VLOOKUP(A50,'Dat-Bl'!$B$127:$F$246,5)) -> 
B51: =IF(A51="","",VLOOKUP(A51,'Dat-Bl'!$B$127:$F$246,2)) ->  | C51: =IF(A51="","",VLOOKUP(A51,'Dat-Bl'!$B$127:$F$246,3)) ->  | D51: =IF(A51="","",VLOOKUP(A51,'Dat-Bl'!$B$127:$F$246,5)) -> 
B52: =IF(A52="","",VLOOKUP(A52,'Dat-Bl'!$B$127:$F$246,2)) ->  | C52: =IF(A52="","",VLOOKUP(A52,'Dat-Bl'!$B$127:$F$246,3)) ->  | D52: =IF(A52="","",VLOOKUP(A52,'Dat-Bl'!$B$127:$F$246,5)) -> 
B53: =IF(A53="","",VLOOKUP(A53,'Dat-Bl'!$B$127:$F$246,2)) ->  | C53: =IF(A53="","",VLOOKUP(A53,'Dat-Bl'!$B$127:$F$246,3)) ->  | D53: =IF(A53="","",VLOOKUP(A53,'Dat-Bl'!$B$127:$F$246,5)) -> 
B54: =IF(A54="","",VLOOKUP(A54,'Dat-Bl'!$B$127:$F$246,2)) ->  | C54: =IF(A54="","",VLOOKUP(A54,'Dat-Bl'!$B$127:$F$246,3)) ->  | D54: =IF(A54="","",VLOOKUP(A54,'Dat-Bl'!$B$127:$F$246,5)) -> 
B55: =IF(A55="","",VLOOKUP(A55,'Dat-Bl'!$B$127:$F$246,2)) ->  | C55: =IF(A55="","",VLOOKUP(A55,'Dat-Bl'!$B$127:$F$246,3)) ->  | D55: =IF(A55="","",VLOOKUP(A55,'Dat-Bl'!$B$127:$F$246,5)) -> 
B56: =IF(A56="","",VLOOKUP(A56,'Dat-Bl'!$B$127:$F$246,2)) ->  | C56: =IF(A56="","",VLOOKUP(A56,'Dat-Bl'!$B$127:$F$246,3)) ->  | D56: =IF(A56="","",VLOOKUP(A56,'Dat-Bl'!$B$127:$F$246,5)) -> 
B57: =IF(A57="","",VLOOKUP(A57,'Dat-Bl'!$B$127:$F$246,2)) ->  | C57: =IF(A57="","",VLOOKUP(A57,'Dat-Bl'!$B$127:$F$246,3)) ->  | D57: =IF(A57="","",VLOOKUP(A57,'Dat-Bl'!$B$127:$F$246,5)) -> 
B58: =IF(A58="","",VLOOKUP(A58,'Dat-Bl'!$B$127:$F$246,2)) ->  | C58: =IF(A58="","",VLOOKUP(A58,'Dat-Bl'!$B$127:$F$246,3)) ->  | D58: =IF(A58="","",VLOOKUP(A58,'Dat-Bl'!$B$127:$F$246,5)) -> 
B59: =IF(A59="","",VLOOKUP(A59,'Dat-Bl'!$B$127:$F$246,2)) ->  | C59: =IF(A59="","",VLOOKUP(A59,'Dat-Bl'!$B$127:$F$246,3)) ->  | D59: =IF(A59="","",VLOOKUP(A59,'Dat-Bl'!$B$127:$F$246,5)) -> 
B60: =IF(A60="","",VLOOKUP(A60,'Dat-Bl'!$B$127:$F$246,2)) ->  | C60: =IF(A60="","",VLOOKUP(A60,'Dat-Bl'!$B$127:$F$246,3)) ->  | D60: =IF(A60="","",VLOOKUP(A60,'Dat-Bl'!$B$127:$F$246,5)) -> 
B61: =IF(A61="","",VLOOKUP(A61,'Dat-Bl'!$B$127:$F$246,2)) ->  | C61: =IF(A61="","",VLOOKUP(A61,'Dat-Bl'!$B$127:$F$246,3)) ->  | D61: =IF(A61="","",VLOOKUP(A61,'Dat-Bl'!$B$127:$F$246,5)) -> 
B62: =IF(A62="","",VLOOKUP(A62,'Dat-Bl'!$B$127:$F$246,2)) ->  | C62: =IF(A62="","",VLOOKUP(A62,'Dat-Bl'!$B$127:$F$246,3)) ->  | D62: =IF(A62="","",VLOOKUP(A62,'Dat-Bl'!$B$127:$F$246,5)) -> 
B63: =IF(A63="","",VLOOKUP(A63,'Dat-Bl'!$B$127:$F$246,2)) ->  | C63: =IF(A63="","",VLOOKUP(A63,'Dat-Bl'!$B$127:$F$246,3)) ->  | D63: =IF(A63="","",VLOOKUP(A63,'Dat-Bl'!$B$127:$F$246,5)) -> 
B64: =IF(A64="","",VLOOKUP(A64,'Dat-Bl'!$B$127:$F$246,2)) ->  | C64: =IF(A64="","",VLOOKUP(A64,'Dat-Bl'!$B$127:$F$246,3)) ->  | D64: =IF(A64="","",VLOOKUP(A64,'Dat-Bl'!$B$127:$F$246,5)) -> 
B65: =IF(A65="","",VLOOKUP(A65,'Dat-Bl'!$B$127:$F$246,2)) ->  | C65: =IF(A65="","",VLOOKUP(A65,'Dat-Bl'!$B$127:$F$246,3)) ->  | D65: =IF(A65="","",VLOOKUP(A65,'Dat-Bl'!$B$127:$F$246,5)) -> 
C67: Schlagball/Kugel | D67: Männlich_D,C / Regel | F67: Anlage | H67: Uhr
A68: K-ziff | B68: Startnr.: | C68: Name | D68: Schule | E68: 1. Versuch | F68: 2. Versuch | G68: 3. Versuch | H68: Bester V.
B69: =IF(A69="","",VLOOKUP(A69,'Dat-Bl'!$J$4:$N$123,2)) ->  | C69: =IF(A69="","",VLOOKUP(A69,'Dat-Bl'!$J$4:$N$123,3)) ->  | D69: =IF(A69="","",VLOOKUP(A69,'Dat-Bl'!$J$4:$N$123,5)) -> 
B70: =IF(A70="","",VLOOKUP(A70,'Dat-Bl'!$J$4:$N$123,2)) ->  | C70: =IF(A70="","",VLOOKUP(A70,'Dat-Bl'!$J$4:$N$123,3)) ->  | D70: =IF(A70="","",VLOOKUP(A70,'Dat-Bl'!$J$4:$N$123,5)) -> 
B71: =IF(A71="","",VLOOKUP(A71,'Dat-Bl'!$J$4:$N$123,2)) ->  | C71: =IF(A71="","",VLOOKUP(A71,'Dat-Bl'!$J$4:$N$123,3)) ->  | D71: =IF(A71="","",VLOOKUP(A71,'Dat-Bl'!$J$4:$N$123,5)) -> 
B72: =IF(A72="","",VLOOKUP(A72,'Dat-Bl'!$J$4:$N$123,2)) ->  | C72: =IF(A72="","",VLOOKUP(A72,'Dat-Bl'!$J$4:$N$123,3)) ->  | D72: =IF(A72="","",VLOOKUP(A72,'Dat-Bl'!$J$4:$N$123,5)) -> 
B73: =IF(A73="","",VLOOKUP(A73,'Dat-Bl'!$J$4:$N$123,2)) ->  | C73: =IF(A73="","",VLOOKUP(A73,'Dat-Bl'!$J$4:$N$123,3)) ->  | D73: =IF(A73="","",VLOOKUP(A73,'Dat-Bl'!$J$4:$N$123,5)) -> 
B74: =IF(A74="","",VLOOKUP(A74,'Dat-Bl'!$J$4:$N$123,2)) ->  | C74: =IF(A74="","",VLOOKUP(A74,'Dat-Bl'!$J$4:$N$123,3)) ->  | D74: =IF(A74="","",VLOOKUP(A74,'Dat-Bl'!$J$4:$N$123,5)) -> 
B75: =IF(A75="","",VLOOKUP(A75,'Dat-Bl'!$J$4:$N$123,2)) ->  | C75: =IF(A75="","",VLOOKUP(A75,'Dat-Bl'!$J$4:$N$123,3)) ->  | D75: =IF(A75="","",VLOOKUP(A75,'Dat-Bl'!$J$4:$N$123,5)) -> 
B76: =IF(A76="","",VLOOKUP(A76,'Dat-Bl'!$J$4:$N$123,2)) ->  | C76: =IF(A76="","",VLOOKUP(A76,'Dat-Bl'!$J$4:$N$123,3)) ->  | D76: =IF(A76="","",VLOOKUP(A76,'Dat-Bl'!$J$4:$N$123,5)) -> 
B77: =IF(A77="","",VLOOKUP(A77,'Dat-Bl'!$J$4:$N$123,2)) ->  | C77: =IF(A77="","",VLOOKUP(A77,'Dat-Bl'!$J$4:$N$123,3)) ->  | D77: =IF(A77="","",VLOOKUP(A77,'Dat-Bl'!$J$4:$N$123,5)) -> 
B78: =IF(A78="","",VLOOKUP(A78,'Dat-Bl'!$J$4:$N$123,2)) ->  | C78: =IF(A78="","",VLOOKUP(A78,'Dat-Bl'!$J$4:$N$123,3)) ->  | D78: =IF(A78="","",VLOOKUP(A78,'Dat-Bl'!$J$4:$N$123,5)) -> 
B79: =IF(A79="","",VLOOKUP(A79,'Dat-Bl'!$J$4:$N$123,2)) ->  | C79: =IF(A79="","",VLOOKUP(A79,'Dat-Bl'!$J$4:$N$123,3)) ->  | D79: =IF(A79="","",VLOOKUP(A79,'Dat-Bl'!$J$4:$N$123,5)) -> 
B80: =IF(A80="","",VLOOKUP(A80,'Dat-Bl'!$J$4:$N$123,2)) ->  | C80: =IF(A80="","",VLOOKUP(A80,'Dat-Bl'!$J$4:$N$123,3)) ->  | D80: =IF(A80="","",VLOOKUP(A80,'Dat-Bl'!$J$4:$N$123,5)) -> 
B81: =IF(A81="","",VLOOKUP(A81,'Dat-Bl'!$J$4:$N$123,2)) ->  | C81: =IF(A81="","",VLOOKUP(A81,'Dat-Bl'!$J$4:$N$123,3)) ->  | D81: =IF(A81="","",VLOOKUP(A81,'Dat-Bl'!$J$4:$N$123,5)) -> 
B82: =IF(A82="","",VLOOKUP(A82,'Dat-Bl'!$J$4:$N$123,2)) ->  | C82: =IF(A82="","",VLOOKUP(A82,'Dat-Bl'!$J$4:$N$123,3)) ->  | D82: =IF(A82="","",VLOOKUP(A82,'Dat-Bl'!$J$4:$N$123,5)) -> 
B83: =IF(A83="","",VLOOKUP(A83,'Dat-Bl'!$J$4:$N$123,2)) ->  | C83: =IF(A83="","",VLOOKUP(A83,'Dat-Bl'!$J$4:$N$123,3)) ->  | D83: =IF(A83="","",VLOOKUP(A83,'Dat-Bl'!$J$4:$N$123,5)) -> 
B84: =IF(A84="","",VLOOKUP(A84,'Dat-Bl'!$J$4:$N$123,2)) ->  | C84: =IF(A84="","",VLOOKUP(A84,'Dat-Bl'!$J$4:$N$123,3)) ->  | D84: =IF(A84="","",VLOOKUP(A84,'Dat-Bl'!$J$4:$N$123,5)) -> 
B85: =IF(A85="","",VLOOKUP(A85,'Dat-Bl'!$J$4:$N$123,2)) ->  | C85: =IF(A85="","",VLOOKUP(A85,'Dat-Bl'!$J$4:$N$123,3)) ->  | D85: =IF(A85="","",VLOOKUP(A85,'Dat-Bl'!$J$4:$N$123,5)) -> 
B86: =IF(A86="","",VLOOKUP(A86,'Dat-Bl'!$J$4:$N$123,2)) ->  | C86: =IF(A86="","",VLOOKUP(A86,'Dat-Bl'!$J$4:$N$123,3)) ->  | D86: =IF(A86="","",VLOOKUP(A86,'Dat-Bl'!$J$4:$N$123,5)) -> 
B87: =IF(A87="","",VLOOKUP(A87,'Dat-Bl'!$J$4:$N$123,2)) ->  | C87: =IF(A87="","",VLOOKUP(A87,'Dat-Bl'!$J$4:$N$123,3)) ->  | D87: =IF(A87="","",VLOOKUP(A87,'Dat-Bl'!$J$4:$N$123,5)) -> 
B88: =IF(A88="","",VLOOKUP(A88,'Dat-Bl'!$J$4:$N$123,2)) ->  | C88: =IF(A88="","",VLOOKUP(A88,'Dat-Bl'!$J$4:$N$123,3)) ->  | D88: =IF(A88="","",VLOOKUP(A88,'Dat-Bl'!$J$4:$N$123,5)) -> 
B89: =IF(A89="","",VLOOKUP(A89,'Dat-Bl'!$J$4:$N$123,2)) ->  | C89: =IF(A89="","",VLOOKUP(A89,'Dat-Bl'!$J$4:$N$123,3)) ->  | D89: =IF(A89="","",VLOOKUP(A89,'Dat-Bl'!$J$4:$N$123,5)) -> 
B90: =IF(A90="","",VLOOKUP(A90,'Dat-Bl'!$J$4:$N$123,2)) ->  | C90: =IF(A90="","",VLOOKUP(A90,'Dat-Bl'!$J$4:$N$123,3)) ->  | D90: =IF(A90="","",VLOOKUP(A90,'Dat-Bl'!$J$4:$N$123,5)) -> 
B91: =IF(A91="","",VLOOKUP(A91,'Dat-Bl'!$J$4:$N$123,2)) ->  | C91: =IF(A91="","",VLOOKUP(A91,'Dat-Bl'!$J$4:$N$123,3)) ->  | D91: =IF(A91="","",VLOOKUP(A91,'Dat-Bl'!$J$4:$N$123,5)) -> 
B92: =IF(A92="","",VLOOKUP(A92,'Dat-Bl'!$J$4:$N$123,2)) ->  | C92: =IF(A92="","",VLOOKUP(A92,'Dat-Bl'!$J$4:$N$123,3)) ->  | D92: =IF(A92="","",VLOOKUP(A92,'Dat-Bl'!$J$4:$N$123,5)) -> 
B93: =IF(A93="","",VLOOKUP(A93,'Dat-Bl'!$J$4:$N$123,2)) ->  | C93: =IF(A93="","",VLOOKUP(A93,'Dat-Bl'!$J$4:$N$123,3)) ->  | D93: =IF(A93="","",VLOOKUP(A93,'Dat-Bl'!$J$4:$N$123,5)) -> 
B94: =IF(A94="","",VLOOKUP(A94,'Dat-Bl'!$J$4:$N$123,2)) ->  | C94: =IF(A94="","",VLOOKUP(A94,'Dat-Bl'!$J$4:$N$123,3)) ->  | D94: =IF(A94="","",VLOOKUP(A94,'Dat-Bl'!$J$4:$N$123,5)) -> 
B95: =IF(A95="","",VLOOKUP(A95,'Dat-Bl'!$J$4:$N$123,2)) ->  | C95: =IF(A95="","",VLOOKUP(A95,'Dat-Bl'!$J$4:$N$123,3)) ->  | D95: =IF(A95="","",VLOOKUP(A95,'Dat-Bl'!$J$4:$N$123,5)) -> 
B96: =IF(A96="","",VLOOKUP(A96,'Dat-Bl'!$J$4:$N$123,2)) ->  | C96: =IF(A96="","",VLOOKUP(A96,'Dat-Bl'!$J$4:$N$123,3)) ->  | D96: =IF(A96="","",VLOOKUP(A96,'Dat-Bl'!$J$4:$N$123,5)) -> 
B97: =IF(A97="","",VLOOKUP(A97,'Dat-Bl'!$J$4:$N$123,2)) ->  | C97: =IF(A97="","",VLOOKUP(A97,'Dat-Bl'!$J$4:$N$123,3)) ->  | D97: =IF(A97="","",VLOOKUP(A97,'Dat-Bl'!$J$4:$N$123,5)) -> 
B98: =IF(A98="","",VLOOKUP(A98,'Dat-Bl'!$J$4:$N$123,2)) ->  | C98: =IF(A98="","",VLOOKUP(A98,'Dat-Bl'!$J$4:$N$123,3)) ->  | D98: =IF(A98="","",VLOOKUP(A98,'Dat-Bl'!$J$4:$N$123,5)) -> 
C100: Schlagball/Kugel | D100: Männlich_D,C / Sport | F100: Anlage | H100: Uhr
A101: K-ziff | B101: Startnr.: | C101: Name | D101: Schule | E101: 1. Versuch | F101: 2. Versuch | G101: 3. Versuch | H101: Bester V.
B102: =IF(A102="","",VLOOKUP(A102,'Dat-Bl'!$J$127:$N$246,2)) ->  | C102: =IF(A102="","",VLOOKUP(A102,'Dat-Bl'!$J$127:$N$246,3)) ->  | D102: =IF(A102="","",VLOOKUP(A102,'Dat-Bl'!$J$127:$N$246,5)) -> 
B103: =IF(A103="","",VLOOKUP(A103,'Dat-Bl'!$J$127:$N$246,2)) ->  | C103: =IF(A103="","",VLOOKUP(A103,'Dat-Bl'!$J$127:$N$246,3)) ->  | D103: =IF(A103="","",VLOOKUP(A103,'Dat-Bl'!$J$127:$N$246,5)) -> 
B104: =IF(A104="","",VLOOKUP(A104,'Dat-Bl'!$J$127:$N$246,2)) ->  | C104: =IF(A104="","",VLOOKUP(A104,'Dat-Bl'!$J$127:$N$246,3)) ->  | D104: =IF(A104="","",VLOOKUP(A104,'Dat-Bl'!$J$127:$N$246,5)) -> 
B105: =IF(A105="","",VLOOKUP(A105,'Dat-Bl'!$J$127:$N$246,2)) ->  | C105: =IF(A105="","",VLOOKUP(A105,'Dat-Bl'!$J$127:$N$246,3)) ->  | D105: =IF(A105="","",VLOOKUP(A105,'Dat-Bl'!$J$127:$N$246,5)) -> 
B106: =IF(A106="","",VLOOKUP(A106,'Dat-Bl'!$J$127:$N$246,2)) ->  | C106: =IF(A106="","",VLOOKUP(A106,'Dat-Bl'!$J$127:$N$246,3)) ->  | D106: =IF(A106="","",VLOOKUP(A106,'Dat-Bl'!$J$127:$N$246,5)) -> 
B107: =IF(A107="","",VLOOKUP(A107,'Dat-Bl'!$J$127:$N$246,2)) ->  | C107: =IF(A107="","",VLOOKUP(A107,'Dat-Bl'!$J$127:$N$246,3)) ->  | D107: =IF(A107="","",VLOOKUP(A107,'Dat-Bl'!$J$127:$N$246,5)) -> 
B108: =IF(A108="","",VLOOKUP(A108,'Dat-Bl'!$J$127:$N$246,2)) ->  | C108: =IF(A108="","",VLOOKUP(A108,'Dat-Bl'!$J$127:$N$246,3)) ->  | D108: =IF(A108="","",VLOOKUP(A108,'Dat-Bl'!$J$127:$N$246,5)) -> 
B109: =IF(A109="","",VLOOKUP(A109,'Dat-Bl'!$J$127:$N$246,2)) ->  | C109: =IF(A109="","",VLOOKUP(A109,'Dat-Bl'!$J$127:$N$246,3)) ->  | D109: =IF(A109="","",VLOOKUP(A109,'Dat-Bl'!$J$127:$N$246,5)) -> 
B110: =IF(A110="","",VLOOKUP(A110,'Dat-Bl'!$J$127:$N$246,2)) ->  | C110: =IF(A110="","",VLOOKUP(A110,'Dat-Bl'!$J$127:$N$246,3)) ->  | D110: =IF(A110="","",VLOOKUP(A110,'Dat-Bl'!$J$127:$N$246,5)) -> 
B111: =IF(A111="","",VLOOKUP(A111,'Dat-Bl'!$J$127:$N$246,2)) ->  | C111: =IF(A111="","",VLOOKUP(A111,'Dat-Bl'!$J$127:$N$246,3)) ->  | D111: =IF(A111="","",VLOOKUP(A111,'Dat-Bl'!$J$127:$N$246,5)) -> 
B112: =IF(A112="","",VLOOKUP(A112,'Dat-Bl'!$J$127:$N$246,2)) ->  | C112: =IF(A112="","",VLOOKUP(A112,'Dat-Bl'!$J$127:$N$246,3)) ->  | D112: =IF(A112="","",VLOOKUP(A112,'Dat-Bl'!$J$127:$N$246,5)) -> 
B113: =IF(A113="","",VLOOKUP(A113,'Dat-Bl'!$J$127:$N$246,2)) ->  | C113: =IF(A113="","",VLOOKUP(A113,'Dat-Bl'!$J$127:$N$246,3)) ->  | D113: =IF(A113="","",VLOOKUP(A113,'Dat-Bl'!$J$127:$N$246,5)) -> 
B114: =IF(A114="","",VLOOKUP(A114,'Dat-Bl'!$J$127:$N$246,2)) ->  | C114: =IF(A114="","",VLOOKUP(A114,'Dat-Bl'!$J$127:$N$246,3)) ->  | D114: =IF(A114="","",VLOOKUP(A114,'Dat-Bl'!$J$127:$N$246,5)) -> 
B115: =IF(A115="","",VLOOKUP(A115,'Dat-Bl'!$J$127:$N$246,2)) ->  | C115: =IF(A115="","",VLOOKUP(A115,'Dat-Bl'!$J$127:$N$246,3)) ->  | D115: =IF(A115="","",VLOOKUP(A115,'Dat-Bl'!$J$127:$N$246,5)) -> 
B116: =IF(A116="","",VLOOKUP(A116,'Dat-Bl'!$J$127:$N$246,2)) ->  | C116: =IF(A116="","",VLOOKUP(A116,'Dat-Bl'!$J$127:$N$246,3)) ->  | D116: =IF(A116="","",VLOOKUP(A116,'Dat-Bl'!$J$127:$N$246,5)) -> 
B117: =IF(A117="","",VLOOKUP(A117,'Dat-Bl'!$J$127:$N$246,2)) ->  | C117: =IF(A117="","",VLOOKUP(A117,'Dat-Bl'!$J$127:$N$246,3)) ->  | D117: =IF(A117="","",VLOOKUP(A117,'Dat-Bl'!$J$127:$N$246,5)) -> 
B118: =IF(A118="","",VLOOKUP(A118,'Dat-Bl'!$J$127:$N$246,2)) ->  | C118: =IF(A118="","",VLOOKUP(A118,'Dat-Bl'!$J$127:$N$246,3)) ->  | D118: =IF(A118="","",VLOOKUP(A118,'Dat-Bl'!$J$127:$N$246,5)) -> 
B119: =IF(A119="","",VLOOKUP(A119,'Dat-Bl'!$J$127:$N$246,2)) ->  | C119: =IF(A119="","",VLOOKUP(A119,'Dat-Bl'!$J$127:$N$246,3)) ->  | D119: =IF(A119="","",VLOOKUP(A119,'Dat-Bl'!$J$127:$N$246,5)) -> 
B120: =IF(A120="","",VLOOKUP(A120,'Dat-Bl'!$J$127:$N$246,2)) ->  | C120: =IF(A120="","",VLOOKUP(A120,'Dat-Bl'!$J$127:$N$246,3)) ->  | D120: =IF(A120="","",VLOOKUP(A120,'Dat-Bl'!$J$127:$N$246,5)) -> 
B121: =IF(A121="","",VLOOKUP(A121,'Dat-Bl'!$J$127:$N$246,2)) ->  | C121: =IF(A121="","",VLOOKUP(A121,'Dat-Bl'!$J$127:$N$246,3)) ->  | D121: =IF(A121="","",VLOOKUP(A121,'Dat-Bl'!$J$127:$N$246,5)) -> 
B122: =IF(A122="","",VLOOKUP(A122,'Dat-Bl'!$J$127:$N$246,2)) ->  | C122: =IF(A122="","",VLOOKUP(A122,'Dat-Bl'!$J$127:$N$246,3)) ->  | D122: =IF(A122="","",VLOOKUP(A122,'Dat-Bl'!$J$127:$N$246,5)) -> 
B123: =IF(A123="","",VLOOKUP(A123,'Dat-Bl'!$J$127:$N$246,2)) ->  | C123: =IF(A123="","",VLOOKUP(A123,'Dat-Bl'!$J$127:$N$246,3)) ->  | D123: =IF(A123="","",VLOOKUP(A123,'Dat-Bl'!$J$127:$N$246,5)) -> 
B124: =IF(A124="","",VLOOKUP(A124,'Dat-Bl'!$J$127:$N$246,2)) ->  | C124: =IF(A124="","",VLOOKUP(A124,'Dat-Bl'!$J$127:$N$246,3)) ->  | D124: =IF(A124="","",VLOOKUP(A124,'Dat-Bl'!$J$127:$N$246,5)) -> 
B125: =IF(A125="","",VLOOKUP(A125,'Dat-Bl'!$J$127:$N$246,2)) ->  | C125: =IF(A125="","",VLOOKUP(A125,'Dat-Bl'!$J$127:$N$246,3)) ->  | D125: =IF(A125="","",VLOOKUP(A125,'Dat-Bl'!$J$127:$N$246,5)) -> 
B126: =IF(A126="","",VLOOKUP(A126,'Dat-Bl'!$J$127:$N$246,2)) ->  | C126: =IF(A126="","",VLOOKUP(A126,'Dat-Bl'!$J$127:$N$246,3)) ->  | D126: =IF(A126="","",VLOOKUP(A126,'Dat-Bl'!$J$127:$N$246,5)) -> 
B127: =IF(A127="","",VLOOKUP(A127,'Dat-Bl'!$J$127:$N$246,2)) ->  | C127: =IF(A127="","",VLOOKUP(A127,'Dat-Bl'!$J$127:$N$246,3)) ->  | D127: =IF(A127="","",VLOOKUP(A127,'Dat-Bl'!$J$127:$N$246,5)) -> 
B128: =IF(A128="","",VLOOKUP(A128,'Dat-Bl'!$J$127:$N$246,2)) ->  | C128: =IF(A128="","",VLOOKUP(A128,'Dat-Bl'!$J$127:$N$246,3)) ->  | D128: =IF(A128="","",VLOOKUP(A128,'Dat-Bl'!$J$127:$N$246,5)) -> 
B129: =IF(A129="","",VLOOKUP(A129,'Dat-Bl'!$J$127:$N$246,2)) ->  | C129: =IF(A129="","",VLOOKUP(A129,'Dat-Bl'!$J$127:$N$246,3)) ->  | D129: =IF(A129="","",VLOOKUP(A129,'Dat-Bl'!$J$127:$N$246,5)) -> 
B130: =IF(A130="","",VLOOKUP(A130,'Dat-Bl'!$J$127:$N$246,2)) ->  | C130: =IF(A130="","",VLOOKUP(A130,'Dat-Bl'!$J$127:$N$246,3)) ->  | D130: =IF(A130="","",VLOOKUP(A130,'Dat-Bl'!$J$127:$N$246,5)) -> 
B131: =IF(A131="","",VLOOKUP(A131,'Dat-Bl'!$J$127:$N$246,2)) ->  | C131: =IF(A131="","",VLOOKUP(A131,'Dat-Bl'!$J$127:$N$246,3)) ->  | D131: =IF(A131="","",VLOOKUP(A131,'Dat-Bl'!$J$127:$N$246,5)) -> 

Sheet P-Weit
C1: Weitsprung | D1: Weiblich_D,C / Regel | F1: Anlage | H1: Uhr
A2: K-ziff | B2: Startnr.: | C2: Name | D2: Schule | E2: 1. Versuch | F2: 2. Versuch | G2: 3. Versuch | H2: Bester V.
B3: =IF(A3="","",VLOOKUP(A3,'Dat-Bl'!$B$4:$F$123,2)) ->  | C3: =IF(A3="","",VLOOKUP(A3,'Dat-Bl'!$B$4:$F$123,3)) ->  | D3: =IF(A3="","",VLOOKUP(A3,'Dat-Bl'!$B$4:$F$123,5)) -> 
B4: =IF(A4="","",VLOOKUP(A4,'Dat-Bl'!$B$4:$F$123,2)) ->  | C4: =IF(A4="","",VLOOKUP(A4,'Dat-Bl'!$B$4:$F$123,3)) ->  | D4: =IF(A4="","",VLOOKUP(A4,'Dat-Bl'!$B$4:$F$123,5)) -> 
B5: =IF(A5="","",VLOOKUP(A5,'Dat-Bl'!$B$4:$F$123,2)) ->  | C5: =IF(A5="","",VLOOKUP(A5,'Dat-Bl'!$B$4:$F$123,3)) ->  | D5: =IF(A5="","",VLOOKUP(A5,'Dat-Bl'!$B$4:$F$123,5)) -> 
B6: =IF(A6="","",VLOOKUP(A6,'Dat-Bl'!$B$4:$F$123,2)) ->  | C6: =IF(A6="","",VLOOKUP(A6,'Dat-Bl'!$B$4:$F$123,3)) ->  | D6: =IF(A6="","",VLOOKUP(A6,'Dat-Bl'!$B$4:$F$123,5)) -> 
B7: =IF(A7="","",VLOOKUP(A7,'Dat-Bl'!$B$4:$F$123,2)) ->  | C7: =IF(A7="","",VLOOKUP(A7,'Dat-Bl'!$B$4:$F$123,3)) ->  | D7: =IF(A7="","",VLOOKUP(A7,'Dat-Bl'!$B$4:$F$123,5)) -> 
B8: =IF(A8="","",VLOOKUP(A8,'Dat-Bl'!$B$4:$F$123,2)) ->  | C8: =IF(A8="","",VLOOKUP(A8,'Dat-Bl'!$B$4:$F$123,3)) ->  | D8: =IF(A8="","",VLOOKUP(A8,'Dat-Bl'!$B$4:$F$123,5)) -> 
B9: =IF(A9="","",VLOOKUP(A9,'Dat-Bl'!$B$4:$F$123,2)) ->  | C9: =IF(A9="","",VLOOKUP(A9,'Dat-Bl'!$B$4:$F$123,3)) ->  | D9: =IF(A9="","",VLOOKUP(A9,'Dat-Bl'!$B$4:$F$123,5)) -> 
B10: =IF(A10="","",VLOOKUP(A10,'Dat-Bl'!$B$4:$F$123,2)) ->  | C10: =IF(A10="","",VLOOKUP(A10,'Dat-Bl'!$B$4:$F$123,3)) ->  | D10: =IF(A10="","",VLOOKUP(A10,'Dat-Bl'!$B$4:$F$123,5)) -> 
B11: =IF(A11="","",VLOOKUP(A11,'Dat-Bl'!$B$4:$F$123,2)) ->  | C11: =IF(A11="","",VLOOKUP(A11,'Dat-Bl'!$B$4:$F$123,3)) ->  | D11: =IF(A11="","",VLOOKUP(A11,'Dat-Bl'!$B$4:$F$123,5)) -> 
B12: =IF(A12="","",VLOOKUP(A12,'Dat-Bl'!$B$4:$F$123,2)) ->  | C12: =IF(A12="","",VLOOKUP(A12,'Dat-Bl'!$B$4:$F$123,3)) ->  | D12: =IF(A12="","",VLOOKUP(A12,'Dat-Bl'!$B$4:$F$123,5)) -> 
B13: =IF(A13="","",VLOOKUP(A13,'Dat-Bl'!$B$4:$F$123,2)) ->  | C13: =IF(A13="","",VLOOKUP(A13,'Dat-Bl'!$B$4:$F$123,3)) ->  | D13: =IF(A13="","",VLOOKUP(A13,'Dat-Bl'!$B$4:$F$123,5)) -> 
B14: =IF(A14="","",VLOOKUP(A14,'Dat-Bl'!$B$4:$F$123,2)) ->  | C14: =IF(A14="","",VLOOKUP(A14,'Dat-Bl'!$B$4:$F$123,3)) ->  | D14: =IF(A14="","",VLOOKUP(A14,'Dat-Bl'!$B$4:$F$123,5)) -> 
B15: =IF(A15="","",VLOOKUP(A15,'Dat-Bl'!$B$4:$F$123,2)) ->  | C15: =IF(A15="","",VLOOKUP(A15,'Dat-Bl'!$B$4:$F$123,3)) ->  | D15: =IF(A15="","",VLOOKUP(A15,'Dat-Bl'!$B$4:$F$123,5)) -> 
B16: =IF(A16="","",VLOOKUP(A16,'Dat-Bl'!$B$4:$F$123,2)) ->  | C16: =IF(A16="","",VLOOKUP(A16,'Dat-Bl'!$B$4:$F$123,3)) ->  | D16: =IF(A16="","",VLOOKUP(A16,'Dat-Bl'!$B$4:$F$123,5)) -> 
B17: =IF(A17="","",VLOOKUP(A17,'Dat-Bl'!$B$4:$F$123,2)) ->  | C17: =IF(A17="","",VLOOKUP(A17,'Dat-Bl'!$B$4:$F$123,3)) ->  | D17: =IF(A17="","",VLOOKUP(A17,'Dat-Bl'!$B$4:$F$123,5)) -> 
B18: =IF(A18="","",VLOOKUP(A18,'Dat-Bl'!$B$4:$F$123,2)) ->  | C18: =IF(A18="","",VLOOKUP(A18,'Dat-Bl'!$B$4:$F$123,3)) ->  | D18: =IF(A18="","",VLOOKUP(A18,'Dat-Bl'!$B$4:$F$123,5)) -> 
B19: =IF(A19="","",VLOOKUP(A19,'Dat-Bl'!$B$4:$F$123,2)) ->  | C19: =IF(A19="","",VLOOKUP(A19,'Dat-Bl'!$B$4:$F$123,3)) ->  | D19: =IF(A19="","",VLOOKUP(A19,'Dat-Bl'!$B$4:$F$123,5)) -> 
B20: =IF(A20="","",VLOOKUP(A20,'Dat-Bl'!$B$4:$F$123,2)) ->  | C20: =IF(A20="","",VLOOKUP(A20,'Dat-Bl'!$B$4:$F$123,3)) ->  | D20: =IF(A20="","",VLOOKUP(A20,'Dat-Bl'!$B$4:$F$123,5)) -> 
B21: =IF(A21="","",VLOOKUP(A21,'Dat-Bl'!$B$4:$F$123,2)) ->  | C21: =IF(A21="","",VLOOKUP(A21,'Dat-Bl'!$B$4:$F$123,3)) ->  | D21: =IF(A21="","",VLOOKUP(A21,'Dat-Bl'!$B$4:$F$123,5)) -> 
B22: =IF(A22="","",VLOOKUP(A22,'Dat-Bl'!$B$4:$F$123,2)) ->  | C22: =IF(A22="","",VLOOKUP(A22,'Dat-Bl'!$B$4:$F$123,3)) ->  | D22: =IF(A22="","",VLOOKUP(A22,'Dat-Bl'!$B$4:$F$123,5)) -> 
B23: =IF(A23="","",VLOOKUP(A23,'Dat-Bl'!$B$4:$F$123,2)) ->  | C23: =IF(A23="","",VLOOKUP(A23,'Dat-Bl'!$B$4:$F$123,3)) ->  | D23: =IF(A23="","",VLOOKUP(A23,'Dat-Bl'!$B$4:$F$123,5)) -> 
B24: =IF(A24="","",VLOOKUP(A24,'Dat-Bl'!$B$4:$F$123,2)) ->  | C24: =IF(A24="","",VLOOKUP(A24,'Dat-Bl'!$B$4:$F$123,3)) ->  | D24: =IF(A24="","",VLOOKUP(A24,'Dat-Bl'!$B$4:$F$123,5)) -> 
B25: =IF(A25="","",VLOOKUP(A25,'Dat-Bl'!$B$4:$F$123,2)) ->  | C25: =IF(A25="","",VLOOKUP(A25,'Dat-Bl'!$B$4:$F$123,3)) ->  | D25: =IF(A25="","",VLOOKUP(A25,'Dat-Bl'!$B$4:$F$123,5)) -> 
B26: =IF(A26="","",VLOOKUP(A26,'Dat-Bl'!$B$4:$F$123,2)) ->  | C26: =IF(A26="","",VLOOKUP(A26,'Dat-Bl'!$B$4:$F$123,3)) ->  | D26: =IF(A26="","",VLOOKUP(A26,'Dat-Bl'!$B$4:$F$123,5)) -> 
B27: =IF(A27="","",VLOOKUP(A27,'Dat-Bl'!$B$4:$F$123,2)) ->  | C27: =IF(A27="","",VLOOKUP(A27,'Dat-Bl'!$B$4:$F$123,3)) ->  | D27: =IF(A27="","",VLOOKUP(A27,'Dat-Bl'!$B$4:$F$123,5)) -> 
B28: =IF(A28="","",VLOOKUP(A28,'Dat-Bl'!$B$4:$F$123,2)) ->  | C28: =IF(A28="","",VLOOKUP(A28,'Dat-Bl'!$B$4:$F$123,3)) ->  | D28: =IF(A28="","",VLOOKUP(A28,'Dat-Bl'!$B$4:$F$123,5)) -> 
B29: =IF(A29="","",VLOOKUP(A29,'Dat-Bl'!$B$4:$F$123,2)) ->  | C29: =IF(A29="","",VLOOKUP(A29,'Dat-Bl'!$B$4:$F$123,3)) ->  | D29: =IF(A29="","",VLOOKUP(A29,'Dat-Bl'!$B$4:$F$123,5)) -> 
B30: =IF(A30="","",VLOOKUP(A30,'Dat-Bl'!$B$4:$F$123,2)) ->  | C30: =IF(A30="","",VLOOKUP(A30,'Dat-Bl'!$B$4:$F$123,3)) ->  | D30: =IF(A30="","",VLOOKUP(A30,'Dat-Bl'!$B$4:$F$123,5)) -> 
B31: =IF(A31="","",VLOOKUP(A31,'Dat-Bl'!$B$4:$F$123,2)) ->  | C31: =IF(A31="","",VLOOKUP(A31,'Dat-Bl'!$B$4:$F$123,3)) ->  | D31: =IF(A31="","",VLOOKUP(A31,'Dat-Bl'!$B$4:$F$123,5)) -> 
B32: =IF(A32="","",VLOOKUP(A32,'Dat-Bl'!$B$4:$F$123,2)) ->  | C32: =IF(A32="","",VLOOKUP(A32,'Dat-Bl'!$B$4:$F$123,3)) ->  | D32: =IF(A32="","",VLOOKUP(A32,'Dat-Bl'!$B$4:$F$123,5)) -> 
C34: Weitsprung | D34: Weiblich_D,C / Sport | F34: Anlage | H34: Uhr
A35: K-ziff | B35: Startnr.: | C35: Name | D35: Schule | E35: 1. Versuch | F35: 2. Versuch | G35: 3. Versuch | H35: Bester V.
B36: =IF(A36="","",VLOOKUP(A36,'Dat-Bl'!$B$127:$F$246,2)) ->  | C36: =IF(A36="","",VLOOKUP(A36,'Dat-Bl'!$B$127:$F$246,3)) ->  | D36: =IF(A36="","",VLOOKUP(A36,'Dat-Bl'!$B$127:$F$246,5)) -> 
B37: =IF(A37="","",VLOOKUP(A37,'Dat-Bl'!$B$127:$F$246,2)) ->  | C37: =IF(A37="","",VLOOKUP(A37,'Dat-Bl'!$B$127:$F$246,3)) ->  | D37: =IF(A37="","",VLOOKUP(A37,'Dat-Bl'!$B$127:$F$246,5)) -> 
B38: =IF(A38="","",VLOOKUP(A38,'Dat-Bl'!$B$127:$F$246,2)) ->  | C38: =IF(A38="","",VLOOKUP(A38,'Dat-Bl'!$B$127:$F$246,3)) ->  | D38: =IF(A38="","",VLOOKUP(A38,'Dat-Bl'!$B$127:$F$246,5)) -> 
B39: =IF(A39="","",VLOOKUP(A39,'Dat-Bl'!$B$127:$F$246,2)) ->  | C39: =IF(A39="","",VLOOKUP(A39,'Dat-Bl'!$B$127:$F$246,3)) ->  | D39: =IF(A39="","",VLOOKUP(A39,'Dat-Bl'!$B$127:$F$246,5)) -> 
B40: =IF(A40="","",VLOOKUP(A40,'Dat-Bl'!$B$127:$F$246,2)) ->  | C40: =IF(A40="","",VLOOKUP(A40,'Dat-Bl'!$B$127:$F$246,3)) ->  | D40: =IF(A40="","",VLOOKUP(A40,'Dat-Bl'!$B$127:$F$246,5)) -> 
B41: =IF(A41="","",VLOOKUP(A41,'Dat-Bl'!$B$127:$F$246,2)) ->  | C41: =IF(A41="","",VLOOKUP(A41,'Dat-Bl'!$B$127:$F$246,3)) ->  | D41: =IF(A41="","",VLOOKUP(A41,'Dat-Bl'!$B$127:$F$246,5)) -> 
B42: =IF(A42="","",VLOOKUP(A42,'Dat-Bl'!$B$127:$F$246,2)) ->  | C42: =IF(A42="","",VLOOKUP(A42,'Dat-Bl'!$B$127:$F$246,3)) ->  | D42: =IF(A42="","",VLOOKUP(A42,'Dat-Bl'!$B$127:$F$246,5)) -> 
B43: =IF(A43="","",VLOOKUP(A43,'Dat-Bl'!$B$127:$F$246,2)) ->  | C43: =IF(A43="","",VLOOKUP(A43,'Dat-Bl'!$B$127:$F$246,3)) ->  | D43: =IF(A43="","",VLOOKUP(A43,'Dat-Bl'!$B$127:$F$246,5)) -> 
B44: =IF(A44="","",VLOOKUP(A44,'Dat-Bl'!$B$127:$F$246,2)) ->  | C44: =IF(A44="","",VLOOKUP(A44,'Dat-Bl'!$B$127:$F$246,3)) ->  | D44: =IF(A44="","",VLOOKUP(A44,'Dat-Bl'!$B$127:$F$246,5)) -> 
B45: =IF(A45="","",VLOOKUP(A45,'Dat-Bl'!$B$127:$F$246,2)) ->  | C45: =IF(A45="","",VLOOKUP(A45,'Dat-Bl'!$B$127:$F$246,3)) ->  | D45: =IF(A45="","",VLOOKUP(A45,'Dat-Bl'!$B$127:$F$246,5)) -> 
B46: =IF(A46="","",VLOOKUP(A46,'Dat-Bl'!$B$127:$F$246,2)) ->  | C46: =IF(A46="","",VLOOKUP(A46,'Dat-Bl'!$B$127:$F$246,3)) ->  | D46: =IF(A46="","",VLOOKUP(A46,'Dat-Bl'!$B$127:$F$246,5)) -> 
B47: =IF(A47="","",VLOOKUP(A47,'Dat-Bl'!$B$127:$F$246,2)) ->  | C47: =IF(A47="","",VLOOKUP(A47,'Dat-Bl'!$B$127:$F$246,3)) ->  | D47: =IF(A47="","",VLOOKUP(A47,'Dat-Bl'!$B$127:$F$246,5)) -> 
B48: =IF(A48="","",VLOOKUP(A48,'Dat-Bl'!$B$127:$F$246,2)) ->  | C48: =IF(A48="","",VLOOKUP(A48,'Dat-Bl'!$B$127:$F$246,3)) ->  | D48: =IF(A48="","",VLOOKUP(A48,'Dat-Bl'!$B$127:$F$246,5)) -> 
B49: =IF(A49="","",VLOOKUP(A49,'Dat-Bl'!$B$127:$F$246,2)) ->  | C49: =IF(A49="","",VLOOKUP(A49,'Dat-Bl'!$B$127:$F$246,3)) ->  | D49: =IF(A49="","",VLOOKUP(A49,'Dat-Bl'!$B$127:$F$246,5)) -> 
B50: =IF(A50="","",VLOOKUP(A50,'Dat-Bl'!$B$127:$F$246,2)) ->  | C50: =IF(A50="","",VLOOKUP(A50,'Dat-Bl'!$B$127:$F$246,3)) ->  | D50: =IF(A50="","",VLOOKUP(A50,'Dat-Bl'!$B$127:$F$246,5)) -> 
B51: =IF(A51="","",VLOOKUP(A51,'Dat-Bl'!$B$127:$F$246,2)) ->  | C51: =IF(A51="","",VLOOKUP(A51,'Dat-Bl'!$B$127:$F$246,3)) ->  | D51: =IF(A51="","",VLOOKUP(A51,'Dat-Bl'!$B$127:$F$246,5)) -> 
B52: =IF(A52="","",VLOOKUP(A52,'Dat-Bl'!$B$127:$F$246,2)) ->  | C52: =IF(A52="","",VLOOKUP(A52,'Dat-Bl'!$B$127:$F$246,3)) ->  | D52: =IF(A52="","",VLOOKUP(A52,'Dat-Bl'!$B$127:$F$246,5)) -> 
B53: =IF(A53="","",VLOOKUP(A53,'Dat-Bl'!$B$127:$F$246,2)) ->  | C53: =IF(A53="","",VLOOKUP(A53,'Dat-Bl'!$B$127:$F$246,3)) ->  | D53: =IF(A53="","",VLOOKUP(A53,'Dat-Bl'!$B$127:$F$246,5)) -> 
B54: =IF(A54="","",VLOOKUP(A54,'Dat-Bl'!$B$127:$F$246,2)) ->  | C54: =IF(A54="","",VLOOKUP(A54,'Dat-Bl'!$B$127:$F$246,3)) ->  | D54: =IF(A54="","",VLOOKUP(A54,'Dat-Bl'!$B$127:$F$246,5)) -> 
B55: =IF(A55="","",VLOOKUP(A55,'Dat-Bl'!$B$127:$F$246,2)) ->  | C55: =IF(A55="","",VLOOKUP(A55,'Dat-Bl'!$B$127:$F$246,3)) ->  | D55: =IF(A55="","",VLOOKUP(A55,'Dat-Bl'!$B$127:$F$246,5)) -> 
B56: =IF(A56="","",VLOOKUP(A56,'Dat-Bl'!$B$127:$F$246,2)) ->  | C56: =IF(A56="","",VLOOKUP(A56,'Dat-Bl'!$B$127:$F$246,3)) ->  | D56: =IF(A56="","",VLOOKUP(A56,'Dat-Bl'!$B$127:$F$246,5)) -> 
B57: =IF(A57="","",VLOOKUP(A57,'Dat-Bl'!$B$127:$F$246,2)) ->  | C57: =IF(A57="","",VLOOKUP(A57,'Dat-Bl'!$B$127:$F$246,3)) ->  | D57: =IF(A57="","",VLOOKUP(A57,'Dat-Bl'!$B$127:$F$246,5)) -> 
B58: =IF(A58="","",VLOOKUP(A58,'Dat-Bl'!$B$127:$F$246,2)) ->  | C58: =IF(A58="","",VLOOKUP(A58,'Dat-Bl'!$B$127:$F$246,3)) ->  | D58: =IF(A58="","",VLOOKUP(A58,'Dat-Bl'!$B$127:$F$246,5)) -> 
B59: =IF(A59="","",VLOOKUP(A59,'Dat-Bl'!$B$127:$F$246,2)) ->  | C59: =IF(A59="","",VLOOKUP(A59,'Dat-Bl'!$B$127:$F$246,3)) ->  | D59: =IF(A59="","",VLOOKUP(A59,'Dat-Bl'!$B$127:$F$246,5)) -> 
B60: =IF(A60="","",VLOOKUP(A60,'Dat-Bl'!$B$127:$F$246,2)) ->  | C60: =IF(A60="","",VLOOKUP(A60,'Dat-Bl'!$B$127:$F$246,3)) ->  | D60: =IF(A60="","",VLOOKUP(A60,'Dat-Bl'!$B$127:$F$246,5)) -> 
B61: =IF(A61="","",VLOOKUP(A61,'Dat-Bl'!$B$127:$F$246,2)) ->  | C61: =IF(A61="","",VLOOKUP(A61,'Dat-Bl'!$B$127:$F$246,3)) ->  | D61: =IF(A61="","",VLOOKUP(A61,'Dat-Bl'!$B$127:$F$246,5)) -> 
B62: =IF(A62="","",VLOOKUP(A62,'Dat-Bl'!$B$127:$F$246,2)) ->  | C62: =IF(A62="","",VLOOKUP(A62,'Dat-Bl'!$B$127:$F$246,3)) ->  | D62: =IF(A62="","",VLOOKUP(A62,'Dat-Bl'!$B$127:$F$246,5)) -> 
B63: =IF(A63="","",VLOOKUP(A63,'Dat-Bl'!$B$127:$F$246,2)) ->  | C63: =IF(A63="","",VLOOKUP(A63,'Dat-Bl'!$B$127:$F$246,3)) ->  | D63: =IF(A63="","",VLOOKUP(A63,'Dat-Bl'!$B$127:$F$246,5)) -> 
B64: =IF(A64="","",VLOOKUP(A64,'Dat-Bl'!$B$127:$F$246,2)) ->  | C64: =IF(A64="","",VLOOKUP(A64,'Dat-Bl'!$B$127:$F$246,3)) ->  | D64: =IF(A64="","",VLOOKUP(A64,'Dat-Bl'!$B$127:$F$246,5)) -> 
B65: =IF(A65="","",VLOOKUP(A65,'Dat-Bl'!$B$127:$F$246,2)) ->  | C65: =IF(A65="","",VLOOKUP(A65,'Dat-Bl'!$B$127:$F$246,3)) ->  | D65: =IF(A65="","",VLOOKUP(A65,'Dat-Bl'!$B$127:$F$246,5)) -> 
C67: Weitsprung | D67: Männlich_D,C / Regel | F67: Anlage | H67: Uhr
A68: K-ziff | B68: Startnr.: | C68: Name | D68: Schule | E68: 1. Versuch | F68: 2. Versuch | G68: 3. Versuch | H68: Bester V.
B69: =IF(A69="","",VLOOKUP(A69,'Dat-Bl'!$J$4:$N$123,2)) ->  | C69: =IF(A69="","",VLOOKUP(A69,'Dat-Bl'!$J$4:$N$123,3)) ->  | D69: =IF(A69="","",VLOOKUP(A69,'Dat-Bl'!$J$4:$N$123,5)) -> 
B70: =IF(A70="","",VLOOKUP(A70,'Dat-Bl'!$J$4:$N$123,2)) ->  | C70: =IF(A70="","",VLOOKUP(A70,'Dat-Bl'!$J$4:$N$123,3)) ->  | D70: =IF(A70="","",VLOOKUP(A70,'Dat-Bl'!$J$4:$N$123,5)) -> 
B71: =IF(A71="","",VLOOKUP(A71,'Dat-Bl'!$J$4:$N$123,2)) ->  | C71: =IF(A71="","",VLOOKUP(A71,'Dat-Bl'!$J$4:$N$123,3)) ->  | D71: =IF(A71="","",VLOOKUP(A71,'Dat-Bl'!$J$4:$N$123,5)) -> 
B72: =IF(A72="","",VLOOKUP(A72,'Dat-Bl'!$J$4:$N$123,2)) ->  | C72: =IF(A72="","",VLOOKUP(A72,'Dat-Bl'!$J$4:$N$123,3)) ->  | D72: =IF(A72="","",VLOOKUP(A72,'Dat-Bl'!$J$4:$N$123,5)) -> 
B73: =IF(A73="","",VLOOKUP(A73,'Dat-Bl'!$J$4:$N$123,2)) ->  | C73: =IF(A73="","",VLOOKUP(A73,'Dat-Bl'!$J$4:$N$123,3)) ->  | D73: =IF(A73="","",VLOOKUP(A73,'Dat-Bl'!$J$4:$N$123,5)) -> 
B74: =IF(A74="","",VLOOKUP(A74,'Dat-Bl'!$J$4:$N$123,2)) ->  | C74: =IF(A74="","",VLOOKUP(A74,'Dat-Bl'!$J$4:$N$123,3)) ->  | D74: =IF(A74="","",VLOOKUP(A74,'Dat-Bl'!$J$4:$N$123,5)) -> 
B75: =IF(A75="","",VLOOKUP(A75,'Dat-Bl'!$J$4:$N$123,2)) ->  | C75: =IF(A75="","",VLOOKUP(A75,'Dat-Bl'!$J$4:$N$123,3)) ->  | D75: =IF(A75="","",VLOOKUP(A75,'Dat-Bl'!$J$4:$N$123,5)) -> 
B76: =IF(A76="","",VLOOKUP(A76,'Dat-Bl'!$J$4:$N$123,2)) ->  | C76: =IF(A76="","",VLOOKUP(A76,'Dat-Bl'!$J$4:$N$123,3)) ->  | D76: =IF(A76="","",VLOOKUP(A76,'Dat-Bl'!$J$4:$N$123,5)) -> 
B77: =IF(A77="","",VLOOKUP(A77,'Dat-Bl'!$J$4:$N$123,2)) ->  | C77: =IF(A77="","",VLOOKUP(A77,'Dat-Bl'!$J$4:$N$123,3)) ->  | D77: =IF(A77="","",VLOOKUP(A77,'Dat-Bl'!$J$4:$N$123,5)) -> 
B78: =IF(A78="","",VLOOKUP(A78,'Dat-Bl'!$J$4:$N$123,2)) ->  | C78: =IF(A78="","",VLOOKUP(A78,'Dat-Bl'!$J$4:$N$123,3)) ->  | D78: =IF(A78="","",VLOOKUP(A78,'Dat-Bl'!$J$4:$N$123,5)) -> 
B79: =IF(A79="","",VLOOKUP(A79,'Dat-Bl'!$J$4:$N$123,2)) ->  | C79: =IF(A79="","",VLOOKUP(A79,'Dat-Bl'!$J$4:$N$123,3)) ->  | D79: =IF(A79="","",VLOOKUP(A79,'Dat-Bl'!$J$4:$N$123,5)) -> 
B80: =IF(A80="","",VLOOKUP(A80,'Dat-Bl'!$J$4:$N$123,2)) ->  | C80: =IF(A80="","",VLOOKUP(A80,'Dat-Bl'!$J$4:$N$123,3)) ->  | D80: =IF(A80="","",VLOOKUP(A80,'Dat-Bl'!$J$4:$N$123,5)) -> 
B81: =IF(A81="","",VLOOKUP(A81,'Dat-Bl'!$J$4:$N$123,2)) ->  | C81: =IF(A81="","",VLOOKUP(A81,'Dat-Bl'!$J$4:$N$123,3)) ->  | D81: =IF(A81="","",VLOOKUP(A81,'Dat-Bl'!$J$4:$N$123,5)) -> 
B82: =IF(A82="","",VLOOKUP(A82,'Dat-Bl'!$J$4:$N$123,2)) ->  | C82: =IF(A82="","",VLOOKUP(A82,'Dat-Bl'!$J$4:$N$123,3)) ->  | D82: =IF(A82="","",VLOOKUP(A82,'Dat-Bl'!$J$4:$N$123,5)) -> 
B83: =IF(A83="","",VLOOKUP(A83,'Dat-Bl'!$J$4:$N$123,2)) ->  | C83: =IF(A83="","",VLOOKUP(A83,'Dat-Bl'!$J$4:$N$123,3)) ->  | D83: =IF(A83="","",VLOOKUP(A83,'Dat-Bl'!$J$4:$N$123,5)) -> 
B84: =IF(A84="","",VLOOKUP(A84,'Dat-Bl'!$J$4:$N$123,2)) ->  | C84: =IF(A84="","",VLOOKUP(A84,'Dat-Bl'!$J$4:$N$123,3)) ->  | D84: =IF(A84="","",VLOOKUP(A84,'Dat-Bl'!$J$4:$N$123,5)) -> 
B85: =IF(A85="","",VLOOKUP(A85,'Dat-Bl'!$J$4:$N$123,2)) ->  | C85: =IF(A85="","",VLOOKUP(A85,'Dat-Bl'!$J$4:$N$123,3)) ->  | D85: =IF(A85="","",VLOOKUP(A85,'Dat-Bl'!$J$4:$N$123,5)) -> 
B86: =IF(A86="","",VLOOKUP(A86,'Dat-Bl'!$J$4:$N$123,2)) ->  | C86: =IF(A86="","",VLOOKUP(A86,'Dat-Bl'!$J$4:$N$123,3)) ->  | D86: =IF(A86="","",VLOOKUP(A86,'Dat-Bl'!$J$4:$N$123,5)) -> 
B87: =IF(A87="","",VLOOKUP(A87,'Dat-Bl'!$J$4:$N$123,2)) ->  | C87: =IF(A87="","",VLOOKUP(A87,'Dat-Bl'!$J$4:$N$123,3)) ->  | D87: =IF(A87="","",VLOOKUP(A87,'Dat-Bl'!$J$4:$N$123,5)) -> 
B88: =IF(A88="","",VLOOKUP(A88,'Dat-Bl'!$J$4:$N$123,2)) ->  | C88: =IF(A88="","",VLOOKUP(A88,'Dat-Bl'!$J$4:$N$123,3)) ->  | D88: =IF(A88="","",VLOOKUP(A88,'Dat-Bl'!$J$4:$N$123,5)) -> 
B89: =IF(A89="","",VLOOKUP(A89,'Dat-Bl'!$J$4:$N$123,2)) ->  | C89: =IF(A89="","",VLOOKUP(A89,'Dat-Bl'!$J$4:$N$123,3)) ->  | D89: =IF(A89="","",VLOOKUP(A89,'Dat-Bl'!$J$4:$N$123,5)) -> 
B90: =IF(A90="","",VLOOKUP(A90,'Dat-Bl'!$J$4:$N$123,2)) ->  | C90: =IF(A90="","",VLOOKUP(A90,'Dat-Bl'!$J$4:$N$123,3)) ->  | D90: =IF(A90="","",VLOOKUP(A90,'Dat-Bl'!$J$4:$N$123,5)) -> 
B91: =IF(A91="","",VLOOKUP(A91,'Dat-Bl'!$J$4:$N$123,2)) ->  | C91: =IF(A91="","",VLOOKUP(A91,'Dat-Bl'!$J$4:$N$123,3)) ->  | D91: =IF(A91="","",VLOOKUP(A91,'Dat-Bl'!$J$4:$N$123,5)) -> 
B92: =IF(A92="","",VLOOKUP(A92,'Dat-Bl'!$J$4:$N$123,2)) ->  | C92: =IF(A92="","",VLOOKUP(A92,'Dat-Bl'!$J$4:$N$123,3)) ->  | D92: =IF(A92="","",VLOOKUP(A92,'Dat-Bl'!$J$4:$N$123,5)) -> 
B93: =IF(A93="","",VLOOKUP(A93,'Dat-Bl'!$J$4:$N$123,2)) ->  | C93: =IF(A93="","",VLOOKUP(A93,'Dat-Bl'!$J$4:$N$123,3)) ->  | D93: =IF(A93="","",VLOOKUP(A93,'Dat-Bl'!$J$4:$N$123,5)) -> 
B94: =IF(A94="","",VLOOKUP(A94,'Dat-Bl'!$J$4:$N$123,2)) ->  | C94: =IF(A94="","",VLOOKUP(A94,'Dat-Bl'!$J$4:$N$123,3)) ->  | D94: =IF(A94="","",VLOOKUP(A94,'Dat-Bl'!$J$4:$N$123,5)) -> 
B95: =IF(A95="","",VLOOKUP(A95,'Dat-Bl'!$J$4:$N$123,2)) ->  | C95: =IF(A95="","",VLOOKUP(A95,'Dat-Bl'!$J$4:$N$123,3)) ->  | D95: =IF(A95="","",VLOOKUP(A95,'Dat-Bl'!$J$4:$N$123,5)) -> 
B96: =IF(A96="","",VLOOKUP(A96,'Dat-Bl'!$J$4:$N$123,2)) ->  | C96: =IF(A96="","",VLOOKUP(A96,'Dat-Bl'!$J$4:$N$123,3)) ->  | D96: =IF(A96="","",VLOOKUP(A96,'Dat-Bl'!$J$4:$N$123,5)) -> 
B97: =IF(A97="","",VLOOKUP(A97,'Dat-Bl'!$J$4:$N$123,2)) ->  | C97: =IF(A97="","",VLOOKUP(A97,'Dat-Bl'!$J$4:$N$123,3)) ->  | D97: =IF(A97="","",VLOOKUP(A97,'Dat-Bl'!$J$4:$N$123,5)) -> 
B98: =IF(A98="","",VLOOKUP(A98,'Dat-Bl'!$J$4:$N$123,2)) ->  | C98: =IF(A98="","",VLOOKUP(A98,'Dat-Bl'!$J$4:$N$123,3)) ->  | D98: =IF(A98="","",VLOOKUP(A98,'Dat-Bl'!$J$4:$N$123,5)) -> 
C100: Weitsprung | D100: Männlich_D,C / Sport | F100: Anlage | H100: Uhr
A101: K-ziff | B101: Startnr.: | C101: Name | D101: Schule | E101: 1. Versuch | F101: 2. Versuch | G101: 3. Versuch | H101: Bester V.
B102: =IF(A102="","",VLOOKUP(A102,'Dat-Bl'!$J$127:$N$246,2)) ->  | C102: =IF(A102="","",VLOOKUP(A102,'Dat-Bl'!$J$127:$N$246,3)) ->  | D102: =IF(A102="","",VLOOKUP(A102,'Dat-Bl'!$J$127:$N$246,5)) -> 
B103: =IF(A103="","",VLOOKUP(A103,'Dat-Bl'!$J$127:$N$246,2)) ->  | C103: =IF(A103="","",VLOOKUP(A103,'Dat-Bl'!$J$127:$N$246,3)) ->  | D103: =IF(A103="","",VLOOKUP(A103,'Dat-Bl'!$J$127:$N$246,5)) -> 
B104: =IF(A104="","",VLOOKUP(A104,'Dat-Bl'!$J$127:$N$246,2)) ->  | C104: =IF(A104="","",VLOOKUP(A104,'Dat-Bl'!$J$127:$N$246,3)) ->  | D104: =IF(A104="","",VLOOKUP(A104,'Dat-Bl'!$J$127:$N$246,5)) -> 
B105: =IF(A105="","",VLOOKUP(A105,'Dat-Bl'!$J$127:$N$246,2)) ->  | C105: =IF(A105="","",VLOOKUP(A105,'Dat-Bl'!$J$127:$N$246,3)) ->  | D105: =IF(A105="","",VLOOKUP(A105,'Dat-Bl'!$J$127:$N$246,5)) -> 
B106: =IF(A106="","",VLOOKUP(A106,'Dat-Bl'!$J$127:$N$246,2)) ->  | C106: =IF(A106="","",VLOOKUP(A106,'Dat-Bl'!$J$127:$N$246,3)) ->  | D106: =IF(A106="","",VLOOKUP(A106,'Dat-Bl'!$J$127:$N$246,5)) -> 
B107: =IF(A107="","",VLOOKUP(A107,'Dat-Bl'!$J$127:$N$246,2)) ->  | C107: =IF(A107="","",VLOOKUP(A107,'Dat-Bl'!$J$127:$N$246,3)) ->  | D107: =IF(A107="","",VLOOKUP(A107,'Dat-Bl'!$J$127:$N$246,5)) -> 
B108: =IF(A108="","",VLOOKUP(A108,'Dat-Bl'!$J$127:$N$246,2)) ->  | C108: =IF(A108="","",VLOOKUP(A108,'Dat-Bl'!$J$127:$N$246,3)) ->  | D108: =IF(A108="","",VLOOKUP(A108,'Dat-Bl'!$J$127:$N$246,5)) -> 
B109: =IF(A109="","",VLOOKUP(A109,'Dat-Bl'!$J$127:$N$246,2)) ->  | C109: =IF(A109="","",VLOOKUP(A109,'Dat-Bl'!$J$127:$N$246,3)) ->  | D109: =IF(A109="","",VLOOKUP(A109,'Dat-Bl'!$J$127:$N$246,5)) -> 
B110: =IF(A110="","",VLOOKUP(A110,'Dat-Bl'!$J$127:$N$246,2)) ->  | C110: =IF(A110="","",VLOOKUP(A110,'Dat-Bl'!$J$127:$N$246,3)) ->  | D110: =IF(A110="","",VLOOKUP(A110,'Dat-Bl'!$J$127:$N$246,5)) -> 
B111: =IF(A111="","",VLOOKUP(A111,'Dat-Bl'!$J$127:$N$246,2)) ->  | C111: =IF(A111="","",VLOOKUP(A111,'Dat-Bl'!$J$127:$N$246,3)) ->  | D111: =IF(A111="","",VLOOKUP(A111,'Dat-Bl'!$J$127:$N$246,5)) -> 
B112: =IF(A112="","",VLOOKUP(A112,'Dat-Bl'!$J$127:$N$246,2)) ->  | C112: =IF(A112="","",VLOOKUP(A112,'Dat-Bl'!$J$127:$N$246,3)) ->  | D112: =IF(A112="","",VLOOKUP(A112,'Dat-Bl'!$J$127:$N$246,5)) -> 
B113: =IF(A113="","",VLOOKUP(A113,'Dat-Bl'!$J$127:$N$246,2)) ->  | C113: =IF(A113="","",VLOOKUP(A113,'Dat-Bl'!$J$127:$N$246,3)) ->  | D113: =IF(A113="","",VLOOKUP(A113,'Dat-Bl'!$J$127:$N$246,5)) -> 
B114: =IF(A114="","",VLOOKUP(A114,'Dat-Bl'!$J$127:$N$246,2)) ->  | C114: =IF(A114="","",VLOOKUP(A114,'Dat-Bl'!$J$127:$N$246,3)) ->  | D114: =IF(A114="","",VLOOKUP(A114,'Dat-Bl'!$J$127:$N$246,5)) -> 
B115: =IF(A115="","",VLOOKUP(A115,'Dat-Bl'!$J$127:$N$246,2)) ->  | C115: =IF(A115="","",VLOOKUP(A115,'Dat-Bl'!$J$127:$N$246,3)) ->  | D115: =IF(A115="","",VLOOKUP(A115,'Dat-Bl'!$J$127:$N$246,5)) -> 
B116: =IF(A116="","",VLOOKUP(A116,'Dat-Bl'!$J$127:$N$246,2)) ->  | C116: =IF(A116="","",VLOOKUP(A116,'Dat-Bl'!$J$127:$N$246,3)) ->  | D116: =IF(A116="","",VLOOKUP(A116,'Dat-Bl'!$J$127:$N$246,5)) -> 
B117: =IF(A117="","",VLOOKUP(A117,'Dat-Bl'!$J$127:$N$246,2)) ->  | C117: =IF(A117="","",VLOOKUP(A117,'Dat-Bl'!$J$127:$N$246,3)) ->  | D117: =IF(A117="","",VLOOKUP(A117,'Dat-Bl'!$J$127:$N$246,5)) -> 
B118: =IF(A118="","",VLOOKUP(A118,'Dat-Bl'!$J$127:$N$246,2)) ->  | C118: =IF(A118="","",VLOOKUP(A118,'Dat-Bl'!$J$127:$N$246,3)) ->  | D118: =IF(A118="","",VLOOKUP(A118,'Dat-Bl'!$J$127:$N$246,5)) -> 
B119: =IF(A119="","",VLOOKUP(A119,'Dat-Bl'!$J$127:$N$246,2)) ->  | C119: =IF(A119="","",VLOOKUP(A119,'Dat-Bl'!$J$127:$N$246,3)) ->  | D119: =IF(A119="","",VLOOKUP(A119,'Dat-Bl'!$J$127:$N$246,5)) -> 
B120: =IF(A120="","",VLOOKUP(A120,'Dat-Bl'!$J$127:$N$246,2)) ->  | C120: =IF(A120="","",VLOOKUP(A120,'Dat-Bl'!$J$127:$N$246,3)) ->  | D120: =IF(A120="","",VLOOKUP(A120,'Dat-Bl'!$J$127:$N$246,5)) -> 
B121: =IF(A121="","",VLOOKUP(A121,'Dat-Bl'!$J$127:$N$246,2)) ->  | C121: =IF(A121="","",VLOOKUP(A121,'Dat-Bl'!$J$127:$N$246,3)) ->  | D121: =IF(A121="","",VLOOKUP(A121,'Dat-Bl'!$J$127:$N$246,5)) -> 
B122: =IF(A122="","",VLOOKUP(A122,'Dat-Bl'!$J$127:$N$246,2)) ->  | C122: =IF(A122="","",VLOOKUP(A122,'Dat-Bl'!$J$127:$N$246,3)) ->  | D122: =IF(A122="","",VLOOKUP(A122,'Dat-Bl'!$J$127:$N$246,5)) -> 
B123: =IF(A123="","",VLOOKUP(A123,'Dat-Bl'!$J$127:$N$246,2)) ->  | C123: =IF(A123="","",VLOOKUP(A123,'Dat-Bl'!$J$127:$N$246,3)) ->  | D123: =IF(A123="","",VLOOKUP(A123,'Dat-Bl'!$J$127:$N$246,5)) -> 
B124: =IF(A124="","",VLOOKUP(A124,'Dat-Bl'!$J$127:$N$246,2)) ->  | C124: =IF(A124="","",VLOOKUP(A124,'Dat-Bl'!$J$127:$N$246,3)) ->  | D124: =IF(A124="","",VLOOKUP(A124,'Dat-Bl'!$J$127:$N$246,5)) -> 
B125: =IF(A125="","",VLOOKUP(A125,'Dat-Bl'!$J$127:$N$246,2)) ->  | C125: =IF(A125="","",VLOOKUP(A125,'Dat-Bl'!$J$127:$N$246,3)) ->  | D125: =IF(A125="","",VLOOKUP(A125,'Dat-Bl'!$J$127:$N$246,5)) -> 
B126: =IF(A126="","",VLOOKUP(A126,'Dat-Bl'!$J$127:$N$246,2)) ->  | C126: =IF(A126="","",VLOOKUP(A126,'Dat-Bl'!$J$127:$N$246,3)) ->  | D126: =IF(A126="","",VLOOKUP(A126,'Dat-Bl'!$J$127:$N$246,5)) -> 
B127: =IF(A127="","",VLOOKUP(A127,'Dat-Bl'!$J$127:$N$246,2)) ->  | C127: =IF(A127="","",VLOOKUP(A127,'Dat-Bl'!$J$127:$N$246,3)) ->  | D127: =IF(A127="","",VLOOKUP(A127,'Dat-Bl'!$J$127:$N$246,5)) -> 
B128: =IF(A128="","",VLOOKUP(A128,'Dat-Bl'!$J$127:$N$246,2)) ->  | C128: =IF(A128="","",VLOOKUP(A128,'Dat-Bl'!$J$127:$N$246,3)) ->  | D128: =IF(A128="","",VLOOKUP(A128,'Dat-Bl'!$J$127:$N$246,5)) -> 
B129: =IF(A129="","",VLOOKUP(A129,'Dat-Bl'!$J$127:$N$246,2)) ->  | C129: =IF(A129="","",VLOOKUP(A129,'Dat-Bl'!$J$127:$N$246,3)) ->  | D129: =IF(A129="","",VLOOKUP(A129,'Dat-Bl'!$J$127:$N$246,5)) -> 
B130: =IF(A130="","",VLOOKUP(A130,'Dat-Bl'!$J$127:$N$246,2)) ->  | C130: =IF(A130="","",VLOOKUP(A130,'Dat-Bl'!$J$127:$N$246,3)) ->  | D130: =IF(A130="","",VLOOKUP(A130,'Dat-Bl'!$J$127:$N$246,5)) -> 
B131: =IF(A131="","",VLOOKUP(A131,'Dat-Bl'!$J$127:$N$246,2)) ->  | C131: =IF(A131="","",VLOOKUP(A131,'Dat-Bl'!$J$127:$N$246,3)) ->  | D131: =IF(A131="","",VLOOKUP(A131,'Dat-Bl'!$J$127:$N$246,5)) -> 

Sheet P-Staffel
B1: Lauf | C1: Weiblich_D,C / Regel | D1: 5x80m
A3: K-ziff | B3: Bahn | C3: Schule | D3: Zeit
A4: 1 | B4: 1 | C4: =IF(A4="","",VLOOKUP(A4,'Dat-Bl'!$B$4:$F$123,5)) -> BG St.Martin
A5: 7 | B5: 2 | C5: =IF(A5="","",VLOOKUP(A5,'Dat-Bl'!$B$4:$F$123,5)) -> Borg Wolfsberg
A6: 13 | B6: 3 | C6: =IF(A6="","",VLOOKUP(A6,'Dat-Bl'!$B$4:$F$123,5)) -> BRG Spittal
A7: 19 | B7: 4 | C7: =IF(A7="","",VLOOKUP(A7,'Dat-Bl'!$B$4:$F$123,5)) -> BZ Bad Eisenkappel
A8: 25 | B8: 5 | C8: =IF(A8="","",VLOOKUP(A8,'Dat-Bl'!$B$4:$F$123,5)) -> Ingeborg Bachmann Gymnasium
A9: 31 | B9: 6 | C9: =IF(A9="","",VLOOKUP(A9,'Dat-Bl'!$B$4:$F$123,5)) -> Musik NMS Hermagor
B10: 7 | C10: =IF(A10="","",VLOOKUP(A10,'Dat-Bl'!$B$4:$F$123,5)) -> 
B11: 8 | C11: =IF(A11="","",VLOOKUP(A11,'Dat-Bl'!$B$4:$F$123,5)) -> 
B13: Lauf | C13: =C1 -> Weiblich_D,C / Regel | D13: 5x80m
A15: K-ziff | B15: Bahn | C15: Schule | D15: Zeit
A16: 37 | B16: 1 | C16: =IF(A16="","",VLOOKUP(A16,'Dat-Bl'!$B$4:$F$123,5)) -> NMS Friesach
A17: 43 | B17: 2 | C17: =IF(A17="","",VLOOKUP(A17,'Dat-Bl'!$B$4:$F$123,5)) -> NMS Gegendtal
A18: 49 | B18: 3 | C18: =IF(A18="","",VLOOKUP(A18,'Dat-Bl'!$B$4:$F$123,5)) -> NMS Landskron
A19: 55 | B19: 4 | C19: =IF(A19="","",VLOOKUP(A19,'Dat-Bl'!$B$4:$F$123,5)) -> NMS Viktring
A20: 61 | B20: 5 | C20: =IF(A20="","",VLOOKUP(A20,'Dat-Bl'!$B$4:$F$123,5)) -> RNMS Feldkirchen
B21: 6 | C21: =IF(A21="","",VLOOKUP(A21,'Dat-Bl'!$B$4:$F$123,5)) -> 
B22: 7 | C22: =IF(A22="","",VLOOKUP(A22,'Dat-Bl'!$B$4:$F$123,5)) -> 
B23: 8 | C23: =IF(A23="","",VLOOKUP(A23,'Dat-Bl'!$B$4:$F$123,5)) -> 
B25: Lauf | C25: =C1 -> Weiblich_D,C / Regel | D25: 5x80m
A27: K-ziff | B27: Bahn | C27: Schule | D27: Zeit
B28: 1 | C28: =IF(A28="","",VLOOKUP(A28,'Dat-Bl'!$B$4:$F$123,5)) -> 
B29: 2 | C29: =IF(A29="","",VLOOKUP(A29,'Dat-Bl'!$B$4:$F$123,5)) -> 
B30: 3 | C30: =IF(A30="","",VLOOKUP(A30,'Dat-Bl'!$B$4:$F$123,5)) -> 
B31: 4 | C31: =IF(A31="","",VLOOKUP(A31,'Dat-Bl'!$B$4:$F$123,5)) -> 
B32: 5 | C32: =IF(A32="","",VLOOKUP(A32,'Dat-Bl'!$B$4:$F$123,5)) -> 
B33: 6 | C33: =IF(A33="","",VLOOKUP(A33,'Dat-Bl'!$B$4:$F$123,5)) -> 
B34: 7 | C34: =IF(A34="","",VLOOKUP(A34,'Dat-Bl'!$B$4:$F$123,5)) -> 
B35: 8 | C35: =IF(A35="","",VLOOKUP(A35,'Dat-Bl'!$B$4:$F$123,5)) -> 
B37: Lauf | C37: Weiblich_D,C / Sport | D37: 5x80m
A39: K-ziff | B39: Bahn | C39: Schule | D39: Zeit
B40: 1 | C40: =IF(A40="","",VLOOKUP(A40,'Dat-Bl'!$B$127:$F$246,5)) -> 
B41: 2 | C41: =IF(A41="","",VLOOKUP(A41,'Dat-Bl'!$B$127:$F$246,5)) -> 
B42: 3 | C42: =IF(A42="","",VLOOKUP(A42,'Dat-Bl'!$B$127:$F$246,5)) -> 
B43: 4 | C43: =IF(A43="","",VLOOKUP(A43,'Dat-Bl'!$B$127:$F$246,5)) -> 
B44: 5 | C44: =IF(A44="","",VLOOKUP(A44,'Dat-Bl'!$B$127:$F$246,5)) -> 
B45: 6 | C45: =IF(A45="","",VLOOKUP(A45,'Dat-Bl'!$B$127:$F$246,5)) -> 
B46: 7 | C46: =IF(A46="","",VLOOKUP(A46,'Dat-Bl'!$B$127:$F$246,5)) -> 
B47: 8 | C47: =IF(A47="","",VLOOKUP(A47,'Dat-Bl'!$B$127:$F$246,5)) -> 
B49: Lauf | C49: =C37 -> Weiblich_D,C / Sport | D49: 5x80m
A51: K-ziff | B51: Bahn | C51: Schule | D51: Zeit
B52: 1 | C52: =IF(A52="","",VLOOKUP(A52,'Dat-Bl'!$B$127:$F$246,5)) -> 
B53: 2 | C53: =IF(A53="","",VLOOKUP(A53,'Dat-Bl'!$B$127:$F$246,5)) -> 
B54: 3 | C54: =IF(A54="","",VLOOKUP(A54,'Dat-Bl'!$B$127:$F$246,5)) -> 
B55: 4 | C55: =IF(A55="","",VLOOKUP(A55,'Dat-Bl'!$B$127:$F$246,5)) -> 
B56: 5 | C56: =IF(A56="","",VLOOKUP(A56,'Dat-Bl'!$B$127:$F$246,5)) -> 
B57: 6 | C57: =IF(A57="","",VLOOKUP(A57,'Dat-Bl'!$B$127:$F$246,5)) -> 
B58: 7 | C58: =IF(A58="","",VLOOKUP(A58,'Dat-Bl'!$B$127:$F$246,5)) -> 
B59: 8 | C59: =IF(A59="","",VLOOKUP(A59,'Dat-Bl'!$B$127:$F$246,5)) -> 
B61: Lauf | C61: =C37 -> Weiblich_D,C / Sport | D61: 5x80m
A63: K-ziff | B63: Bahn | C63: Schule | D63: Zeit
B64: 1 | C64: =IF(A64="","",VLOOKUP(A64,'Dat-Bl'!$B$127:$F$246,5)) -> 
B65: 2 | C65: =IF(A65="","",VLOOKUP(A65,'Dat-Bl'!$B$127:$F$246,5)) -> 
B66: 3 | C66: =IF(A66="","",VLOOKUP(A66,'Dat-Bl'!$B$127:$F$246,5)) -> 
B67: 4 | C67: =IF(A67="","",VLOOKUP(A67,'Dat-Bl'!$B$127:$F$246,5)) -> 
B68: 5 | C68: =IF(A68="","",VLOOKUP(A68,'Dat-Bl'!$B$127:$F$246,5)) -> 
B69: 6 | C69: =IF(A69="","",VLOOKUP(A69,'Dat-Bl'!$B$127:$F$246,5)) -> 
B70: 7 | C70: =IF(A70="","",VLOOKUP(A70,'Dat-Bl'!$B$127:$F$246,5)) -> 
B71: 8 | C71: =IF(A71="","",VLOOKUP(A71,'Dat-Bl'!$B$127:$F$246,5)) -> 
B73: Lauf | C73: Männlich_D,C / Regel | D73: 5x80m
A75: K-ziff | B75: Bahn | C75: Schule | D75: Zeit
B76: 1 | C76: =IF(A76="","",VLOOKUP(A76,'Dat-Bl'!$J$4:$N$123,5)) -> 
B77: 2 | C77: =IF(A77="","",VLOOKUP(A77,'Dat-Bl'!$J$4:$N$123,5)) -> 
B78: 3 | C78: =IF(A78="","",VLOOKUP(A78,'Dat-Bl'!$J$4:$N$123,5)) -> 
B79: 4 | C79: =IF(A79="","",VLOOKUP(A79,'Dat-Bl'!$J$4:$N$123,5)) -> 
B80: 5 | C80: =IF(A80="","",VLOOKUP(A80,'Dat-Bl'!$J$4:$N$123,5)) -> 
B81: 6 | C81: =IF(A81="","",VLOOKUP(A81,'Dat-Bl'!$J$4:$N$123,5)) -> 
B82: 7 | C82: =IF(A82="","",VLOOKUP(A82,'Dat-Bl'!$J$4:$N$123,5)) -> 
B83: 8 | C83: =IF(A83="","",VLOOKUP(A83,'Dat-Bl'!$J$4:$N$123,5)) -> 
B85: Lauf | C85: =C73 -> Männlich_D,C / Regel | D85: 5x80m
A87: K-ziff | B87: Bahn | C87: Schule | D87: Zeit
B88: 1 | C88: =IF(A88="","",VLOOKUP(A88,'Dat-Bl'!$J$4:$N$123,5)) -> 
B89: 2 | C89: =IF(A89="","",VLOOKUP(A89,'Dat-Bl'!$J$4:$N$123,5)) -> 
B90: 3 | C90: =IF(A90="","",VLOOKUP(A90,'Dat-Bl'!$J$4:$N$123,5)) -> 
B91: 4 | C91: =IF(A91="","",VLOOKUP(A91,'Dat-Bl'!$J$4:$N$123,5)) -> 
B92: 5 | C92: =IF(A92="","",VLOOKUP(A92,'Dat-Bl'!$J$4:$N$123,5)) -> 
B93: 6 | C93: =IF(A93="","",VLOOKUP(A93,'Dat-Bl'!$J$4:$N$123,5)) -> 
B94: 7 | C94: =IF(A94="","",VLOOKUP(A94,'Dat-Bl'!$J$4:$N$123,5)) -> 
B95: 8 | C95: =IF(A95="","",VLOOKUP(A95,'Dat-Bl'!$J$4:$N$123,5)) -> 
B97: Lauf | C97: =C73 -> Männlich_D,C / Regel | D97: 5x80m
A99: K-ziff | B99: Bahn | C99: Schule | D99: Zeit
B100: 1 | C100: =IF(A100="","",VLOOKUP(A100,'Dat-Bl'!$J$4:$N$123,5)) -> 
B101: 2 | C101: =IF(A101="","",VLOOKUP(A101,'Dat-Bl'!$J$4:$N$123,5)) -> 
B102: 3 | C102: =IF(A102="","",VLOOKUP(A102,'Dat-Bl'!$J$4:$N$123,5)) -> 
B103: 4 | C103: =IF(A103="","",VLOOKUP(A103,'Dat-Bl'!$J$4:$N$123,5)) -> 
B104: 5 | C104: =IF(A104="","",VLOOKUP(A104,'Dat-Bl'!$J$4:$N$123,5)) -> 
B105: 6 | C105: =IF(A105="","",VLOOKUP(A105,'Dat-Bl'!$J$4:$N$123,5)) -> 
B106: 7 | C106: =IF(A106="","",VLOOKUP(A106,'Dat-Bl'!$J$4:$N$123,5)) -> 
B107: 8 | C107: =IF(A107="","",VLOOKUP(A107,'Dat-Bl'!$J$4:$N$123,5)) -> 
B109: Lauf | C109: Männlich_D,C / Sport | D109: 5x80m
A111: K-ziff | B111: Bahn | C111: Schule | D111: Zeit
B112: 1 | C112: =IF(A112="","",VLOOKUP(A112,'Dat-Bl'!$J$127:$N$246,5)) -> 
B113: 2 | C113: =IF(A113="","",VLOOKUP(A113,'Dat-Bl'!$J$127:$N$246,5)) -> 
B114: 3 | C114: =IF(A114="","",VLOOKUP(A114,'Dat-Bl'!$J$127:$N$246,5)) -> 
B115: 4 | C115: =IF(A115="","",VLOOKUP(A115,'Dat-Bl'!$J$127:$N$246,5)) -> 
B116: 5 | C116: =IF(A116="","",VLOOKUP(A116,'Dat-Bl'!$J$127:$N$246,5)) -> 
B117: 6 | C117: =IF(A117="","",VLOOKUP(A117,'Dat-Bl'!$J$127:$N$246,5)) -> 
B118: 7 | C118: =IF(A118="","",VLOOKUP(A118,'Dat-Bl'!$J$127:$N$246,5)) -> 
B119: 8 | C119: =IF(A119="","",VLOOKUP(A119,'Dat-Bl'!$J$127:$N$246,5)) -> 
B121: Lauf | C121: =C109 -> Männlich_D,C / Sport | D121: 5x80m
A123: K-ziff | B123: Bahn | C123: Schule | D123: Zeit
B124: 1 | C124: =IF(A124="","",VLOOKUP(A124,'Dat-Bl'!$J$127:$N$246,5)) -> 
B125: 2 | C125: =IF(A125="","",VLOOKUP(A125,'Dat-Bl'!$J$127:$N$246,5)) -> 
B126: 3 | C126: =IF(A126="","",VLOOKUP(A126,'Dat-Bl'!$J$127:$N$246,5)) -> 
B127: 4 | C127: =IF(A127="","",VLOOKUP(A127,'Dat-Bl'!$J$127:$N$246,5)) -> 
B128: 5 | C128: =IF(A128="","",VLOOKUP(A128,'Dat-Bl'!$J$127:$N$246,5)) -> 
B129: 6 | C129: =IF(A129="","",VLOOKUP(A129,'Dat-Bl'!$J$127:$N$246,5)) -> 
B130: 7 | C130: =IF(A130="","",VLOOKUP(A130,'Dat-Bl'!$J$127:$N$246,5)) -> 
B131: 8 | C131: =IF(A131="","",VLOOKUP(A131,'Dat-Bl'!$J$127:$N$246,5)) -> 
B133: Lauf | C133: =C109 -> Männlich_D,C / Sport | D133: 5x80m
A135: K-ziff | B135: Bahn | C135: Schule | D135: Zeit
B136: 1 | C136: =IF(A136="","",VLOOKUP(A136,'Dat-Bl'!$J$127:$N$246,5)) -> 
B137: 2 | C137: =IF(A137="","",VLOOKUP(A137,'Dat-Bl'!$J$127:$N$246,5)) -> 
B138: 3 | C138: =IF(A138="","",VLOOKUP(A138,'Dat-Bl'!$J$127:$N$246,5)) -> 
B139: 4 | C139: =IF(A139="","",VLOOKUP(A139,'Dat-Bl'!$J$127:$N$246,5)) -> 
B140: 5 | C140: =IF(A140="","",VLOOKUP(A140,'Dat-Bl'!$J$127:$N$246,5)) -> 
B141: 6 | C141: =IF(A141="","",VLOOKUP(A141,'Dat-Bl'!$J$127:$N$246,5)) -> 
B142: 7 | C142: =IF(A142="","",VLOOKUP(A142,'Dat-Bl'!$J$127:$N$246,5)) -> 
B143: 8 | C143: =IF(A143="","",VLOOKUP(A143,'Dat-Bl'!$J$127:$N$246,5)) -> 

Sheet P_Schulen_w
B1: Leichtathletik Mannschaftsdreikampf der Schulen
C3: Landesmeisterschaft | E3: 2016 | F3: Villach
C5: Auswahl Geschlecht: | D5: weiblich_R | F5: Mannschaft: | H5: 1
E6: C
A7: Schule: | C7: =IF($D$5="","",IF($D$5="weiblich_R",VLOOKUP((($H5-1)*6+1),'Dat-Bl'!$B$4:$F$123,5),VLOOKUP((($H5-1)*6+1),'Dat-Bl'!$B$127:$F$246,5))) -> BG St.Martin
F8: Versuch | I8: gewertete Leistung
B9: Start Nr. | C9: Name | D9: Geb. Jahr | E9: Bewerb | F9: 1. | G9: 2. | H9: 3.
A10: 1 | B10: =IF($D$5="","",IF($D$5="weiblich_R",VLOOKUP((($H5-1)*6+1),'Dat-Bl'!$B$4:$D$123,2),VLOOKUP((($H5-1)*6+1),'Dat-Bl'!$B$127:$D$246,2))) -> 0 | C10: =IF($D$5="","",IF($D$5="weiblich_R",VLOOKUP((($H5-1)*6+1),'Dat-Bl'!$B$4:$D$123,3),VLOOKUP((($H5-1)*6+1),'Dat-Bl'!$B$127:$D$246,3))) -> Wallner Paulina | D10: =IF($D$5="","",IF($D$5="weiblich_R",VLOOKUP((($H5-1)*6+1),'Dat-Bl'!$B$4:$E$123,4),VLOOKUP((($H5-1)*6+1),'Dat-Bl'!$B$127:$E$246,4))) -> 00:00:00 | E10: Sprint
E11: Sprung
E12: Wurf
A13: 2 | B13: =IF($D$5="","",IF($D$5="weiblich_R",VLOOKUP((($H5-1)*6+2),'Dat-Bl'!$B$4:$D$123,2),VLOOKUP((($H5-1)*6+2),'Dat-Bl'!$B$127:$D$246,2))) -> 0 | C13: =IF($D$5="","",IF($D$5="weiblich_R",VLOOKUP((($H5-1)*6+2),'Dat-Bl'!$B$4:$D$123,3),VLOOKUP((($H5-1)*6+2),'Dat-Bl'!$B$127:$D$246,3))) -> Feichter Nelly | D13: =IF($D$5="","",IF($D$5="weiblich_R",VLOOKUP((($H5-1)*6+2),'Dat-Bl'!$B$4:$E$123,4),VLOOKUP((($H5-1)*6+2),'Dat-Bl'!$B$127:$E$246,4))) -> 00:00:00 | E13: Sprint
E14: Sprung
E15: Wurf
A16: 3 | B16: =IF($D$5="","",IF($D$5="weiblich_R",VLOOKUP((($H5-1)*6+3),'Dat-Bl'!$B$4:$D$123,2),VLOOKUP((($H5-1)*6+3),'Dat-Bl'!$B$127:$D$246,2))) -> 0 | C16: =IF($D$5="","",IF($D$5="weiblich_R",VLOOKUP((($H5-1)*6+3),'Dat-Bl'!$B$4:$D$123,3),VLOOKUP((($H5-1)*6+3),'Dat-Bl'!$B$127:$D$246,3))) -> Heincz Gerit | D16: =IF($D$5="","",IF($D$5="weiblich_R",VLOOKUP((($H5-1)*6+3),'Dat-Bl'!$B$4:$E$123,4),VLOOKUP((($H5-1)*6+3),'Dat-Bl'!$B$127:$E$246,4))) -> 00:00:00 | E16: Sprint
E17: Sprung
E18: Wurf
A19: 4 | B19: =IF($D$5="","",IF($D$5="weiblich_R",VLOOKUP((($H5-1)*6+4),'Dat-Bl'!$B$4:$D$123,2),VLOOKUP((($H5-1)*6+4),'Dat-Bl'!$B$127:$D$246,2))) -> 0 | C19: =IF($D$5="","",IF($D$5="weiblich_R",VLOOKUP((($H5-1)*6+4),'Dat-Bl'!$B$4:$D$123,3),VLOOKUP((($H5-1)*6+4),'Dat-Bl'!$B$127:$D$246,3))) -> Enzi Sarah | D19: =IF($D$5="","",IF($D$5="weiblich_R",VLOOKUP((($H5-1)*6+4),'Dat-Bl'!$B$4:$E$123,4),VLOOKUP((($H5-1)*6+4),'Dat-Bl'!$B$127:$E$246,4))) -> 00:00:00 | E19: Sprint
E20: Sprung
E21: Wurf
A22: 5 | B22: =IF($D$5="","",IF($D$5="weiblich_R",VLOOKUP((($H5-1)*6+5),'Dat-Bl'!$B$4:$D$123,2),VLOOKUP((($H5-1)*6+5),'Dat-Bl'!$B$127:$D$246,2))) -> 0 | C22: =IF($D$5="","",IF($D$5="weiblich_R",VLOOKUP((($H5-1)*6+5),'Dat-Bl'!$B$4:$D$123,3),VLOOKUP((($H5-1)*6+5),'Dat-Bl'!$B$127:$D$246,3))) -> Koch Anna | D22: =IF($D$5="","",IF($D$5="weiblich_R",VLOOKUP((($H5-1)*6+5),'Dat-Bl'!$B$4:$E$123,4),VLOOKUP((($H5-1)*6+5),'Dat-Bl'!$B$127:$E$246,4))) -> 00:00:00 | E22: Sprint
E23: Sprung
E24: Wurf
A25: 6 | B25: =IF($D$5="","",IF($D$5="weiblich_R",VLOOKUP((($H5-1)*6+6),'Dat-Bl'!$B$4:$D$123,2),VLOOKUP((($H5-1)*6+6),'Dat-Bl'!$B$127:$D$246,2))) -> 0 | C25: =IF($D$5="","",IF($D$5="weiblich_R",VLOOKUP((($H5-1)*6+6),'Dat-Bl'!$B$4:$D$123,3),VLOOKUP((($H5-1)*6+6),'Dat-Bl'!$B$127:$D$246,3))) -> Fugger Sophie | D25: =IF($D$5="","",IF($D$5="weiblich_R",VLOOKUP((($H5-1)*6+6),'Dat-Bl'!$B$4:$E$123,4),VLOOKUP((($H5-1)*6+6),'Dat-Bl'!$B$127:$E$246,4))) -> 00:00:00 | E25: Sprint
E26: Sprung
E27: Wurf
E29: Staffelwertung (5 X 80m)
B31: Leichtathletik Mannschaftsdreikampf der Schulen
C33: =$C$3 -> Landesmeisterschaft | E33: =$E$3 -> 2016 | F33: =$F$3 -> Villach
C35: Auswahl Geschlecht: | D35: =$D$5 -> weiblich_R | F35: Mannschaft: | H35: 2
E36: =$E$6 -> C
A37: Schule: | C37: =IF($D$5="","",IF($D$5="weiblich_R",VLOOKUP((($H35-1)*6+1),'Dat-Bl'!$B$4:$F$123,5),VLOOKUP((($H35-1)*6+1),'Dat-Bl'!$B$127:$F$246,5))) -> Borg Wolfsberg
F38: Versuch | I38: gewertete Leistung
B39: Start Nr. | C39: Name | D39: Geb. Jahr | E39: Bewerb | F39: 1. | G39: 2. | H39: 3.
A40: 1 | B40: =IF($D$5="","",IF($D$5="weiblich_R",VLOOKUP((($H35-1)*6+1),'Dat-Bl'!$B$4:$D$123,2),VLOOKUP((($H35-1)*6+1),'Dat-Bl'!$B$127:$D$246,2))) -> 0 | C40: =IF($D$5="","",IF($D$5="weiblich_R",VLOOKUP((($H35-1)*6+1),'Dat-Bl'!$B$4:$D$123,3),VLOOKUP((($H35-1)*6+1),'Dat-Bl'!$B$127:$D$246,3))) -> Maier Celina | D40: =IF($D$5="","",IF($D$5="weiblich_R",VLOOKUP((($H35-1)*6+1),'Dat-Bl'!$B$4:$E$123,4),VLOOKUP((($H35-1)*6+1),'Dat-Bl'!$B$127:$E$246,4))) -> 00:00:00 | E40: Sprint
E41: Sprung
E42: Wurf
A43: 2 | B43: =IF($D$5="","",IF($D$5="weiblich_R",VLOOKUP((($H35-1)*6+2),'Dat-Bl'!$B$4:$D$123,2),VLOOKUP((($H35-1)*6+2),'Dat-Bl'!$B$127:$D$246,2))) -> 0 | C43: =IF($D$5="","",IF($D$5="weiblich_R",VLOOKUP((($H35-1)*6+2),'Dat-Bl'!$B$4:$D$123,3),VLOOKUP((($H35-1)*6+2),'Dat-Bl'!$B$127:$D$246,3))) -> Maier Magdalena | D43: =IF($D$5="","",IF($D$5="weiblich_R",VLOOKUP((($H35-1)*6+2),'Dat-Bl'!$B$4:$E$123,4),VLOOKUP((($H35-1)*6+2),'Dat-Bl'!$B$127:$E$246,4))) -> 00:00:00 | E43: Sprint
E44: Sprung
E45: Wurf
A46: 3 | B46: =IF($D$5="","",IF($D$5="weiblich_R",VLOOKUP((($H35-1)*6+3),'Dat-Bl'!$B$4:$D$123,2),VLOOKUP((($H35-1)*6+3),'Dat-Bl'!$B$127:$D$246,2))) -> 0 | C46: =IF($D$5="","",IF($D$5="weiblich_R",VLOOKUP((($H35-1)*6+3),'Dat-Bl'!$B$4:$D$123,3),VLOOKUP((($H35-1)*6+3),'Dat-Bl'!$B$127:$D$246,3))) -> Frauwallner Hanna | D46: =IF($D$5="","",IF($D$5="weiblich_R",VLOOKUP((($H35-1)*6+3),'Dat-Bl'!$B$4:$E$123,4),VLOOKUP((($H35-1)*6+3),'Dat-Bl'!$B$127:$E$246,4))) -> 00:00:00 | E46: Sprint
E47: Sprung
E48: Wurf
A49: 4 | B49: =IF($D$5="","",IF($D$5="weiblich_R",VLOOKUP((($H35-1)*6+4),'Dat-Bl'!$B$4:$D$123,2),VLOOKUP((($H35-1)*6+4),'Dat-Bl'!$B$127:$D$246,2))) -> 0 | C49: =IF($D$5="","",IF($D$5="weiblich_R",VLOOKUP((($H35-1)*6+4),'Dat-Bl'!$B$4:$D$123,3),VLOOKUP((($H35-1)*6+4),'Dat-Bl'!$B$127:$D$246,3))) -> Spendl Jennifer | D49: =IF($D$5="","",IF($D$5="weiblich_R",VLOOKUP((($H35-1)*6+4),'Dat-Bl'!$B$4:$E$123,4),VLOOKUP((($H35-1)*6+4),'Dat-Bl'!$B$127:$E$246,4))) -> 00:00:00 | E49: Sprint
E50: Sprung
E51: Wurf
A52: 5 | B52: =IF($D$5="","",IF($D$5="weiblich_R",VLOOKUP((($H35-1)*6+5),'Dat-Bl'!$B$4:$D$123,2),VLOOKUP((($H35-1)*6+5),'Dat-Bl'!$B$127:$D$246,2))) -> 0 | C52: =IF($D$5="","",IF($D$5="weiblich_R",VLOOKUP((($H35-1)*6+5),'Dat-Bl'!$B$4:$D$123,3),VLOOKUP((($H35-1)*6+5),'Dat-Bl'!$B$127:$D$246,3))) -> Pum Julia | D52: =IF($D$5="","",IF($D$5="weiblich_R",VLOOKUP((($H35-1)*6+5),'Dat-Bl'!$B$4:$E$123,4),VLOOKUP((($H35-1)*6+5),'Dat-Bl'!$B$127:$E$246,4))) -> 00:00:00 | E52: Sprint
E53: Sprung
E54: Wurf
A55: 6 | B55: =IF($D$5="","",IF($D$5="weiblich_R",VLOOKUP((($H35-1)*6+6),'Dat-Bl'!$B$4:$D$123,2),VLOOKUP((($H35-1)*6+6),'Dat-Bl'!$B$127:$D$246,2))) -> 0 | C55: =IF($D$5="","",IF($D$5="weiblich_R",VLOOKUP((($H35-1)*6+6),'Dat-Bl'!$B$4:$D$123,3),VLOOKUP((($H35-1)*6+6),'Dat-Bl'!$B$127:$D$246,3))) -> Riegler Vanessa | D55: =IF($D$5="","",IF($D$5="weiblich_R",VLOOKUP((($H35-1)*6+6),'Dat-Bl'!$B$4:$E$123,4),VLOOKUP((($H35-1)*6+6),'Dat-Bl'!$B$127:$E$246,4))) -> 00:00:00 | E55: Sprint
E56: Sprung
E57: Wurf
E59: Staffelwertung (5 X 80m)
B61: Leichtathletik Mannschaftsdreikampf der Schulen
C63: =$C$3 -> Landesmeisterschaft | E63: =$E$3 -> 2016 | F63: =$F$3 -> Villach
C65: Auswahl Geschlecht: | D65: =$D$5 -> weiblich_R | F65: Mannschaft: | H65: 3
E66: =$E$6 -> C
A67: Schule: | C67: =IF($D$5="","",IF($D$5="weiblich_R",VLOOKUP((($H65-1)*6+1),'Dat-Bl'!$B$4:$F$123,5),VLOOKUP((($H65-1)*6+1),'Dat-Bl'!$B$127:$F$246,5))) -> BRG Spittal
F68: Versuch | I68: gewertete Leistung
B69: Start Nr. | C69: Name | D69: Geb. Jahr | E69: Bewerb | F69: 1. | G69: 2. | H69: 3.
A70: 1 | B70: =IF($D$5="","",IF($D$5="weiblich_R",VLOOKUP((($H65-1)*6+1),'Dat-Bl'!$B$4:$D$123,2),VLOOKUP((($H65-1)*6+1),'Dat-Bl'!$B$127:$D$246,2))) -> 0 | C70: =IF($D$5="","",IF($D$5="weiblich_R",VLOOKUP((($H65-1)*6+1),'Dat-Bl'!$B$4:$D$123,3),VLOOKUP((($H65-1)*6+1),'Dat-Bl'!$B$127:$D$246,3))) -> Hartlieb Michelle | D70: =IF($D$5="","",IF($D$5="weiblich_R",VLOOKUP((($H65-1)*6+1),'Dat-Bl'!$B$4:$E$123,4),VLOOKUP((($H65-1)*6+1),'Dat-Bl'!$B$127:$E$246,4))) -> 00:00:00 | E70: Sprint
E71: Sprung
E72: Wurf
A73: 2 | B73: =IF($D$5="","",IF($D$5="weiblich_R",VLOOKUP((($H65-1)*6+2),'Dat-Bl'!$B$4:$D$123,2),VLOOKUP((($H65-1)*6+2),'Dat-Bl'!$B$127:$D$246,2))) -> 0 | C73: =IF($D$5="","",IF($D$5="weiblich_R",VLOOKUP((($H65-1)*6+2),'Dat-Bl'!$B$4:$D$123,3),VLOOKUP((($H65-1)*6+2),'Dat-Bl'!$B$127:$D$246,3))) -> Reiter Anna-Lena | D73: =IF($D$5="","",IF($D$5="weiblich_R",VLOOKUP((($H65-1)*6+2),'Dat-Bl'!$B$4:$E$123,4),VLOOKUP((($H65-1)*6+2),'Dat-Bl'!$B$127:$E$246,4))) -> 00:00:00 | E73: Sprint
E74: Sprung
E75: Wurf
A76: 3 | B76: =IF($D$5="","",IF($D$5="weiblich_R",VLOOKUP((($H65-1)*6+3),'Dat-Bl'!$B$4:$D$123,2),VLOOKUP((($H65-1)*6+3),'Dat-Bl'!$B$127:$D$246,2))) -> 0 | C76: =IF($D$5="","",IF($D$5="weiblich_R",VLOOKUP((($H65-1)*6+3),'Dat-Bl'!$B$4:$D$123,3),VLOOKUP((($H65-1)*6+3),'Dat-Bl'!$B$127:$D$246,3))) -> Krammer Kristin | D76: =IF($D$5="","",IF($D$5="weiblich_R",VLOOKUP((($H65-1)*6+3),'Dat-Bl'!$B$4:$E$123,4),VLOOKUP((($H65-1)*6+3),'Dat-Bl'!$B$127:$E$246,4))) -> 00:00:00 | E76: Sprint
E77: Sprung
E78: Wurf
A79: 4 | B79: =IF($D$5="","",IF($D$5="weiblich_R",VLOOKUP((($H65-1)*6+4),'Dat-Bl'!$B$4:$D$123,2),VLOOKUP((($H65-1)*6+4),'Dat-Bl'!$B$127:$D$246,2))) -> 0 | C79: =IF($D$5="","",IF($D$5="weiblich_R",VLOOKUP((($H65-1)*6+4),'Dat-Bl'!$B$4:$D$123,3),VLOOKUP((($H65-1)*6+4),'Dat-Bl'!$B$127:$D$246,3))) -> Kowatsch Anna | D79: =IF($D$5="","",IF($D$5="weiblich_R",VLOOKUP((($H65-1)*6+4),'Dat-Bl'!$B$4:$E$123,4),VLOOKUP((($H65-1)*6+4),'Dat-Bl'!$B$127:$E$246,4))) -> 00:00:00 | E79: Sprint
E80: Sprung
E81: Wurf
A82: 5 | B82: =IF($D$5="","",IF($D$5="weiblich_R",VLOOKUP((($H65-1)*6+5),'Dat-Bl'!$B$4:$D$123,2),VLOOKUP((($H65-1)*6+5),'Dat-Bl'!$B$127:$D$246,2))) -> 0 | C82: =IF($D$5="","",IF($D$5="weiblich_R",VLOOKUP((($H65-1)*6+5),'Dat-Bl'!$B$4:$D$123,3),VLOOKUP((($H65-1)*6+5),'Dat-Bl'!$B$127:$D$246,3))) -> Possegger Christina | D82: =IF($D$5="","",IF($D$5="weiblich_R",VLOOKUP((($H65-1)*6+5),'Dat-Bl'!$B$4:$E$123,4),VLOOKUP((($H65-1)*6+5),'Dat-Bl'!$B$127:$E$246,4))) -> 00:00:00 | E82: Sprint
E83: Sprung
E84: Wurf
A85: 6 | B85: =IF($D$5="","",IF($D$5="weiblich_R",VLOOKUP((($H65-1)*6+6),'Dat-Bl'!$B$4:$D$123,2),VLOOKUP((($H65-1)*6+6),'Dat-Bl'!$B$127:$D$246,2))) -> 0 | C85: =IF($D$5="","",IF($D$5="weiblich_R",VLOOKUP((($H65-1)*6+6),'Dat-Bl'!$B$4:$D$123,3),VLOOKUP((($H65-1)*6+6),'Dat-Bl'!$B$127:$D$246,3))) -> Thaler Laurentine | D85: =IF($D$5="","",IF($D$5="weiblich_R",VLOOKUP((($H65-1)*6+6),'Dat-Bl'!$B$4:$E$123,4),VLOOKUP((($H65-1)*6+6),'Dat-Bl'!$B$127:$E$246,4))) -> 00:00:00 | E85: Sprint
E86: Sprung
E87: Wurf
E89: Staffelwertung (5 X 80m)
B91: Leichtathletik Mannschaftsdreikampf der Schulen
C93: =$C$3 -> Landesmeisterschaft | E93: =$E$3 -> 2016 | F93: =$F$3 -> Villach
C95: Auswahl Geschlecht: | D95: =$D$5 -> weiblich_R | F95: Mannschaft: | H95: 4
E96: =$E$6 -> C
A97: Schule: | C97: =IF($D$5="","",IF($D$5="weiblich_R",VLOOKUP((($H95-1)*6+1),'Dat-Bl'!$B$4:$F$123,5),VLOOKUP((($H95-1)*6+1),'Dat-Bl'!$B$127:$F$246,5))) -> BZ Bad Eisenkappel
F98: Versuch | I98: gewertete Leistung
B99: Start Nr. | C99: Name | D99: Geb. Jahr | E99: Bewerb | F99: 1. | G99: 2. | H99: 3.
A100: 1 | B100: =IF($D$5="","",IF($D$5="weiblich_R",VLOOKUP((($H95-1)*6+1),'Dat-Bl'!$B$4:$D$123,2),VLOOKUP((($H95-1)*6+1),'Dat-Bl'!$B$127:$D$246,2))) -> 0 | C100: =IF($D$5="","",IF($D$5="weiblich_R",VLOOKUP((($H95-1)*6+1),'Dat-Bl'!$B$4:$D$123,3),VLOOKUP((($H95-1)*6+1),'Dat-Bl'!$B$127:$D$246,3))) -> Kampusch Michelle | D100: =IF($D$5="","",IF($D$5="weiblich_R",VLOOKUP((($H95-1)*6+1),'Dat-Bl'!$B$4:$E$123,4),VLOOKUP((($H95-1)*6+1),'Dat-Bl'!$B$127:$E$246,4))) -> 00:00:00 | E100: Sprint
E101: Sprung
E102: Wurf
A103: 2 | B103: =IF($D$5="","",IF($D$5="weiblich_R",VLOOKUP((($H95-1)*6+2),'Dat-Bl'!$B$4:$D$123,2),VLOOKUP((($H95-1)*6+2),'Dat-Bl'!$B$127:$D$246,2))) -> 0 | C103: =IF($D$5="","",IF($D$5="weiblich_R",VLOOKUP((($H95-1)*6+2),'Dat-Bl'!$B$4:$D$123,3),VLOOKUP((($H95-1)*6+2),'Dat-Bl'!$B$127:$D$246,3))) -> Kaschnig Lea | D103: =IF($D$5="","",IF($D$5="weiblich_R",VLOOKUP((($H95-1)*6+2),'Dat-Bl'!$B$4:$E$123,4),VLOOKUP((($H95-1)*6+2),'Dat-Bl'!$B$127:$E$246,4))) -> 00:00:00 | E103: Sprint
E104: Sprung
E105: Wurf
A106: 3 | B106: =IF($D$5="","",IF($D$5="weiblich_R",VLOOKUP((($H95-1)*6+3),'Dat-Bl'!$B$4:$D$123,2),VLOOKUP((($H95-1)*6+3),'Dat-Bl'!$B$127:$D$246,2))) -> 0 | C106: =IF($D$5="","",IF($D$5="weiblich_R",VLOOKUP((($H95-1)*6+3),'Dat-Bl'!$B$4:$D$123,3),VLOOKUP((($H95-1)*6+3),'Dat-Bl'!$B$127:$D$246,3))) -> Ebner Anna-Lena | D106: =IF($D$5="","",IF($D$5="weiblich_R",VLOOKUP((($H95-1)*6+3),'Dat-Bl'!$B$4:$E$123,4),VLOOKUP((($H95-1)*6+3),'Dat-Bl'!$B$127:$E$246,4))) -> 00:00:00 | E106: Sprint
E107: Sprung
E108: Wurf
A109: 4 | B109: =IF($D$5="","",IF($D$5="weiblich_R",VLOOKUP((($H95-1)*6+4),'Dat-Bl'!$B$4:$D$123,2),VLOOKUP((($H95-1)*6+4),'Dat-Bl'!$B$127:$D$246,2))) -> 0 | C109: =IF($D$5="","",IF($D$5="weiblich_R",VLOOKUP((($H95-1)*6+4),'Dat-Bl'!$B$4:$D$123,3),VLOOKUP((($H95-1)*6+4),'Dat-Bl'!$B$127:$D$246,3))) -> Millicevvic Renate | D109: =IF($D$5="","",IF($D$5="weiblich_R",VLOOKUP((($H95-1)*6+4),'Dat-Bl'!$B$4:$E$123,4),VLOOKUP((($H95-1)*6+4),'Dat-Bl'!$B$127:$E$246,4))) -> 00:00:00 | E109: Sprint
E110: Sprung
E111: Wurf
A112: 5 | B112: =IF($D$5="","",IF($D$5="weiblich_R",VLOOKUP((($H95-1)*6+5),'Dat-Bl'!$B$4:$D$123,2),VLOOKUP((($H95-1)*6+5),'Dat-Bl'!$B$127:$D$246,2))) -> 0 | C112: =IF($D$5="","",IF($D$5="weiblich_R",VLOOKUP((($H95-1)*6+5),'Dat-Bl'!$B$4:$D$123,3),VLOOKUP((($H95-1)*6+5),'Dat-Bl'!$B$127:$D$246,3))) -> Pudgar Domenika | D112: =IF($D$5="","",IF($D$5="weiblich_R",VLOOKUP((($H95-1)*6+5),'Dat-Bl'!$B$4:$E$123,4),VLOOKUP((($H95-1)*6+5),'Dat-Bl'!$B$127:$E$246,4))) -> 00:00:00 | E112: Sprint
E113: Sprung
E114: Wurf
A115: 6 | B115: =IF($D$5="","",IF($D$5="weiblich_R",VLOOKUP((($H95-1)*6+6),'Dat-Bl'!$B$4:$D$123,2),VLOOKUP((($H95-1)*6+6),'Dat-Bl'!$B$127:$D$246,2))) -> 0 | C115: =IF($D$5="","",IF($D$5="weiblich_R",VLOOKUP((($H95-1)*6+6),'Dat-Bl'!$B$4:$D$123,3),VLOOKUP((($H95-1)*6+6),'Dat-Bl'!$B$127:$D$246,3))) -> 0 | D115: =IF($D$5="","",IF($D$5="weiblich_R",VLOOKUP((($H95-1)*6+6),'Dat-Bl'!$B$4:$E$123,4),VLOOKUP((($H95-1)*6+6),'Dat-Bl'!$B$127:$E$246,4))) -> 00:00:00 | E115: Sprint
E116: Sprung
E117: Wurf
E119: Staffelwertung (5 X 80m)
B121: Leichtathletik Mannschaftsdreikampf der Schulen
C123: =$C$3 -> Landesmeisterschaft | E123: =$E$3 -> 2016 | F123: =$F$3 -> Villach
C125: Auswahl Geschlecht: | D125: =$D$5 -> weiblich_R | F125: Mannschaft: | H125: 5
E126: =$E$6 -> C
A127: Schule: | C127: =IF($D$5="","",IF($D$5="weiblich_R",VLOOKUP((($H125-1)*6+1),'Dat-Bl'!$B$4:$F$123,5),VLOOKUP((($H125-1)*6+1),'Dat-Bl'!$B$127:$F$246,5))) -> Ingeborg Bachmann Gymnasium
F128: Versuch | I128: gewertete Leistung
B129: Start Nr. | C129: Name | D129: Geb. Jahr | E129: Bewerb | F129: 1. | G129: 2. | H129: 3.
A130: 1 | B130: =IF($D$5="","",IF($D$5="weiblich_R",VLOOKUP((($H125-1)*6+1),'Dat-Bl'!$B$4:$D$123,2),VLOOKUP((($H125-1)*6+1),'Dat-Bl'!$B$127:$D$246,2))) -> 0 | C130: =IF($D$5="","",IF($D$5="weiblich_R",VLOOKUP((($H125-1)*6+1),'Dat-Bl'!$B$4:$D$123,3),VLOOKUP((($H125-1)*6+1),'Dat-Bl'!$B$127:$D$246,3))) -> Donner Rosa | D130: =IF($D$5="","",IF($D$5="weiblich_R",VLOOKUP((($H125-1)*6+1),'Dat-Bl'!$B$4:$E$123,4),VLOOKUP((($H125-1)*6+1),'Dat-Bl'!$B$127:$E$246,4))) -> 00:00:00 | E130: Sprint
E131: Sprung
E132: Wurf
A133: 2 | B133: =IF($D$5="","",IF($D$5="weiblich_R",VLOOKUP((($H125-1)*6+2),'Dat-Bl'!$B$4:$D$123,2),VLOOKUP((($H125-1)*6+2),'Dat-Bl'!$B$127:$D$246,2))) -> 0 | C133: =IF($D$5="","",IF($D$5="weiblich_R",VLOOKUP((($H125-1)*6+2),'Dat-Bl'!$B$4:$D$123,3),VLOOKUP((($H125-1)*6+2),'Dat-Bl'!$B$127:$D$246,3))) -> Lippitsch Amelie | D133: =IF($D$5="","",IF($D$5="weiblich_R",VLOOKUP((($H125-1)*6+2),'Dat-Bl'!$B$4:$E$123,4),VLOOKUP((($H125-1)*6+2),'Dat-Bl'!$B$127:$E$246,4))) -> 00:00:00 | E133: Sprint
E134: Sprung
E135: Wurf
A136: 3 | B136: =IF($D$5="","",IF($D$5="weiblich_R",VLOOKUP((($H125-1)*6+3),'Dat-Bl'!$B$4:$D$123,2),VLOOKUP((($H125-1)*6+3),'Dat-Bl'!$B$127:$D$246,2))) -> 0 | C136: =IF($D$5="","",IF($D$5="weiblich_R",VLOOKUP((($H125-1)*6+3),'Dat-Bl'!$B$4:$D$123,3),VLOOKUP((($H125-1)*6+3),'Dat-Bl'!$B$127:$D$246,3))) -> Doboczky Sophie | D136: =IF($D$5="","",IF($D$5="weiblich_R",VLOOKUP((($H125-1)*6+3),'Dat-Bl'!$B$4:$E$123,4),VLOOKUP((($H125-1)*6+3),'Dat-Bl'!$B$127:$E$246,4))) -> 00:00:00 | E136: Sprint
E137: Sprung
E138: Wurf
A139: 4 | B139: =IF($D$5="","",IF($D$5="weiblich_R",VLOOKUP((($H125-1)*6+4),'Dat-Bl'!$B$4:$D$123,2),VLOOKUP((($H125-1)*6+4),'Dat-Bl'!$B$127:$D$246,2))) -> 0 | C139: =IF($D$5="","",IF($D$5="weiblich_R",VLOOKUP((($H125-1)*6+4),'Dat-Bl'!$B$4:$D$123,3),VLOOKUP((($H125-1)*6+4),'Dat-Bl'!$B$127:$D$246,3))) -> Schmaranz Sophie | D139: =IF($D$5="","",IF($D$5="weiblich_R",VLOOKUP((($H125-1)*6+4),'Dat-Bl'!$B$4:$E$123,4),VLOOKUP((($H125-1)*6+4),'Dat-Bl'!$B$127:$E$246,4))) -> 00:00:00 | E139: Sprint
E140: Sprung
E141: Wurf
A142: 5 | B142: =IF($D$5="","",IF($D$5="weiblich_R",VLOOKUP((($H125-1)*6+5),'Dat-Bl'!$B$4:$D$123,2),VLOOKUP((($H125-1)*6+5),'Dat-Bl'!$B$127:$D$246,2))) -> 0 | C142: =IF($D$5="","",IF($D$5="weiblich_R",VLOOKUP((($H125-1)*6+5),'Dat-Bl'!$B$4:$D$123,3),VLOOKUP((($H125-1)*6+5),'Dat-Bl'!$B$127:$D$246,3))) -> Zenkl Hannah | D142: =IF($D$5="","",IF($D$5="weiblich_R",VLOOKUP((($H125-1)*6+5),'Dat-Bl'!$B$4:$E$123,4),VLOOKUP((($H125-1)*6+5),'Dat-Bl'!$B$127:$E$246,4))) -> 00:00:00 | E142: Sprint
E143: Sprung
E144: Wurf
A145: 6 | B145: =IF($D$5="","",IF($D$5="weiblich_R",VLOOKUP((($H125-1)*6+6),'Dat-Bl'!$B$4:$D$123,2),VLOOKUP((($H125-1)*6+6),'Dat-Bl'!$B$127:$D$246,2))) -> 0 | C145: =IF($D$5="","",IF($D$5="weiblich_R",VLOOKUP((($H125-1)*6+6),'Dat-Bl'!$B$4:$D$123,3),VLOOKUP((($H125-1)*6+6),'Dat-Bl'!$B$127:$D$246,3))) -> Laßnig Katharina | D145: =IF($D$5="","",IF($D$5="weiblich_R",VLOOKUP((($H125-1)*6+6),'Dat-Bl'!$B$4:$E$123,4),VLOOKUP((($H125-1)*6+6),'Dat-Bl'!$B$127:$E$246,4))) -> 00:00:00 | E145: Sprint
E146: Sprung
E147: Wurf
E149: Staffelwertung (5 X 80m)
B151: Leichtathletik Mannschaftsdreikampf der Schulen
C153: =$C$3 -> Landesmeisterschaft | E153: =$E$3 -> 2016 | F153: =$F$3 -> Villach
C155: Auswahl Geschlecht: | D155: =$D$5 -> weiblich_R | F155: Mannschaft: | H155: 6
E156: =$E$6 -> C
A157: Schule: | C157: =IF($D$5="","",IF($D$5="weiblich_R",VLOOKUP((($H155-1)*6+1),'Dat-Bl'!$B$4:$F$123,5),VLOOKUP((($H155-1)*6+1),'Dat-Bl'!$B$127:$F$246,5))) -> Musik NMS Hermagor
F158: Versuch | I158: gewertete Leistung
B159: Start Nr. | C159: Name | D159: Geb. Jahr | E159: Bewerb | F159: 1. | G159: 2. | H159: 3.
A160: 1 | B160: =IF($D$5="","",IF($D$5="weiblich_R",VLOOKUP((($H155-1)*6+1),'Dat-Bl'!$B$4:$D$123,2),VLOOKUP((($H155-1)*6+1),'Dat-Bl'!$B$127:$D$246,2))) -> 0 | C160: =IF($D$5="","",IF($D$5="weiblich_R",VLOOKUP((($H155-1)*6+1),'Dat-Bl'!$B$4:$D$123,3),VLOOKUP((($H155-1)*6+1),'Dat-Bl'!$B$127:$D$246,3))) -> Fercher Annabell | D160: =IF($D$5="","",IF($D$5="weiblich_R",VLOOKUP((($H155-1)*6+1),'Dat-Bl'!$B$4:$E$123,4),VLOOKUP((($H155-1)*6+1),'Dat-Bl'!$B$127:$E$246,4))) -> 00:00:00 | E160: Sprint
E161: Sprung
E162: Wurf
A163: 2 | B163: =IF($D$5="","",IF($D$5="weiblich_R",VLOOKUP((($H155-1)*6+2),'Dat-Bl'!$B$4:$D$123,2),VLOOKUP((($H155-1)*6+2),'Dat-Bl'!$B$127:$D$246,2))) -> 0 | C163: =IF($D$5="","",IF($D$5="weiblich_R",VLOOKUP((($H155-1)*6+2),'Dat-Bl'!$B$4:$D$123,3),VLOOKUP((($H155-1)*6+2),'Dat-Bl'!$B$127:$D$246,3))) -> Ebenwaldner Carina | D163: =IF($D$5="","",IF($D$5="weiblich_R",VLOOKUP((($H155-1)*6+2),'Dat-Bl'!$B$4:$E$123,4),VLOOKUP((($H155-1)*6+2),'Dat-Bl'!$B$127:$E$246,4))) -> 00:00:00 | E163: Sprint
E164: Sprung
E165: Wurf
A166: 3 | B166: =IF($D$5="","",IF($D$5="weiblich_R",VLOOKUP((($H155-1)*6+3),'Dat-Bl'!$B$4:$D$123,2),VLOOKUP((($H155-1)*6+3),'Dat-Bl'!$B$127:$D$246,2))) -> 0 | C166: =IF($D$5="","",IF($D$5="weiblich_R",VLOOKUP((($H155-1)*6+3),'Dat-Bl'!$B$4:$D$123,3),VLOOKUP((($H155-1)*6+3),'Dat-Bl'!$B$127:$D$246,3))) -> Wernitznig Nina | D166: =IF($D$5="","",IF($D$5="weiblich_R",VLOOKUP((($H155-1)*6+3),'Dat-Bl'!$B$4:$E$123,4),VLOOKUP((($H155-1)*6+3),'Dat-Bl'!$B$127:$E$246,4))) -> 00:00:00 | E166: Sprint
E167: Sprung
E168: Wurf
A169: 4 | B169: =IF($D$5="","",IF($D$5="weiblich_R",VLOOKUP((($H155-1)*6+4),'Dat-Bl'!$B$4:$D$123,2),VLOOKUP((($H155-1)*6+4),'Dat-Bl'!$B$127:$D$246,2))) -> 0 | C169: =IF($D$5="","",IF($D$5="weiblich_R",VLOOKUP((($H155-1)*6+4),'Dat-Bl'!$B$4:$D$123,3),VLOOKUP((($H155-1)*6+4),'Dat-Bl'!$B$127:$D$246,3))) -> Pettauer Sara | D169: =IF($D$5="","",IF($D$5="weiblich_R",VLOOKUP((($H155-1)*6+4),'Dat-Bl'!$B$4:$E$123,4),VLOOKUP((($H155-1)*6+4),'Dat-Bl'!$B$127:$E$246,4))) -> 00:00:00 | E169: Sprint
E170: Sprung
E171: Wurf
A172: 5 | B172: =IF($D$5="","",IF($D$5="weiblich_R",VLOOKUP((($H155-1)*6+5),'Dat-Bl'!$B$4:$D$123,2),VLOOKUP((($H155-1)*6+5),'Dat-Bl'!$B$127:$D$246,2))) -> 0 | C172: =IF($D$5="","",IF($D$5="weiblich_R",VLOOKUP((($H155-1)*6+5),'Dat-Bl'!$B$4:$D$123,3),VLOOKUP((($H155-1)*6+5),'Dat-Bl'!$B$127:$D$246,3))) -> Matthei Laura | D172: =IF($D$5="","",IF($D$5="weiblich_R",VLOOKUP((($H155-1)*6+5),'Dat-Bl'!$B$4:$E$123,4),VLOOKUP((($H155-1)*6+5),'Dat-Bl'!$B$127:$E$246,4))) -> 00:00:00 | E172: Sprint
E173: Sprung
E174: Wurf
A175: 6 | B175: =IF($D$5="","",IF($D$5="weiblich_R",VLOOKUP((($H155-1)*6+6),'Dat-Bl'!$B$4:$D$123,2),VLOOKUP((($H155-1)*6+6),'Dat-Bl'!$B$127:$D$246,2))) -> 0 | C175: =IF($D$5="","",IF($D$5="weiblich_R",VLOOKUP((($H155-1)*6+6),'Dat-Bl'!$B$4:$D$123,3),VLOOKUP((($H155-1)*6+6),'Dat-Bl'!$B$127:$D$246,3))) -> Seebacher Mathilda | D175: =IF($D$5="","",IF($D$5="weiblich_R",VLOOKUP((($H155-1)*6+6),'Dat-Bl'!$B$4:$E$123,4),VLOOKUP((($H155-1)*6+6),'Dat-Bl'!$B$127:$E$246,4))) -> 00:00:00 | E175: Sprint
E176: Sprung
E177: Wurf
E179: Staffelwertung (5 X 80m)
B181: Leichtathletik Mannschaftsdreikampf der Schulen
C183: =$C$3 -> Landesmeisterschaft | E183: =$E$3 -> 2016 | F183: =$F$3 -> Villach
C185: Auswahl Geschlecht: | D185: =$D$5 -> weiblich_R | F185: Mannschaft: | H185: 7
E186: =$E$6 -> C
A187: Schule: | C187: =IF($D$5="","",IF($D$5="weiblich_R",VLOOKUP((($H185-1)*6+1),'Dat-Bl'!$B$4:$F$123,5),VLOOKUP((($H185-1)*6+1),'Dat-Bl'!$B$127:$F$246,5))) -> NMS Friesach
F188: Versuch | I188: gewertete Leistung
B189: Start Nr. | C189: Name | D189: Geb. Jahr | E189: Bewerb | F189: 1. | G189: 2. | H189: 3.
A190: 1 | B190: =IF($D$5="","",IF($D$5="weiblich_R",VLOOKUP((($H185-1)*6+1),'Dat-Bl'!$B$4:$D$123,2),VLOOKUP((($H185-1)*6+1),'Dat-Bl'!$B$127:$D$246,2))) -> 0 | C190: =IF($D$5="","",IF($D$5="weiblich_R",VLOOKUP((($H185-1)*6+1),'Dat-Bl'!$B$4:$D$123,3),VLOOKUP((($H185-1)*6+1),'Dat-Bl'!$B$127:$D$246,3))) -> Pörtschacher Vanessa | D190: =IF($D$5="","",IF($D$5="weiblich_R",VLOOKUP((($H185-1)*6+1),'Dat-Bl'!$B$4:$E$123,4),VLOOKUP((($H185-1)*6+1),'Dat-Bl'!$B$127:$E$246,4))) -> 00:00:00 | E190: Sprint
E191: Sprung
E192: Wurf
A193: 2 | B193: =IF($D$5="","",IF($D$5="weiblich_R",VLOOKUP((($H185-1)*6+2),'Dat-Bl'!$B$4:$D$123,2),VLOOKUP((($H185-1)*6+2),'Dat-Bl'!$B$127:$D$246,2))) -> 0 | C193: =IF($D$5="","",IF($D$5="weiblich_R",VLOOKUP((($H185-1)*6+2),'Dat-Bl'!$B$4:$D$123,3),VLOOKUP((($H185-1)*6+2),'Dat-Bl'!$B$127:$D$246,3))) -> Kronlechner Bettina | D193: =IF($D$5="","",IF($D$5="weiblich_R",VLOOKUP((($H185-1)*6+2),'Dat-Bl'!$B$4:$E$123,4),VLOOKUP((($H185-1)*6+2),'Dat-Bl'!$B$127:$E$246,4))) -> 00:00:00 | E193: Sprint
E194: Sprung
E195: Wurf
A196: 3 | B196: =IF($D$5="","",IF($D$5="weiblich_R",VLOOKUP((($H185-1)*6+3),'Dat-Bl'!$B$4:$D$123,2),VLOOKUP((($H185-1)*6+3),'Dat-Bl'!$B$127:$D$246,2))) -> 0 | C196: =IF($D$5="","",IF($D$5="weiblich_R",VLOOKUP((($H185-1)*6+3),'Dat-Bl'!$B$4:$D$123,3),VLOOKUP((($H185-1)*6+3),'Dat-Bl'!$B$127:$D$246,3))) -> Delfser Anna-Magdalena | D196: =IF($D$5="","",IF($D$5="weiblich_R",VLOOKUP((($H185-1)*6+3),'Dat-Bl'!$B$4:$E$123,4),VLOOKUP((($H185-1)*6+3),'Dat-Bl'!$B$127:$E$246,4))) -> 00:00:00 | E196: Sprint
E197: Sprung
E198: Wurf
A199: 4 | B199: =IF($D$5="","",IF($D$5="weiblich_R",VLOOKUP((($H185-1)*6+4),'Dat-Bl'!$B$4:$D$123,2),VLOOKUP((($H185-1)*6+4),'Dat-Bl'!$B$127:$D$246,2))) -> 0 | C199: =IF($D$5="","",IF($D$5="weiblich_R",VLOOKUP((($H185-1)*6+4),'Dat-Bl'!$B$4:$D$123,3),VLOOKUP((($H185-1)*6+4),'Dat-Bl'!$B$127:$D$246,3))) -> Schaller Victoria | D199: =IF($D$5="","",IF($D$5="weiblich_R",VLOOKUP((($H185-1)*6+4),'Dat-Bl'!$B$4:$E$123,4),VLOOKUP((($H185-1)*6+4),'Dat-Bl'!$B$127:$E$246,4))) -> 00:00:00 | E199: Sprint
E200: Sprung
E201: Wurf
A202: 5 | B202: =IF($D$5="","",IF($D$5="weiblich_R",VLOOKUP((($H185-1)*6+5),'Dat-Bl'!$B$4:$D$123,2),VLOOKUP((($H185-1)*6+5),'Dat-Bl'!$B$127:$D$246,2))) -> 0 | C202: =IF($D$5="","",IF($D$5="weiblich_R",VLOOKUP((($H185-1)*6+5),'Dat-Bl'!$B$4:$D$123,3),VLOOKUP((($H185-1)*6+5),'Dat-Bl'!$B$127:$D$246,3))) -> Hölbling Laura | D202: =IF($D$5="","",IF($D$5="weiblich_R",VLOOKUP((($H185-1)*6+5),'Dat-Bl'!$B$4:$E$123,4),VLOOKUP((($H185-1)*6+5),'Dat-Bl'!$B$127:$E$246,4))) -> 00:00:00 | E202: Sprint
E203: Sprung
E204: Wurf
A205: 6 | B205: =IF($D$5="","",IF($D$5="weiblich_R",VLOOKUP((($H185-1)*6+6),'Dat-Bl'!$B$4:$D$123,2),VLOOKUP((($H185-1)*6+6),'Dat-Bl'!$B$127:$D$246,2))) -> 0 | C205: =IF($D$5="","",IF($D$5="weiblich_R",VLOOKUP((($H185-1)*6+6),'Dat-Bl'!$B$4:$D$123,3),VLOOKUP((($H185-1)*6+6),'Dat-Bl'!$B$127:$D$246,3))) -> Pacher Selina | D205: =IF($D$5="","",IF($D$5="weiblich_R",VLOOKUP((($H185-1)*6+6),'Dat-Bl'!$B$4:$E$123,4),VLOOKUP((($H185-1)*6+6),'Dat-Bl'!$B$127:$E$246,4))) -> 00:00:00 | E205: Sprint
E206: Sprung
E207: Wurf
E209: Staffelwertung (5 X 80m)
B211: Leichtathletik Mannschaftsdreikampf der Schulen
C213: =$C$3 -> Landesmeisterschaft | E213: =$E$3 -> 2016 | F213: =$F$3 -> Villach
C215: Auswahl Geschlecht: | D215: =$D$5 -> weiblich_R | F215: Mannschaft: | H215: 8
E216: =$E$6 -> C
A217: Schule: | C217: =IF($D$5="","",IF($D$5="weiblich_R",VLOOKUP((($H215-1)*6+1),'Dat-Bl'!$B$4:$F$123,5),VLOOKUP((($H215-1)*6+1),'Dat-Bl'!$B$127:$F$246,5))) -> NMS Gegendtal
F218: Versuch | I218: gewertete Leistung
B219: Start Nr. | C219: Name | D219: Geb. Jahr | E219: Bewerb | F219: 1. | G219: 2. | H219: 3.
A220: 1 | B220: =IF($D$5="","",IF($D$5="weiblich_R",VLOOKUP((($H215-1)*6+1),'Dat-Bl'!$B$4:$D$123,2),VLOOKUP((($H215-1)*6+1),'Dat-Bl'!$B$127:$D$246,2))) -> 0 | C220: =IF($D$5="","",IF($D$5="weiblich_R",VLOOKUP((($H215-1)*6+1),'Dat-Bl'!$B$4:$D$123,3),VLOOKUP((($H215-1)*6+1),'Dat-Bl'!$B$127:$D$246,3))) -> Mayer Elena | D220: =IF($D$5="","",IF($D$5="weiblich_R",VLOOKUP((($H215-1)*6+1),'Dat-Bl'!$B$4:$E$123,4),VLOOKUP((($H215-1)*6+1),'Dat-Bl'!$B$127:$E$246,4))) -> 00:00:00 | E220: Sprint
E221: Sprung
E222: Wurf
A223: 2 | B223: =IF($D$5="","",IF($D$5="weiblich_R",VLOOKUP((($H215-1)*6+2),'Dat-Bl'!$B$4:$D$123,2),VLOOKUP((($H215-1)*6+2),'Dat-Bl'!$B$127:$D$246,2))) -> 0 | C223: =IF($D$5="","",IF($D$5="weiblich_R",VLOOKUP((($H215-1)*6+2),'Dat-Bl'!$B$4:$D$123,3),VLOOKUP((($H215-1)*6+2),'Dat-Bl'!$B$127:$D$246,3))) -> Steiner Patricia | D223: =IF($D$5="","",IF($D$5="weiblich_R",VLOOKUP((($H215-1)*6+2),'Dat-Bl'!$B$4:$E$123,4),VLOOKUP((($H215-1)*6+2),'Dat-Bl'!$B$127:$E$246,4))) -> 00:00:00 | E223: Sprint
E224: Sprung
E225: Wurf
A226: 3 | B226: =IF($D$5="","",IF($D$5="weiblich_R",VLOOKUP((($H215-1)*6+3),'Dat-Bl'!$B$4:$D$123,2),VLOOKUP((($H215-1)*6+3),'Dat-Bl'!$B$127:$D$246,2))) -> 0 | C226: =IF($D$5="","",IF($D$5="weiblich_R",VLOOKUP((($H215-1)*6+3),'Dat-Bl'!$B$4:$D$123,3),VLOOKUP((($H215-1)*6+3),'Dat-Bl'!$B$127:$D$246,3))) -> Maier Jasmin | D226: =IF($D$5="","",IF($D$5="weiblich_R",VLOOKUP((($H215-1)*6+3),'Dat-Bl'!$B$4:$E$123,4),VLOOKUP((($H215-1)*6+3),'Dat-Bl'!$B$127:$E$246,4))) -> 00:00:00 | E226: Sprint
E227: Sprung
E228: Wurf
A229: 4 | B229: =IF($D$5="","",IF($D$5="weiblich_R",VLOOKUP((($H215-1)*6+4),'Dat-Bl'!$B$4:$D$123,2),VLOOKUP((($H215-1)*6+4),'Dat-Bl'!$B$127:$D$246,2))) -> 0 | C229: =IF($D$5="","",IF($D$5="weiblich_R",VLOOKUP((($H215-1)*6+4),'Dat-Bl'!$B$4:$D$123,3),VLOOKUP((($H215-1)*6+4),'Dat-Bl'!$B$127:$D$246,3))) -> Schweiger Nadja | D229: =IF($D$5="","",IF($D$5="weiblich_R",VLOOKUP((($H215-1)*6+4),'Dat-Bl'!$B$4:$E$123,4),VLOOKUP((($H215-1)*6+4),'Dat-Bl'!$B$127:$E$246,4))) -> 00:00:00 | E229: Sprint
E230: Sprung
... 320 more rows

Sheet Ez-60m
A1: Einzelwertung 60 m | C1: ='w-E_R'!C1 -> D-C/Regel-Schulen | D1: ='w-E_R'!E1 -> Ortsangabe,Datum | G1: Einzelwertung 60 m | I1: =#REF! ->  | J1: =#REF! -> 
A2: Rang | B2: WEIBLICH | C2: Schule: | D2: Leistung | E2: Punkte | G2: Rang | H2: MÄNNLICH | I2: Schule: | J2: Leistung | K2: Punkte
A3: =RANK(E3,$E$3:$E$122,0) -> 1 | B3: ='w-E_R'!B22 -> Thaler Laurentine | C3: ='w-E_R'!D22 -> BRG Spittal | D3: ='w-E_R'!F22 -> 8.34 | E3: ='w-E_R'!G22 -> 800 | G3: =RANK(K3,$K$3:$K$122,0) ->  | H3: =#REF! ->  | I3: =#REF! ->  | J3: =#REF! ->  | K3: =#REF! -> 
A4: 2 | B4: ='w-E_R'!B15 -> Riegler Vanessa | C4: ='w-E_R'!D15 -> Borg Wolfsberg | D4: ='w-E_R'!F15 -> 8.36 | E4: ='w-E_R'!G15 -> 794 | H4: =#REF! ->  | I4: =#REF! ->  | J4: =#REF! ->  | K4: =#REF! -> 
A5: 3 | B5: ='w-E_R'!B34 -> Schmaranz Sophie | C5: ='w-E_R'!D34 -> Ingeborg Bachmann Gymnasium | D5: ='w-E_R'!F34 -> 8.51 | E5: ='w-E_R'!G34 -> 752 | H5: =#REF! ->  | I5: =#REF! ->  | J5: =#REF! ->  | K5: =#REF! -> 
A6: 4 | B6: ='w-E_R'!B26 -> Ebner Anna-Lena | C6: ='w-E_R'!D26 -> BZ Bad Eisenkappel | D6: ='w-E_R'!F26 -> 8.55 | E6: ='w-E_R'!G26 -> 741 | H6: =#REF! ->  | I6: =#REF! ->  | J6: =#REF! ->  | K6: =#REF! -> 
A7: 4 | B7: ='w-E_R'!B38 -> Fercher Annabell | C7: ='w-E_R'!D38 -> Musik NMS Hermagor | D7: ='w-E_R'!F38 -> 8.55 | E7: ='w-E_R'!G38 -> 741 | H7: =#REF! ->  | I7: =#REF! ->  | J7: =#REF! ->  | K7: =#REF! -> 
A8: 6 | B8: ='w-E_R'!B7 -> Koch Anna | C8: ='w-E_R'!D7 -> BG St.Martin | D8: ='w-E_R'!F7 -> 8.57 | E8: ='w-E_R'!G7 -> 735 | H8: =#REF! ->  | I8: =#REF! ->  | J8: =#REF! ->  | K8: =#REF! -> 
A9: 7 | B9: ='w-E_R'!B14 -> Pum Julia | C9: ='w-E_R'!D14 -> Borg Wolfsberg | D9: ='w-E_R'!F14 -> 8.6 | E9: ='w-E_R'!G14 -> 727 | H9: =#REF! ->  | I9: =#REF! ->  | J9: =#REF! ->  | K9: =#REF! -> 
A10: 8 | B10: ='w-E_R'!B3 -> Wallner Paulina | C10: ='w-E_R'!D3 -> BG St.Martin | D10: ='w-E_R'!F3 -> 8.64 | E10: ='w-E_R'!G3 -> 716 | H10: =#REF! ->  | I10: =#REF! ->  | J10: =#REF! ->  | K10: =#REF! -> 
A11: 9 | B11: ='w-E_R'!B59 -> Kassin Larissa | C11: ='w-E_R'!D59 -> NMS Landskron | D11: ='w-E_R'!F59 -> 8.73 | E11: ='w-E_R'!G59 -> 692 | H11: =#REF! ->  | I11: =#REF! ->  | J11: =#REF! ->  | K11: =#REF! -> 
A12: 10 | B12: ='w-E_R'!B8 -> Fugger Sophie | C12: ='w-E_R'!D8 -> BG St.Martin | D12: ='w-E_R'!F8 -> 8.78 | E12: ='w-E_R'!G8 -> 678 | H12: =#REF! ->  | I12: =#REF! ->  | J12: =#REF! ->  | K12: =#REF! -> 
A13: 11 | B13: ='w-E_R'!B25 -> Kaschnig Lea | C13: ='w-E_R'!D25 -> BZ Bad Eisenkappel | D13: ='w-E_R'!F25 -> 8.86 | E13: ='w-E_R'!G25 -> 657 | H13: =#REF! ->  | I13: =#REF! ->  | J13: =#REF! ->  | K13: =#REF! -> 
A14: 12 | B14: ='w-E_R'!B6 -> Enzi Sarah | C14: ='w-E_R'!D6 -> BG St.Martin | D14: ='w-E_R'!F6 -> 8.9 | E14: ='w-E_R'!G6 -> 647 | H14: =#REF! ->  | I14: =#REF! ->  | J14: =#REF! ->  | K14: =#REF! -> 
A15: 12 | B15: ='w-E_R'!B75 -> Hinteregger Katrin | C15: ='w-E_R'!D75 -> RNMS Feldkirchen | D15: ='w-E_R'!F75 -> 8.9 | E15: ='w-E_R'!G75 -> 647 | H15: =#REF! ->  | I15: =#REF! ->  | J15: =#REF! ->  | K15: =#REF! -> 
A16: 14 | B16: ='w-E_R'!B73 -> Ebner Elena | C16: ='w-E_R'!D73 -> RNMS Feldkirchen | D16: ='w-E_R'!F73 -> 8.92 | E16: ='w-E_R'!G73 -> 642 | H16: =#REF! ->  | I16: =#REF! ->  | J16: =#REF! ->  | K16: =#REF! -> 
A17: 15 | B17: ='w-E_R'!B41 -> Pettauer Sara | C17: ='w-E_R'!D41 -> Musik NMS Hermagor | D17: ='w-E_R'!F41 -> 8.93 | E17: ='w-E_R'!G41 -> 639 | H17: =#REF! ->  | I17: =#REF! ->  | J17: =#REF! ->  | K17: =#REF! -> 
A18: 16 | B18: ='w-E_R'!B21 -> Possegger Christina | C18: ='w-E_R'!D21 -> BRG Spittal | D18: ='w-E_R'!F21 -> 8.98 | E18: ='w-E_R'!G21 -> 626 | H18: =#REF! ->  | I18: =#REF! ->  | J18: =#REF! ->  | K18: =#REF! -> 
A19: 17 | B19: ='w-E_R'!B39 -> Ebenwaldner Carina | C19: ='w-E_R'!D39 -> Musik NMS Hermagor | D19: ='w-E_R'!F39 -> 9.01 | E19: ='w-E_R'!G39 -> 619 | H19: =#REF! ->  | I19: =#REF! ->  | J19: =#REF! ->  | K19: =#REF! -> 
A20: 18 | B20: ='w-E_R'!B33 -> Doboczky Sophie | C20: ='w-E_R'!D33 -> Ingeborg Bachmann Gymnasium | D20: ='w-E_R'!F33 -> 9.02 | E20: ='w-E_R'!G33 -> 616 | H20: =#REF! ->  | I20: =#REF! ->  | J20: =#REF! ->  | K20: =#REF! -> 
A21: 19 | B21: ='w-E_R'!B66 -> Edlmann Chiara | C21: ='w-E_R'!D66 -> NMS Viktring | D21: ='w-E_R'!F66 -> 9.04 | E21: ='w-E_R'!G66 -> 611 | H21: =#REF! ->  | I21: =#REF! ->  | J21: =#REF! ->  | K21: =#REF! -> 
A22: 20 | B22: ='w-E_R'!B17 -> Hartlieb Michelle | C22: ='w-E_R'!D17 -> BRG Spittal | D22: ='w-E_R'!F17 -> 9.09 | E22: ='w-E_R'!G17 -> 599 | H22: =#REF! ->  | I22: =#REF! ->  | J22: =#REF! ->  | K22: =#REF! -> 
A23: 21 | B23: ='w-E_R'!B61 -> Neumann Lisa | C23: ='w-E_R'!D61 -> NMS Landskron | D23: ='w-E_R'!F61 -> 9.1 | E23: ='w-E_R'!G61 -> 596 | H23: =#REF! ->  | I23: =#REF! ->  | J23: =#REF! ->  | K23: =#REF! -> 
A24: 22 | B24: ='w-E_R'!B18 -> Reiter Anna-Lena | C24: ='w-E_R'!D18 -> BRG Spittal | D24: ='w-E_R'!F18 -> 9.11 | E24: ='w-E_R'!G18 -> 594 | H24: =#REF! ->  | I24: =#REF! ->  | J24: =#REF! ->  | K24: =#REF! -> 
A25: 23 | B25: ='w-E_R'!B40 -> Wernitznig Nina | C25: ='w-E_R'!D40 -> Musik NMS Hermagor | D25: ='w-E_R'!F40 -> 9.22 | E25: ='w-E_R'!G40 -> 567 | H25: =#REF! ->  | I25: =#REF! ->  | J25: =#REF! ->  | K25: =#REF! -> 
A26: 23 | B26: ='w-E_R'!B68 -> Krnjic Sonja | C26: ='w-E_R'!D68 -> NMS Viktring | D26: ='w-E_R'!F68 -> 9.22 | E26: ='w-E_R'!G68 -> 567 | H26: =#REF! ->  | I26: =#REF! ->  | J26: =#REF! ->  | K26: =#REF! -> 
A27: 25 | B27: ='w-E_R'!B64 -> Petscher Maria | C27: ='w-E_R'!D64 -> NMS Landskron | D27: ='w-E_R'!F64 -> 9.23 | E27: ='w-E_R'!G64 -> 565 | H27: =#REF! ->  | I27: =#REF! ->  | J27: =#REF! ->  | K27: =#REF! -> 
A28: 26 | B28: ='w-E_R'!B19 -> Krammer Kristin | C28: ='w-E_R'!D19 -> BRG Spittal | D28: ='w-E_R'!F19 -> 9.24 | E28: ='w-E_R'!G19 -> 562 | H28: =#REF! ->  | I28: =#REF! ->  | J28: =#REF! ->  | K28: =#REF! -> 
A29: 27 | B29: ='w-E_R'!B4 -> Feichter Nelly | C29: ='w-E_R'!D4 -> BG St.Martin | D29: ='w-E_R'!F4 -> 9.25 | E29: ='w-E_R'!G4 -> 560 | H29: =#REF! ->  | I29: =#REF! ->  | J29: =#REF! ->  | K29: =#REF! -> 
A30: 27 | B30: ='w-E_R'!B78 -> Petrascu Elisabeth | C30: ='w-E_R'!D78 -> RNMS Feldkirchen | D30: ='w-E_R'!F78 -> 9.25 | E30: ='w-E_R'!G78 -> 560 | H30: =#REF! ->  | I30: =#REF! ->  | J30: =#REF! ->  | K30: =#REF! -> 
A31: 29 | B31: ='w-E_R'!B47 -> Delfser Anna-Magdalena | C31: ='w-E_R'!D47 -> NMS Friesach | D31: ='w-E_R'!F47 -> 9.26 | E31: ='w-E_R'!G47 -> 558 | H31: =#REF! ->  | I31: =#REF! ->  | J31: =#REF! ->  | K31: =#REF! -> 
A32: 30 | B32: ='w-E_R'!B74 -> Reiter Katharina | C32: ='w-E_R'!D74 -> RNMS Feldkirchen | D32: ='w-E_R'!F74 -> 9.29 | E32: ='w-E_R'!G74 -> 550 | H32: =#REF! ->  | I32: =#REF! ->  | J32: =#REF! ->  | K32: =#REF! -> 
A33: 31 | B33: ='w-E_R'!B42 -> Matthei Laura | C33: ='w-E_R'!D42 -> Musik NMS Hermagor | D33: ='w-E_R'!F42 -> 9.3 | E33: ='w-E_R'!G42 -> 548 | H33: =#REF! ->  | I33: =#REF! ->  | J33: =#REF! ->  | K33: =#REF! -> 
A34: 32 | B34: ='w-E_R'!B35 -> Zenkl Hannah | C34: ='w-E_R'!D35 -> Ingeborg Bachmann Gymnasium | D34: ='w-E_R'!F35 -> 9.31 | E34: ='w-E_R'!G35 -> 546 | H34: =#REF! ->  | I34: =#REF! ->  | J34: =#REF! ->  | K34: =#REF! -> 
A35: =RANK(E35,$E$3:$E$122,0) -> 33 | B35: ='w-E_R'!B48 -> Schaller Victoria | C35: ='w-E_R'!D48 -> NMS Friesach | D35: ='w-E_R'!F48 -> 9.32 | E35: ='w-E_R'!G48 -> 543 | G35: =RANK(K35,$K$3:$K$122,0) ->  | H35: =#REF! ->  | I35: =#REF! ->  | J35: =#REF! ->  | K35: =#REF! -> 
A36: 34 | B36: ='w-E_R'!B46 -> Kronlechner Bettina | C36: ='w-E_R'!D46 -> NMS Friesach | D36: ='w-E_R'!F46 -> 9.35 | E36: ='w-E_R'!G46 -> 536 | H36: =#REF! ->  | I36: =#REF! ->  | J36: =#REF! ->  | K36: =#REF! -> 
A37: 35 | B37: ='w-E_R'!B43 -> Seebacher Mathilda | C37: ='w-E_R'!D43 -> Musik NMS Hermagor | D37: ='w-E_R'!F43 -> 9.37 | E37: ='w-E_R'!G43 -> 532 | H37: =#REF! ->  | I37: =#REF! ->  | J37: =#REF! ->  | K37: =#REF! -> 
A38: 36 | B38: ='w-E_R'!B11 -> Maier Magdalena | C38: ='w-E_R'!D11 -> Borg Wolfsberg | D38: ='w-E_R'!F11 -> 9.38 | E38: ='w-E_R'!G11 -> 529 | H38: =#REF! ->  | I38: =#REF! ->  | J38: =#REF! ->  | K38: =#REF! -> 
A39: 37 | B39: ='w-E_R'!B45 -> Pörtschacher Vanessa | C39: ='w-E_R'!D45 -> NMS Friesach | D39: ='w-E_R'!F45 -> 9.39 | E39: ='w-E_R'!G45 -> 527 | H39: =#REF! ->  | I39: =#REF! ->  | J39: =#REF! ->  | K39: =#REF! -> 
A40: 38 | B40: ='w-E_R'!B20 -> Kowatsch Anna | C40: ='w-E_R'!D20 -> BRG Spittal | D40: ='w-E_R'!F20 -> 9.43 | E40: ='w-E_R'!G20 -> 518 | H40: =#REF! ->  | I40: =#REF! ->  | J40: =#REF! ->  | K40: =#REF! -> 
A41: 38 | B41: ='w-E_R'!B49 -> Hölbling Laura | C41: ='w-E_R'!D49 -> NMS Friesach | D41: ='w-E_R'!F49 -> 9.43 | E41: ='w-E_R'!G49 -> 518 | H41: =#REF! ->  | I41: =#REF! ->  | J41: =#REF! ->  | K41: =#REF! -> 
A42: 40 | B42: ='w-E_R'!B50 -> Pacher Selina | C42: ='w-E_R'!D50 -> NMS Friesach | D42: ='w-E_R'!F50 -> 9.45 | E42: ='w-E_R'!G50 -> 513 | H42: =#REF! ->  | I42: =#REF! ->  | J42: =#REF! ->  | K42: =#REF! -> 
A43: 40 | B43: ='w-E_R'!B60 -> Wiener Sophie | C43: ='w-E_R'!D60 -> NMS Landskron | D43: ='w-E_R'!F60 -> 9.45 | E43: ='w-E_R'!G60 -> 513 | H43: =#REF! ->  | I43: =#REF! ->  | J43: =#REF! ->  | K43: =#REF! -> 
A44: 42 | B44: ='w-E_R'!B63 -> Santner Fabienne | C44: ='w-E_R'!D63 -> NMS Landskron | D44: ='w-E_R'!F63 -> 9.48 | E44: ='w-E_R'!G63 -> 506 | H44: =#REF! ->  | I44: =#REF! ->  | J44: =#REF! ->  | K44: =#REF! -> 
A45: 43 | B45: ='w-E_R'!B36 -> Laßnig Katharina | C45: ='w-E_R'!D36 -> Ingeborg Bachmann Gymnasium | D45: ='w-E_R'!F36 -> 9.53 | E45: ='w-E_R'!G36 -> 495 | H45: =#REF! ->  | I45: =#REF! ->  | J45: =#REF! ->  | K45: =#REF! -> 
A46: 43 | B46: ='w-E_R'!B52 -> Mayer Elena | C46: ='w-E_R'!D52 -> NMS Gegendtal | D46: ='w-E_R'!F52 -> 9.53 | E46: ='w-E_R'!G52 -> 495 | H46: =#REF! ->  | I46: =#REF! ->  | J46: =#REF! ->  | K46: =#REF! -> 
A47: 43 | B47: ='w-E_R'!B53 -> Steiner Patricia | C47: ='w-E_R'!D53 -> NMS Gegendtal | D47: ='w-E_R'!F53 -> 9.53 | E47: ='w-E_R'!G53 -> 495 | H47: =#REF! ->  | I47: =#REF! ->  | J47: =#REF! ->  | K47: =#REF! -> 
A48: 46 | B48: ='w-E_R'!B13 -> Spendl Jennifer | C48: ='w-E_R'!D13 -> Borg Wolfsberg | D48: ='w-E_R'!F13 -> 9.54 | E48: ='w-E_R'!G13 -> 493 | H48: =#REF! ->  | I48: =#REF! ->  | J48: =#REF! ->  | K48: =#REF! -> 
A49: 46 | B49: ='w-E_R'!B76 -> Kircher Florentina | C49: ='w-E_R'!D76 -> RNMS Feldkirchen | D49: ='w-E_R'!F76 -> 9.54 | E49: ='w-E_R'!G76 -> 493 | H49: =#REF! ->  | I49: =#REF! ->  | J49: =#REF! ->  | K49: =#REF! -> 
A50: 48 | B50: ='w-E_R'!B24 -> Kampusch Michelle | C50: ='w-E_R'!D24 -> BZ Bad Eisenkappel | D50: ='w-E_R'!F24 -> 9.55 | E50: ='w-E_R'!G24 -> 491 | H50: =#REF! ->  | I50: =#REF! ->  | J50: =#REF! ->  | K50: =#REF! -> 
A51: 48 | B51: ='w-E_R'!B71 -> Herkner Anna | C51: ='w-E_R'!D71 -> NMS Viktring | D51: ='w-E_R'!F71 -> 9.55 | E51: ='w-E_R'!G71 -> 491 | H51: =#REF! ->  | I51: =#REF! ->  | J51: =#REF! ->  | K51: =#REF! -> 
A52: 50 | B52: ='w-E_R'!B31 -> Donner Rosa | C52: ='w-E_R'!D31 -> Ingeborg Bachmann Gymnasium | D52: ='w-E_R'!F31 -> 9.57 | E52: ='w-E_R'!G31 -> 486 | H52: =#REF! ->  | I52: =#REF! ->  | J52: =#REF! ->  | K52: =#REF! -> 
A53: 51 | B53: ='w-E_R'!B5 -> Heincz Gerit | C53: ='w-E_R'!D5 -> BG St.Martin | D53: ='w-E_R'!F5 -> 9.59 | E53: ='w-E_R'!G5 -> 482 | H53: =#REF! ->  | I53: =#REF! ->  | J53: =#REF! ->  | K53: =#REF! -> 
A54: 52 | B54: ='w-E_R'!B62 -> Pinzer Alina | C54: ='w-E_R'!D62 -> NMS Landskron | D54: ='w-E_R'!F62 -> 9.65 | E54: ='w-E_R'!G62 -> 469 | H54: =#REF! ->  | I54: =#REF! ->  | J54: =#REF! ->  | K54: =#REF! -> 
A55: 53 | B55: ='w-E_R'!B32 -> Lippitsch Amelie | C55: ='w-E_R'!D32 -> Ingeborg Bachmann Gymnasium | D55: ='w-E_R'!F32 -> 9.66 | E55: ='w-E_R'!G32 -> 466 | H55: =#REF! ->  | I55: =#REF! ->  | J55: =#REF! ->  | K55: =#REF! -> 
A56: 54 | B56: ='w-E_R'!B55 -> Schweiger Nadja | C56: ='w-E_R'!D55 -> NMS Gegendtal | D56: ='w-E_R'!F55 -> 9.71 | E56: ='w-E_R'!G55 -> 456 | H56: =#REF! ->  | I56: =#REF! ->  | J56: =#REF! ->  | K56: =#REF! -> 
A57: 55 | B57: ='w-E_R'!B57 -> Ostertschnig Lisa | C57: ='w-E_R'!D57 -> NMS Gegendtal | D57: ='w-E_R'!F57 -> 9.74 | E57: ='w-E_R'!G57 -> 449 | H57: =#REF! ->  | I57: =#REF! ->  | J57: =#REF! ->  | K57: =#REF! -> 
A58: 56 | B58: ='w-E_R'!B27 -> Millicevvic Renate | C58: ='w-E_R'!D27 -> BZ Bad Eisenkappel | D58: ='w-E_R'!F27 -> 9.76 | E58: ='w-E_R'!G27 -> 445 | H58: =#REF! ->  | I58: =#REF! ->  | J58: =#REF! ->  | K58: =#REF! -> 
A59: 57 | B59: ='w-E_R'!B28 -> Pudgar Domenika | C59: ='w-E_R'!D28 -> BZ Bad Eisenkappel | D59: ='w-E_R'!F28 -> 9.78 | E59: ='w-E_R'!G28 -> 441 | H59: =#REF! ->  | I59: =#REF! ->  | J59: =#REF! ->  | K59: =#REF! -> 
A60: 58 | B60: ='w-E_R'!B56 -> Gasser Valentina | C60: ='w-E_R'!D56 -> NMS Gegendtal | D60: ='w-E_R'!F56 -> 9.79 | E60: ='w-E_R'!G56 -> 439 | H60: =#REF! ->  | I60: =#REF! ->  | J60: =#REF! ->  | K60: =#REF! -> 
A61: 59 | B61: ='w-E_R'!B77 -> Mühlbacher Nina | C61: ='w-E_R'!D77 -> RNMS Feldkirchen | D61: ='w-E_R'!F77 -> 9.86 | E61: ='w-E_R'!G77 -> 424 | H61: =#REF! ->  | I61: =#REF! ->  | J61: =#REF! ->  | K61: =#REF! -> 
A62: 60 | B62: ='w-E_R'!B69 -> Esel Michelle | C62: ='w-E_R'!D69 -> NMS Viktring | D62: ='w-E_R'!F69 -> 9.94 | E62: ='w-E_R'!G69 -> 408 | H62: =#REF! ->  | I62: =#REF! ->  | J62: =#REF! ->  | K62: =#REF! -> 
A63: 61 | B63: ='w-E_R'!B67 -> Toth Lili | C63: ='w-E_R'!D67 -> NMS Viktring | D63: ='w-E_R'!F67 -> 10 | E63: ='w-E_R'!G67 -> 395 | H63: =#REF! ->  | I63: =#REF! ->  | J63: =#REF! ->  | K63: =#REF! -> 
A64: 62 | B64: ='w-E_R'!B54 -> Maier Jasmin | C64: ='w-E_R'!D54 -> NMS Gegendtal | D64: ='w-E_R'!F54 -> 10.02 | E64: ='w-E_R'!G54 -> 392 | H64: =#REF! ->  | I64: =#REF! ->  | J64: =#REF! ->  | K64: =#REF! -> 
A65: 63 | B65: ='w-E_R'!B12 -> Frauwallner Hanna | C65: ='w-E_R'!D12 -> Borg Wolfsberg | D65: ='w-E_R'!F12 -> 10.15 | E65: ='w-E_R'!G12 -> 366 | H65: =#REF! ->  | I65: =#REF! ->  | J65: =#REF! ->  | K65: =#REF! -> 
A66: 64 | B66: ='w-E_R'!B70 -> Bierbaumer Selina | C66: ='w-E_R'!D70 -> NMS Viktring | D66: ='w-E_R'!F70 -> 10.59 | E66: ='w-E_R'!G70 -> 287 | H66: =#REF! ->  | I66: =#REF! ->  | J66: =#REF! ->  | K66: =#REF! -> 
A67: =RANK(E67,$E$3:$E$122,0) -> 65 | B67: ='w-E_R'!B10 -> Maier Celina | C67: ='w-E_R'!D10 -> Borg Wolfsberg | D67: ='w-E_R'!F10 -> 11.48 | E67: ='w-E_R'!G10 -> 157 | G67: =RANK(K67,$K$3:$K$122,0) ->  | H67: =#REF! ->  | I67: =#REF! ->  | J67: =#REF! ->  | K67: =#REF! -> 
A68: 66 | B68: ='w-E_R'!B29 -> 0 | C68: ='w-E_R'!D29 -> BZ Bad Eisenkappel | D68: ='w-E_R'!F29 -> 0 | E68: ='w-E_R'!G29 -> 0 | H68: =#REF! ->  | I68: =#REF! ->  | J68: =#REF! ->  | K68: =#REF! -> 
A69: 66 | B69: ='w-E_R'!B80 -> W12/01-Regel | C69: ='w-E_R'!D80 -> 0 | D69: ='w-E_R'!F80 -> 0 | E69: ='w-E_R'!G80 -> 0 | H69: =#REF! ->  | I69: =#REF! ->  | J69: =#REF! ->  | K69: =#REF! -> 
A70: 66 | B70: ='w-E_R'!B81 -> W12/02-Regel | C70: ='w-E_R'!D81 -> 0 | D70: ='w-E_R'!F81 -> 0 | E70: ='w-E_R'!G81 -> 0 | H70: =#REF! ->  | I70: =#REF! ->  | J70: =#REF! ->  | K70: =#REF! -> 
A71: 66 | B71: ='w-E_R'!B82 -> W12/03-Regel | C71: ='w-E_R'!D82 -> 0 | D71: ='w-E_R'!F82 -> 0 | E71: ='w-E_R'!G82 -> 0 | H71: =#REF! ->  | I71: =#REF! ->  | J71: =#REF! ->  | K71: =#REF! -> 
A72: 66 | B72: ='w-E_R'!B83 -> W12/04-Regel | C72: ='w-E_R'!D83 -> 0 | D72: ='w-E_R'!F83 -> 0 | E72: ='w-E_R'!G83 -> 0 | H72: =#REF! ->  | I72: =#REF! ->  | J72: =#REF! ->  | K72: =#REF! -> 
A73: 66 | B73: ='w-E_R'!B84 -> W12/05-Regel | C73: ='w-E_R'!D84 -> 0 | D73: ='w-E_R'!F84 -> 0 | E73: ='w-E_R'!G84 -> 0 | H73: =#REF! ->  | I73: =#REF! ->  | J73: =#REF! ->  | K73: =#REF! -> 
A74: 66 | B74: ='w-E_R'!B85 -> W12/06-Regel | C74: ='w-E_R'!D85 -> 0 | D74: ='w-E_R'!F85 -> 0 | E74: ='w-E_R'!G85 -> 0 | H74: =#REF! ->  | I74: =#REF! ->  | J74: =#REF! ->  | K74: =#REF! -> 
A75: 66 | B75: ='w-E_R'!B87 -> W13/01-Regel | C75: ='w-E_R'!D87 -> 0 | D75: ='w-E_R'!F87 -> 0 | E75: ='w-E_R'!G87 -> 0 | H75: =#REF! ->  | I75: =#REF! ->  | J75: =#REF! ->  | K75: =#REF! -> 
A76: 66 | B76: ='w-E_R'!B88 -> W13/02-Regel | C76: ='w-E_R'!D88 -> 0 | D76: ='w-E_R'!F88 -> 0 | E76: ='w-E_R'!G88 -> 0 | H76: =#REF! ->  | I76: =#REF! ->  | J76: =#REF! ->  | K76: =#REF! -> 
A77: 66 | B77: ='w-E_R'!B89 -> W13/03-Regel | C77: ='w-E_R'!D89 -> 0 | D77: ='w-E_R'!F89 -> 0 | E77: ='w-E_R'!G89 -> 0 | H77: =#REF! ->  | I77: =#REF! ->  | J77: =#REF! ->  | K77: =#REF! -> 
A78: 66 | B78: ='w-E_R'!B90 -> W13/04-Regel | C78: ='w-E_R'!D90 -> 0 | D78: ='w-E_R'!F90 -> 0 | E78: ='w-E_R'!G90 -> 0 | H78: =#REF! ->  | I78: =#REF! ->  | J78: =#REF! ->  | K78: =#REF! -> 
A79: 66 | B79: ='w-E_R'!B91 -> W13/05-Regel | C79: ='w-E_R'!D91 -> 0 | D79: ='w-E_R'!F91 -> 0 | E79: ='w-E_R'!G91 -> 0 | H79: =#REF! ->  | I79: =#REF! ->  | J79: =#REF! ->  | K79: =#REF! -> 
A80: 66 | B80: ='w-E_R'!B92 -> W13/06-Regel | C80: ='w-E_R'!D92 -> 0 | D80: ='w-E_R'!F92 -> 0 | E80: ='w-E_R'!G92 -> 0 | H80: =#REF! ->  | I80: =#REF! ->  | J80: =#REF! ->  | K80: =#REF! -> 
A81: 66 | B81: ='w-E_R'!B94 -> W14/01-Regel | C81: ='w-E_R'!D94 -> 0 | D81: ='w-E_R'!F94 -> 0 | E81: ='w-E_R'!G94 -> 0 | H81: =#REF! ->  | I81: =#REF! ->  | J81: =#REF! ->  | K81: =#REF! -> 
A82: 66 | B82: ='w-E_R'!B95 -> W14/02-Regel | C82: ='w-E_R'!D95 -> 0 | D82: ='w-E_R'!F95 -> 0 | E82: ='w-E_R'!G95 -> 0 | H82: =#REF! ->  | I82: =#REF! ->  | J82: =#REF! ->  | K82: =#REF! -> 
A83: 66 | B83: ='w-E_R'!B96 -> W14/03-Regel | C83: ='w-E_R'!D96 -> 0 | D83: ='w-E_R'!F96 -> 0 | E83: ='w-E_R'!G96 -> 0 | H83: =#REF! ->  | I83: =#REF! ->  | J83: =#REF! ->  | K83: =#REF! -> 
A84: 66 | B84: ='w-E_R'!B97 -> W14/04-Regel | C84: ='w-E_R'!D97 -> 0 | D84: ='w-E_R'!F97 -> 0 | E84: ='w-E_R'!G97 -> 0 | H84: =#REF! ->  | I84: =#REF! ->  | J84: =#REF! ->  | K84: =#REF! -> 
A85: 66 | B85: ='w-E_R'!B98 -> W14/05-Regel | C85: ='w-E_R'!D98 -> 0 | D85: ='w-E_R'!F98 -> 0 | E85: ='w-E_R'!G98 -> 0 | H85: =#REF! ->  | I85: =#REF! ->  | J85: =#REF! ->  | K85: =#REF! -> 
A86: 66 | B86: ='w-E_R'!B99 -> W14/06-Regel | C86: ='w-E_R'!D99 -> 0 | D86: ='w-E_R'!F99 -> 0 | E86: ='w-E_R'!G99 -> 0 | H86: =#REF! ->  | I86: =#REF! ->  | J86: =#REF! ->  | K86: =#REF! -> 
A87: 66 | B87: ='w-E_R'!B101 -> W15/01-Regel | C87: ='w-E_R'!D101 -> 0 | D87: ='w-E_R'!F101 -> 0 | E87: ='w-E_R'!G101 -> 0 | H87: =#REF! ->  | I87: =#REF! ->  | J87: =#REF! ->  | K87: =#REF! -> 
A88: 66 | B88: ='w-E_R'!B102 -> W15/02-Regel | C88: ='w-E_R'!D102 -> 0 | D88: ='w-E_R'!F102 -> 0 | E88: ='w-E_R'!G102 -> 0 | H88: =#REF! ->  | I88: =#REF! ->  | J88: =#REF! ->  | K88: =#REF! -> 
A89: 66 | B89: ='w-E_R'!B103 -> W15/03-Regel | C89: ='w-E_R'!D103 -> 0 | D89: ='w-E_R'!F103 -> 0 | E89: ='w-E_R'!G103 -> 0 | H89: =#REF! ->  | I89: =#REF! ->  | J89: =#REF! ->  | K89: =#REF! -> 
A90: 66 | B90: ='w-E_R'!B104 -> W15/04-Regel | C90: ='w-E_R'!D104 -> 0 | D90: ='w-E_R'!F104 -> 0 | E90: ='w-E_R'!G104 -> 0 | H90: =#REF! ->  | I90: =#REF! ->  | J90: =#REF! ->  | K90: =#REF! -> 
A91: 66 | B91: ='w-E_R'!B105 -> W15/05-Regel | C91: ='w-E_R'!D105 -> 0 | D91: ='w-E_R'!F105 -> 0 | E91: ='w-E_R'!G105 -> 0 | H91: =#REF! ->  | I91: =#REF! ->  | J91: =#REF! ->  | K91: =#REF! -> 
A92: 66 | B92: ='w-E_R'!B106 -> W15/06-Regel | C92: ='w-E_R'!D106 -> 0 | D92: ='w-E_R'!F106 -> 0 | E92: ='w-E_R'!G106 -> 0 | H92: =#REF! ->  | I92: =#REF! ->  | J92: =#REF! ->  | K92: =#REF! -> 
A93: 66 | B93: ='w-E_R'!B108 -> W16/01-Regel | C93: ='w-E_R'!D108 -> 0 | D93: ='w-E_R'!F108 -> 0 | E93: ='w-E_R'!G108 -> 0 | H93: =#REF! ->  | I93: =#REF! ->  | J93: =#REF! ->  | K93: =#REF! -> 
A94: 66 | B94: ='w-E_R'!B109 -> W16/02-Regel | C94: ='w-E_R'!D109 -> 0 | D94: ='w-E_R'!F109 -> 0 | E94: ='w-E_R'!G109 -> 0 | H94: =#REF! ->  | I94: =#REF! ->  | J94: =#REF! ->  | K94: =#REF! -> 
A95: 66 | B95: ='w-E_R'!B110 -> W16/03-Regel | C95: ='w-E_R'!D110 -> 0 | D95: ='w-E_R'!F110 -> 0 | E95: ='w-E_R'!G110 -> 0 | H95: =#REF! ->  | I95: =#REF! ->  | J95: =#REF! ->  | K95: =#REF! -> 
A96: 66 | B96: ='w-E_R'!B111 -> W16/04-Regel | C96: ='w-E_R'!D111 -> 0 | D96: ='w-E_R'!F111 -> 0 | E96: ='w-E_R'!G111 -> 0 | H96: =#REF! ->  | I96: =#REF! ->  | J96: =#REF! ->  | K96: =#REF! -> 
A97: 66 | B97: ='w-E_R'!B112 -> W16/05-Regel | C97: ='w-E_R'!D112 -> 0 | D97: ='w-E_R'!F112 -> 0 | E97: ='w-E_R'!G112 -> 0 | H97: =#REF! ->  | I97: =#REF! ->  | J97: =#REF! ->  | K97: =#REF! -> 
A98: 66 | B98: ='w-E_R'!B113 -> W16/06-Regel | C98: ='w-E_R'!D113 -> 0 | D98: ='w-E_R'!F113 -> 0 | E98: ='w-E_R'!G113 -> 0 | H98: =#REF! ->  | I98: =#REF! ->  | J98: =#REF! ->  | K98: =#REF! -> 
A99: =RANK(E99,$E$3:$E$122,0) -> 66 | B99: ='w-E_R'!B115 -> W17/01-Regel | C99: ='w-E_R'!D115 -> 0 | D99: ='w-E_R'!F115 -> 0 | E99: ='w-E_R'!G115 -> 0 | G99: =RANK(K99,$K$3:$K$122,0) ->  | H99: =#REF! ->  | I99: =#REF! ->  | J99: =#REF! ->  | K99: =#REF! -> 
A100: 66 | B100: ='w-E_R'!B116 -> W17/02-Regel | C100: ='w-E_R'!D116 -> 0 | D100: ='w-E_R'!F116 -> 0 | E100: ='w-E_R'!G116 -> 0 | H100: =#REF! ->  | I100: =#REF! ->  | J100: =#REF! ->  | K100: =#REF! -> 
A101: 66 | B101: ='w-E_R'!B117 -> W17/03-Regel | C101: ='w-E_R'!D117 -> 0 | D101: ='w-E_R'!F117 -> 0 | E101: ='w-E_R'!G117 -> 0 | H101: =#REF! ->  | I101: =#REF! ->  | J101: =#REF! ->  | K101: =#REF! -> 
A102: 66 | B102: ='w-E_R'!B118 -> W17/04-Regel | C102: ='w-E_R'!D118 -> 0 | D102: ='w-E_R'!F118 -> 0 | E102: ='w-E_R'!G118 -> 0 | H102: =#REF! ->  | I102: =#REF! ->  | J102: =#REF! ->  | K102: =#REF! -> 
A103: 66 | B103: ='w-E_R'!B119 -> W17/05-Regel | C103: ='w-E_R'!D119 -> 0 | D103: ='w-E_R'!F119 -> 0 | E103: ='w-E_R'!G119 -> 0 | H103: =#REF! ->  | I103: =#REF! ->  | J103: =#REF! ->  | K103: =#REF! -> 
A104: 66 | B104: ='w-E_R'!B120 -> W17/06-Regel | C104: ='w-E_R'!D120 -> 0 | D104: ='w-E_R'!F120 -> 0 | E104: ='w-E_R'!G120 -> 0 | H104: =#REF! ->  | I104: =#REF! ->  | J104: =#REF! ->  | K104: =#REF! -> 
A105: 66 | B105: ='w-E_R'!B122 -> W18/01-Regel | C105: ='w-E_R'!D122 -> 0 | D105: ='w-E_R'!F122 -> 0 | E105: ='w-E_R'!G122 -> 0 | H105: =#REF! ->  | I105: =#REF! ->  | J105: =#REF! ->  | K105: =#REF! -> 
A106: 66 | B106: ='w-E_R'!B123 -> W18/02-Regel | C106: ='w-E_R'!D123 -> 0 | D106: ='w-E_R'!F123 -> 0 | E106: ='w-E_R'!G123 -> 0 | H106: =#REF! ->  | I106: =#REF! ->  | J106: =#REF! ->  | K106: =#REF! -> 
A107: 66 | B107: ='w-E_R'!B124 -> W18/03-Regel | C107: ='w-E_R'!D124 -> 0 | D107: ='w-E_R'!F124 -> 0 | E107: ='w-E_R'!G124 -> 0 | H107: =#REF! ->  | I107: =#REF! ->  | J107: =#REF! ->  | K107: =#REF! -> 
A108: 66 | B108: ='w-E_R'!B125 -> W18/04-Regel | C108: ='w-E_R'!D125 -> 0 | D108: ='w-E_R'!F125 -> 0 | E108: ='w-E_R'!G125 -> 0 | H108: =#REF! ->  | I108: =#REF! ->  | J108: =#REF! ->  | K108: =#REF! -> 
A109: 66 | B109: ='w-E_R'!B126 -> W18/05-Regel | C109: ='w-E_R'!D126 -> 0 | D109: ='w-E_R'!F126 -> 0 | E109: ='w-E_R'!G126 -> 0 | H109: =#REF! ->  | I109: =#REF! ->  | J109: =#REF! ->  | K109: =#REF! -> 
A110: 66 | B110: ='w-E_R'!B127 -> W18/06-Regel | C110: ='w-E_R'!D127 -> 0 | D110: ='w-E_R'!F127 -> 0 | E110: ='w-E_R'!G127 -> 0 | H110: =#REF! ->  | I110: =#REF! ->  | J110: =#REF! ->  | K110: =#REF! -> 
A111: 66 | B111: ='w-E_R'!B129 -> W19/01-Regel | C111: ='w-E_R'!D129 -> 0 | D111: ='w-E_R'!F129 -> 0 | E111: ='w-E_R'!G129 -> 0 | H111: =#REF! ->  | I111: =#REF! ->  | J111: =#REF! ->  | K111: =#REF! -> 
A112: 66 | B112: ='w-E_R'!B130 -> W19/02-Regel | C112: ='w-E_R'!D130 -> 0 | D112: ='w-E_R'!F130 -> 0 | E112: ='w-E_R'!G130 -> 0 | H112: =#REF! ->  | I112: =#REF! ->  | J112: =#REF! ->  | K112: =#REF! -> 
A113: 66 | B113: ='w-E_R'!B131 -> W19/03-Regel | C113: ='w-E_R'!D131 -> 0 | D113: ='w-E_R'!F131 -> 0 | E113: ='w-E_R'!G131 -> 0 | H113: =#REF! ->  | I113: =#REF! ->  | J113: =#REF! ->  | K113: =#REF! -> 
A114: 66 | B114: ='w-E_R'!B132 -> W19/04-Regel | C114: ='w-E_R'!D132 -> 0 | D114: ='w-E_R'!F132 -> 0 | E114: ='w-E_R'!G132 -> 0 | H114: =#REF! ->  | I114: =#REF! ->  | J114: =#REF! ->  | K114: =#REF! -> 
A115: 66 | B115: ='w-E_R'!B133 -> W19/05-Regel | C115: ='w-E_R'!D133 -> 0 | D115: ='w-E_R'!F133 -> 0 | E115: ='w-E_R'!G133 -> 0 | H115: =#REF! ->  | I115: =#REF! ->  | J115: =#REF! ->  | K115: =#REF! -> 
A116: 66 | B116: ='w-E_R'!B134 -> W19/06-Regel | C116: ='w-E_R'!D134 -> 0 | D116: ='w-E_R'!F134 -> 0 | E116: ='w-E_R'!G134 -> 0 | H116: =#REF! ->  | I116: =#REF! ->  | J116: =#REF! ->  | K116: =#REF! -> 
A117: 66 | B117: ='w-E_R'!B136 -> W20/01-Regel | C117: ='w-E_R'!D136 -> 0 | D117: ='w-E_R'!F136 -> 0 | E117: ='w-E_R'!G136 -> 0 | H117: =#REF! ->  | I117: =#REF! ->  | J117: =#REF! ->  | K117: =#REF! -> 
A118: 66 | B118: ='w-E_R'!B137 -> W20/02-Regel | C118: ='w-E_R'!D137 -> 0 | D118: ='w-E_R'!F137 -> 0 | E118: ='w-E_R'!G137 -> 0 | H118: =#REF! ->  | I118: =#REF! ->  | J118: =#REF! ->  | K118: =#REF! -> 
A119: 66 | B119: ='w-E_R'!B138 -> W20/03-Regel | C119: ='w-E_R'!D138 -> 0 | D119: ='w-E_R'!F138 -> 0 | E119: ='w-E_R'!G138 -> 0 | H119: =#REF! ->  | I119: =#REF! ->  | J119: =#REF! ->  | K119: =#REF! -> 
A120: 66 | B120: ='w-E_R'!B139 -> W20/04-Regel | C120: ='w-E_R'!D139 -> 0 | D120: ='w-E_R'!F139 -> 0 | E120: ='w-E_R'!G139 -> 0 | H120: =#REF! ->  | I120: =#REF! ->  | J120: =#REF! ->  | K120: =#REF! -> 
A121: 66 | B121: ='w-E_R'!B140 -> W20/05-Regel | C121: ='w-E_R'!D140 -> 0 | D121: ='w-E_R'!F140 -> 0 | E121: ='w-E_R'!G140 -> 0 | H121: =#REF! ->  | I121: =#REF! ->  | J121: =#REF! ->  | K121: =#REF! -> 
A122: 66 | B122: ='w-E_R'!B141 -> W20/06-Regel | C122: ='w-E_R'!D141 -> 0 | D122: ='w-E_R'!F141 -> 0 | E122: ='w-E_R'!G141 -> 0 | H122: =#REF! ->  | I122: =#REF! ->  | J122: =#REF! ->  | K122: =#REF! -> 
A123: Einzelwertung 60 m Weiblich | C123: ='w-E_R'!C1 -> D-C/Regel-Schulen | D123: ='w-E_R'!E1 -> Ortsangabe,Datum | G123: Einzelwertung 60 m Männlich | I123: =#REF! ->  | J123: =#REF! -> 
A124: Einzelwertung 60 m | C124: =#REF! ->  | D124: =#REF! ->  | G124: Einzelwertung 60 m | I124: =#REF! ->  | J124: =#REF! -> 
A125: Rang | B125: WEIBLICH | C125: Schule: | D125: Leistung | E125: Punkte | G125: Rang | H125: MÄNNLICH | I125: Schule: | J125: Leistung | K125: Punkte
A126: =RANK(E126,$E$126:$E245,0) ->  | B126: =#REF! ->  | C126: =#REF! ->  | D126: =#REF! ->  | E126: =#REF! ->  | G126: =RANK(K126,$K$126:$K245,0) ->  | H126: =#REF! ->  | I126: =#REF! ->  | J126: =#REF! ->  | K126: =#REF! -> 
A127: =RANK(E127,$E$126:$E245,0) ->  | B127: =#REF! ->  | C127: =#REF! ->  | D127: =#REF! ->  | E127: =#REF! ->  | G127: =RANK(K127,$K$126:$K245,0) ->  | H127: =#REF! ->  | I127: =#REF! ->  | J127: =#REF! ->  | K127: =#REF! -> 
A128: =RANK(E128,$E$126:$E245,0) ->  | B128: =#REF! ->  | C128: =#REF! ->  | D128: =#REF! ->  | E128: =#REF! ->  | G128: =RANK(K128,$K$126:$K245,0) ->  | H128: =#REF! ->  | I128: =#REF! ->  | J128: =#REF! ->  | K128: =#REF! -> 
A129: =RANK(E129,$E$126:$E245,0) ->  | B129: =#REF! ->  | C129: =#REF! ->  | D129: =#REF! ->  | E129: =#REF! ->  | G129: =RANK(K129,$K$126:$K245,0) ->  | H129: =#REF! ->  | I129: =#REF! ->  | J129: =#REF! ->  | K129: =#REF! -> 
A130: =RANK(E130,$E$126:$E245,0) ->  | B130: =#REF! ->  | C130: =#REF! ->  | D130: =#REF! ->  | E130: =#REF! ->  | G130: =RANK(K130,$K$126:$K245,0) ->  | H130: =#REF! ->  | I130: =#REF! ->  | J130: =#REF! ->  | K130: =#REF! -> 
A131: =RANK(E131,$E$126:$E245,0) ->  | B131: =#REF! ->  | C131: =#REF! ->  | D131: =#REF! ->  | E131: =#REF! ->  | G131: =RANK(K131,$K$126:$K245,0) ->  | H131: =#REF! ->  | I131: =#REF! ->  | J131: =#REF! ->  | K131: =#REF! -> 
A132: =RANK(E132,$E$126:$E245,0) ->  | B132: =#REF! ->  | C132: =#REF! ->  | D132: =#REF! ->  | E132: =#REF! ->  | G132: =RANK(K132,$K$126:$K245,0) ->  | H132: =#REF! ->  | I132: =#REF! ->  | J132: =#REF! ->  | K132: =#REF! -> 
A133: =RANK(E133,$E$126:$E245,0) ->  | B133: =#REF! ->  | C133: =#REF! ->  | D133: =#REF! ->  | E133: =#REF! ->  | G133: =RANK(K133,$K$126:$K245,0) ->  | H133: =#REF! ->  | I133: =#REF! ->  | J133: =#REF! ->  | K133: =#REF! -> 
A134: =RANK(E134,$E$126:$E245,0) ->  | B134: =#REF! ->  | C134: =#REF! ->  | D134: =#REF! ->  | E134: =#REF! ->  | G134: =RANK(K134,$K$126:$K245,0) ->  | H134: =#REF! ->  | I134: =#REF! ->  | J134: =#REF! ->  | K134: =#REF! -> 
A135: =RANK(E135,$E$126:$E245,0) ->  | B135: =#REF! ->  | C135: =#REF! ->  | D135: =#REF! ->  | E135: =#REF! ->  | G135: =RANK(K135,$K$126:$K245,0) ->  | H135: =#REF! ->  | I135: =#REF! ->  | J135: =#REF! ->  | K135: =#REF! -> 
A136: =RANK(E136,$E$126:$E245,0) ->  | B136: =#REF! ->  | C136: =#REF! ->  | D136: =#REF! ->  | E136: =#REF! ->  | G136: =RANK(K136,$K$126:$K245,0) ->  | H136: =#REF! ->  | I136: =#REF! ->  | J136: =#REF! ->  | K136: =#REF! -> 
A137: =RANK(E137,$E$126:$E245,0) ->  | B137: =#REF! ->  | C137: =#REF! ->  | D137: =#REF! ->  | E137: =#REF! ->  | G137: =RANK(K137,$K$126:$K245,0) ->  | H137: =#REF! ->  | I137: =#REF! ->  | J137: =#REF! ->  | K137: =#REF! -> 
A138: =RANK(E138,$E$126:$E245,0) ->  | B138: =#REF! ->  | C138: =#REF! ->  | D138: =#REF! ->  | E138: =#REF! ->  | G138: =RANK(K138,$K$126:$K245,0) ->  | H138: =#REF! ->  | I138: =#REF! ->  | J138: =#REF! ->  | K138: =#REF! -> 
A139: =RANK(E139,$E$126:$E245,0) ->  | B139: =#REF! ->  | C139: =#REF! ->  | D139: =#REF! ->  | E139: =#REF! ->  | G139: =RANK(K139,$K$126:$K245,0) ->  | H139: =#REF! ->  | I139: =#REF! ->  | J139: =#REF! ->  | K139: =#REF! -> 
A140: =RANK(E140,$E$126:$E245,0) ->  | B140: =#REF! ->  | C140: =#REF! ->  | D140: =#REF! ->  | E140: =#REF! ->  | G140: =RANK(K140,$K$126:$K245,0) ->  | H140: =#REF! ->  | I140: =#REF! ->  | J140: =#REF! ->  | K140: =#REF! -> 
A141: =RANK(E141,$E$126:$E245,0) ->  | B141: =#REF! ->  | C141: =#REF! ->  | D141: =#REF! ->  | E141: =#REF! ->  | G141: =RANK(K141,$K$126:$K245,0) ->  | H141: =#REF! ->  | I141: =#REF! ->  | J141: =#REF! ->  | K141: =#REF! -> 
A142: =RANK(E142,$E$126:$E245,0) ->  | B142: =#REF! ->  | C142: =#REF! ->  | D142: =#REF! ->  | E142: =#REF! ->  | G142: =RANK(K142,$K$126:$K245,0) ->  | H142: =#REF! ->  | I142: =#REF! ->  | J142: =#REF! ->  | K142: =#REF! -> 
A143: =RANK(E143,$E$126:$E245,0) ->  | B143: =#REF! ->  | C143: =#REF! ->  | D143: =#REF! ->  | E143: =#REF! ->  | G143: =RANK(K143,$K$126:$K245,0) ->  | H143: =#REF! ->  | I143: =#REF! ->  | J143: =#REF! ->  | K143: =#REF! -> 
A144: =RANK(E144,$E$126:$E245,0) ->  | B144: =#REF! ->  | C144: =#REF! ->  | D144: =#REF! ->  | E144: =#REF! ->  | G144: =RANK(K144,$K$126:$K245,0) ->  | H144: =#REF! ->  | I144: =#REF! ->  | J144: =#REF! ->  | K144: =#REF! -> 
A145: =RANK(E145,$E$126:$E245,0) ->  | B145: =#REF! ->  | C145: =#REF! ->  | D145: =#REF! ->  | E145: =#REF! ->  | G145: =RANK(K145,$K$126:$K245,0) ->  | H145: =#REF! ->  | I145: =#REF! ->  | J145: =#REF! ->  | K145: =#REF! -> 
A146: =RANK(E146,$E$126:$E245,0) ->  | B146: =#REF! ->  | C146: =#REF! ->  | D146: =#REF! ->  | E146: =#REF! ->  | G146: =RANK(K146,$K$126:$K245,0) ->  | H146: =#REF! ->  | I146: =#REF! ->  | J146: =#REF! ->  | K146: =#REF! -> 
A147: =RANK(E147,$E$126:$E245,0) ->  | B147: =#REF! ->  | C147: =#REF! ->  | D147: =#REF! ->  | E147: =#REF! ->  | G147: =RANK(K147,$K$126:$K245,0) ->  | H147: =#REF! ->  | I147: =#REF! ->  | J147: =#REF! ->  | K147: =#REF! -> 
A148: =RANK(E148,$E$126:$E245,0) ->  | B148: =#REF! ->  | C148: =#REF! ->  | D148: =#REF! ->  | E148: =#REF! ->  | G148: =RANK(K148,$K$126:$K245,0) ->  | H148: =#REF! ->  | I148: =#REF! ->  | J148: =#REF! ->  | K148: =#REF! -> 
A149: =RANK(E149,$E$126:$E245,0) ->  | B149: =#REF! ->  | C149: =#REF! ->  | D149: =#REF! ->  | E149: =#REF! ->  | G149: =RANK(K149,$K$126:$K245,0) ->  | H149: =#REF! ->  | I149: =#REF! ->  | J149: =#REF! ->  | K149: =#REF! -> 
A150: =RANK(E150,$E$126:$E245,0) ->  | B150: =#REF! ->  | C150: =#REF! ->  | D150: =#REF! ->  | E150: =#REF! ->  | G150: =RANK(K150,$K$126:$K245,0) ->  | H150: =#REF! ->  | I150: =#REF! ->  | J150: =#REF! ->  | K150: =#REF! -> 
A151: =RANK(E151,$E$126:$E245,0) ->  | B151: =#REF! ->  | C151: =#REF! ->  | D151: =#REF! ->  | E151: =#REF! ->  | G151: =RANK(K151,$K$126:$K245,0) ->  | H151: =#REF! ->  | I151: =#REF! ->  | J151: =#REF! ->  | K151: =#REF! -> 
A152: =RANK(E152,$E$126:$E245,0) ->  | B152: =#REF! ->  | C152: =#REF! ->  | D152: =#REF! ->  | E152: =#REF! ->  | G152: =RANK(K152,$K$126:$K245,0) ->  | H152: =#REF! ->  | I152: =#REF! ->  | J152: =#REF! ->  | K152: =#REF! -> 
A153: =RANK(E153,$E$126:$E245,0) ->  | B153: =#REF! ->  | C153: =#REF! ->  | D153: =#REF! ->  | E153: =#REF! ->  | G153: =RANK(K153,$K$126:$K245,0) ->  | H153: =#REF! ->  | I153: =#REF! ->  | J153: =#REF! ->  | K153: =#REF! -> 
A154: =RANK(E154,$E$126:$E245,0) ->  | B154: =#REF! ->  | C154: =#REF! ->  | D154: =#REF! ->  | E154: =#REF! ->  | G154: =RANK(K154,$K$126:$K245,0) ->  | H154: =#REF! ->  | I154: =#REF! ->  | J154: =#REF! ->  | K154: =#REF! -> 
A155: =RANK(E155,$E$126:$E245,0) ->  | B155: =#REF! ->  | C155: =#REF! ->  | D155: =#REF! ->  | E155: =#REF! ->  | G155: =RANK(K155,$K$126:$K245,0) ->  | H155: =#REF! ->  | I155: =#REF! ->  | J155: =#REF! ->  | K155: =#REF! -> 
A156: =RANK(E156,$E$126:$E245,0) ->  | B156: =#REF! ->  | C156: =#REF! ->  | D156: =#REF! ->  | E156: =#REF! ->  | G156: =RANK(K156,$K$126:$K245,0) ->  | H156: =#REF! ->  | I156: =#REF! ->  | J156: =#REF! ->  | K156: =#REF! -> 
A157: =RANK(E157,$E$126:$E245,0) ->  | B157: =#REF! ->  | C157: =#REF! ->  | D157: =#REF! ->  | E157: =#REF! ->  | G157: =RANK(K157,$K$126:$K245,0) ->  | H157: =#REF! ->  | I157: =#REF! ->  | J157: =#REF! ->  | K157: =#REF! -> 
A158: =RANK(E158,$E$126:$E245,0) ->  | B158: =#REF! ->  | C158: =#REF! ->  | D158: =#REF! ->  | E158: =#REF! ->  | G158: =RANK(K158,$K$126:$K245,0) ->  | H158: =#REF! ->  | I158: =#REF! ->  | J158: =#REF! ->  | K158: =#REF! -> 
A159: =RANK(E159,$E$126:$E245,0) ->  | B159: =#REF! ->  | C159: =#REF! ->  | D159: =#REF! ->  | E159: =#REF! ->  | G159: =RANK(K159,$K$126:$K245,0) ->  | H159: =#REF! ->  | I159: =#REF! ->  | J159: =#REF! ->  | K159: =#REF! -> 
A160: =RANK(E160,$E$126:$E245,0) ->  | B160: =#REF! ->  | C160: =#REF! ->  | D160: =#REF! ->  | E160: =#REF! ->  | G160: =RANK(K160,$K$126:$K245,0) ->  | H160: =#REF! ->  | I160: =#REF! ->  | J160: =#REF! ->  | K160: =#REF! -> 
A161: =RANK(E161,$E$126:$E245,0) ->  | B161: =#REF! ->  | C161: =#REF! ->  | D161: =#REF! ->  | E161: =#REF! ->  | G161: =RANK(K161,$K$126:$K245,0) ->  | H161: =#REF! ->  | I161: =#REF! ->  | J161: =#REF! ->  | K161: =#REF! -> 
A162: =RANK(E162,$E$126:$E245,0) ->  | B162: =#REF! ->  | C162: =#REF! ->  | D162: =#REF! ->  | E162: =#REF! ->  | G162: =RANK(K162,$K$126:$K245,0) ->  | H162: =#REF! ->  | I162: =#REF! ->  | J162: =#REF! ->  | K162: =#REF! -> 
A163: =RANK(E163,$E$126:$E245,0) ->  | B163: =#REF! ->  | C163: =#REF! ->  | D163: =#REF! ->  | E163: =#REF! ->  | G163: =RANK(K163,$K$126:$K245,0) ->  | H163: =#REF! ->  | I163: =#REF! ->  | J163: =#REF! ->  | K163: =#REF! -> 
A164: =RANK(E164,$E$126:$E245,0) ->  | B164: =#REF! ->  | C164: =#REF! ->  | D164: =#REF! ->  | E164: =#REF! ->  | G164: =RANK(K164,$K$126:$K245,0) ->  | H164: =#REF! ->  | I164: =#REF! ->  | J164: =#REF! ->  | K164: =#REF! -> 
A165: =RANK(E165,$E$126:$E245,0) ->  | B165: =#REF! ->  | C165: =#REF! ->  | D165: =#REF! ->  | E165: =#REF! ->  | G165: =RANK(K165,$K$126:$K245,0) ->  | H165: =#REF! ->  | I165: =#REF! ->  | J165: =#REF! ->  | K165: =#REF! -> 
A166: =RANK(E166,$E$126:$E245,0) ->  | B166: =#REF! ->  | C166: =#REF! ->  | D166: =#REF! ->  | E166: =#REF! ->  | G166: =RANK(K166,$K$126:$K245,0) ->  | H166: =#REF! ->  | I166: =#REF! ->  | J166: =#REF! ->  | K166: =#REF! -> 
A167: =RANK(E167,$E$126:$E245,0) ->  | B167: =#REF! ->  | C167: =#REF! ->  | D167: =#REF! ->  | E167: =#REF! ->  | G167: =RANK(K167,$K$126:$K245,0) ->  | H167: =#REF! ->  | I167: =#REF! ->  | J167: =#REF! ->  | K167: =#REF! -> 
A168: =RANK(E168,$E$126:$E245,0) ->  | B168: =#REF! ->  | C168: =#REF! ->  | D168: =#REF! ->  | E168: =#REF! ->  | G168: =RANK(K168,$K$126:$K245,0) ->  | H168: =#REF! ->  | I168: =#REF! ->  | J168: =#REF! ->  | K168: =#REF! -> 
A169: =RANK(E169,$E$126:$E245,0) ->  | B169: =#REF! ->  | C169: =#REF! ->  | D169: =#REF! ->  | E169: =#REF! ->  | G169: =RANK(K169,$K$126:$K245,0) ->  | H169: =#REF! ->  | I169: =#REF! ->  | J169: =#REF! ->  | K169: =#REF! -> 
A170: =RANK(E170,$E$126:$E245,0) ->  | B170: =#REF! ->  | C170: =#REF! ->  | D170: =#REF! ->  | E170: =#REF! ->  | G170: =RANK(K170,$K$126:$K245,0) ->  | H170: =#REF! ->  | I170: =#REF! ->  | J170: =#REF! ->  | K170: =#REF! -> 
A171: =RANK(E171,$E$126:$E245,0) ->  | B171: =#REF! ->  | C171: =#REF! ->  | D171: =#REF! ->  | E171: =#REF! ->  | G171: =RANK(K171,$K$126:$K245,0) ->  | H171: =#REF! ->  | I171: =#REF! ->  | J171: =#REF! ->  | K171: =#REF! -> 
A172: =RANK(E172,$E$126:$E245,0) ->  | B172: =#REF! ->  | C172: =#REF! ->  | D172: =#REF! ->  | E172: =#REF! ->  | G172: =RANK(K172,$K$126:$K245,0) ->  | H172: =#REF! ->  | I172: =#REF! ->  | J172: =#REF! ->  | K172: =#REF! -> 
A173: =RANK(E173,$E$126:$E245,0) ->  | B173: =#REF! ->  | C173: =#REF! ->  | D173: =#REF! ->  | E173: =#REF! ->  | G173: =RANK(K173,$K$126:$K245,0) ->  | H173: =#REF! ->  | I173: =#REF! ->  | J173: =#REF! ->  | K173: =#REF! -> 
A174: =RANK(E174,$E$126:$E245,0) ->  | B174: =#REF! ->  | C174: =#REF! ->  | D174: =#REF! ->  | E174: =#REF! ->  | G174: =RANK(K174,$K$126:$K245,0) ->  | H174: =#REF! ->  | I174: =#REF! ->  | J174: =#REF! ->  | K174: =#REF! -> 
A175: =RANK(E175,$E$126:$E245,0) ->  | B175: =#REF! ->  | C175: =#REF! ->  | D175: =#REF! ->  | E175: =#REF! ->  | G175: =RANK(K175,$K$126:$K245,0) ->  | H175: =#REF! ->  | I175: =#REF! ->  | J175: =#REF! ->  | K175: =#REF! -> 
A176: =RANK(E176,$E$126:$E245,0) ->  | B176: =#REF! ->  | C176: =#REF! ->  | D176: =#REF! ->  | E176: =#REF! ->  | G176: =RANK(K176,$K$126:$K245,0) ->  | H176: =#REF! ->  | I176: =#REF! ->  | J176: =#REF! ->  | K176: =#REF! -> 
A177: =RANK(E177,$E$126:$E245,0) ->  | B177: =#REF! ->  | C177: =#REF! ->  | D177: =#REF! ->  | E177: =#REF! ->  | G177: =RANK(K177,$K$126:$K245,0) ->  | H177: =#REF! ->  | I177: =#REF! ->  | J177: =#REF! ->  | K177: =#REF! -> 
A178: =RANK(E178,$E$126:$E245,0) ->  | B178: =#REF! ->  | C178: =#REF! ->  | D178: =#REF! ->  | E178: =#REF! ->  | G178: =RANK(K178,$K$126:$K245,0) ->  | H178: =#REF! ->  | I178: =#REF! ->  | J178: =#REF! ->  | K178: =#REF! -> 
A179: =RANK(E179,$E$126:$E245,0) ->  | B179: =#REF! ->  | C179: =#REF! ->  | D179: =#REF! ->  | E179: =#REF! ->  | G179: =RANK(K179,$K$126:$K245,0) ->  | H179: =#REF! ->  | I179: =#REF! ->  | J179: =#REF! ->  | K179: =#REF! -> 
A180: =RANK(E180,$E$126:$E245,0) ->  | B180: =#REF! ->  | C180: =#REF! ->  | D180: =#REF! ->  | E180: =#REF! ->  | G180: =RANK(K180,$K$126:$K245,0) ->  | H180: =#REF! ->  | I180: =#REF! ->  | J180: =#REF! ->  | K180: =#REF! -> 
A181: =RANK(E181,$E$126:$E245,0) ->  | B181: =#REF! ->  | C181: =#REF! ->  | D181: =#REF! ->  | E181: =#REF! ->  | G181: =RANK(K181,$K$126:$K245,0) ->  | H181: =#REF! ->  | I181: =#REF! ->  | J181: =#REF! ->  | K181: =#REF! -> 
A182: =RANK(E182,$E$126:$E245,0) ->  | B182: =#REF! ->  | C182: =#REF! ->  | D182: =#REF! ->  | E182: =#REF! ->  | G182: =RANK(K182,$K$126:$K245,0) ->  | H182: =#REF! ->  | I182: =#REF! ->  | J182: =#REF! ->  | K182: =#REF! -> 
A183: =RANK(E183,$E$126:$E245,0) ->  | B183: =#REF! ->  | C183: =#REF! ->  | D183: =#REF! ->  | E183: =#REF! ->  | G183: =RANK(K183,$K$126:$K245,0) ->  | H183: =#REF! ->  | I183: =#REF! ->  | J183: =#REF! ->  | K183: =#REF! -> 
A184: =RANK(E184,$E$126:$E245,0) ->  | B184: =#REF! ->  | C184: =#REF! ->  | D184: =#REF! ->  | E184: =#REF! ->  | G184: =RANK(K184,$K$126:$K245,0) ->  | H184: =#REF! ->  | I184: =#REF! ->  | J184: =#REF! ->  | K184: =#REF! -> 
A185: =RANK(E185,$E$126:$E245,0) ->  | B185: =#REF! ->  | C185: =#REF! ->  | D185: =#REF! ->  | E185: =#REF! ->  | G185: =RANK(K185,$K$126:$K245,0) ->  | H185: =#REF! ->  | I185: =#REF! ->  | J185: =#REF! ->  | K185: =#REF! -> 
A186: =RANK(E186,$E$126:$E245,0) ->  | B186: =#REF! ->  | C186: =#REF! ->  | D186: =#REF! ->  | E186: =#REF! ->  | G186: =RANK(K186,$K$126:$K245,0) ->  | H186: =#REF! ->  | I186: =#REF! ->  | J186: =#REF! ->  | K186: =#REF! -> 
A187: =RANK(E187,$E$126:$E245,0) ->  | B187: =#REF! ->  | C187: =#REF! ->  | D187: =#REF! ->  | E187: =#REF! ->  | G187: =RANK(K187,$K$126:$K245,0) ->  | H187: =#REF! ->  | I187: =#REF! ->  | J187: =#REF! ->  | K187: =#REF! -> 
A188: =RANK(E188,$E$126:$E245,0) ->  | B188: =#REF! ->  | C188: =#REF! ->  | D188: =#REF! ->  | E188: =#REF! ->  | G188: =RANK(K188,$K$126:$K245,0) ->  | H188: =#REF! ->  | I188: =#REF! ->  | J188: =#REF! ->  | K188: =#REF! -> 
A189: =RANK(E189,$E$126:$E245,0) ->  | B189: =#REF! ->  | C189: =#REF! ->  | D189: =#REF! ->  | E189: =#REF! ->  | G189: =RANK(K189,$K$126:$K245,0) ->  | H189: =#REF! ->  | I189: =#REF! ->  | J189: =#REF! ->  | K189: =#REF! -> 
A190: =RANK(E190,$E$126:$E245,0) ->  | B190: =#REF! ->  | C190: =#REF! ->  | D190: =#REF! ->  | E190: =#REF! ->  | G190: =RANK(K190,$K$126:$K245,0) ->  | H190: =#REF! ->  | I190: =#REF! ->  | J190: =#REF! ->  | K190: =#REF! -> 
A191: =RANK(E191,$E$126:$E245,0) ->  | B191: =#REF! ->  | C191: =#REF! ->  | D191: =#REF! ->  | E191: =#REF! ->  | G191: =RANK(K191,$K$126:$K245,0) ->  | H191: =#REF! ->  | I191: =#REF! ->  | J191: =#REF! ->  | K191: =#REF! -> 
A192: =RANK(E192,$E$126:$E245,0) ->  | B192: =#REF! ->  | C192: =#REF! ->  | D192: =#REF! ->  | E192: =#REF! ->  | G192: =RANK(K192,$K$126:$K245,0) ->  | H192: =#REF! ->  | I192: =#REF! ->  | J192: =#REF! ->  | K192: =#REF! -> 
A193: =RANK(E193,$E$126:$E245,0) ->  | B193: =#REF! ->  | C193: =#REF! ->  | D193: =#REF! ->  | E193: =#REF! ->  | G193: =RANK(K193,$K$126:$K245,0) ->  | H193: =#REF! ->  | I193: =#REF! ->  | J193: =#REF! ->  | K193: =#REF! -> 
A194: =RANK(E194,$E$126:$E245,0) ->  | B194: =#REF! ->  | C194: =#REF! ->  | D194: =#REF! ->  | E194: =#REF! ->  | G194: =RANK(K194,$K$126:$K245,0) ->  | H194: =#REF! ->  | I194: =#REF! ->  | J194: =#REF! ->  | K194: =#REF! -> 
A195: =RANK(E195,$E$126:$E245,0) ->  | B195: =#REF! ->  | C195: =#REF! ->  | D195: =#REF! ->  | E195: =#REF! ->  | G195: =RANK(K195,$K$126:$K245,0) ->  | H195: =#REF! ->  | I195: =#REF! ->  | J195: =#REF! ->  | K195: =#REF! -> 
A196: =RANK(E196,$E$126:$E245,0) ->  | B196: =#REF! ->  | C196: =#REF! ->  | D196: =#REF! ->  | E196: =#REF! ->  | G196: =RANK(K196,$K$126:$K245,0) ->  | H196: =#REF! ->  | I196: =#REF! ->  | J196: =#REF! ->  | K196: =#REF! -> 
A197: =RANK(E197,$E$126:$E245,0) ->  | B197: =#REF! ->  | C197: =#REF! ->  | D197: =#REF! ->  | E197: =#REF! ->  | G197: =RANK(K197,$K$126:$K245,0) ->  | H197: =#REF! ->  | I197: =#REF! ->  | J197: =#REF! ->  | K197: =#REF! -> 
A198: =RANK(E198,$E$126:$E245,0) ->  | B198: =#REF! ->  | C198: =#REF! ->  | D198: =#REF! ->  | E198: =#REF! ->  | G198: =RANK(K198,$K$126:$K245,0) ->  | H198: =#REF! ->  | I198: =#REF! ->  | J198: =#REF! ->  | K198: =#REF! -> 
A199: =RANK(E199,$E$126:$E245,0) ->  | B199: =#REF! ->  | C199: =#REF! ->  | D199: =#REF! ->  | E199: =#REF! ->  | G199: =RANK(K199,$K$126:$K245,0) ->  | H199: =#REF! ->  | I199: =#REF! ->  | J199: =#REF! ->  | K199: =#REF! -> 
A200: =RANK(E200,$E$126:$E245,0) ->  | B200: =#REF! ->  | C200: =#REF! ->  | D200: =#REF! ->  | E200: =#REF! ->  | G200: =RANK(K200,$K$126:$K245,0) ->  | H200: =#REF! ->  | I200: =#REF! ->  | J200: =#REF! ->  | K200: =#REF! -> 
... 46 more rows

Sheet Ez-Schlagball
A1: Einzelwertung Schlagball | C1: ='w-E_R'!C1 -> D-C/Regel-Schulen | D1: ='w-E_R'!E1 -> Ortsangabe,Datum | G1: Einzelwertung Schlagball | I1: =#REF! ->  | J1: =#REF! -> 
A2: Rang | B2: WEIBLICH | C2: Schule: | D2: Leistung | E2: Punkte | G2: Rang | H2: MÄNNLICH | I2: Schule: | J2: Leistung | K2: Punkte
A3: =RANK(E3,$E$3:$E$122,0) -> 1 | B3: ='w-E_R'!B15 -> Riegler Vanessa | C3: ='w-E_R'!D15 -> Borg Wolfsberg | D3: ='w-E_R'!H15 -> 43.9 | E3: ='w-E_R'!I15 -> 593 | G3: =RANK(K3,$K$3:$K$122,0) ->  | H3: =#REF! ->  | I3: =#REF! ->  | J3: =#REF! ->  | K3: =#REF! -> 
A4: 2 | B4: ='w-E_R'!B38 -> Fercher Annabell | C4: ='w-E_R'!D38 -> Musik NMS Hermagor | D4: ='w-E_R'!H38 -> 41.9 | E4: ='w-E_R'!I38 -> 565 | H4: =#REF! ->  | I4: =#REF! ->  | J4: =#REF! ->  | K4: =#REF! -> 
A5: 3 | B5: ='w-E_R'!B68 -> Krnjic Sonja | C5: ='w-E_R'!D68 -> NMS Viktring | D5: ='w-E_R'!H68 -> 41 | E5: ='w-E_R'!I68 -> 553 | H5: =#REF! ->  | I5: =#REF! ->  | J5: =#REF! ->  | K5: =#REF! -> 
A6: 4 | B6: ='w-E_R'!B74 -> Reiter Katharina | C6: ='w-E_R'!D74 -> RNMS Feldkirchen | D6: ='w-E_R'!H74 -> 40.7 | E6: ='w-E_R'!I74 -> 549 | H6: =#REF! ->  | I6: =#REF! ->  | J6: =#REF! ->  | K6: =#REF! -> 
A7: 5 | B7: ='w-E_R'!B22 -> Thaler Laurentine | C7: ='w-E_R'!D22 -> BRG Spittal | D7: ='w-E_R'!H22 -> 40.5 | E7: ='w-E_R'!I22 -> 546 | H7: =#REF! ->  | I7: =#REF! ->  | J7: =#REF! ->  | K7: =#REF! -> 
A8: 6 | B8: ='w-E_R'!B4 -> Feichter Nelly | C8: ='w-E_R'!D4 -> BG St.Martin | D8: ='w-E_R'!H4 -> 39.4 | E8: ='w-E_R'!I4 -> 531 | H8: =#REF! ->  | I8: =#REF! ->  | J8: =#REF! ->  | K8: =#REF! -> 
A9: 7 | B9: ='w-E_R'!B5 -> Heincz Gerit | C9: ='w-E_R'!D5 -> BG St.Martin | D9: ='w-E_R'!H5 -> 39.1 | E9: ='w-E_R'!I5 -> 527 | H9: =#REF! ->  | I9: =#REF! ->  | J9: =#REF! ->  | K9: =#REF! -> 
A10: 8 | B10: ='w-E_R'!B40 -> Wernitznig Nina | C10: ='w-E_R'!D40 -> Musik NMS Hermagor | D10: ='w-E_R'!H40 -> 38.9 | E10: ='w-E_R'!I40 -> 524 | H10: =#REF! ->  | I10: =#REF! ->  | J10: =#REF! ->  | K10: =#REF! -> 
A11: 9 | B11: ='w-E_R'!B32 -> Lippitsch Amelie | C11: ='w-E_R'!D32 -> Ingeborg Bachmann Gymnasium | D11: ='w-E_R'!H32 -> 38.1 | E11: ='w-E_R'!I32 -> 513 | H11: =#REF! ->  | I11: =#REF! ->  | J11: =#REF! ->  | K11: =#REF! -> 
A12: 10 | B12: ='w-E_R'!B60 -> Wiener Sophie | C12: ='w-E_R'!D60 -> NMS Landskron | D12: ='w-E_R'!H60 -> 38 | E12: ='w-E_R'!I60 -> 511 | H12: =#REF! ->  | I12: =#REF! ->  | J12: =#REF! ->  | K12: =#REF! -> 
A13: 11 | B13: ='w-E_R'!B24 -> Kampusch Michelle | C13: ='w-E_R'!D24 -> BZ Bad Eisenkappel | D13: ='w-E_R'!H24 -> 37.7 | E13: ='w-E_R'!I24 -> 507 | H13: =#REF! ->  | I13: =#REF! ->  | J13: =#REF! ->  | K13: =#REF! -> 
A14: 12 | B14: ='w-E_R'!B14 -> Pum Julia | C14: ='w-E_R'!D14 -> Borg Wolfsberg | D14: ='w-E_R'!H14 -> 37 | E14: ='w-E_R'!I14 -> 497 | H14: =#REF! ->  | I14: =#REF! ->  | J14: =#REF! ->  | K14: =#REF! -> 
A15: 13 | B15: ='w-E_R'!B17 -> Hartlieb Michelle | C15: ='w-E_R'!D17 -> BRG Spittal | D15: ='w-E_R'!H17 -> 36.8 | E15: ='w-E_R'!I17 -> 495 | H15: =#REF! ->  | I15: =#REF! ->  | J15: =#REF! ->  | K15: =#REF! -> 
A16: 14 | B16: ='w-E_R'!B20 -> Kowatsch Anna | C16: ='w-E_R'!D20 -> BRG Spittal | D16: ='w-E_R'!H20 -> 36.6 | E16: ='w-E_R'!I20 -> 492 | H16: =#REF! ->  | I16: =#REF! ->  | J16: =#REF! ->  | K16: =#REF! -> 
A17: 14 | B17: ='w-E_R'!B25 -> Kaschnig Lea | C17: ='w-E_R'!D25 -> BZ Bad Eisenkappel | D17: ='w-E_R'!H25 -> 36.6 | E17: ='w-E_R'!I25 -> 492 | H17: =#REF! ->  | I17: =#REF! ->  | J17: =#REF! ->  | K17: =#REF! -> 
A18: 16 | B18: ='w-E_R'!B48 -> Schaller Victoria | C18: ='w-E_R'!D48 -> NMS Friesach | D18: ='w-E_R'!H48 -> 35.9 | E18: ='w-E_R'!I48 -> 482 | H18: =#REF! ->  | I18: =#REF! ->  | J18: =#REF! ->  | K18: =#REF! -> 
A19: 16 | B19: ='w-E_R'!B59 -> Kassin Larissa | C19: ='w-E_R'!D59 -> NMS Landskron | D19: ='w-E_R'!H59 -> 35.9 | E19: ='w-E_R'!I59 -> 482 | H19: =#REF! ->  | I19: =#REF! ->  | J19: =#REF! ->  | K19: =#REF! -> 
A20: 18 | B20: ='w-E_R'!B13 -> Spendl Jennifer | C20: ='w-E_R'!D13 -> Borg Wolfsberg | D20: ='w-E_R'!H13 -> 35.8 | E20: ='w-E_R'!I13 -> 480 | H20: =#REF! ->  | I20: =#REF! ->  | J20: =#REF! ->  | K20: =#REF! -> 
A21: 19 | B21: ='w-E_R'!B43 -> Seebacher Mathilda | C21: ='w-E_R'!D43 -> Musik NMS Hermagor | D21: ='w-E_R'!H43 -> 35.6 | E21: ='w-E_R'!I43 -> 478 | H21: =#REF! ->  | I21: =#REF! ->  | J21: =#REF! ->  | K21: =#REF! -> 
A22: 20 | B22: ='w-E_R'!B35 -> Zenkl Hannah | C22: ='w-E_R'!D35 -> Ingeborg Bachmann Gymnasium | D22: ='w-E_R'!H35 -> 35.5 | E22: ='w-E_R'!I35 -> 476 | H22: =#REF! ->  | I22: =#REF! ->  | J22: =#REF! ->  | K22: =#REF! -> 
A23: 21 | B23: ='w-E_R'!B27 -> Millicevvic Renate | C23: ='w-E_R'!D27 -> BZ Bad Eisenkappel | D23: ='w-E_R'!H27 -> 35.3 | E23: ='w-E_R'!I27 -> 473 | H23: =#REF! ->  | I23: =#REF! ->  | J23: =#REF! ->  | K23: =#REF! -> 
A24: 22 | B24: ='w-E_R'!B49 -> Hölbling Laura | C24: ='w-E_R'!D49 -> NMS Friesach | D24: ='w-E_R'!H49 -> 35.2 | E24: ='w-E_R'!I49 -> 472 | H24: =#REF! ->  | I24: =#REF! ->  | J24: =#REF! ->  | K24: =#REF! -> 
A25: 22 | B25: ='w-E_R'!B73 -> Ebner Elena | C25: ='w-E_R'!D73 -> RNMS Feldkirchen | D25: ='w-E_R'!H73 -> 35.2 | E25: ='w-E_R'!I73 -> 472 | H25: =#REF! ->  | I25: =#REF! ->  | J25: =#REF! ->  | K25: =#REF! -> 
A26: 24 | B26: ='w-E_R'!B36 -> Laßnig Katharina | C26: ='w-E_R'!D36 -> Ingeborg Bachmann Gymnasium | D26: ='w-E_R'!H36 -> 34.7 | E26: ='w-E_R'!I36 -> 465 | H26: =#REF! ->  | I26: =#REF! ->  | J26: =#REF! ->  | K26: =#REF! -> 
A27: 25 | B27: ='w-E_R'!B52 -> Mayer Elena | C27: ='w-E_R'!D52 -> NMS Gegendtal | D27: ='w-E_R'!H52 -> 33.7 | E27: ='w-E_R'!I52 -> 451 | H27: =#REF! ->  | I27: =#REF! ->  | J27: =#REF! ->  | K27: =#REF! -> 
A28: 26 | B28: ='w-E_R'!B6 -> Enzi Sarah | C28: ='w-E_R'!D6 -> BG St.Martin | D28: ='w-E_R'!H6 -> 33.2 | E28: ='w-E_R'!I6 -> 444 | H28: =#REF! ->  | I28: =#REF! ->  | J28: =#REF! ->  | K28: =#REF! -> 
A29: 27 | B29: ='w-E_R'!B8 -> Fugger Sophie | C29: ='w-E_R'!D8 -> BG St.Martin | D29: ='w-E_R'!H8 -> 32.8 | E29: ='w-E_R'!I8 -> 438 | H29: =#REF! ->  | I29: =#REF! ->  | J29: =#REF! ->  | K29: =#REF! -> 
A30: 27 | B30: ='w-E_R'!B19 -> Krammer Kristin | C30: ='w-E_R'!D19 -> BRG Spittal | D30: ='w-E_R'!H19 -> 32.8 | E30: ='w-E_R'!I19 -> 438 | H30: =#REF! ->  | I30: =#REF! ->  | J30: =#REF! ->  | K30: =#REF! -> 
A31: 29 | B31: ='w-E_R'!B21 -> Possegger Christina | C31: ='w-E_R'!D21 -> BRG Spittal | D31: ='w-E_R'!H21 -> 32.6 | E31: ='w-E_R'!I21 -> 435 | H31: =#REF! ->  | I31: =#REF! ->  | J31: =#REF! ->  | K31: =#REF! -> 
A32: 30 | B32: ='w-E_R'!B63 -> Santner Fabienne | C32: ='w-E_R'!D63 -> NMS Landskron | D32: ='w-E_R'!H63 -> 31.9 | E32: ='w-E_R'!I63 -> 425 | H32: =#REF! ->  | I32: =#REF! ->  | J32: =#REF! ->  | K32: =#REF! -> 
A33: 31 | B33: ='w-E_R'!B67 -> Toth Lili | C33: ='w-E_R'!D67 -> NMS Viktring | D33: ='w-E_R'!H67 -> 31.8 | E33: ='w-E_R'!I67 -> 424 | H33: =#REF! ->  | I33: =#REF! ->  | J33: =#REF! ->  | K33: =#REF! -> 
A34: 32 | B34: ='w-E_R'!B3 -> Wallner Paulina | C34: ='w-E_R'!D3 -> BG St.Martin | D34: ='w-E_R'!H3 -> 31.5 | E34: ='w-E_R'!I3 -> 420 | H34: =#REF! ->  | I34: =#REF! ->  | J34: =#REF! ->  | K34: =#REF! -> 
A35: =RANK(E35,$E$3:$E$122,0) -> 33 | B35: ='w-E_R'!B18 -> Reiter Anna-Lena | C35: ='w-E_R'!D18 -> BRG Spittal | D35: ='w-E_R'!H18 -> 31.4 | E35: ='w-E_R'!I18 -> 418 | G35: =RANK(K35,$K$3:$K$122,0) ->  | H35: =#REF! ->  | I35: =#REF! ->  | J35: =#REF! ->  | K35: =#REF! -> 
A36: 33 | B36: ='w-E_R'!B26 -> Ebner Anna-Lena | C36: ='w-E_R'!D26 -> BZ Bad Eisenkappel | D36: ='w-E_R'!H26 -> 31.4 | E36: ='w-E_R'!I26 -> 418 | H36: =#REF! ->  | I36: =#REF! ->  | J36: =#REF! ->  | K36: =#REF! -> 
A37: 35 | B37: ='w-E_R'!B46 -> Kronlechner Bettina | C37: ='w-E_R'!D46 -> NMS Friesach | D37: ='w-E_R'!H46 -> 31.3 | E37: ='w-E_R'!I46 -> 417 | H37: =#REF! ->  | I37: =#REF! ->  | J37: =#REF! ->  | K37: =#REF! -> 
A38: 35 | B38: ='w-E_R'!B70 -> Bierbaumer Selina | C38: ='w-E_R'!D70 -> NMS Viktring | D38: ='w-E_R'!H70 -> 31.3 | E38: ='w-E_R'!I70 -> 417 | H38: =#REF! ->  | I38: =#REF! ->  | J38: =#REF! ->  | K38: =#REF! -> 
A39: 37 | B39: ='w-E_R'!B39 -> Ebenwaldner Carina | C39: ='w-E_R'!D39 -> Musik NMS Hermagor | D39: ='w-E_R'!H39 -> 30.9 | E39: ='w-E_R'!I39 -> 411 | H39: =#REF! ->  | I39: =#REF! ->  | J39: =#REF! ->  | K39: =#REF! -> 
A40: 38 | B40: ='w-E_R'!B54 -> Maier Jasmin | C40: ='w-E_R'!D54 -> NMS Gegendtal | D40: ='w-E_R'!H54 -> 30.8 | E40: ='w-E_R'!I54 -> 410 | H40: =#REF! ->  | I40: =#REF! ->  | J40: =#REF! ->  | K40: =#REF! -> 
A41: 39 | B41: ='w-E_R'!B75 -> Hinteregger Katrin | C41: ='w-E_R'!D75 -> RNMS Feldkirchen | D41: ='w-E_R'!H75 -> 29.8 | E41: ='w-E_R'!I75 -> 395 | H41: =#REF! ->  | I41: =#REF! ->  | J41: =#REF! ->  | K41: =#REF! -> 
A42: 40 | B42: ='w-E_R'!B66 -> Edlmann Chiara | C42: ='w-E_R'!D66 -> NMS Viktring | D42: ='w-E_R'!H66 -> 29.5 | E42: ='w-E_R'!I66 -> 391 | H42: =#REF! ->  | I42: =#REF! ->  | J42: =#REF! ->  | K42: =#REF! -> 
A43: 41 | B43: ='w-E_R'!B45 -> Pörtschacher Vanessa | C43: ='w-E_R'!D45 -> NMS Friesach | D43: ='w-E_R'!H45 -> 29.2 | E43: ='w-E_R'!I45 -> 387 | H43: =#REF! ->  | I43: =#REF! ->  | J43: =#REF! ->  | K43: =#REF! -> 
A44: 41 | B44: ='w-E_R'!B50 -> Pacher Selina | C44: ='w-E_R'!D50 -> NMS Friesach | D44: ='w-E_R'!H50 -> 29.2 | E44: ='w-E_R'!I50 -> 387 | H44: =#REF! ->  | I44: =#REF! ->  | J44: =#REF! ->  | K44: =#REF! -> 
A45: 43 | B45: ='w-E_R'!B71 -> Herkner Anna | C45: ='w-E_R'!D71 -> NMS Viktring | D45: ='w-E_R'!H71 -> 28.7 | E45: ='w-E_R'!I71 -> 379 | H45: =#REF! ->  | I45: =#REF! ->  | J45: =#REF! ->  | K45: =#REF! -> 
A46: 44 | B46: ='w-E_R'!B47 -> Delfser Anna-Magdalena | C46: ='w-E_R'!D47 -> NMS Friesach | D46: ='w-E_R'!H47 -> 28.2 | E46: ='w-E_R'!I47 -> 372 | H46: =#REF! ->  | I46: =#REF! ->  | J46: =#REF! ->  | K46: =#REF! -> 
A47: 45 | B47: ='w-E_R'!B33 -> Doboczky Sophie | C47: ='w-E_R'!D33 -> Ingeborg Bachmann Gymnasium | D47: ='w-E_R'!H33 -> 28.1 | E47: ='w-E_R'!I33 -> 371 | H47: =#REF! ->  | I47: =#REF! ->  | J47: =#REF! ->  | K47: =#REF! -> 
A48: 46 | B48: ='w-E_R'!B42 -> Matthei Laura | C48: ='w-E_R'!D42 -> Musik NMS Hermagor | D48: ='w-E_R'!H42 -> 28 | E48: ='w-E_R'!I42 -> 369 | H48: =#REF! ->  | I48: =#REF! ->  | J48: =#REF! ->  | K48: =#REF! -> 
A49: 47 | B49: ='w-E_R'!B7 -> Koch Anna | C49: ='w-E_R'!D7 -> BG St.Martin | D49: ='w-E_R'!H7 -> 27.8 | E49: ='w-E_R'!I7 -> 366 | H49: =#REF! ->  | I49: =#REF! ->  | J49: =#REF! ->  | K49: =#REF! -> 
A50: 48 | B50: ='w-E_R'!B57 -> Ostertschnig Lisa | C50: ='w-E_R'!D57 -> NMS Gegendtal | D50: ='w-E_R'!H57 -> 27.6 | E50: ='w-E_R'!I57 -> 364 | H50: =#REF! ->  | I50: =#REF! ->  | J50: =#REF! ->  | K50: =#REF! -> 
A51: 49 | B51: ='w-E_R'!B28 -> Pudgar Domenika | C51: ='w-E_R'!D28 -> BZ Bad Eisenkappel | D51: ='w-E_R'!H28 -> 27.5 | E51: ='w-E_R'!I28 -> 362 | H51: =#REF! ->  | I51: =#REF! ->  | J51: =#REF! ->  | K51: =#REF! -> 
A52: 49 | B52: ='w-E_R'!B56 -> Gasser Valentina | C52: ='w-E_R'!D56 -> NMS Gegendtal | D52: ='w-E_R'!H56 -> 27.5 | E52: ='w-E_R'!I56 -> 362 | H52: =#REF! ->  | I52: =#REF! ->  | J52: =#REF! ->  | K52: =#REF! -> 
A53: 51 | B53: ='w-E_R'!B41 -> Pettauer Sara | C53: ='w-E_R'!D41 -> Musik NMS Hermagor | D53: ='w-E_R'!H41 -> 26.9 | E53: ='w-E_R'!I41 -> 353 | H53: =#REF! ->  | I53: =#REF! ->  | J53: =#REF! ->  | K53: =#REF! -> 
A54: 52 | B54: ='w-E_R'!B31 -> Donner Rosa | C54: ='w-E_R'!D31 -> Ingeborg Bachmann Gymnasium | D54: ='w-E_R'!H31 -> 26.8 | E54: ='w-E_R'!I31 -> 352 | H54: =#REF! ->  | I54: =#REF! ->  | J54: =#REF! ->  | K54: =#REF! -> 
A55: 53 | B55: ='w-E_R'!B62 -> Pinzer Alina | C55: ='w-E_R'!D62 -> NMS Landskron | D55: ='w-E_R'!H62 -> 25.2 | E55: ='w-E_R'!I62 -> 329 | H55: =#REF! ->  | I55: =#REF! ->  | J55: =#REF! ->  | K55: =#REF! -> 
A56: 54 | B56: ='w-E_R'!B61 -> Neumann Lisa | C56: ='w-E_R'!D61 -> NMS Landskron | D56: ='w-E_R'!H61 -> 25.1 | E56: ='w-E_R'!I61 -> 327 | H56: =#REF! ->  | I56: =#REF! ->  | J56: =#REF! ->  | K56: =#REF! -> 
A57: 55 | B57: ='w-E_R'!B69 -> Esel Michelle | C57: ='w-E_R'!D69 -> NMS Viktring | D57: ='w-E_R'!H69 -> 24.8 | E57: ='w-E_R'!I69 -> 323 | H57: =#REF! ->  | I57: =#REF! ->  | J57: =#REF! ->  | K57: =#REF! -> 
A58: 56 | B58: ='w-E_R'!B11 -> Maier Magdalena | C58: ='w-E_R'!D11 -> Borg Wolfsberg | D58: ='w-E_R'!H11 -> 23.4 | E58: ='w-E_R'!I11 -> 302 | H58: =#REF! ->  | I58: =#REF! ->  | J58: =#REF! ->  | K58: =#REF! -> 
A59: 56 | B59: ='w-E_R'!B78 -> Petrascu Elisabeth | C59: ='w-E_R'!D78 -> RNMS Feldkirchen | D59: ='w-E_R'!H78 -> 23.4 | E59: ='w-E_R'!I78 -> 302 | H59: =#REF! ->  | I59: =#REF! ->  | J59: =#REF! ->  | K59: =#REF! -> 
A60: 58 | B60: ='w-E_R'!B34 -> Schmaranz Sophie | C60: ='w-E_R'!D34 -> Ingeborg Bachmann Gymnasium | D60: ='w-E_R'!H34 -> 23.1 | E60: ='w-E_R'!I34 -> 298 | H60: =#REF! ->  | I60: =#REF! ->  | J60: =#REF! ->  | K60: =#REF! -> 
A61: 59 | B61: ='w-E_R'!B12 -> Frauwallner Hanna | C61: ='w-E_R'!D12 -> Borg Wolfsberg | D61: ='w-E_R'!H12 -> 21.9 | E61: ='w-E_R'!I12 -> 280 | H61: =#REF! ->  | I61: =#REF! ->  | J61: =#REF! ->  | K61: =#REF! -> 
A62: 60 | B62: ='w-E_R'!B64 -> Petscher Maria | C62: ='w-E_R'!D64 -> NMS Landskron | D62: ='w-E_R'!H64 -> 20.2 | E62: ='w-E_R'!I64 -> 254 | H62: =#REF! ->  | I62: =#REF! ->  | J62: =#REF! ->  | K62: =#REF! -> 
A63: 61 | B63: ='w-E_R'!B10 -> Maier Celina | C63: ='w-E_R'!D10 -> Borg Wolfsberg | D63: ='w-E_R'!H10 -> 19 | E63: ='w-E_R'!I10 -> 236 | H63: =#REF! ->  | I63: =#REF! ->  | J63: =#REF! ->  | K63: =#REF! -> 
A64: 62 | B64: ='w-E_R'!B29 -> 0 | C64: ='w-E_R'!D29 -> BZ Bad Eisenkappel | D64: ='w-E_R'!H29 -> 0 | E64: ='w-E_R'!I29 -> 0 | H64: =#REF! ->  | I64: =#REF! ->  | J64: =#REF! ->  | K64: =#REF! -> 
A65: 62 | B65: ='w-E_R'!B53 -> Steiner Patricia | C65: ='w-E_R'!D53 -> NMS Gegendtal | D65: ='w-E_R'!H53 -> 0 | E65: ='w-E_R'!I53 -> 0 | H65: =#REF! ->  | I65: =#REF! ->  | J65: =#REF! ->  | K65: =#REF! -> 
